Workbook

Sheet LDC Info
AA3: Algoma Power Inc.
AA4: Atikokan Hydro Inc.
AA5: Attawapiskat Power Corporation
AA6: Bluewater Power Distribution Corp.
AA7: Brant County Power
AA8: Brantford Power Inc.
AA9: Burlington Hydro Inc.
AA10: Cambridge and North Dumfries Hydro
AA11: Canadian Niagara Power Inc. – Eastern Ontario Power/Fort Erie/Port Colborne
AA12: Centre Wellington Hydro Ltd.
N13: Version 2.0 | AA13: Chapleau Public Utilities Corporation
D14: Utility Name | E14: Niagara-on-the-Lake Hydro Inc. | AA14: COLLUS Power Corp.
AA15: Cooperative Hydro Embrun Inc.
D16: Assigned EB Number | E16: EB-2013-0155 | AA16: E.L.K. Energy Inc.
AA17: Enersource Hydro Mississauga Inc.
D18: Name of Contact and Title | E18: Philip Wormwell, Director of Corporate Services | AA18: Entegrus Powerlines Inc.
AA19: ENWIN Utilities Ltd.
D20: Phone Number | E20: 905-468-4235 ext 380 | AA20: Erie Thames Powerlines Corp.
AA21: Espanola Regional Hydro Distribution Corporation
D22: Email Address | E22: pwormwell@notlhydro.com | AA22: Essex Powerlines Corporation
AA23: Festival Hydro Inc.
D24: Test Year | E24: 2014 | AA24: Fort Albany Power Corporation
AA25: Fort Frances Power Corporation
D26: Bridge Year | E26: =E24-1 -> 2013 | AA26: Greater Sudbury Hydro Inc.
AA27: Grimsby Power Inc.
D28: Last Rebasing Year | E28: 2009 | AA28: Guelph Hydro Electric Systems Inc.
AA29: Haldimand County Hydro Inc.
A30: Identify the accounting standard used for the test year
E31: CGAAP
A33: Did you update your depreciation and capitalization policies?
E34: Yes
A36: When did you update your depreciation and capitalization policies?
E37: Effective January 1, 2013
A39: Identify the year that the applicant has adopted or is expected to adopt IFRS for financial reporting purposes
E40: 2014 or Later
A42: Identify the year that the applicant has made the required changes to capitalization and depreciation expense policies under CGAAP or ASPE
E43: 2013
A45: Are you applying for cost recovery for the test and/or future year(s) for Green Energy initiatives?
E46: Yes
A48: ="Is " & E14 & " an embedded distributor?" -> Is Niagara-on-the-Lake Hydro Inc. an embedded distributor? | E48: No
A52: Once all selections have been made above, press the following button to reveal the appropriate worksheets.
A56: To unhide all worksheets in this workbook, press the following button:
B59: Notes | AA59: Guelph Hydro Electric Systems Inc.
AA60: Halton Hills Hydro Inc.
C61: Pale green cells represent input cells. | AA61: Hearst Power Distribution Co. Ltd.
AA62: Horizon Utilities Corporation
C63: Pale blue cells represent drop-down lists. The applicant should select the appropriate item from the drop-down list. | AA63: Hydro 2000 Inc.
AA64: Hydro Hawkesbury Inc.
C65: White cells contain fixed values, automatically generated values or formulae. | AA65: Hydro One Brampton Networks Inc.
AA66: Hydro One Networks Inc.
AA67: Hydro One Remote Communities Inc.
AA68: Hydro Ottawa Limited
AA69: Innisfil Hydro Dist. Systems Limited
AA70: Kashechewan Power Corporation
AA71: Kenora Hydro Electric Corporation Ltd.
AA72: Kingston Hydro Corporation
AA73: Kitchener-Wilmot Hydro Inc.
AA74: Lakefront Utilities Inc.
AA75: Lakeland Power Distribution Ltd.
AA76: London Hydro Inc.
AA77: Midland Power Utility Corporation
AA78: Milton Hydro Distribution Inc.
AA79: Newmarket – Tay Power Distribution Ltd.
AA80: Niagara Peninsula Energy Inc.
AA81: Niagara-on-the-Lake Hydro Inc.
AA82: Norfolk Power Distribution Ltd.
AA83: North Bay Hydro Distribution Limited
AA84: Northern Ontario Wires Inc.
AA85: Oakville Hydro Distribution Inc.
AA86: Orangeville Hydro Limited
AA87: Orillia Power Distribution Corp.
AA88: Oshawa PUC Networks Inc.
AA89: Ottawa River Power Corporation
AA90: Parry Sound Power Corporation
AA91: Peterborough Distribution Inc.
AA92: PowerStream Inc.
AA93: PUC Distribution Inc.
AA94: Renfrew Hydro Inc.
AA95: Rideau St. Lawrence Distribution Inc.
AA96: St. Thomas Energy Inc.
AA97: Sioux Lookout Hydro Inc.
AA98: Thunder Bay Hydro Electricity Distribution
AA99: Tillsonburg Hydro Inc.
AA100: Toronto Hydro-Electric System Limited
AA101: Veridian Connections Inc.
AA102: Wasaga Distribution Inc.
AA103: Waterloo North Hydro Inc.
AA104: Welland Hydro Electric System Corp.
AA105: Wellington North Power Inc.
AA106: West Coast Huron Energy Inc.
AA107: Westario Power Inc.
AA108: Whitby Hydro Electric Corporation
AA109: Woodstock Hydro Services Inc.

Sheet Table of Contents
A15: 1 | B15: LDC Information Sheet | E15: 35 | F15: Appendix 2-DB: Overhead Expense (CGAAP or ASPE)
A16: 2 | B16: Index | E16: 36 | F16: Appendix 2-EA: PP&E Deferral Account (2012 IFRS Adopters)
A17: 3 | B17: Cost of Service Application Flowchart | E17: 37 | F17: Appendix 2-EB: PP&E Deferral Account (2013 IFRS Adopters)
A18: 4 | B18: List of Key References | E18: 38 | F18: Appendix 2-EC: PP&E Deferral Account (2014 IFRS Adopters)
A19: 5 | B19: Appendix 2-AA: Capital Projects Table | E19: 39 | F19: Appendix 2-ED: Account 1576 - Accounting Changes Under CGAAP (2012 Changes)
A20: 6 | B20: Appendix 2-AB: Capital Expenditures | E20: 40 | F20: Appendix 2-EE: Account 1576 - Accounting Changes Under CGAAP (2013 Changes)
A21: 7 | B21: Appendix 2-BA1: Fixed Asset Continuity Schedule (CGAAP/ASPE/USGAAP) | E21: 41 | F21: Appendix 2-FA: Renewable Generation Connection Investment Summary
A22: 8 | B22: Appendix 2-BA2: Fixed Asset Continuity Schedule (MIFRS) | E22: 42 | F22: Appendix 2-FB: Calculation of Renewable Generation Connection Direct Benefits/Provincial Amount: Renewable Enabling Improvement Investments
A23: 9 | B23: Appendix 2-BB: Service Life Comparison | E23: 43 | F23: Appendix 2-FC: Calculation of Renewable Generation Connection Direct Benefits/Provincial Amount: Renewable Expansion Investments
A24: 10 | B24: General Instructions to MIFRS Appendices | E24: 44 | F24: Appendix 2-G: Service Reliability Indicators
A25: 11 | B25: Appendix 2-CA: 2011 Depreciation and Amortization Expense (CGAAP) | E25: 45 | F25: Appendix 2-H: Other Operating Revenue
A26: 12 | B26: Appendix 2-CB: 2011 Depreciation and Amortization Expense (MIFRS) | E26: 46 | F26: Appendix 2-I: Load Forecast CDM Adjustment Work Form
A27: 13 | B27: Appendix 2-CC: 2012 Depreciation and Amortization Expense (MIFRS) | E27: 47 | F27: Appendix 2-JA: Summary of Recoverable OM&A Expenses
A28: 14 | B28: Appendix 2-CD: 2013 Depreciation and Amortization Expense (MIFRS) | E28: 48 | F28: Appendix 2-JB: Recoverable OM&A Cost Driver Table
A29: 15 | B29: Appendix 2-CE: 2014 Depreciation and Amortization Expense (MIFRS) | E29: 49 | F29: Appendix 2-JC: OMA Programs Table
A30: 16 | B30: Appendix 2-CF: 2012 Depreciation and Amortization Expense (CGAAP) | E30: 50 | F30: Appendix 2-K: Employee Costs
A31: 17 | B31: Appendix 2-CG: 2012 Depreciation and Amortization Expense (MIFRS) | E31: 51 | F31: Appendix 2-L: Recoverable OM&A Cost per Customer and per FTE
A32: 18 | B32: Appendix 2-CH: 2013 Depreciation and Amortization Expense (MIFRS) | E32: 52 | F32: Appendix 2-M: Regulatory Cost Schedule
A33: 19 | B33: Appendix 2-CI: 2014 Depreciation and Amortization Expense (MIFRS) | E33: 53 | F33: Appendix 2-N: Shared Services and Corporate Cost Allocation
A34: 20 | B34: Appendix 2-CJ: 2012 Depreciation and Amortization Expense (CGAAP) | E34: 54 | F34: Appendix 2-OA: Capital Structure and Cost of Capital
A35: 21 | B35: Appendix 2-CK: 2013 Depreciation and Amortization Expense (CGAAP) | E35: 55 | F35: Appendix 2-OB: Debt Instruments
A36: 22 | B36: Appendix 2-CL: 2013 Depreciation and Amortization Expense (MIFRS) | E36: 56 | F36: Appendix 2-P: Cost Allocation
A37: 23 | B37: Appendix 2-CM: 2014 Depreciation and Amortization Expense (MIFRS) | E37: 57 | F37: Appendix 2-Q: Cost of Serving Embedded Distributor(s)
A38: 24 | B38: General Instructions to CGAAP-ASPE Appendices | E38: 58 | F38: Appendix 2-R: Loss Factors
A39: 25 | B39: Appendix 2-CN: 2012 Depreciation and Amortization Expense (Old CGAAP) | E39: 59 | F39: Appendix 2-S: Stranded Meter Treatment
A40: 26 | B40: Appendix 2-CO: 2012 Depreciation and Amortization Expense (New CGAAP) | E40: 60 | F40: Appendix 2-TA: Account 1592, PILs and Tax Variances
A41: 27 | B41: Appendix 2-CP: 2013 Depreciation and Amortization Expense (New CGAAP) | E41: 61 | F41: Appendix 2-TB: Account 1592, HST-OVAT Input Tax Credits
A42: 28 | B42: Appendix 2-CQ: 2014 Depreciation and Amortization Expense (New CGAAP) | E42: 62 | F42: Appendix 2-U: One-Time Incremental IFRS Transition Costs
A43: 29 | B43: Appendix 2-CR: 2012 Depreciation and Amortization Expense (Old CGAAP) | E43: 63 | F43: Appendix 2-V: Revenue Reconciliation
A44: 30 | B44: Appendix 2-CS: 2013 Depreciation and Amortization Expense (Old CGAAP) | E44: 64 | F44: Appendix 2-W: Bill Impacts
A45: 31 | B45: Appendix 2-CT: 2013 Depreciation and Amortization Expense (New CGAAP) | E45: 65 | F45: Appendix 2-YA: Transition to MIFRS Summary Impacts
A46: 32 | B46: Appendix 2-CU: 2014 Depreciation and Amortization Expense (New CGAAP) | E46: 66 | F46: Appendix 2-YB: Accounting Changes under CGAAP/ASPE Summary Impacts
A47: 33 | B47: Appendix 2-CV: Depreciation and Amortization Expense (USGAAP) | E47: 67 | F47: App.2-Z: Tariff Schedule
A48: 34 | B48: Appendix 2-DA: Overhead Expense (MIFRS)
B51: Legend
B52: To be completed by MIFRS filers
B53: To be completed by CGAAP and ASPE filers
B54: To be completed by USGAAP filers
B55: To be completed by both CGAAP, ASPE and USGAAP filers

Sheet COS Flowchart
B4: Cost of Service Rate Application Schematic
B6: The Cost of Service Rate Application Schematic is a flowchart appended to Chapter 2 of the Filing Requirements as a guide for the components of an application and how demand and costs interrelate to derive the revenue requirement and then how the revenue requirement is allocated between classes and through fixed/variable splits to derive rates that will be compensatory for the annual revenue requirement, based on the the forecasted demand. There is no form to be filled out; therefore, this Schedule is not required to be filed.

Sheet List of Key References
B3: List of Key References
A5: A list of key references for understanding the Filing Requirements has been embedded in the document below. To access the list of references and associated hyperlinks doublt click the icon below.

Sheet App.2-AA_Capital Projects
G1: File Number: | H1: =EBNUMBER -> EB-2013-0155
G2: Exhibit: | H2: 2
G3: Tab: | H3: 3
G4: Schedule: | H4: 2
G5: Page: | H5: 1
G7: Date: | H7: 2014-04-08
A9: Appendix 2-AA
A10: Capital Projects Table
A13: Projects | B13: =C13-1 -> 2008 | C13: =D13-1 -> 2009 | D13: =E13-1 -> 2010 | E13: =F13-1 -> 2011 | F13: =BridgeYear - 1 -> 2012 | G13: 2013 Actuals (unaudited) | H13: =TestYear & " Test Year" -> 2014 Test Year
A14: Reporting Basis | B14: CGAAP | C14: CGAAP | D14: CGAAP | E14: CGAAP | F14: CGAAP | G14: CGAAP | H14: CGAAP
A15: Rural O/H Rebuild/Conversion
A16: York Rd - Shepard to Parkway | B16: 52844
A17: Queenston Rd, Concession 5-7 | C17: 224429
A18: Stewart Rd Pole replacement | D18: 80527
A19: Line 6 Conversion | F19: 168859
A20: Line 5 conversion | F20: 277419
A21: Expansions- Developers CCRA | E21: 51946 | F21: 55825 | G21: 31463 | H21: 55000
A22: Line 3 conversion | G22: 174780
A23: Concession 2 Rebuild | G23: 93428
A24: Concession 2 Line 7-9 Rebuild | H24: 200000
A25: Queenston Rd / Concession 5 | B25: 254285
A26: Creek Rd Feeder pole replacement | D26: 115364
A27: Lakeshore Rd pole replacements | F27: 272825
A28: Line 7 pole replacements | F28: 149789
A29: Concession 4 rebuild | G29: 190655
A30: Concession 6 rebuild Line 6-8 | H30: 155000
A31: York Rd rebuild Concession 2-3 | H31: 140000
A32: Line 4 rebuild Concession 2-3 | H32: 110000
A33: Sub-Total | B33: =SUM(B16:B32) -> 307129 | C33: =SUM(C16:C32) -> 224429 | D33: 195891 | E33: 51946 | F33: 924717 | G33: 490326 | H33: 660000
A34: U/G Project Rebuild/Conversion
A35: Chatauqua Rebuild | B35: 347833 | C35: 755138 | D35: 315047
A36: Old Town Burial/Conversion | F36: 163450 | H36: 330000
A37: Garrison Subd cable injection | E37: 127380
A38: Simcoe St burial/conversion | F38: 409150 | G38: 441611
A39: Sub-Total | B39: =SUM(B35:B38) -> 347833 | C39: =SUM(C35:C38) -> 755138 | D39: 315047 | E39: 127380 | F39: 572600 | G39: 441611 | H39: 330000
A40: Other Projects
A41: Transformer Station Upgrades | B41: 187738
A42: Software Upgrades (CIS/FIS/File Nexus and other) | B42: 93273 | C42: 265475 | G42: 40259 | H42: =65000+30000 -> 95000
A43: New CIS/FIS software | D43: 299834
A44: Line truck #1 | D44: 85681 | E44: 202210
A45: Line truck #2 | E45: 104115 | F45: 246447
A46: System Integration (GIS,CIS,ODS) | F46: 83993 | G46: 64636 | H46: 95000
A47: Sub-Total | B47: =SUM(B41:B46) -> 281011 | C47: 265475 | D47: 385515 | E47: 306325 | F47: 330440 | G47: 104895 | H47: 190000
A48: From Variance Accounts
A49: Smart Meters (Approved. From USoA 1555) | F49: 1699031.54
A50: CIS upgrade for TOU (Approved. From USoA 1555) | F50: 170000
A51: Smart Grid (Requested. From USoA 1534) | G51: ='App.2-BA1_Fix Asset Cont.CGAAP'!E345 -> 237952.164
A52: Sub-Total | B52: =SUM(B49:B51) -> 0 | C52: =SUM(C49:C51) -> 0 | D52: 0 | E52: 0 | F52: 1869031.54 | G52: 237952.164 | H52: 0
A53: Miscellaneous | B53: =B54-SUM(B47,B39,B33,B52) -> 531026.55 | C53: 560020.69 | D53: 630795.47 | E53: 573239.62 | F53: 484859.76 | G53: =G54-SUM(G47,G39,G33,G52) -> 47430.836 | H53: 105000
A54: Total | B54: ='[9]Asset Continuity'!$D$76 -> 1466999.55 | C54: ='App.2-BA1_Fix Asset Cont.CGAAP'!E58 -> 1805062.69 | D54: ='App.2-BA1_Fix Asset Cont.CGAAP'!E136 -> 1527248.47 | E54: ='App.2-BA1_Fix Asset Cont.CGAAP'!E203 -> 1058890.62 | F54: ='App.2-BA1_Fix Asset Cont.CGAAP'!E273 -> 4181648.3 | G54: ='App.2-AB_Capital Expenditures'!O21*1000 -> 1322215 | H54: ='App.2-BA1_Fix Asset Cont.CGAAP'!E447 -> 1285000
A55: Less Renewable Generation Facility Assets and Other Non Rate-Regulated Utility Assets (input as negative)
A56: Total | B56: =SUM(B54:B55) -> 1466999.55 | C56: =SUM(C54:C55) -> 1805062.69 | D56: 1527248.47 | E56: 1058890.62 | F56: 4181648.3 | G56: 1322215 | H56: 1285000
A58: 2009 Approved | C58: 1877496
A59: Variance of Actuals from 2009 Approved | C59: =C56-$C58 -> -72433.31 | D59: =D56-$C58 -> -350247.53 | E59: -818605.38 | F59: 2304152.3 | G59: -555281 | H59: -592496
A79: Notes:
A81: 1 Please provide a breakdown of the major components of each capital project undertaken in each year. Please ensure that all projects below the materiality threshold are included in the miscellaneous line. Add more projects as required.
A82: 2 The applicant should group projects appropriately and avoid presentations that result in classification of significant components of the OM&A budget in the miscellaneous category.

Sheet App.2-AB_Capital Expenditures
S1: File Number: | U1: =EBNUMBER -> EB-2013-0155
S2: Exhibit: | U2: 2
S3: Tab: | U3: 3
S4: Schedule: | U4: 2
S5: Page: | U5: 1
S7: Date: | U7: ='App.2-AA_Capital Projects'!H7 -> 2014-04-08
A9: Appendix 2-AB
A10: Table 2 - Capital Expenditure Summary from Chapter 5 Consolidated Distribution System Plan Filing Requirements
A12: First year of Forecast Period: | B12: =TestYear -> 2014
A13: CATEGORY | B13: Historical Period (previous plan1 & actual) | Q13: Forecast Period (planned)
B14: =E14-1 -> 2009 | E14: =H14-1 -> 2010 | H14: =K14-1 -> 2011 | K14: =N14-1 -> 2012 | N14: =Q14-1 -> 2013 | Q14: =B12 -> 2014 | R14: =Q14+1 -> 2015 | S14: =R14+1 -> 2016 | T14: 2017 | U14: 2018
B15: Plan | C15: Actual | D15: Var | E15: Plan | F15: Actual | G15: Var | H15: Plan | I15: Actual | J15: Var | K15: Plan | L15: Actual | M15: Var | N15: Plan | O15: Actual2 | P15: Var
B16: $ '000 | D16: % | E16: $ '000 | G16: % | H16: $ '000 | J16: % | K16: $ '000 | M16: % | N16: $ '000 | P16: % | Q16: $ '000
A17: System Access | C17: 44 | D17: =IF(ISERROR((C17-B17)/B17),"--",(C17-B17)/B17) -> -- | F17: 334 | G17: =IF(ISERROR((F17-E17)/E17),"--",(F17-E17)/E17) -> -- | I17: 246 | J17: =IF(ISERROR((I17-H17)/H17),"--",(I17-H17)/H17) -> -- | L17: 1850 | M17: =IF(ISERROR((L17-K17)/K17),"--",(L17-K17)/K17) -> -- | O17: 133.993 | P17: =IF(ISERROR((O17-N17)/N17),"--",(O17-N17)/N17) -> -- | Q17: 100 | R17: 100 | S17: 100 | T17: 100 | U17: 100
A18: System Renewal | C18: 1339 | D18: =IF(ISERROR((C18-B18)/B18),"--",(C18-B18)/B18) -> -- | F18: 721 | G18: =IF(ISERROR((F18-E18)/E18),"--",(F18-E18)/E18) -> -- | I18: 397 | J18: =IF(ISERROR((I18-H18)/H18),"--",(I18-H18)/H18) -> -- | L18: 1745 | M18: =IF(ISERROR((L18-K18)/K18),"--",(L18-K18)/K18) -> -- | O18: 912.603 | P18: =IF(ISERROR((O18-N18)/N18),"--",(O18-N18)/N18) -> -- | Q18: 970 | R18: 4030 | S18: 1030 | T18: 935 | U18: 1030
A19: System Service | C19: 15 | D19: -- | F19: 23 | G19: -- | I19: 19 | J19: -- | L19: 96 | M19: -- | O19: 136.106 | P19: -- | Q19: 95 | R19: 55 | S19: 55 | T19: 55 | U19: 55
A20: General Plant | C20: 407 | D20: -- | F20: 449 | G20: -- | I20: 397 | J20: -- | L20: 491 | M20: -- | O20: 139.513 | P20: -- | Q20: 120 | R20: 65 | S20: 65 | T20: 160 | U20: 65
A21: TOTAL EXPENDITURE | B21: =SUM(B17:B20) -> 0 | C21: =SUM(C17:C20) -> 1805 | D21: -- | E21: 0 | F21: 1527 | G21: -- | H21: 0 | I21: 1059 | J21: -- | K21: 0 | L21: 4182 | M21: -- | N21: 0 | O21: 1322.215 | P21: -- | Q21: 1285 | R21: 4250 | S21: 1250 | T21: 1250 | U21: =SUM(U17:U20) -> 1250
A22: System O&M | C22: 839 | D22: -- | F22: ='[10]App.2-I_OM&A_Summary_Analys'!$D$17/1000 -> 745.29929 | G22: -- | I22: ='App.2-JA_OM&A_Summary_Analys'!E17/1000 -> 816.89832 | J22: -- | L22: ='App.2-JA_OM&A_Summary_Analys'!F17/1000 -> 948.91267 | M22: -- | O22: 894 | P22: -- | Q22: ='App.2-JA_OM&A_Summary_Analys'!H17/1000 -> 948.1769355 | R22: =Q22*1.016 -> 963.3477665 | S22: =R22*1.016 -> 978.7613307 | T22: 994.421512 | U22: 1010.332256
A23: Checksum 2-BA1 | C23: =C21-'App.2-BA1_Fix Asset Cont.CGAAP'!E61/1000 -> -0.06269 | F23: =F21-'App.2-BA1_Fix Asset Cont.CGAAP'!E136/1000 -> -0.24847 | I23: =I21-'App.2-BA1_Fix Asset Cont.CGAAP'!E203/1000 -> 0.10938 | L23: =L21-'App.2-BA1_Fix Asset Cont.CGAAP'!E273/1000 -> 0.3517 | O23: 12 months
A24: Notes to the Table:
A25: 1. Historical “previous plan” data is not required unless a plan has previously been filed
A26: 2. Indicate the number of months of 'actual' data included in the last year of the Historical Period (normally a 'bridge' year):
A28: Explanatory Notes on Variances (complete only if applicable)
A29: Notes on shifts in forecast vs. histrical budgets by category
A30: System Access System Access spending can be quite unpredictable as it is driven primarily by new customer expansion plans. The 2012 total includes the full capitalization of our smart meter system. On a go-forward basis, we expect that our forecasted $100k per year is adequate System Renewal The average annual Renewal expense between 2009 and 2012 was approximately $1050k/year. Several large projects over this period spanned in to a subsequent year (CWIP) causing the expenses to appear 'lumpy'. Our forecast expenditure in Renewal is in-line with the 2009-2012 average and is based on a solid Capex plan as presented. System Service System Service spending ramped up in 2012 and 2013 with the Outage Management System currently under development. Our proposed Capex Plan describes the continued development of system automation during the forecast period as a means of improving efficiency. General Plant Our General Plant expenditures were ramped up between 2009 and 2012 as we replaced all 3 large Line Vehicles. In preparation for Smart Meters, we also replaced our FIS system. We are well positioned for the future and have reflected a much lower Capex spending in GP over the forecast period. A slight increase in 2017 is required as part of a roof replacement program.
A32: Notes on year over year Plan vs. Actual variances for Total Expenditures
A33: A plan has not previously been filed. Therefore, the "Plan" column for 2009 to 2013 has been left blank as per the Note 1 above.
A35: Notes on Plan vs. Actual variance trends for individual expenditure categories
A36: A plan has not previously been filed. Therefore, the "Plan" column for 2009 to 2013 has been left blank as per the Note 1 above.

Sheet App.2-BA1_Fix Asset Cont.CGAAP
L1: File Number: | M1: =EBNUMBER -> EB-2013-0155
L2: Exhibit: | M2: 2
L3: Tab: | M3: 2
L4: Schedule: | M4: 1
L5: Page: | M5: 1
L7: Date: | M7: ='App.2-AA_Capital Projects'!H7 -> 2014-04-08
A9: Appendix 2-BA
A10: Fixed Asset Continuity Schedule - CGAAP/ASPE/USGAAP
E12: Year | F12: 2009
D14: Cost | J14: Accumulated Depreciation
A15: CCA Class | B15: OEB | C15: Description | D15: Opening Balance | E15: Additions | F15: Disposals | G15: Closing Balance | I15: Opening Balance | J15: Additions | K15: Disposals | L15: Closing Balance | M15: Net Book Value
A16: 12 | B16: 1611 | C16: Computer Software (Formally known as Account 1925) | D16: ='[10]App.2-B_Fixed Asset Con_2009_'!$E16 -> 0 | E16: ='[10]App.2-B_Fixed Asset Con_2009_'!$F16 -> 0 | F16: ='[10]App.2-B_Fixed Asset Con_2009_'!$G16 -> 0 | G16: =D16+E16+F16 -> 0 | I16: ='[10]App.2-B_Fixed Asset Con_2009_'!$J16 -> 0 | J16: ='[10]App.2-B_Fixed Asset Con_2009_'!$K16 -> 0 | K16: ='[10]App.2-B_Fixed Asset Con_2009_'!$L16 -> 0 | L16: =I16+J16+K16 -> 0 | M16: =G16+L16 -> 0
A17: CEC | B17: 1612 | C17: Land Rights (Formally known as Account 1906) | E17: 0 | F17: 0 | G17: =D17+E17+F17 -> 0 | K17: ='[10]App.2-B_Fixed Asset Con_2009_'!$L17 -> 0 | L17: =I17+J17+K17 -> 0 | M17: =G17+L17 -> 0
A18: N/A | B18: 1805 | C18: Land | D18: ='[10]App.2-B_Fixed Asset Con_2009_'!$E18 -> 258134.21 | E18: ='[10]App.2-B_Fixed Asset Con_2009_'!$F18 -> 0 | F18: ='[10]App.2-B_Fixed Asset Con_2009_'!$G18 -> 0 | G18: =D18+E18+F18 -> 258134.21 | I18: ='[10]App.2-B_Fixed Asset Con_2009_'!$J18 -> 0 | J18: ='[10]App.2-B_Fixed Asset Con_2009_'!$K18 -> 0 | K18: ='[10]App.2-B_Fixed Asset Con_2009_'!$L18 -> 0 | L18: =I18+J18+K18 -> 0 | M18: =G18+L18 -> 258134.21
A19: 47 | B19: 1808 | C19: Buildings | D19: ='[10]App.2-B_Fixed Asset Con_2009_'!$E19 -> 0 | E19: ='[10]App.2-B_Fixed Asset Con_2009_'!$F19 -> 0 | F19: ='[10]App.2-B_Fixed Asset Con_2009_'!$G19 -> 0 | G19: =D19+E19+F19 -> 0 | I19: ='[10]App.2-B_Fixed Asset Con_2009_'!$J19 -> 0 | J19: ='[10]App.2-B_Fixed Asset Con_2009_'!$K19 -> 0 | K19: ='[10]App.2-B_Fixed Asset Con_2009_'!$L19 -> 0 | L19: =I19+J19+K19 -> 0 | M19: =G19+L19 -> 0
A20: 13 | B20: 1810 | C20: Leasehold Improvements | D20: ='[10]App.2-B_Fixed Asset Con_2009_'!$E20 -> 0 | E20: ='[10]App.2-B_Fixed Asset Con_2009_'!$F20 -> 0 | F20: ='[10]App.2-B_Fixed Asset Con_2009_'!$G20 -> 0 | G20: 0 | I20: ='[10]App.2-B_Fixed Asset Con_2009_'!$J20 -> 0 | J20: ='[10]App.2-B_Fixed Asset Con_2009_'!$K20 -> 0 | K20: ='[10]App.2-B_Fixed Asset Con_2009_'!$L20 -> 0 | L20: 0 | M20: 0
A21: 47 | B21: 1815 | C21: Transformer Station Equipment >50 kV | D21: ='[10]App.2-B_Fixed Asset Con_2009_'!$E21 -> 5370392.1 | E21: ='[10]App.2-B_Fixed Asset Con_2009_'!$F21 -> 9502.64 | F21: ='[10]App.2-B_Fixed Asset Con_2009_'!$G21 -> 0 | G21: 5379894.74 | I21: ='[10]App.2-B_Fixed Asset Con_2009_'!$J21 -> -577389.75 | J21: ='[10]App.2-B_Fixed Asset Con_2009_'!$K21 -> -134378.52 | K21: ='[10]App.2-B_Fixed Asset Con_2009_'!$L21 -> 0 | L21: -711768.27 | M21: 4668126.47
A22: 47 | B22: 1820 | C22: Distribution Station Equipment <50 kV | D22: ='[10]App.2-B_Fixed Asset Con_2009_'!$E22 -> 160630.29 | E22: ='[10]App.2-B_Fixed Asset Con_2009_'!$F22 -> 0 | F22: ='[10]App.2-B_Fixed Asset Con_2009_'!$G22 -> 0 | G22: 160630.29 | I22: ='[10]App.2-B_Fixed Asset Con_2009_'!$J22 -> -100428.79 | J22: ='[10]App.2-B_Fixed Asset Con_2009_'!$K22 -> -3068.4 | K22: ='[10]App.2-B_Fixed Asset Con_2009_'!$L22 -> 0 | L22: -103497.19 | M22: 57133.1
A23: 47 | B23: 1825 | C23: Storage Battery Equipment | D23: ='[10]App.2-B_Fixed Asset Con_2009_'!$E23 -> 0 | E23: ='[10]App.2-B_Fixed Asset Con_2009_'!$F23 -> 0 | F23: ='[10]App.2-B_Fixed Asset Con_2009_'!$G23 -> 0 | G23: 0 | I23: ='[10]App.2-B_Fixed Asset Con_2009_'!$J23 -> 0 | J23: ='[10]App.2-B_Fixed Asset Con_2009_'!$K23 -> 0 | K23: ='[10]App.2-B_Fixed Asset Con_2009_'!$L23 -> 0 | L23: 0 | M23: 0
A24: 47 | B24: 1830 | C24: Poles, Towers & Fixtures | D24: ='[10]App.2-B_Fixed Asset Con_2009_'!$E24 -> 4447848.27 | E24: ='[10]App.2-B_Fixed Asset Con_2009_'!$F24 -> 161931.87 | F24: ='[10]App.2-B_Fixed Asset Con_2009_'!$G24 -> 0 | G24: 4609780.14 | I24: ='[10]App.2-B_Fixed Asset Con_2009_'!$J24 -> -2564524.01 | J24: ='[10]App.2-B_Fixed Asset Con_2009_'!$K24 -> -139299.65 | K24: ='[10]App.2-B_Fixed Asset Con_2009_'!$L24 -> 0 | L24: -2703823.66 | M24: 1905956.48
A25: 47 | B25: 1835 | C25: Overhead Conductors & Devices | D25: ='[10]App.2-B_Fixed Asset Con_2009_'!$E25 -> 5962185.88 | E25: ='[10]App.2-B_Fixed Asset Con_2009_'!$F25 -> 268034.43 | F25: ='[10]App.2-B_Fixed Asset Con_2009_'!$G25 -> 0 | G25: 6230220.31 | I25: ='[10]App.2-B_Fixed Asset Con_2009_'!$J25 -> -3242803.1 | J25: ='[10]App.2-B_Fixed Asset Con_2009_'!$K25 -> -191357.21 | K25: ='[10]App.2-B_Fixed Asset Con_2009_'!$L25 -> 0 | L25: -3434160.31 | M25: 2796060
A26: 47 | B26: 1840 | C26: Underground Conduit | D26: ='[10]App.2-B_Fixed Asset Con_2009_'!$E26 -> 3793214.21 | E26: ='[10]App.2-B_Fixed Asset Con_2009_'!$F26 -> 404193.46 | F26: ='[10]App.2-B_Fixed Asset Con_2009_'!$G26 -> 0 | G26: 4197407.67 | I26: ='[10]App.2-B_Fixed Asset Con_2009_'!$J26 -> -1601068.33 | J26: ='[10]App.2-B_Fixed Asset Con_2009_'!$K26 -> -156075.33 | K26: ='[10]App.2-B_Fixed Asset Con_2009_'!$L26 -> 0 | L26: -1757143.66 | M26: 2440264.01
A27: 47 | B27: 1845 | C27: Underground Conductors & Devices | D27: ='[10]App.2-B_Fixed Asset Con_2009_'!$E27 -> 7340936.23 | E27: ='[10]App.2-B_Fixed Asset Con_2009_'!$F27 -> 537952.71 | F27: ='[10]App.2-B_Fixed Asset Con_2009_'!$G27 -> 0 | G27: 7878888.94 | I27: ='[10]App.2-B_Fixed Asset Con_2009_'!$J27 -> -3389707.24 | J27: ='[10]App.2-B_Fixed Asset Con_2009_'!$K27 -> -296260.4 | K27: ='[10]App.2-B_Fixed Asset Con_2009_'!$L27 -> 0 | L27: -3685967.64 | M27: 4192921.3
A28: 47 | B28: 1850 | C28: Line Transformers | D28: ='[10]App.2-B_Fixed Asset Con_2009_'!$E28 -> 6974011.75 | E28: ='[10]App.2-B_Fixed Asset Con_2009_'!$F28 -> 344010.7 | F28: ='[10]App.2-B_Fixed Asset Con_2009_'!$G28 -> -125287.18 | G28: 7192735.27 | I28: ='[10]App.2-B_Fixed Asset Con_2009_'!$J28 -> -3073229.12 | J28: ='[10]App.2-B_Fixed Asset Con_2009_'!$K28 -> -255682 | K28: ='[10]App.2-B_Fixed Asset Con_2009_'!$L28 -> 125287.18 | L28: -3203623.94 | M28: 3989111.33
A29: 47 | B29: 1855 | C29: Services (Overhead & Underground) | D29: ='[10]App.2-B_Fixed Asset Con_2009_'!$E29 -> 2014876.97 | E29: ='[10]App.2-B_Fixed Asset Con_2009_'!$F29 -> 133567.85 | F29: ='[10]App.2-B_Fixed Asset Con_2009_'!$G29 -> 0 | G29: 2148444.82 | I29: ='[10]App.2-B_Fixed Asset Con_2009_'!$J29 -> -383524.41 | J29: ='[10]App.2-B_Fixed Asset Con_2009_'!$K29 -> -83266.46 | K29: ='[10]App.2-B_Fixed Asset Con_2009_'!$L29 -> 0 | L29: -466790.87 | M29: 1681653.95
A30: 47 | B30: 1860 | C30: Meters | D30: ='[10]App.2-B_Fixed Asset Con_2009_'!$E30 -> 1059247.32 | E30: ='[10]App.2-B_Fixed Asset Con_2009_'!$F30 -> 2837.69 | F30: ='[10]App.2-B_Fixed Asset Con_2009_'!$G30 -> -574.2 | G30: 1061510.81 | I30: ='[10]App.2-B_Fixed Asset Con_2009_'!$J30 -> -617795.44 | J30: ='[10]App.2-B_Fixed Asset Con_2009_'!$K30 -> -37476.67 | K30: ='[10]App.2-B_Fixed Asset Con_2009_'!$L30 -> 574.2 | L30: -654697.91 | M30: 406812.9
A31: 47 | B31: 1860 | C31: Meters (Smart Meters) | D31: ='[10]App.2-B_Fixed Asset Con_2009_'!$E31 -> 0 | E31: ='[10]App.2-B_Fixed Asset Con_2009_'!$F31 -> 0 | F31: ='[10]App.2-B_Fixed Asset Con_2009_'!$G31 -> 0 | G31: 0 | I31: ='[10]App.2-B_Fixed Asset Con_2009_'!$J31 -> 0 | J31: ='[10]App.2-B_Fixed Asset Con_2009_'!$K31 -> 0 | K31: ='[10]App.2-B_Fixed Asset Con_2009_'!$L31 -> 0 | L31: 0 | M31: 0
A32: N/A | B32: 1905 | C32: Land | D32: ='[10]App.2-B_Fixed Asset Con_2009_'!$E32 -> 49000 | E32: ='[10]App.2-B_Fixed Asset Con_2009_'!$F32 -> 0 | F32: ='[10]App.2-B_Fixed Asset Con_2009_'!$G32 -> 0 | G32: 49000 | I32: ='[10]App.2-B_Fixed Asset Con_2009_'!$J32 -> 0 | J32: ='[10]App.2-B_Fixed Asset Con_2009_'!$K32 -> 0 | K32: ='[10]App.2-B_Fixed Asset Con_2009_'!$L32 -> 0 | L32: 0 | M32: 49000
A33: 47 | B33: 1908 | C33: Buildings & Fixtures | D33: ='[10]App.2-B_Fixed Asset Con_2009_'!$E33 -> 936743.25 | E33: ='[10]App.2-B_Fixed Asset Con_2009_'!$F33 -> 46536.01 | F33: ='[10]App.2-B_Fixed Asset Con_2009_'!$G33 -> 0 | G33: 983279.26 | I33: ='[10]App.2-B_Fixed Asset Con_2009_'!$J33 -> -302886.28 | J33: ='[10]App.2-B_Fixed Asset Con_2009_'!$K33 -> -16822.41 | K33: ='[10]App.2-B_Fixed Asset Con_2009_'!$L33 -> 0 | L33: -319708.69 | M33: 663570.57
A34: 13 | B34: 1910 | C34: Leasehold Improvements | D34: ='[10]App.2-B_Fixed Asset Con_2009_'!$E34 -> 0 | E34: ='[10]App.2-B_Fixed Asset Con_2009_'!$F34 -> 0 | F34: ='[10]App.2-B_Fixed Asset Con_2009_'!$G34 -> 0 | G34: 0 | I34: ='[10]App.2-B_Fixed Asset Con_2009_'!$J34 -> 0 | J34: ='[10]App.2-B_Fixed Asset Con_2009_'!$K34 -> 0 | K34: ='[10]App.2-B_Fixed Asset Con_2009_'!$L34 -> 0 | L34: 0 | M34: 0
A35: 8 | B35: 1915 | C35: Office Furniture & Equipment (10 years) | D35: ='[10]App.2-B_Fixed Asset Con_2009_'!$E35 -> 171299.82 | E35: ='[10]App.2-B_Fixed Asset Con_2009_'!$F35 -> 23875.56 | F35: ='[10]App.2-B_Fixed Asset Con_2009_'!$G35 -> 0 | G35: 195175.38 | I35: ='[10]App.2-B_Fixed Asset Con_2009_'!$J35 -> -138433.73 | J35: ='[10]App.2-B_Fixed Asset Con_2009_'!$K35 -> -6769.46 | K35: ='[10]App.2-B_Fixed Asset Con_2009_'!$L35 -> 0 | L35: -145203.19 | M35: 49972.19
A36: 8 | B36: 1915 | C36: Office Furniture & Equipment (5 years) | D36: ='[10]App.2-B_Fixed Asset Con_2009_'!$E36 -> 0 | E36: ='[10]App.2-B_Fixed Asset Con_2009_'!$F36 -> 0 | F36: ='[10]App.2-B_Fixed Asset Con_2009_'!$G36 -> 0 | G36: 0 | I36: ='[10]App.2-B_Fixed Asset Con_2009_'!$J36 -> 0 | J36: ='[10]App.2-B_Fixed Asset Con_2009_'!$K36 -> 0 | K36: ='[10]App.2-B_Fixed Asset Con_2009_'!$L36 -> 0 | L36: 0 | M36: 0
A37: 10 | B37: 1920 | C37: Computer Equipment - Hardware | D37: ='[10]App.2-B_Fixed Asset Con_2009_'!$E37 -> 314187.52 | E37: ='[10]App.2-B_Fixed Asset Con_2009_'!$F37 -> 18772.51 | F37: ='[10]App.2-B_Fixed Asset Con_2009_'!$G37 -> 0 | G37: 332960.03 | I37: ='[10]App.2-B_Fixed Asset Con_2009_'!$J37 -> -266620.46 | J37: ='[10]App.2-B_Fixed Asset Con_2009_'!$K37 -> -18049.96 | K37: ='[10]App.2-B_Fixed Asset Con_2009_'!$L37 -> 0 | L37: -284670.42 | M37: 48289.61
A38: 45 | B38: 1920 | C38: Computer Equip.-Hardware(Post Mar. 22/04) | G38: 0 | L38: 0 | M38: 0
A39: 45.1 | B39: 1920 | C39: Computer Equip.-Hardware(Post Mar. 19/07) | G39: 0 | L39: 0 | M39: 0
A40: 12 | B40: 1925 | C40: Computer Software | D40: ='[10]App.2-B_Fixed Asset Con_2009_'!$E40 -> 990734.61 | E40: ='[10]App.2-B_Fixed Asset Con_2009_'!$F40 -> 265474.55 | F40: ='[10]App.2-B_Fixed Asset Con_2009_'!$G40 -> 0 | G40: 1256209.16 | I40: ='[10]App.2-B_Fixed Asset Con_2009_'!$J40 -> -859006.47 | J40: ='[10]App.2-B_Fixed Asset Con_2009_'!$K40 -> -115287.64 | K40: ='[10]App.2-B_Fixed Asset Con_2009_'!$L40 -> 0 | L40: =I40+J40+K40 -> -974294.11 | M40: =G40+L40 -> 281915.05
A41: 12 | B41: 1925 | C41: Computer Software (CIS TOU upgrade) | D41: 0 | E41: 0 | F41: 0 | G41: 0 | I41: 0 | J41: 0 | K41: 0 | L41: =I41+J41+K41 -> 0 | M41: =G41+L41 -> 0
A42: 10 | B42: 1930 | C42: Transportation Equipment | D42: ='[10]App.2-B_Fixed Asset Con_2009_'!$E41 -> 979797.91 | E42: ='[10]App.2-B_Fixed Asset Con_2009_'!$F41 -> 36274.57 | F42: ='[10]App.2-B_Fixed Asset Con_2009_'!$G41 -> 0 | G42: 1016072.48 | I42: ='[10]App.2-B_Fixed Asset Con_2009_'!$J41 -> -678086.79 | J42: ='[10]App.2-B_Fixed Asset Con_2009_'!$K41 -> -90499.41 | K42: ='[10]App.2-B_Fixed Asset Con_2009_'!$L41 -> 0 | L42: -768586.2 | M42: 247486.28
A43: 8 | B43: 1935 | C43: Stores Equipment | D43: ='[10]App.2-B_Fixed Asset Con_2009_'!$E42 -> 17353.75 | E43: ='[10]App.2-B_Fixed Asset Con_2009_'!$F42 -> 7284.39 | F43: ='[10]App.2-B_Fixed Asset Con_2009_'!$G42 -> 0 | G43: 24638.14 | I43: ='[10]App.2-B_Fixed Asset Con_2009_'!$J42 -> -14565.88 | J43: ='[10]App.2-B_Fixed Asset Con_2009_'!$K42 -> -679.92 | K43: ='[10]App.2-B_Fixed Asset Con_2009_'!$L42 -> 0 | L43: -15245.8 | M43: 9392.34
A44: 8 | B44: 1940 | C44: Tools, Shop & Garage Equipment | D44: ='[10]App.2-B_Fixed Asset Con_2009_'!$E43 -> 429483.06 | E44: ='[10]App.2-B_Fixed Asset Con_2009_'!$F43 -> 8827.67 | F44: ='[10]App.2-B_Fixed Asset Con_2009_'!$G43 -> 0 | G44: 438310.73 | I44: ='[10]App.2-B_Fixed Asset Con_2009_'!$J43 -> -293000.98 | J44: ='[10]App.2-B_Fixed Asset Con_2009_'!$K43 -> -29836.13 | K44: ='[10]App.2-B_Fixed Asset Con_2009_'!$L43 -> 0 | L44: -322837.11 | M44: 115473.62
A45: 8 | B45: 1945 | C45: Measurement & Testing Equipment | D45: ='[10]App.2-B_Fixed Asset Con_2009_'!$E44 -> 0 | E45: ='[10]App.2-B_Fixed Asset Con_2009_'!$F44 -> 0 | F45: ='[10]App.2-B_Fixed Asset Con_2009_'!$G44 -> 0 | G45: 0 | I45: ='[10]App.2-B_Fixed Asset Con_2009_'!$J44 -> 0 | J45: ='[10]App.2-B_Fixed Asset Con_2009_'!$K44 -> 0 | K45: ='[10]App.2-B_Fixed Asset Con_2009_'!$L44 -> 0 | L45: 0 | M45: 0
A46: 8 | B46: 1950 | C46: Power Operated Equipment | D46: ='[10]App.2-B_Fixed Asset Con_2009_'!$E45 -> 0 | E46: ='[10]App.2-B_Fixed Asset Con_2009_'!$F45 -> 0 | F46: ='[10]App.2-B_Fixed Asset Con_2009_'!$G45 -> 0 | G46: 0 | I46: ='[10]App.2-B_Fixed Asset Con_2009_'!$J45 -> 0 | J46: ='[10]App.2-B_Fixed Asset Con_2009_'!$K45 -> 0 | K46: ='[10]App.2-B_Fixed Asset Con_2009_'!$L45 -> 0 | L46: 0 | M46: 0
A47: 8 | B47: 1955 | C47: Communications Equipment | D47: ='[10]App.2-B_Fixed Asset Con_2009_'!$E46 -> 48643.17 | E47: ='[10]App.2-B_Fixed Asset Con_2009_'!$F46 -> 4717.31 | F47: ='[10]App.2-B_Fixed Asset Con_2009_'!$G46 -> 0 | G47: 53360.48 | I47: ='[10]App.2-B_Fixed Asset Con_2009_'!$J46 -> -22806.19 | J47: ='[10]App.2-B_Fixed Asset Con_2009_'!$K46 -> -3692.19 | K47: ='[10]App.2-B_Fixed Asset Con_2009_'!$L46 -> 0 | L47: -26498.38 | M47: 26862.1
A48: 8 | B48: 1955 | C48: Communication Equipment (Smart Meters) | D48: ='[10]App.2-B_Fixed Asset Con_2009_'!$E47 -> 0 | E48: ='[10]App.2-B_Fixed Asset Con_2009_'!$F47 -> 0 | F48: ='[10]App.2-B_Fixed Asset Con_2009_'!$G47 -> 0 | G48: 0 | I48: ='[10]App.2-B_Fixed Asset Con_2009_'!$J47 -> 0 | J48: ='[10]App.2-B_Fixed Asset Con_2009_'!$K47 -> 0 | K48: ='[10]App.2-B_Fixed Asset Con_2009_'!$L47 -> 0 | L48: 0 | M48: 0
A49: 8 | B49: 1960 | C49: Miscellaneous Equipment | D49: ='[10]App.2-B_Fixed Asset Con_2009_'!$E48 -> 0 | E49: ='[10]App.2-B_Fixed Asset Con_2009_'!$F48 -> 0 | F49: ='[10]App.2-B_Fixed Asset Con_2009_'!$G48 -> 0 | G49: 0 | I49: ='[10]App.2-B_Fixed Asset Con_2009_'!$J48 -> 0 | J49: ='[10]App.2-B_Fixed Asset Con_2009_'!$K48 -> 0 | K49: ='[10]App.2-B_Fixed Asset Con_2009_'!$L48 -> 0 | L49: 0 | M49: 0
A50: 47 | B50: 1970 | C50: Load Management Controls Customer Premises | G50: 0 | L50: 0 | M50: 0
A51: 47 | B51: 1975 | C51: Load Management Controls Utility Premises | G51: 0 | L51: 0 | M51: 0
A52: 47 | B52: 1980 | C52: System Supervisor Equipment | D52: ='[10]App.2-B_Fixed Asset Con_2009_'!$E50 -> 315463.49 | E52: ='[10]App.2-B_Fixed Asset Con_2009_'!$F50 -> 498.78 | F52: ='[10]App.2-B_Fixed Asset Con_2009_'!$G50 -> 0 | G52: 315962.27 | I52: ='[10]App.2-B_Fixed Asset Con_2009_'!$J50 -> -140971.13 | J52: ='[10]App.2-B_Fixed Asset Con_2009_'!$K50 -> -21047.47 | K52: ='[10]App.2-B_Fixed Asset Con_2009_'!$L50 -> 0 | L52: -162018.6 | M52: 153943.67
A53: 47 | B53: 1985 | C53: Miscellaneous Fixed Assets | D53: ='[10]App.2-B_Fixed Asset Con_2009_'!$E51 -> 0 | E53: ='[10]App.2-B_Fixed Asset Con_2009_'!$F51 -> 0 | F53: ='[10]App.2-B_Fixed Asset Con_2009_'!$G51 -> 0 | G53: 0 | I53: ='[10]App.2-B_Fixed Asset Con_2009_'!$J51 -> 0 | J53: ='[10]App.2-B_Fixed Asset Con_2009_'!$K51 -> 0 | K53: ='[10]App.2-B_Fixed Asset Con_2009_'!$L51 -> 0 | L53: 0 | M53: 0
A54: 47 | B54: 1990 | C54: Other Tangible Property | G54: 0 | L54: 0 | M54: 0
A55: 47 | B55: 1995 | C55: Contributions & Grants | D55: ='[10]App.2-B_Fixed Asset Con_2009_'!$E52 -> -5038608.38 | E55: ='[10]App.2-B_Fixed Asset Con_2009_'!$F52 -> -469230.01 | F55: ='[10]App.2-B_Fixed Asset Con_2009_'!$G52 -> 0 | G55: -5507838.39 | I55: ='[10]App.2-B_Fixed Asset Con_2009_'!$J52 -> 1056131.11 | J55: ='[10]App.2-B_Fixed Asset Con_2009_'!$K52 -> 210280.14 | K55: ='[10]App.2-B_Fixed Asset Con_2009_'!$L52 -> 0 | L55: 1266411.25 | M55: -4241427.14
B56: etc. | G56: 0 | L56: 0 | M56: 0
G57: 0 | L57: 0 | M57: 0
C58: Sub-Total | D58: =SUM(D16:D57) -> 36595575.43 | E58: =SUM(E16:E57) -> 1805062.69 | F58: -125861.38 | G58: 38274776.74 | I58: =SUM(I16:I57) -> -17210716.99 | J58: -1389269.09 | K58: 125861.38 | L58: =SUM(L16:L57) -> -18474124.7 | M58: 19800652.04
C59: Less Socialized Renewable Energy Generation Investments (input as negative) | G59: =D59+E59+F59 -> 0 | L59: =I59+J59+K59 -> 0 | M59: =G59+L59 -> 0
C60: Less Other Non Rate-Regulated Utility Assets (input as negative) | G60: 0 | L60: =I60+J60+K60 -> 0 | M60: 0
C61: Total PP&E | D61: =SUM(D58:D60) -> 36595575.43 | E61: =SUM(E58:E60) -> 1805062.69 | F61: -125861.38 | G61: 38274776.74 | I61: =SUM(I58:I60) -> -17210716.99 | J61: -1389269.09 | K61: 125861.38 | L61: =SUM(L58:L60) -> -18474124.7 | M61: =SUM(M58:M60) -> 19800652.04
I63: Less: Fully Allocated Depreciation
A64: 10 | C64: Transportation | I64: Transportation | K64: ='[10]App.2-B_Fixed Asset Con_2009_'!$L$58 -> -90499.41
A65: 8 | C65: Stores Equipment | I65: Stores Equipment | K65: ='[10]App.2-B_Fixed Asset Con_2009_'!$L$59 -> -679.92
I66: Net Depreciation | K66: =J61-K64-K65 -> -1298089.76
A68: Notes:
A70: 1 | B70: Tables in the format outlined above covering all fixed asset accounts should be submitted for the Test Year, Bridge Year and all relevant historical years. At a minimum , the applicant must provide data for the earlier of: 1) all historical years back to its last rebasing; or 2) at least three years of historical actuals, in addition to Bridge Year and Test Year forecasts.
A73: 2 | B73: The "CCA Class" for fixed assets should agree with the CCA Class used for tax purposes in Tax Returns. Fixed Assets sub-components may be used where the underlying asset components are classified under multiple CCA Classes for tax purposes. If an applicant uses any different classes from those shown in the table, an explanation should be provided. (also see note 3 below).
A76: 3 | B76: The table may need to be customized for a utility's asset categories or for any new asset accounts announced or authorized by the Board.
A78: 4 | B78: The additions column (F) must not include construction work in progress (CWIP).
L79: File Number: | M79: =EBNUMBER -> EB-2013-0155
L80: Exhibit: | M80: =$M2 -> 2
L81: Tab: | M81: =$M3 -> 2
L82: Schedule: | M82: =$M4 -> 1
L83: Page:
L85: Date: | M85: 2013-10-01
A87: Appendix 2-BA
A88: Fixed Asset Continuity Schedule - CGAAP/ASPE/USGAAP
E90: Year | F90: 2010
D92: Cost | J92: Accumulated Depreciation
A93: CCA Class | B93: OEB | C93: Description | D93: Opening Balance | E93: Additions | F93: Disposals | G93: Closing Balance | I93: Opening Balance | J93: Additions | K93: Disposals | L93: Closing Balance | M93: Net Book Value
A94: 12 | B94: 1611 | C94: Computer Software (Formally known as Account 1925) | D94: ='[10]App.2-B_Fixed Asset Con_2010'!$E16 -> 0 | E94: ='[10]App.2-B_Fixed Asset Con_2010'!$F16 -> 0 | F94: ='[10]App.2-B_Fixed Asset Con_2010'!$G16 -> 0 | G94: =D94+E94+F94 -> 0 | I94: ='[10]App.2-B_Fixed Asset Con_2010'!$J16 -> 0 | J94: ='[10]App.2-B_Fixed Asset Con_2010'!$K16 -> 0 | K94: ='[10]App.2-B_Fixed Asset Con_2010'!$L16 -> 0 | L94: =I94+J94+K94 -> 0 | M94: =G94+L94 -> 0
A95: CEC | B95: 1612 | C95: Land Rights (Formally known as Account 1906) | E95: 0 | F95: 0 | G95: =D95+E95+F95 -> 0 | I95: =L17 -> 0 | K95: ='[10]App.2-B_Fixed Asset Con_2010'!$L17 -> 0 | L95: =I95+J95+K95 -> 0 | M95: =G95+L95 -> 0
A96: N/A | B96: 1805 | C96: Land | D96: ='[10]App.2-B_Fixed Asset Con_2010'!$E18 -> 258134.21 | E96: ='[10]App.2-B_Fixed Asset Con_2010'!$F18 -> 0 | F96: ='[10]App.2-B_Fixed Asset Con_2010'!$G18 -> 0 | G96: =D96+E96+F96 -> 258134.21 | I96: ='[10]App.2-B_Fixed Asset Con_2010'!$J18 -> 0 | J96: ='[10]App.2-B_Fixed Asset Con_2010'!$K18 -> 0 | K96: ='[10]App.2-B_Fixed Asset Con_2010'!$L18 -> 0 | L96: =I96+J96+K96 -> 0 | M96: =G96+L96 -> 258134.21
A97: 47 | B97: 1808 | C97: Buildings | D97: ='[10]App.2-B_Fixed Asset Con_2010'!$E19 -> 0 | E97: ='[10]App.2-B_Fixed Asset Con_2010'!$F19 -> 0 | F97: ='[10]App.2-B_Fixed Asset Con_2010'!$G19 -> 0 | G97: =D97+E97+F97 -> 0 | I97: ='[10]App.2-B_Fixed Asset Con_2010'!$J19 -> 0 | J97: ='[10]App.2-B_Fixed Asset Con_2010'!$K19 -> 0 | K97: ='[10]App.2-B_Fixed Asset Con_2010'!$L19 -> 0 | L97: =I97+J97+K97 -> 0 | M97: =G97+L97 -> 0
A98: 13 | B98: 1810 | C98: Leasehold Improvements | D98: ='[10]App.2-B_Fixed Asset Con_2010'!$E20 -> 0 | E98: ='[10]App.2-B_Fixed Asset Con_2010'!$F20 -> 0 | F98: ='[10]App.2-B_Fixed Asset Con_2010'!$G20 -> 0 | G98: 0 | I98: ='[10]App.2-B_Fixed Asset Con_2010'!$J20 -> 0 | J98: ='[10]App.2-B_Fixed Asset Con_2010'!$K20 -> 0 | K98: ='[10]App.2-B_Fixed Asset Con_2010'!$L20 -> 0 | L98: 0 | M98: 0
A99: 47 | B99: 1815 | C99: Transformer Station Equipment >50 kV | D99: ='[10]App.2-B_Fixed Asset Con_2010'!$E21 -> 5379894.74 | E99: ='[10]App.2-B_Fixed Asset Con_2010'!$F21 -> 19801.69 | F99: ='[10]App.2-B_Fixed Asset Con_2010'!$G21 -> 0 | G99: 5399696.43 | I99: ='[10]App.2-B_Fixed Asset Con_2010'!$J21 -> -711768.27 | J99: ='[10]App.2-B_Fixed Asset Con_2010'!$K21 -> -134744.91 | K99: ='[10]App.2-B_Fixed Asset Con_2010'!$L21 -> 0 | L99: -846513.18 | M99: 4553183.25
A100: 47 | B100: 1820 | C100: Distribution Station Equipment <50 kV | D100: ='[10]App.2-B_Fixed Asset Con_2010'!$E22 -> 160630.29 | E100: ='[10]App.2-B_Fixed Asset Con_2010'!$F22 -> 0 | F100: ='[10]App.2-B_Fixed Asset Con_2010'!$G22 -> 0 | G100: 160630.29 | I100: ='[10]App.2-B_Fixed Asset Con_2010'!$J22 -> -103497.19 | J100: ='[10]App.2-B_Fixed Asset Con_2010'!$K22 -> -3068.4 | K100: ='[10]App.2-B_Fixed Asset Con_2010'!$L22 -> 0 | L100: -106565.59 | M100: 54064.7
A101: 47 | B101: 1825 | C101: Storage Battery Equipment | D101: ='[10]App.2-B_Fixed Asset Con_2010'!$E23 -> 0 | E101: ='[10]App.2-B_Fixed Asset Con_2010'!$F23 -> 0 | F101: ='[10]App.2-B_Fixed Asset Con_2010'!$G23 -> 0 | G101: 0 | I101: ='[10]App.2-B_Fixed Asset Con_2010'!$J23 -> 0 | J101: ='[10]App.2-B_Fixed Asset Con_2010'!$K23 -> 0 | K101: ='[10]App.2-B_Fixed Asset Con_2010'!$L23 -> 0 | L101: 0 | M101: 0
A102: 47 | B102: 1830 | C102: Poles, Towers & Fixtures | D102: ='[10]App.2-B_Fixed Asset Con_2010'!$E24 -> 4609780.14 | E102: ='[10]App.2-B_Fixed Asset Con_2010'!$F24 -> 207278.2 | F102: ='[10]App.2-B_Fixed Asset Con_2010'!$G24 -> 0 | G102: 4817058.34 | I102: ='[10]App.2-B_Fixed Asset Con_2010'!$J24 -> -2703823.66 | J102: ='[10]App.2-B_Fixed Asset Con_2010'!$K24 -> -142248.42 | K102: ='[10]App.2-B_Fixed Asset Con_2010'!$L24 -> 0 | L102: -2846072.08 | M102: 1970986.26
A103: 47 | B103: 1835 | C103: Overhead Conductors & Devices | D103: ='[10]App.2-B_Fixed Asset Con_2010'!$E25 -> 6230220.31 | E103: ='[10]App.2-B_Fixed Asset Con_2010'!$F25 -> 157804.28 | F103: ='[10]App.2-B_Fixed Asset Con_2010'!$G25 -> 0 | G103: 6388024.59 | I103: ='[10]App.2-B_Fixed Asset Con_2010'!$J25 -> -3434160.31 | J103: ='[10]App.2-B_Fixed Asset Con_2010'!$K25 -> -194452.89 | K103: ='[10]App.2-B_Fixed Asset Con_2010'!$L25 -> 0 | L103: -3628613.2 | M103: 2759411.39
A104: 47 | B104: 1840 | C104: Underground Conduit | D104: ='[10]App.2-B_Fixed Asset Con_2010'!$E26 -> 4197407.67 | E104: ='[10]App.2-B_Fixed Asset Con_2010'!$F26 -> 254322.15 | F104: ='[10]App.2-B_Fixed Asset Con_2010'!$G26 -> 0 | G104: 4451729.82 | I104: ='[10]App.2-B_Fixed Asset Con_2010'!$J26 -> -1757143.66 | J104: ='[10]App.2-B_Fixed Asset Con_2010'!$K26 -> -169251.83 | K104: ='[10]App.2-B_Fixed Asset Con_2010'!$L26 -> 0 | L104: -1926395.49 | M104: 2525334.33
A105: 47 | B105: 1845 | C105: Underground Conductors & Devices | D105: ='[10]App.2-B_Fixed Asset Con_2010'!$E27 -> 7878888.94 | E105: ='[10]App.2-B_Fixed Asset Con_2010'!$F27 -> 296644.74 | F105: ='[10]App.2-B_Fixed Asset Con_2010'!$G27 -> 0 | G105: 8175533.68 | I105: ='[10]App.2-B_Fixed Asset Con_2010'!$J27 -> -3685967.64 | J105: ='[10]App.2-B_Fixed Asset Con_2010'!$K27 -> -312965.81 | K105: ='[10]App.2-B_Fixed Asset Con_2010'!$L27 -> 0 | L105: -3998933.45 | M105: 4176600.23
A106: 47 | B106: 1850 | C106: Line Transformers | D106: ='[10]App.2-B_Fixed Asset Con_2010'!$E28 -> 7192735.27 | E106: ='[10]App.2-B_Fixed Asset Con_2010'!$F28 -> 240841.7 | F106: ='[10]App.2-B_Fixed Asset Con_2010'!$G28 -> -83112.97 | G106: 7350464 | I106: ='[10]App.2-B_Fixed Asset Con_2010'!$J28 -> -3203623.94 | J106: ='[10]App.2-B_Fixed Asset Con_2010'!$K28 -> -265753.33 | K106: ='[10]App.2-B_Fixed Asset Con_2010'!$L28 -> 4019.24 | L106: -3465358.03 | M106: 3885105.97
A107: 47 | B107: 1855 | C107: Services (Overhead & Underground) | D107: ='[10]App.2-B_Fixed Asset Con_2010'!$E29 -> 2148444.82 | E107: ='[10]App.2-B_Fixed Asset Con_2010'!$F29 -> 191396.27 | F107: ='[10]App.2-B_Fixed Asset Con_2010'!$G29 -> 0 | G107: 2339841.09 | I107: ='[10]App.2-B_Fixed Asset Con_2010'!$J29 -> -466790.87 | J107: ='[10]App.2-B_Fixed Asset Con_2010'!$K29 -> -89765.72 | K107: ='[10]App.2-B_Fixed Asset Con_2010'!$L29 -> 0 | L107: -556556.59 | M107: 1783284.5
A108: 47 | B108: 1860 | C108: Meters | D108: ='[10]App.2-B_Fixed Asset Con_2010'!$E30 -> 1061510.81 | E108: ='[10]App.2-B_Fixed Asset Con_2010'!$F30 -> 10560.32 | F108: ='[10]App.2-B_Fixed Asset Con_2010'!$G30 -> 0 | G108: 1072071.13 | I108: ='[10]App.2-B_Fixed Asset Con_2010'!$J30 -> -654697.91 | J108: ='[10]App.2-B_Fixed Asset Con_2010'!$K30 -> -15871.29 | K108: ='[10]App.2-B_Fixed Asset Con_2010'!$L30 -> 0 | L108: -670569.2 | M108: 401501.93
A109: 47 | B109: 1860 | C109: Meters (Smart Meters) | D109: ='[10]App.2-B_Fixed Asset Con_2010'!$E31 -> 0 | E109: ='[10]App.2-B_Fixed Asset Con_2010'!$F31 -> 0 | F109: ='[10]App.2-B_Fixed Asset Con_2010'!$G31 -> 0 | G109: 0 | I109: ='[10]App.2-B_Fixed Asset Con_2010'!$J31 -> 0 | J109: ='[10]App.2-B_Fixed Asset Con_2010'!$K31 -> 0 | K109: ='[10]App.2-B_Fixed Asset Con_2010'!$L31 -> 0 | L109: 0 | M109: 0
A110: N/A | B110: 1905 | C110: Land | D110: ='[10]App.2-B_Fixed Asset Con_2010'!$E32 -> 49000 | E110: ='[10]App.2-B_Fixed Asset Con_2010'!$F32 -> 0 | F110: ='[10]App.2-B_Fixed Asset Con_2010'!$G32 -> 0 | G110: 49000 | I110: ='[10]App.2-B_Fixed Asset Con_2010'!$J32 -> 0 | J110: ='[10]App.2-B_Fixed Asset Con_2010'!$K32 -> 0 | K110: ='[10]App.2-B_Fixed Asset Con_2010'!$L32 -> 0 | L110: 0 | M110: 49000
A111: 47 | B111: 1908 | C111: Buildings & Fixtures | D111: ='[10]App.2-B_Fixed Asset Con_2010'!$E33 -> 983279.26 | E111: ='[10]App.2-B_Fixed Asset Con_2010'!$F33 -> 24696.44 | F111: ='[10]App.2-B_Fixed Asset Con_2010'!$G33 -> 0 | G111: 1007975.7 | I111: ='[10]App.2-B_Fixed Asset Con_2010'!$J33 -> -319708.69 | J111: ='[10]App.2-B_Fixed Asset Con_2010'!$K33 -> -17534.73 | K111: ='[10]App.2-B_Fixed Asset Con_2010'!$L33 -> 0 | L111: -337243.42 | M111: 670732.28
A112: 13 | B112: 1910 | C112: Leasehold Improvements | D112: ='[10]App.2-B_Fixed Asset Con_2010'!$E34 -> 0 | E112: ='[10]App.2-B_Fixed Asset Con_2010'!$F34 -> 0 | F112: ='[10]App.2-B_Fixed Asset Con_2010'!$G34 -> 0 | G112: 0 | I112: ='[10]App.2-B_Fixed Asset Con_2010'!$J34 -> 0 | J112: ='[10]App.2-B_Fixed Asset Con_2010'!$K34 -> 0 | K112: ='[10]App.2-B_Fixed Asset Con_2010'!$L34 -> 0 | L112: 0 | M112: 0
A113: 8 | B113: 1915 | C113: Office Furniture & Equipment (10 years) | D113: ='[10]App.2-B_Fixed Asset Con_2010'!$E35 -> 195175.38 | E113: ='[10]App.2-B_Fixed Asset Con_2010'!$F35 -> 7261.75 | F113: ='[10]App.2-B_Fixed Asset Con_2010'!$G35 -> 0 | G113: 202437.13 | I113: ='[10]App.2-B_Fixed Asset Con_2010'!$J35 -> -145203.19 | J113: ='[10]App.2-B_Fixed Asset Con_2010'!$K35 -> -8085.6 | K113: ='[10]App.2-B_Fixed Asset Con_2010'!$L35 -> 0 | L113: -153288.79 | M113: 49148.34
A114: 8 | B114: 1915 | C114: Office Furniture & Equipment (5 years) | D114: ='[10]App.2-B_Fixed Asset Con_2010'!$E36 -> 0 | E114: ='[10]App.2-B_Fixed Asset Con_2010'!$F36 -> 0 | F114: ='[10]App.2-B_Fixed Asset Con_2010'!$G36 -> 0 | G114: 0 | I114: ='[10]App.2-B_Fixed Asset Con_2010'!$J36 -> 0 | J114: ='[10]App.2-B_Fixed Asset Con_2010'!$K36 -> 0 | K114: ='[10]App.2-B_Fixed Asset Con_2010'!$L36 -> 0 | L114: 0 | M114: 0
A115: 10 | B115: 1920 | C115: Computer Equipment - Hardware | D115: ='[10]App.2-B_Fixed Asset Con_2010'!$E37 -> 332960.03 | E115: ='[10]App.2-B_Fixed Asset Con_2010'!$F37 -> 14202.92 | F115: ='[10]App.2-B_Fixed Asset Con_2010'!$G37 -> 0 | G115: 347162.95 | I115: ='[10]App.2-B_Fixed Asset Con_2010'!$J37 -> -284670.42 | J115: ='[10]App.2-B_Fixed Asset Con_2010'!$K37 -> -18275.77 | K115: ='[10]App.2-B_Fixed Asset Con_2010'!$L37 -> 0 | L115: -302946.19 | M115: 44216.76
A116: 45 | B116: 1920 | C116: Computer Equip.-Hardware(Post Mar. 22/04) | G116: 0 | L116: 0 | M116: 0
A117: 45.1 | B117: 1920 | C117: Computer Equip.-Hardware(Post Mar. 19/07) | G117: 0 | L117: 0 | M117: 0
A118: 12 | B118: 1925 | C118: Computer Software | D118: ='[10]App.2-B_Fixed Asset Con_2010'!$E40 -> 1256209.16 | E118: ='[10]App.2-B_Fixed Asset Con_2010'!$F40 -> 300300.38 | F118: ='[10]App.2-B_Fixed Asset Con_2010'!$G40 -> 0 | G118: 1556509.54 | I118: ='[10]App.2-B_Fixed Asset Con_2010'!$J40 -> -974294.11 | J118: ='[10]App.2-B_Fixed Asset Con_2010'!$K40 -> -182715.36 | K118: ='[10]App.2-B_Fixed Asset Con_2010'!$L40 -> 0 | L118: -1157009.47 | M118: 399500.07
A119: 12 | B119: 1925 | C119: Computer Software (CIS TOU upgrade) | D119: 0 | E119: 0 | F119: 0 | G119: 0 | I119: 0 | J119: 0 | K119: 0 | L119: 0 | M119: 0
A120: 10 | B120: 1930 | C120: Transportation Equipment | D120: ='[10]App.2-B_Fixed Asset Con_2010'!$E41 -> 1016072.48 | E120: ='[10]App.2-B_Fixed Asset Con_2010'!$F41 -> 85681.3 | F120: ='[10]App.2-B_Fixed Asset Con_2010'!$G41 -> -35962.12 | G120: 1065791.66 | I120: ='[10]App.2-B_Fixed Asset Con_2010'!$J41 -> -768586.2 | J120: ='[10]App.2-B_Fixed Asset Con_2010'!$K41 -> -63035.97 | K120: ='[10]App.2-B_Fixed Asset Con_2010'!$L41 -> 35962.12 | L120: -795660.05 | M120: 270131.61
A121: 8 | B121: 1935 | C121: Stores Equipment | D121: ='[10]App.2-B_Fixed Asset Con_2010'!$E42 -> 24638.14 | E121: ='[10]App.2-B_Fixed Asset Con_2010'!$F42 -> 0 | F121: ='[10]App.2-B_Fixed Asset Con_2010'!$G42 -> 0 | G121: 24638.14 | I121: ='[10]App.2-B_Fixed Asset Con_2010'!$J42 -> -15245.8 | J121: ='[10]App.2-B_Fixed Asset Con_2010'!$K42 -> -1044.12 | K121: ='[10]App.2-B_Fixed Asset Con_2010'!$L42 -> 0 | L121: -16289.92 | M121: 8348.22
A122: 8 | B122: 1940 | C122: Tools, Shop & Garage Equipment | D122: ='[10]App.2-B_Fixed Asset Con_2010'!$E43 -> 438310.73 | E122: ='[10]App.2-B_Fixed Asset Con_2010'!$F43 -> 13683.11 | F122: ='[10]App.2-B_Fixed Asset Con_2010'!$G43 -> 0 | G122: 451993.84 | I122: ='[10]App.2-B_Fixed Asset Con_2010'!$J43 -> -322837.11 | J122: ='[10]App.2-B_Fixed Asset Con_2010'!$K43 -> -30616.8 | K122: ='[10]App.2-B_Fixed Asset Con_2010'!$L43 -> 0 | L122: -353453.91 | M122: 98539.93
A123: 8 | B123: 1945 | C123: Measurement & Testing Equipment | D123: ='[10]App.2-B_Fixed Asset Con_2010'!$E44 -> 0 | E123: ='[10]App.2-B_Fixed Asset Con_2010'!$F44 -> 0 | F123: ='[10]App.2-B_Fixed Asset Con_2010'!$G44 -> 0 | G123: 0 | I123: ='[10]App.2-B_Fixed Asset Con_2010'!$J44 -> 0 | J123: ='[10]App.2-B_Fixed Asset Con_2010'!$K44 -> 0 | K123: ='[10]App.2-B_Fixed Asset Con_2010'!$L44 -> 0 | L123: 0 | M123: 0
A124: 8 | B124: 1950 | C124: Power Operated Equipment | D124: ='[10]App.2-B_Fixed Asset Con_2010'!$E45 -> 0 | E124: ='[10]App.2-B_Fixed Asset Con_2010'!$F45 -> 0 | F124: ='[10]App.2-B_Fixed Asset Con_2010'!$G45 -> 0 | G124: 0 | I124: ='[10]App.2-B_Fixed Asset Con_2010'!$J45 -> 0 | J124: ='[10]App.2-B_Fixed Asset Con_2010'!$K45 -> 0 | K124: ='[10]App.2-B_Fixed Asset Con_2010'!$L45 -> 0 | L124: 0 | M124: 0
A125: 8 | B125: 1955 | C125: Communications Equipment | D125: ='[10]App.2-B_Fixed Asset Con_2010'!$E46 -> 53360.48 | E125: ='[10]App.2-B_Fixed Asset Con_2010'!$F46 -> 1022.63 | F125: ='[10]App.2-B_Fixed Asset Con_2010'!$G46 -> 0 | G125: 54383.11 | I125: ='[10]App.2-B_Fixed Asset Con_2010'!$J46 -> -26498.38 | J125: ='[10]App.2-B_Fixed Asset Con_2010'!$K46 -> -3944.38 | K125: ='[10]App.2-B_Fixed Asset Con_2010'!$L46 -> 0 | L125: -30442.76 | M125: 23940.35
A126: 8 | B126: 1955 | C126: Communication Equipment (Smart Meters) | D126: ='[10]App.2-B_Fixed Asset Con_2010'!$E47 -> 0 | E126: ='[10]App.2-B_Fixed Asset Con_2010'!$F47 -> 0 | F126: ='[10]App.2-B_Fixed Asset Con_2010'!$G47 -> 0 | G126: 0 | I126: ='[10]App.2-B_Fixed Asset Con_2010'!$J47 -> 0 | J126: ='[10]App.2-B_Fixed Asset Con_2010'!$K47 -> 0 | K126: ='[10]App.2-B_Fixed Asset Con_2010'!$L47 -> 0 | L126: 0 | M126: 0
A127: 8 | B127: 1960 | C127: Miscellaneous Equipment | D127: ='[10]App.2-B_Fixed Asset Con_2010'!$E48 -> 0 | E127: ='[10]App.2-B_Fixed Asset Con_2010'!$F48 -> 0 | F127: ='[10]App.2-B_Fixed Asset Con_2010'!$G48 -> 0 | G127: 0 | I127: ='[10]App.2-B_Fixed Asset Con_2010'!$J48 -> 0 | J127: ='[10]App.2-B_Fixed Asset Con_2010'!$K48 -> 0 | K127: ='[10]App.2-B_Fixed Asset Con_2010'!$L48 -> 0 | L127: 0 | M127: 0
A128: 47 | B128: 1970 | C128: Load Management Controls Customer Premises | G128: 0 | L128: 0 | M128: 0
A129: 47 | B129: 1975 | C129: Load Management Controls Utility Premises | G129: 0 | L129: 0 | M129: 0
A130: 47 | B130: 1980 | C130: System Supervisor Equipment | D130: ='[10]App.2-B_Fixed Asset Con_2010'!$E50 -> 315962.27 | E130: ='[10]App.2-B_Fixed Asset Con_2010'!$F50 -> 1890 | F130: ='[10]App.2-B_Fixed Asset Con_2010'!$G50 -> 0 | G130: 317852.27 | I130: ='[10]App.2-B_Fixed Asset Con_2010'!$J50 -> -162018.6 | J130: ='[10]App.2-B_Fixed Asset Con_2010'!$K50 -> -21127.08 | K130: ='[10]App.2-B_Fixed Asset Con_2010'!$L50 -> 0 | L130: -183145.68 | M130: 134706.59
A131: 47 | B131: 1985 | C131: Miscellaneous Fixed Assets | D131: ='[10]App.2-B_Fixed Asset Con_2010'!$E51 -> 0 | E131: ='[10]App.2-B_Fixed Asset Con_2010'!$F51 -> 0 | F131: ='[10]App.2-B_Fixed Asset Con_2010'!$G51 -> 0 | G131: 0 | I131: ='[10]App.2-B_Fixed Asset Con_2010'!$J51 -> 0 | J131: ='[10]App.2-B_Fixed Asset Con_2010'!$K51 -> 0 | K131: ='[10]App.2-B_Fixed Asset Con_2010'!$L51 -> 0 | L131: 0 | M131: 0
A132: 47 | B132: 1990 | C132: Other Tangible Property | G132: 0 | L132: 0 | M132: 0
A133: 47 | B133: 1995 | C133: Contributions & Grants | D133: ='[10]App.2-B_Fixed Asset Con_2010'!$E52 -> -5507838.39 | E133: ='[10]App.2-B_Fixed Asset Con_2010'!$F52 -> -300139.41 | F133: ='[10]App.2-B_Fixed Asset Con_2010'!$G52 -> 0 | G133: -5807977.8 | I133: ='[10]App.2-B_Fixed Asset Con_2010'!$J52 -> 1266411.25 | J133: ='[10]App.2-B_Fixed Asset Con_2010'!$K52 -> 225667.49 | K133: ='[10]App.2-B_Fixed Asset Con_2010'!$L52 -> 0 | L133: 1492078.74 | M133: -4315899.06
B134: etc. | G134: 0 | L134: 0 | M134: 0
G135: 0 | L135: 0 | M135: 0
C136: Sub-Total | D136: =SUM(D94:D135) -> 38274776.74 | E136: =SUM(E94:E135) -> 1527248.47 | F136: -119075.09 | G136: 39682950.12 | I136: =SUM(I94:I135) -> -18474124.7 | J136: -1448834.92 | K136: 39981.36 | L136: -19882978.26 | M136: 19799971.86
C137: Less Socialized Renewable Energy Generation Investments (input as negative) | G137: =D137+E137+F137 -> 0 | L137: =I137+J137+K137 -> 0 | M137: =G137+L137 -> 0
C138: Less Other Non Rate-Regulated Utility Assets (input as negative) | G138: 0 | L138: 0 | M138: 0
C139: Total PP&E | D139: =SUM(D136:D138) -> 38274776.74 | E139: =SUM(E136:E138) -> 1527248.47 | F139: -119075.09 | G139: 39682950.12 | I139: =SUM(I136:I138) -> -18474124.7 | J139: -1448834.92 | K139: 39981.36 | L139: -19882978.26 | M139: 19799971.86
I141: Less: Fully Allocated Depreciation
A142: 10 | C142: Transportation | I142: Transportation | K142: ='[10]App.2-B_Fixed Asset Con_2010'!$L$58 -> -63035.97
A143: 8 | C143: Stores Equipment | I143: Stores Equipment | K143: ='[10]App.2-B_Fixed Asset Con_2010'!$L$59 -> -1044.12
I144: Net Depreciation | K144: =J139-K142-K143 -> -1384754.83
L146: File Number: | M146: =EBNUMBER -> EB-2013-0155
L147: Exhibit: | M147: Exhibit 2
L148: Tab: | M148: =$M3 -> 2
L149: Schedule: | M149: =$M4 -> 1
L150: Page: | M150: =$M5 -> 1
L152: Date: | M152: 2013-10-01
A154: Appendix 2-BA
A155: Fixed Asset Continuity Schedule - CGAAP/ASPE/USGAAP
E157: Year | F157: 2011
D159: Cost | J159: Accumulated Depreciation
A160: CCA Class | B160: OEB | C160: Description | D160: Opening Balance | E160: Additions | F160: Disposals | G160: Closing Balance | I160: Opening Balance | J160: Additions | K160: Disposals | L160: Closing Balance | M160: Net Book Value
A161: 12 | B161: 1611 | C161: Computer Software (Formally known as Account 1925) | D161: ='[10]App.2-B_Fixed Asset Con_2011'!$E16 -> 0 | E161: ='[10]App.2-B_Fixed Asset Con_2011'!$F16 -> 0 | F161: ='[10]App.2-B_Fixed Asset Con_2011'!$G16 -> 0 | G161: =D161+E161+F161 -> 0 | I161: ='[10]App.2-B_Fixed Asset Con_2011'!$J16 -> 0 | J161: ='[10]App.2-B_Fixed Asset Con_2011'!$K16 -> 0 | K161: ='[10]App.2-B_Fixed Asset Con_2011'!$L16 -> 0 | L161: =I161+J161+K161 -> 0 | M161: =G161+L161 -> 0
A162: CEC | B162: 1612 | C162: Land Rights (Formally known as Account 1906) | E162: 0 | F162: 0 | G162: =D162+E162+F162 -> 0 | I162: =L95 -> 0 | K162: ='[10]App.2-B_Fixed Asset Con_2011'!$L17 -> 0 | L162: =I162+J162+K162 -> 0 | M162: =G162+L162 -> 0
A163: N/A | B163: 1805 | C163: Land | D163: ='[10]App.2-B_Fixed Asset Con_2011'!$E18 -> 258134.21 | E163: ='[10]App.2-B_Fixed Asset Con_2011'!$F18 -> 0 | F163: ='[10]App.2-B_Fixed Asset Con_2011'!$G18 -> 0 | G163: =D163+E163+F163 -> 258134.21 | I163: ='[10]App.2-B_Fixed Asset Con_2011'!$J18 -> 0 | J163: ='[10]App.2-B_Fixed Asset Con_2011'!$K18 -> 0 | K163: ='[10]App.2-B_Fixed Asset Con_2011'!$L18 -> 0 | L163: =I163+J163+K163 -> 0 | M163: =G163+L163 -> 258134.21
A164: 47 | B164: 1808 | C164: Buildings | D164: ='[10]App.2-B_Fixed Asset Con_2011'!$E19 -> 0 | E164: ='[10]App.2-B_Fixed Asset Con_2011'!$F19 -> 0 | F164: ='[10]App.2-B_Fixed Asset Con_2011'!$G19 -> 0 | G164: =D164+E164+F164 -> 0 | I164: ='[10]App.2-B_Fixed Asset Con_2011'!$J19 -> 0 | J164: ='[10]App.2-B_Fixed Asset Con_2011'!$K19 -> 0 | K164: ='[10]App.2-B_Fixed Asset Con_2011'!$L19 -> 0 | L164: =I164+J164+K164 -> 0 | M164: =G164+L164 -> 0
A165: 13 | B165: 1810 | C165: Leasehold Improvements | D165: ='[10]App.2-B_Fixed Asset Con_2011'!$E20 -> 0 | E165: ='[10]App.2-B_Fixed Asset Con_2011'!$F20 -> 0 | F165: ='[10]App.2-B_Fixed Asset Con_2011'!$G20 -> 0 | G165: 0 | I165: ='[10]App.2-B_Fixed Asset Con_2011'!$J20 -> 0 | J165: ='[10]App.2-B_Fixed Asset Con_2011'!$K20 -> 0 | K165: ='[10]App.2-B_Fixed Asset Con_2011'!$L20 -> 0 | L165: 0 | M165: 0
A166: 47 | B166: 1815 | C166: Transformer Station Equipment >50 kV | D166: ='[10]App.2-B_Fixed Asset Con_2011'!$E21 -> 5399696.43 | E166: ='[10]App.2-B_Fixed Asset Con_2011'!$F21 -> 11331.61 | F166: ='[10]App.2-B_Fixed Asset Con_2011'!$G21 -> 0 | G166: 5411028.04 | I166: ='[10]App.2-B_Fixed Asset Con_2011'!$J21 -> -846513.18 | J166: ='[10]App.2-B_Fixed Asset Con_2011'!$K21 -> -135056.35 | K166: ='[10]App.2-B_Fixed Asset Con_2011'!$L21 -> 0 | L166: -981569.53 | M166: 4429458.51
A167: 47 | B167: 1820 | C167: Distribution Station Equipment <50 kV | D167: ='[10]App.2-B_Fixed Asset Con_2011'!$E22 -> 160630.29 | E167: ='[10]App.2-B_Fixed Asset Con_2011'!$F22 -> 0 | F167: ='[10]App.2-B_Fixed Asset Con_2011'!$G22 -> 0 | G167: 160630.29 | I167: ='[10]App.2-B_Fixed Asset Con_2011'!$J22 -> -106565.59 | J167: ='[10]App.2-B_Fixed Asset Con_2011'!$K22 -> -3064.69 | K167: ='[10]App.2-B_Fixed Asset Con_2011'!$L22 -> 0 | L167: -109630.28 | M167: 51000.01
A168: 47 | B168: 1825 | C168: Storage Battery Equipment | D168: ='[10]App.2-B_Fixed Asset Con_2011'!$E23 -> 0 | E168: ='[10]App.2-B_Fixed Asset Con_2011'!$F23 -> 0 | F168: ='[10]App.2-B_Fixed Asset Con_2011'!$G23 -> 0 | G168: 0 | I168: ='[10]App.2-B_Fixed Asset Con_2011'!$J23 -> 0 | J168: ='[10]App.2-B_Fixed Asset Con_2011'!$K23 -> 0 | K168: ='[10]App.2-B_Fixed Asset Con_2011'!$L23 -> 0 | L168: 0 | M168: 0
A169: 47 | B169: 1830 | C169: Poles, Towers & Fixtures | D169: ='[10]App.2-B_Fixed Asset Con_2011'!$E24 -> 4817058.34 | E169: ='[10]App.2-B_Fixed Asset Con_2011'!$F24 -> 102060.42 | F169: ='[10]App.2-B_Fixed Asset Con_2011'!$G24 -> 0 | G169: 4919118.76 | I169: ='[10]App.2-B_Fixed Asset Con_2011'!$J24 -> -2846072.08 | J169: ='[10]App.2-B_Fixed Asset Con_2011'!$K24 -> -146242.93 | K169: ='[10]App.2-B_Fixed Asset Con_2011'!$L24 -> 0 | L169: -2992315.01 | M169: 1926803.75
A170: 47 | B170: 1835 | C170: Overhead Conductors & Devices | D170: ='[10]App.2-B_Fixed Asset Con_2011'!$E25 -> 6388024.59 | E170: ='[10]App.2-B_Fixed Asset Con_2011'!$F25 -> 63032.75 | F170: ='[10]App.2-B_Fixed Asset Con_2011'!$G25 -> 0 | G170: 6451057.34 | I170: ='[10]App.2-B_Fixed Asset Con_2011'!$J25 -> -3628613.2 | J170: ='[10]App.2-B_Fixed Asset Con_2011'!$K25 -> -196304.1 | K170: ='[10]App.2-B_Fixed Asset Con_2011'!$L25 -> 0 | L170: -3824917.3 | M170: 2626140.04
A171: 47 | B171: 1840 | C171: Underground Conduit | D171: ='[10]App.2-B_Fixed Asset Con_2011'!$E26 -> 4451729.82 | E171: ='[10]App.2-B_Fixed Asset Con_2011'!$F26 -> 148616.66 | F171: ='[10]App.2-B_Fixed Asset Con_2011'!$G26 -> 0 | G171: 4600346.48 | I171: ='[10]App.2-B_Fixed Asset Con_2011'!$J26 -> -1926395.49 | J171: ='[10]App.2-B_Fixed Asset Con_2011'!$K26 -> -173471.27 | K171: ='[10]App.2-B_Fixed Asset Con_2011'!$L26 -> 0 | L171: -2099866.76 | M171: 2500479.72
A172: 47 | B172: 1845 | C172: Underground Conductors & Devices | D172: ='[10]App.2-B_Fixed Asset Con_2011'!$E27 -> 8175533.68 | E172: ='[10]App.2-B_Fixed Asset Con_2011'!$F27 -> 319800.37 | F172: ='[10]App.2-B_Fixed Asset Con_2011'!$G27 -> 0 | G172: 8495334.05 | I172: ='[10]App.2-B_Fixed Asset Con_2011'!$J27 -> -3998933.45 | J172: ='[10]App.2-B_Fixed Asset Con_2011'!$K27 -> -316983.11 | K172: ='[10]App.2-B_Fixed Asset Con_2011'!$L27 -> 0 | L172: -4315916.56 | M172: 4179417.49
A173: 47 | B173: 1850 | C173: Line Transformers | D173: ='[10]App.2-B_Fixed Asset Con_2011'!$E28 -> 7350464 | E173: ='[10]App.2-B_Fixed Asset Con_2011'!$F28 -> 263346.02 | F173: ='[10]App.2-B_Fixed Asset Con_2011'!$G28 -> 0 | G173: 7613810.02 | I173: ='[10]App.2-B_Fixed Asset Con_2011'!$J28 -> -3465358.03 | J173: ='[10]App.2-B_Fixed Asset Con_2011'!$K28 -> -271912.9 | K173: ='[10]App.2-B_Fixed Asset Con_2011'!$L28 -> 0 | L173: -3737270.93 | M173: 3876539.09
A174: 47 | B174: 1855 | C174: Services (Overhead & Underground) | D174: ='[10]App.2-B_Fixed Asset Con_2011'!$E29 -> 2339841.09 | E174: ='[10]App.2-B_Fixed Asset Con_2011'!$F29 -> 182503.46 | F174: ='[10]App.2-B_Fixed Asset Con_2011'!$G29 -> 0 | G174: 2522344.55 | I174: ='[10]App.2-B_Fixed Asset Con_2011'!$J29 -> -556556.59 | J174: ='[10]App.2-B_Fixed Asset Con_2011'!$K29 -> -97171.83 | K174: ='[10]App.2-B_Fixed Asset Con_2011'!$L29 -> 0 | L174: -653728.42 | M174: 1868616.13
A175: 47 | B175: 1860 | C175: Meters | D175: ='[10]App.2-B_Fixed Asset Con_2011'!$E30 -> 1072071.13 | E175: ='[10]App.2-B_Fixed Asset Con_2011'!$F30 -> 6974.89 | F175: ='[10]App.2-B_Fixed Asset Con_2011'!$G30 -> 0 | G175: 1079046.02 | I175: ='[10]App.2-B_Fixed Asset Con_2011'!$J30 -> -670569.2 | J175: ='[10]App.2-B_Fixed Asset Con_2011'!$K30 -> -20576.05 | K175: ='[10]App.2-B_Fixed Asset Con_2011'!$L30 -> 0 | L175: -691145.25 | M175: 387900.77
A176: 47 | B176: 1860 | C176: Meters (Smart Meters) | D176: ='[10]App.2-B_Fixed Asset Con_2011'!$E31 -> 0 | E176: ='[10]App.2-B_Fixed Asset Con_2011'!$F31 -> 0 | F176: ='[10]App.2-B_Fixed Asset Con_2011'!$G31 -> 0 | G176: 0 | I176: ='[10]App.2-B_Fixed Asset Con_2011'!$J31 -> 0 | J176: ='[10]App.2-B_Fixed Asset Con_2011'!$K31 -> 0 | K176: ='[10]App.2-B_Fixed Asset Con_2011'!$L31 -> 0 | L176: 0 | M176: 0
A177: N/A | B177: 1905 | C177: Land | D177: ='[10]App.2-B_Fixed Asset Con_2011'!$E32 -> 49000 | E177: ='[10]App.2-B_Fixed Asset Con_2011'!$F32 -> 0 | F177: ='[10]App.2-B_Fixed Asset Con_2011'!$G32 -> 0 | G177: 49000 | I177: ='[10]App.2-B_Fixed Asset Con_2011'!$J32 -> 0 | J177: ='[10]App.2-B_Fixed Asset Con_2011'!$K32 -> 0 | K177: ='[10]App.2-B_Fixed Asset Con_2011'!$L32 -> 0 | L177: 0 | M177: 49000
A178: 47 | B178: 1908 | C178: Buildings & Fixtures | D178: ='[10]App.2-B_Fixed Asset Con_2011'!$E33 -> 1007975.7 | E178: ='[10]App.2-B_Fixed Asset Con_2011'!$F33 -> 18949.5 | F178: ='[10]App.2-B_Fixed Asset Con_2011'!$G33 -> 0 | G178: 1026925.2 | I178: ='[10]App.2-B_Fixed Asset Con_2011'!$J33 -> -337243.42 | J178: ='[10]App.2-B_Fixed Asset Con_2011'!$K33 -> -17961.9 | K178: ='[10]App.2-B_Fixed Asset Con_2011'!$L33 -> 0 | L178: -355205.32 | M178: 671719.88
A179: 13 | B179: 1910 | C179: Leasehold Improvements | D179: ='[10]App.2-B_Fixed Asset Con_2011'!$E34 -> 0 | E179: ='[10]App.2-B_Fixed Asset Con_2011'!$F34 -> 0 | F179: ='[10]App.2-B_Fixed Asset Con_2011'!$G34 -> 0 | G179: 0 | I179: ='[10]App.2-B_Fixed Asset Con_2011'!$J34 -> 0 | J179: ='[10]App.2-B_Fixed Asset Con_2011'!$K34 -> 0 | K179: ='[10]App.2-B_Fixed Asset Con_2011'!$L34 -> 0 | L179: 0 | M179: 0
A180: 8 | B180: 1915 | C180: Office Furniture & Equipment (10 years) | D180: ='[10]App.2-B_Fixed Asset Con_2011'!$E35 -> 202437.13 | E180: ='[10]App.2-B_Fixed Asset Con_2011'!$F35 -> 11687.44 | F180: ='[10]App.2-B_Fixed Asset Con_2011'!$G35 -> 0 | G180: 214124.57 | I180: ='[10]App.2-B_Fixed Asset Con_2011'!$J35 -> -153288.79 | J180: ='[10]App.2-B_Fixed Asset Con_2011'!$K35 -> -8673.45 | K180: ='[10]App.2-B_Fixed Asset Con_2011'!$L35 -> 0 | L180: -161962.24 | M180: 52162.33
A181: 8 | B181: 1915 | C181: Office Furniture & Equipment (5 years) | D181: ='[10]App.2-B_Fixed Asset Con_2011'!$E36 -> 0 | E181: ='[10]App.2-B_Fixed Asset Con_2011'!$F36 -> 0 | F181: ='[10]App.2-B_Fixed Asset Con_2011'!$G36 -> 0 | G181: 0 | I181: ='[10]App.2-B_Fixed Asset Con_2011'!$J36 -> 0 | J181: ='[10]App.2-B_Fixed Asset Con_2011'!$K36 -> 0 | K181: ='[10]App.2-B_Fixed Asset Con_2011'!$L36 -> 0 | L181: 0 | M181: 0
A182: 10 | B182: 1920 | C182: Computer Equipment - Hardware | D182: ='[10]App.2-B_Fixed Asset Con_2011'!$E37 -> 347162.95 | E182: ='[10]App.2-B_Fixed Asset Con_2011'!$F37 -> 13224.29 | F182: ='[10]App.2-B_Fixed Asset Con_2011'!$G37 -> 0 | G182: 360387.24 | I182: ='[10]App.2-B_Fixed Asset Con_2011'!$J37 -> -302946.19 | J182: ='[10]App.2-B_Fixed Asset Con_2011'!$K37 -> -17813.64 | K182: ='[10]App.2-B_Fixed Asset Con_2011'!$L37 -> 0 | L182: -320759.83 | M182: 39627.41
A183: 45 | B183: 1920 | C183: Computer Equip.-Hardware(Post Mar. 22/04) | G183: 0 | L183: 0 | M183: 0
A184: 45.1 | B184: 1920 | C184: Computer Equip.-Hardware(Post Mar. 19/07) | G184: 0 | L184: 0 | M184: 0
A185: 12 | B185: 1925 | C185: Computer Software | D185: ='[10]App.2-B_Fixed Asset Con_2011'!$E40 -> 1556509.54 | E185: ='[10]App.2-B_Fixed Asset Con_2011'!$F40 -> 39569.4 | F185: ='[10]App.2-B_Fixed Asset Con_2011'!$G40 -> 0 | G185: 1596078.94 | I185: ='[10]App.2-B_Fixed Asset Con_2011'!$J40 -> -1157009.47 | J185: ='[10]App.2-B_Fixed Asset Con_2011'!$K40 -> -211834.84 | K185: ='[10]App.2-B_Fixed Asset Con_2011'!$L40 -> 0 | L185: -1368844.31 | M185: 227234.63
A186: 12 | B186: 1925 | C186: Computer Software (CIS TOU upgrade) | D186: 0 | E186: 0 | F186: 0 | G186: 0 | I186: 0 | J186: 0 | K186: 0 | L186: 0 | M186: 0
A187: 10 | B187: 1930 | C187: Transportation Equipment | D187: ='[10]App.2-B_Fixed Asset Con_2011'!$E41 -> 1065791.66 | E187: ='[10]App.2-B_Fixed Asset Con_2011'!$F41 -> 307291 | F187: ='[10]App.2-B_Fixed Asset Con_2011'!$G41 -> -233245.24 | G187: 1139837.42 | I187: ='[10]App.2-B_Fixed Asset Con_2011'!$J41 -> -795660.05 | J187: ='[10]App.2-B_Fixed Asset Con_2011'!$K41 -> -79661.47 | K187: ='[10]App.2-B_Fixed Asset Con_2011'!$L41 -> 233245 | L187: -642076.52 | M187: 497760.9
A188: 8 | B188: 1935 | C188: Stores Equipment | D188: ='[10]App.2-B_Fixed Asset Con_2011'!$E42 -> 24638.14 | E188: ='[10]App.2-B_Fixed Asset Con_2011'!$F42 -> 0 | F188: ='[10]App.2-B_Fixed Asset Con_2011'!$G42 -> 0 | G188: 24638.14 | I188: ='[10]App.2-B_Fixed Asset Con_2011'!$J42 -> -16289.92 | J188: ='[10]App.2-B_Fixed Asset Con_2011'!$K42 -> -1039.82 | K188: ='[10]App.2-B_Fixed Asset Con_2011'!$L42 -> 0 | L188: -17329.74 | M188: 7308.4
A189: 8 | B189: 1940 | C189: Tools, Shop & Garage Equipment | D189: ='[10]App.2-B_Fixed Asset Con_2011'!$E43 -> 451993.84 | E189: ='[10]App.2-B_Fixed Asset Con_2011'!$F43 -> 8053.27 | F189: ='[10]App.2-B_Fixed Asset Con_2011'!$G43 -> 0 | G189: 460047.11 | I189: ='[10]App.2-B_Fixed Asset Con_2011'!$J43 -> -353453.91 | J189: ='[10]App.2-B_Fixed Asset Con_2011'!$K43 -> -30572.2 | K189: ='[10]App.2-B_Fixed Asset Con_2011'!$L43 -> 0 | L189: -384026.11 | M189: 76021
A190: 8 | B190: 1945 | C190: Measurement & Testing Equipment | D190: ='[10]App.2-B_Fixed Asset Con_2011'!$E44 -> 0 | E190: ='[10]App.2-B_Fixed Asset Con_2011'!$F44 -> 0 | F190: ='[10]App.2-B_Fixed Asset Con_2011'!$G44 -> 0 | G190: 0 | I190: ='[10]App.2-B_Fixed Asset Con_2011'!$J44 -> 0 | J190: ='[10]App.2-B_Fixed Asset Con_2011'!$K44 -> 0 | K190: ='[10]App.2-B_Fixed Asset Con_2011'!$L44 -> 0 | L190: 0 | M190: 0
A191: 8 | B191: 1950 | C191: Power Operated Equipment | D191: ='[10]App.2-B_Fixed Asset Con_2011'!$E45 -> 0 | E191: ='[10]App.2-B_Fixed Asset Con_2011'!$F45 -> 0 | F191: ='[10]App.2-B_Fixed Asset Con_2011'!$G45 -> 0 | G191: 0 | I191: ='[10]App.2-B_Fixed Asset Con_2011'!$J45 -> 0 | J191: ='[10]App.2-B_Fixed Asset Con_2011'!$K45 -> 0 | K191: ='[10]App.2-B_Fixed Asset Con_2011'!$L45 -> 0 | L191: 0 | M191: 0
A192: 8 | B192: 1955 | C192: Communications Equipment | D192: ='[10]App.2-B_Fixed Asset Con_2011'!$E46 -> 54383.11 | E192: ='[10]App.2-B_Fixed Asset Con_2011'!$F46 -> 0 | F192: ='[10]App.2-B_Fixed Asset Con_2011'!$G46 -> 0 | G192: 54383.11 | I192: ='[10]App.2-B_Fixed Asset Con_2011'!$J46 -> -30442.76 | J192: ='[10]App.2-B_Fixed Asset Con_2011'!$K46 -> -3995.82 | K192: ='[10]App.2-B_Fixed Asset Con_2011'!$L46 -> 0 | L192: -34438.58 | M192: 19944.53
A193: 8 | B193: 1955 | C193: Communication Equipment (Smart Meters) | D193: ='[10]App.2-B_Fixed Asset Con_2011'!$E47 -> 0 | E193: ='[10]App.2-B_Fixed Asset Con_2011'!$F47 -> 0 | F193: ='[10]App.2-B_Fixed Asset Con_2011'!$G47 -> 0 | G193: 0 | I193: ='[10]App.2-B_Fixed Asset Con_2011'!$J47 -> 0 | J193: ='[10]App.2-B_Fixed Asset Con_2011'!$K47 -> 0 | K193: ='[10]App.2-B_Fixed Asset Con_2011'!$L47 -> 0 | L193: 0 | M193: 0
A194: 8 | B194: 1960 | C194: Miscellaneous Equipment | D194: ='[10]App.2-B_Fixed Asset Con_2011'!$E48 -> 0 | E194: ='[10]App.2-B_Fixed Asset Con_2011'!$F48 -> 0 | F194: ='[10]App.2-B_Fixed Asset Con_2011'!$G48 -> 0 | G194: 0 | I194: ='[10]App.2-B_Fixed Asset Con_2011'!$J48 -> 0 | J194: ='[10]App.2-B_Fixed Asset Con_2011'!$K48 -> 0 | K194: ='[10]App.2-B_Fixed Asset Con_2011'!$L48 -> 0 | L194: 0 | M194: 0
A195: 47 | B195: 1970 | C195: Load Management Controls Customer Premises | G195: 0 | L195: 0 | M195: 0
A196: 47 | B196: 1975 | C196: Load Management Controls Utility Premises | G196: 0 | L196: 0 | M196: 0
A197: 47 | B197: 1980 | C197: System Supervisor Equipment | D197: ='[10]App.2-B_Fixed Asset Con_2011'!$E50 -> 317852.27 | E197: ='[10]App.2-B_Fixed Asset Con_2011'!$F50 -> 8115.44 | F197: ='[10]App.2-B_Fixed Asset Con_2011'!$G50 -> 0 | G197: 325967.71 | I197: ='[10]App.2-B_Fixed Asset Con_2011'!$J50 -> -183145.68 | J197: ='[10]App.2-B_Fixed Asset Con_2011'!$K50 -> -15880.09 | K197: ='[10]App.2-B_Fixed Asset Con_2011'!$L50 -> 0 | L197: -199025.77 | M197: 126941.94
A198: 47 | B198: 1985 | C198: Miscellaneous Fixed Assets | D198: ='[10]App.2-B_Fixed Asset Con_2011'!$E51 -> 0 | E198: ='[10]App.2-B_Fixed Asset Con_2011'!$F51 -> 0 | F198: ='[10]App.2-B_Fixed Asset Con_2011'!$G51 -> 0 | G198: 0 | I198: ='[10]App.2-B_Fixed Asset Con_2011'!$J51 -> 0 | J198: ='[10]App.2-B_Fixed Asset Con_2011'!$K51 -> 0 | K198: ='[10]App.2-B_Fixed Asset Con_2011'!$L51 -> 0 | L198: 0 | M198: 0
A199: 47 | B199: 1990 | C199: Other Tangible Property | G199: 0 | L199: 0 | M199: 0
A200: 47 | B200: 1995 | C200: Contributions & Grants | D200: ='[10]App.2-B_Fixed Asset Con_2011'!$E52 -> -5807977.8 | E200: ='[10]App.2-B_Fixed Asset Con_2011'!$F52 -> -445665.9 | F200: ='[10]App.2-B_Fixed Asset Con_2011'!$G52 -> 0 | G200: -6253643.7 | I200: ='[10]App.2-B_Fixed Asset Con_2011'!$J52 -> 1492078.74 | J200: ='[10]App.2-B_Fixed Asset Con_2011'!$K52 -> 240583.57 | K200: ='[10]App.2-B_Fixed Asset Con_2011'!$L52 -> 0 | L200: 1732662.31 | M200: -4520981.39
B201: etc. | G201: 0 | L201: 0 | M201: 0
G202: 0 | L202: 0 | M202: 0
C203: Sub-Total | D203: =SUM(D161:D202) -> 39682950.12 | E203: =SUM(E161:E202) -> 1058890.62 | F203: -233245.24 | G203: 40508595.5 | I203: =SUM(I161:I202) -> -19882978.26 | J203: -1507632.89 | K203: 233245 | L203: -21157366.15 | M203: 19351229.35
C204: Less Socialized Renewable Energy Generation Investments (input as negative) | G204: =D204+E204+F204 -> 0 | L204: =I204+J204+K204 -> 0 | M204: =G204+L204 -> 0
C205: Less Other Non Rate-Regulated Utility Assets (input as negative) | G205: 0 | L205: 0 | M205: 0
C206: Total PP&E | D206: =SUM(D203:D205) -> 39682950.12 | E206: =SUM(E203:E205) -> 1058890.62 | F206: -233245.24 | G206: 40508595.5 | I206: =SUM(I203:I205) -> -19882978.26 | J206: -1507632.89 | K206: 233245 | L206: -21157366.15 | M206: 19351229.35
I208: Less: Fully Allocated Depreciation
A209: 10 | C209: Transportation | I209: Transportation | K209: ='[10]App.2-B_Fixed Asset Con_2011'!$L$58 -> -79661.47
A210: 8 | C210: Stores Equipment | I210: Stores Equipment | K210: ='[10]App.2-B_Fixed Asset Con_2011'!$L$59 -> -1039.82
I211: Net Depreciation | K211: =J206-K209-K210 -> -1426931.6
L213: File Number: | M213: =EBNUMBER -> EB-2013-0155
L214: Exhibit: | M214: Exhibit 2
L215: Tab: | M215: =$M3 -> 2
L216: Schedule: | M216: =$M4 -> 1
L217: Page: | M217: =$M5 -> 1
L219: Date: | M219: 2013-10-01
A221: Appendix 2-BA
A222: Fixed Asset Continuity Schedule - CGAAP/ASPE/USGAAP
E224: Year | F224: 2012
D226: Cost | J226: Accumulated Depreciation
A227: CCA Class | B227: OEB | C227: Description | D227: Opening Balance | E227: Additions | F227: Disposals | G227: Closing Balance | I227: Opening Balance | J227: Additions | K227: Disposals | L227: Closing Balance | M227: Net Book Value
A228: 12 | B228: 1611 | C228: Computer Software (Formally known as Account 1925) | D228: ='[10]App.2-B_Fixed Asset_2012'!$E16 -> 0 | E228: ='[10]App.2-B_Fixed Asset_2012'!$F16 -> 0 | F228: ='[10]App.2-B_Fixed Asset_2012'!$G16 -> 0 | G228: =D228+E228+F228 -> 0 | I228: ='[10]App.2-B_Fixed Asset_2012'!$J16 -> 0 | J228: ='[10]App.2-B_Fixed Asset_2012'!$K16 -> 0 | K228: ='[10]App.2-B_Fixed Asset_2012'!$L16 -> 0 | L228: =I228+J228+K228 -> 0 | M228: =G228+L228 -> 0
... 333 more rows

Sheet App.2-BA2_Fix Asset Cont.MIFRS (hidden)
L1: File Number: | M1: =EBNUMBER -> EB-2013-0155
L2: Exhibit:
L3: Tab:
L4: Schedule:
L5: Page:
L7: Date:
A9: Appendix 2-BA
A10: Fixed Asset Continuity Schedule - MIFRS
E12: Year
D14: Cost | J14: Accumulated Depreciation
A15: CCA Class | B15: OEB | C15: Description | D15: Opening Balance | E15: Additions | F15: Disposals | G15: Closing Balance | I15: Opening Balance | J15: Additions | K15: Disposals | L15: Closing Balance | M15: Net Book Value
A16: 12 | B16: 1611 | C16: Computer Software (Formally known as Account 1925) | G16: =D16+E16+F16 -> 0 | L16: =I16+J16+K16 -> 0 | M16: =G16+L16 -> 0
A17: CEC | B17: 1612 | C17: Land Rights (Formally known as Account 1906) | G17: =D17+E17+F17 -> 0 | L17: =I17+J17+K17 -> 0 | M17: =G17+L17 -> 0
A18: N/A | B18: 1805 | C18: Land | G18: =D18+E18+F18 -> 0 | L18: =I18+J18+K18 -> 0 | M18: =G18+L18 -> 0
A19: 47 | B19: 1808 | C19: Buildings | G19: =D19+E19+F19 -> 0 | L19: =I19+J19+K19 -> 0 | M19: =G19+L19 -> 0
A20: 13 | B20: 1810 | C20: Leasehold Improvements | G20: 0 | L20: 0 | M20: 0
A21: 47 | B21: 1815 | C21: Transformer Station Equipment >50 kV | G21: 0 | L21: 0 | M21: 0
A22: 47 | B22: 1820 | C22: Distribution Station Equipment <50 kV | G22: 0 | L22: 0 | M22: 0
A23: 47 | B23: 1825 | C23: Storage Battery Equipment | G23: 0 | L23: 0 | M23: 0
A24: 47 | B24: 1830 | C24: Poles, Towers & Fixtures | G24: 0 | L24: 0 | M24: 0
A25: 47 | B25: 1835 | C25: Overhead Conductors & Devices | G25: 0 | L25: 0 | M25: 0
A26: 47 | B26: 1840 | C26: Underground Conduit | G26: 0 | L26: 0 | M26: 0
A27: 47 | B27: 1845 | C27: Underground Conductors & Devices | G27: 0 | L27: 0 | M27: 0
A28: 47 | B28: 1850 | C28: Line Transformers | G28: 0 | L28: 0 | M28: 0
A29: 47 | B29: 1855 | C29: Services (Overhead & Underground) | G29: 0 | L29: 0 | M29: 0
A30: 47 | B30: 1860 | C30: Meters | G30: 0 | L30: 0 | M30: 0
A31: 47 | B31: 1860 | C31: Meters (Smart Meters) | G31: 0 | L31: 0 | M31: 0
A32: N/A | B32: 1905 | C32: Land | G32: 0 | L32: 0 | M32: 0
A33: 47 | B33: 1908 | C33: Buildings & Fixtures | G33: 0 | L33: 0 | M33: 0
A34: 13 | B34: 1910 | C34: Leasehold Improvements | G34: 0 | L34: 0 | M34: 0
A35: 8 | B35: 1915 | C35: Office Furniture & Equipment (10 years) | G35: 0 | L35: 0 | M35: 0
A36: 8 | B36: 1915 | C36: Office Furniture & Equipment (5 years) | G36: 0 | L36: 0 | M36: 0
A37: 10 | B37: 1920 | C37: Computer Equipment - Hardware | G37: 0 | L37: 0 | M37: 0
A38: 45 | B38: 1920 | C38: Computer Equip.-Hardware(Post Mar. 22/04) | G38: 0 | L38: 0 | M38: 0
A39: 45.1 | B39: 1920 | C39: Computer Equip.-Hardware(Post Mar. 19/07) | G39: 0 | L39: 0 | M39: 0
A40: 10 | B40: 1930 | C40: Transportation Equipment | G40: 0 | L40: 0 | M40: 0
A41: 8 | B41: 1935 | C41: Stores Equipment | G41: 0 | L41: 0 | M41: 0
A42: 8 | B42: 1940 | C42: Tools, Shop & Garage Equipment | G42: 0 | L42: 0 | M42: 0
A43: 8 | B43: 1945 | C43: Measurement & Testing Equipment | G43: 0 | L43: 0 | M43: 0
A44: 8 | B44: 1950 | C44: Power Operated Equipment | G44: 0 | L44: 0 | M44: 0
A45: 8 | B45: 1955 | C45: Communications Equipment | G45: 0 | L45: 0 | M45: 0
A46: 8 | B46: 1955 | C46: Communication Equipment (Smart Meters) | G46: 0 | L46: 0 | M46: 0
A47: 8 | B47: 1960 | C47: Miscellaneous Equipment | G47: 0 | L47: 0 | M47: 0
A48: 47 | B48: 1970 | C48: Load Management Controls Customer Premises | G48: 0 | L48: 0 | M48: 0
A49: 47 | B49: 1975 | C49: Load Management Controls Utility Premises | G49: 0 | L49: 0 | M49: 0
A50: 47 | B50: 1980 | C50: System Supervisor Equipment | G50: 0 | L50: 0 | M50: 0
A51: 47 | B51: 1985 | C51: Miscellaneous Fixed Assets | G51: 0 | L51: 0 | M51: 0
A52: 47 | B52: 1990 | C52: Other Tangible Property | G52: 0 | L52: 0 | M52: 0
A53: 47 | B53: 1995 | C53: Contributions & Grants | G53: 0 | L53: 0 | M53: 0
B54: etc. | G54: 0 | L54: 0 | M54: 0
G55: 0 | L55: 0 | M55: 0
C56: Sub-Total | D56: =SUM(D16:D55) -> 0 | E56: =SUM(E16:E55) -> 0 | F56: 0 | G56: 0 | I56: =SUM(I16:I55) -> 0 | J56: =SUM(J16:J55) -> 0 | K56: 0 | L56: 0 | M56: 0
C57: Less Socialized Renewable Energy Generation Investments (input as negative) | G57: =D57+E57+F57 -> 0 | L57: =I57+J57+K57 -> 0 | M57: =G57+L57 -> 0
C58: Less Other Non Rate-Regulated Utility Assets (input as negative) | G58: 0 | L58: 0 | M58: 0
C59: Total PP&E | D59: =SUM(D56:D58) -> 0 | E59: =SUM(E56:E58) -> 0 | F59: 0 | G59: 0 | I59: =SUM(I56:I58) -> 0 | J59: 0 | K59: 0 | L59: 0 | M59: 0
C60: Depreciation Expense adj. from gain or loss on the retirement of assets (pool of like assets)
C61: Total | J61: =J59+J60 -> 0
I63: Less: Fully Allocated Depreciation
A64: 10 | C64: Transportation | I64: Transportation
A65: 8 | C65: Stores Equipment | I65: Stores Equipment
I66: Net Depreciation | K66: =J61-K64-K65 -> 0
A68: Notes:
A70: 1 | B70: Tables in the format outlined above covering all fixed asset accounts should be submitted for the Test Year, Bridge Year and all relevant historical years. At a minimum , the applicant must provide data for the earlier of: 1) all historical years back to its last rebasing; or 2) at least three years of historical actuals, in addition to Bridge Year and Test Year forecasts.
A73: 2 | B73: The "CCA Class" for fixed assets should agree with the CCA Class used for tax purposes in Tax Returns. Fixed Assets sub-components may be used where the underlying asset components are classified under multiple CCA Classes for tax purposes. If an applicant uses any different classes from those shown in the table, an explanation should be provided. (also see note 3 below).
A76: 3 | B76: The table may need to be customized for a utility's asset categories or for any new asset accounts announced or authorized by the Board.
A78: 4 | B78: The additions column (F) must not include construction work in progress (CWIP).

Sheet Appendix 2-BB Service Life Comp
M1: File Number: | O1: =EBNUMBER -> EB-2013-0155
M2: Exhibit: | O2: 4
M3: Tab: | O3: 3
M4: Schedule: | O4: 1
M5: Page: | O5: 1
M7: Date: | O7: ='App.2-AA_Capital Projects'!$H$7 -> 2014-04-08
A9: Appendix 2-BB
A10: Service Life Comparison
A11: Table F-1 from Kinetrics Report1
C15: Asset Details | F15: Useful Life | J15: USoA Account Number | K15: USoA Account Description | L15: Current | N15: Proposed
A16: Parent* | B16: # | C16: Category| Component | Type | F16: MIN UL | G16: TUL | H16: MAX UL | L16: Years | M16: Rate | N16: Years | O16: Rate
A17: OH | B17: 1 | C17: Fully Dressed Wood Poles | D17: Overall | F17: 35 | G17: 45 | H17: 75 | J17: 1830 | K17: Poles, Towers & Fixtures | L17: 25 | M17: =IF(ISERROR(1/L17), "", 1/L17) -> 0.04 | N17: 45 | O17: =IF(ISERROR(1/N17), "", 1/N17) -> 0.02222222222
D18: Cross Arm | E18: Wood | F18: 20 | G18: 40 | H18: 55 | M18: =IF(ISERROR(1/L18), "", 1/L18) ->  | O18: =IF(ISERROR(1/N18), "", 1/N18) -> 
E19: Steel | F19: 30 | G19: 70 | H19: 95
B20: 2 | C20: Fully Dressed Concrete Poles | D20: Overall | F20: 50 | G20: 60 | H20: 80
D21: Cross Arm | E21: Wood | F21: 20 | G21: 40 | H21: 55
E22: Steel | F22: 30 | G22: 70 | H22: 95
B23: 3 | C23: Fully Dressed Steel Poles | D23: Overall | F23: 60 | G23: 60 | H23: 80
D24: Cross Arm | E24: Wood | F24: 20 | G24: 40 | H24: 55
E25: Steel | F25: 30 | G25: 70 | H25: 95
B26: 4 | C26: OH Line Switch | F26: 30 | G26: 45 | H26: 55
B27: 5 | C27: OH Line Switch Motor | F27: 15 | G27: 25 | H27: 25
B28: 6 | C28: OH Line Switch RTU | F28: 15 | G28: 20 | H28: 20
B29: 7 | C29: OH Integral Switches | F29: 35 | G29: 45 | H29: 60
B30: 8 | C30: OH Conductors | F30: 50 | G30: 60 | H30: 75 | J30: 1835 | K30: Overhead Conductors & Devices | L30: 25 | M30: =IF(ISERROR(1/L30), "", 1/L30) -> 0.04 | N30: 60 | O30: =IF(ISERROR(1/N30), "", 1/N30) -> 0.01666666667
J31: 1855 | K31: Overhead Services | L31: 25 | M31: =IF(ISERROR(1/L31), "", 1/L31) -> 0.04 | N31: 60 | O31: =IF(ISERROR(1/N31), "", 1/N31) -> 0.01666666667
B32: 9 | C32: OH Transformers & Voltage Regulators | F32: 30 | G32: 40 | H32: 60 | J32: 1850 | K32: Line Transformers | L32: 25 | M32: 0.04 | N32: 45 | O32: 0.02222222222
B33: 10 | C33: OH Shunt Capacitor Banks | F33: 25 | G33: 30 | H33: 40
B34: 11 | C34: Reclosers | F34: 25 | G34: 40 | H34: 55
A35: TS & MS | B35: 12 | C35: Power Transformers | D35: Overall | F35: 30 | G35: 45 | H35: 60 | J35: 1815 | K35: TS Equipment >50 kV - Transformer | L35: 40 | M35: 0.025 | N35: 45 | O35: 0.02222222222
D36: Bushing | F36: 10 | G36: 20 | H36: 30
D37: Tap Changer | F37: 20 | G37: 30 | H37: 60
B38: 13 | C38: Station Service Transformer | F38: 30 | G38: 45 | H38: 55
B39: 14 | C39: Station Grounding Transformer | F39: 30 | G39: 40 | H39: 40
B40: 15 | C40: Station DC System | D40: Overall | F40: 10 | G40: 20 | H40: 30
D41: Battery Bank | F41: 10 | G41: 15 | H41: 15
D42: Charger | F42: 20 | G42: 20 | H42: 30
B43: 16 | C43: Station Metal Clad Switchgear | D43: Overall | F43: 30 | G43: 40 | H43: 60
D44: Removable Breaker | F44: 25 | G44: 40 | H44: 60
B45: 17 | C45: Station Independent Breakers | F45: 35 | G45: 45 | H45: 65
B46: 18 | C46: Station Switch | F46: 30 | G46: 50 | H46: 60 | J46: 1815 | K46: TS Equipment >50 kV - Other | L46: 40 | M46: 0.025 | N46: 55 | O46: 0.01818181818
B47: 19 | C47: Electromechanical Relays | F47: 25 | G47: 35 | H47: 50
B48: 20 | C48: Solid State Relays | F48: 10 | G48: 30 | H48: 45
B49: 21 | C49: Digital & Numeric Relays | F49: 15 | G49: 20 | H49: 20
B50: 22 | C50: Rigid Busbars | F50: 30 | G50: 55 | H50: 60
B51: 23 | C51: Steel Structure | F51: 35 | G51: 50 | H51: 90
A52: UG | B52: 24 | C52: Primary Paper Insulated Lead Covered (PILC) Cables | F52: 60 | G52: 65 | H52: 75
B53: 25 | C53: Primary Ethylene-Propylene Rubber (EPR) Cables | F53: 20 | G53: 25 | H53: 25
B54: 26 | C54: Primary Non-Tree Retardant (TR) Cross Linked Polyethylene (XLPE) Cables Direct Buried | F54: 20 | G54: 25 | H54: 30
B55: 27 | C55: Primary Non-TR XLPE Cables in Duct | F55: 20 | G55: 25 | H55: 30 | J55: 1845 | K55: Underground Conductors & Devices | L55: 25 | M55: 0.04 | N55: 45 | O55: 0.02222222222
B56: 28 | C56: Primary TR XLPE Cables Direct Buried | F56: 25 | G56: 30 | H56: 35
B57: 29 | C57: Primary TR XLPE Cables in Duct | F57: 35 | G57: 40 | H57: 55
B58: 30 | C58: Secondary PILC Cables | F58: 70 | G58: 75 | H58: 80
B59: 31 | C59: Secondary Cables Direct Buried | F59: 25 | G59: 35 | H59: 40
B60: 32 | C60: Secondary Cables in Duct | F60: 35 | G60: 40 | H60: 60 | J60: 1855 | K60: Underground Services | L60: 25 | M60: 0.04 | N60: 45 | O60: 0.02222222222
B61: 33 | C61: Network Tranformers | D61: Overall | F61: 20 | G61: 35 | H61: 50
D62: Protector | F62: 20 | G62: 35 | H62: 40
B63: 34 | C63: Pad-Mounted Transformers | F63: 25 | G63: 40 | H63: 45 | J63: 1850 | K63: Line Transformers | L63: 25 | M63: 0.04 | N63: 45 | O63: 0.02222222222
B64: 35 | C64: Submersible/Vault Transformers | F64: 25 | G64: 35 | H64: 45
B65: 36 | C65: UG Foundation | F65: 35 | G65: 55 | H65: 70
B66: 37 | C66: UG Vaults | D66: Overall | F66: 40 | G66: 60 | H66: 80
D67: Roof | F67: 20 | G67: 30 | H67: 45
B68: 38 | C68: UG Vault Switches | F68: 20 | G68: 35 | H68: 50
B69: 39 | C69: Pad-Mounted Switchgear | F69: 20 | G69: 30 | H69: 45 | J69: 1845 | K69: Underground Conductors & Devices | L69: 25 | M69: =IF(ISERROR(1/L69), "", 1/L69) -> 0.04 | N69: 45 | O69: =IF(ISERROR(1/N69), "", 1/N69) -> 0.02222222222
B70: 40 | C70: Ducts | F70: 30 | G70: 50 | H70: 85 | J70: 1840 | K70: Underground Conduit | L70: 25 | M70: 0.04 | N70: 65 | O70: 0.01538461538
B71: 41 | C71: Concrete Encased Duct Banks | F71: 35 | G71: 55 | H71: 80 | J71: 1840 | K71: Underground Conduit | L71: 25 | M71: =IF(ISERROR(1/L71), "", 1/L71) -> 0.04 | N71: 65 | O71: =IF(ISERROR(1/N71), "", 1/N71) -> 0.01538461538
B72: 42 | C72: Cable Chambers | F72: 50 | G72: 60 | H72: 80
A73: S | B73: 43 | C73: Remote SCADA | F73: 15 | G73: 20 | H73: 30 | J73: 1980 | K73: System Supervisor Equipment | L73: 15 | M73: 0.06666666667 | N73: 10 | O73: 0.1
A76: Table F-2 from Kinetrics Report1
C78: Asset Details | F78: Useful Life Range | J78: USoA Account Number | K78: USoA Account Description | L78: Current | N78: Proposed
B79: # | C79: Category| Component | Type | L79: Years | M79: Rate | N79: Years | O79: Rate
B80: 1 | C80: Office Equipment | F80: 5-15 | J80: 1915 | K80: Office Furniture & Equipment | L80: 10 | M80: =IF(ISERROR(1/L80), "", 1/L80) -> 0.1 | N80: 10 | O80: =IF(ISERROR(1/N80), "", 1/N80) -> 0.1
B81: 2 | C81: Vehicles | D81: Trucks & Buckets | F81: 5-15 | J81: 1930 | K81: Transportation Equipment > 3 tons | L81: 8 | M81: =IF(ISERROR(1/L81), "", 1/L81) -> 0.125 | N81: 10 | O81: =IF(ISERROR(1/N81), "", 1/N81) -> 0.1
D82: Trailers | F82: 5-20 | J82: 1930 | K82: Transportation Equipment - Trailers | L82: 5 | M82: 0.2 | N82: 15 | O82: 0.06666666667
D83: Vans | F83: 5-10 | J83: 1930 | K83: Transportation Equipment < 3 tons | L83: 5 | M83: 0.2 | N83: 5 | O83: 0.2
B84: 3 | C84: Administrative Buildings | F84: 50-75 | J84: 1908 | K84: Buildings & Fixtures - HQ building | L84: 50 | M84: 0.02 | N84: 60 | O84: 0.01666666667
J85: 1908 | K85: Buildings & Fixtures - PCB shed | L85: 30 | M85: =IF(ISERROR(1/L85), "", 1/L85) -> 0.03333333333 | N85: 30 | O85: =IF(ISERROR(1/N85), "", 1/N85) -> 0.03333333333
B86: 4 | C86: Leasehold Improvements | F86: Lease dependent
B87: 5 | C87: Station Buildings | D87: Station Buildings | F87: 50-75
D88: Parking | F88: 25-30
D89: Fence | F89: 25-60
D90: Roof | F90: 20-30
B91: 6 | C91: Computer Equipment | D91: Hardware | F91: 3-5 | J91: 1920 | K91: Computer Equipment - Hardware | L91: 5 | M91: 0.2 | N91: 3 | O91: 0.3333333333
D92: Software | F92: 2-5 | J92: 1925 | K92: Computer Software | L92: 3 | M92: 0.3333333333 | N92: 3 | O92: 0.3333333333
J93: 1925 | K93: Computer Software - upgrade for TOU | L93: n/a | N93: 5 | O93: 0.2
B94: 7 | C94: Equipment | D94: Power Operated | F94: 5-10
D95: Stores | F95: 5-10 | J95: 1935 | K95: Stores Equipment | L95: 10 | M95: 0.1 | N95: 10 | O95: 0.1
D96: Tools, Shop, Garage Equipment | F96: 5-10 | J96: 1940 | K96: Tools, Shop & Garage Equipment | L96: 10 | M96: =IF(ISERROR(1/L96), "", 1/L96) -> 0.1 | N96: 8 | O96: =IF(ISERROR(1/N96), "", 1/N96) -> 0.125
D97: Measurement & Testing Equipment | F97: 5-10
B98: 8 | C98: Communication | D98: Towers | F98: 60-70 | J98: 1955 | K98: Communications Equipment | L98: 10 | M98: 0.1 | N98: 10 | O98: 0.1
D99: Wireless | F99: 2-10
B100: 9 | C100: Residential Energy Meters | F100: 25-35 | J100: 1860 | K100: Meters (not CTs/PTs) | L100: 25 | M100: 0.04 | N100: 25 | O100: 0.04
B101: 10 | C101: Industrial/Commercial Energy Meters | F101: 25-35
B102: 11 | C102: Wholesale Energy Meters | F102: 15-30
B103: 12 | C103: Current & Potential Transformer (CT & PT) | F103: 35-50 | J103: 1860 | K103: Meters CTs/PTs | L103: 25 | M103: 0.04 | N103: 40 | O103: 0.025
B104: 13 | C104: Smart Meters | F104: 5-15 | J104: 1860 | K104: Meters (smart meters) | L104: n/a | N104: 15 | O104: 0.06666666667
B105: 14 | C105: Repeaters - Smart Metering | F105: 10-15
B106: 15 | C106: Data Collectors - Smart Metering | F106: 15-20 | J106: 1860 | K106: Meters (smart meters) | L106: n/a | N106: 15 | O106: 0.06666666667
A109: * TS & MS = Transformer and Municipal Stations UG = Underground Systems S = Monitoring and Control Systems
A111: Note 1: | B111: Tables F-1 and F-2 above are to be used as a reference in order to complete columns J, K, L and N.
B112: See pages 17-19 of Kinetrics Report

Sheet Instruction for App. 2-C MIFRS (hidden)
A1: General Instructions to MIFRS Appendices
A2: Types of Schedules to File
A4: The purpose of this tab is to provide general instructions. The specific instructions to each appendix are listed in footnotes to each appendix.
A6: Applicants filing a MIFRS application should provide the following information regarding Appendix 2-B and Appendix 2-C:
A8: · If an applicant chooses to adopt IFRS for financial reporting in 2012, in its 2014 cost of service application it must file information for the historic year (2012),modified IFRS and also provide forecasts for the bridge year (2013) and test year (2014) information in modified IFRS format. The years required to be filed prior to the historic year 2012 may be provided in CGAAP only, except for the year 2011 which must also be presented in modified IFRS format.
A11: · If an applicant chooses to adopt IFRS for financial reporting in 2013, in its 2014 cost of service application it must file information for the year prior (i.e. 2012 – the historic year) in both CGAAP and modified IFRS format, and present modified IFRS based forecasts for the bridge (2013) and test years (2014). The years required to be filed prior to the historic year 2012 may be provided in CGAAP only.
A14: · If an applicant chooses to adopt IFRS for financial reporting in 2014, in its 2014 cost of service application it must provide the required actual years (2012) and the bridge year (2013) in CGAAP based format. An applicant must present modified IFRS based forecasts for the bridge (2013) and test years (2014).
E18: Date of Adoption of IFRS
E19: for Financial Reporting Purposes:
E20: January 1, 2012 | F20: January 1, 2013 | G20: January 1, 2014
A21: Information | C21: 2010 H & Prior | E21: CGAAP | F21: CGAAP | G21: CGAAP
A22: Required to be | C22: 2011 H | E22: MIFRS & CGAAP | F22: CGAAP | G22: CGAAP
A23: Filed in 2014 | C23: 2012 H | E23: MIFRS | F23: MIFRS & CGAAP | G23: CGAAP
A24: CoS Application: | C24: 2013 B | E24: MIFRS | F24: MIFRS | G24: MIFRS & CGAAP
C25: 2014 T | E25: MIFRS | F25: MIFRS | G25: MIFRS
A27: Date of Transition to IFRS | E27: January 1, 2011 | F27: January 1, 2012 | G27: January 1, 2013
A29: H - historic year regulatory financial information
A30: B - bridge year regulatory financial information
A31: T - test year regulatory financial information
B32: Year in which both CGAAP and MIFRS information required
A34: For those applicants that adopted IFRS on January 1, 2012 for financial reporting purposes, the date of transition is January 1, 2011. For those applicants that adopted IFRS on January 1, 2013 for financial reporting purposes, the date of transition is January 1, 2012. For those applicants that adopted IFRS on January 1, 2014 for financial reporting purposes, the date of transition is January 1, 2013.
A39: Summary of Impacts to Revenue Requirement from Transition to MIFRS - Appendix 2-YA
A40: For modified IFRS applications, the applicants must provide a summary of the dollar impacts of modified IFRS to each component of the revenue requirement (e.g. rate base, operating costs, etc), including the overall impact on the proposed revenue requirement. Accordingly, the applicants must identify financial differences and resulting revenue requirement impacts arising from the adoption of modified IFRS accounting.
A45: Depreciation and Amortization - Appendix 2-C
A46: If an applicant chooses to adopt IFRS for financial reporting in 2012, the applicant must complete Appendix 2-CA to Appendix 2-CE (inclusive).
A47: If an applicant chooses to adopt IFRS for financial reporting in 2013, the applicant must complete Appendix 2-CF to Appendix 2-CI (inclusive).
A48: If an applicant chooses to adopt IFRS for financial reporting in 2014, the applicant must complete Appendix 2-CJ to Appendix 2-CM (inclusive).
A51: Continuity of Historic Cost under MIFRS - Appendix 2-BA2
A53: Regulatory Gross Assets of Property, Plant and Equipment
A54: For an applicant that adopted IFRS on January 1, 2012 for financial reporting purposes, the applicant must establish the continuity of historic cost by using the December 31, 2010 regulatory gross assets of property, plant and equipment as the opening January 1, 2011 regulatory gross assets. The applicant must provide schedules (including Appendix 2-BA2, Fixed Asset Continuity Schedule) which must identify the following details to substantiate the continuity of historic cost for regulatory purposes:
A58: · December 31, 2010 regulatory gross assets of property, plant and equipment, by asset class; and
A59: · January 1, 2011 regulatory gross assets of property, plant and equipment, by asset class.
A61: For an applicant that adopts IFRS on January 1, 2013 for financial reporting purposes, the applicant must establish the continuity of historic cost by using the December 31, 2011 regulatory gross assets of property, plant and equipment as the opening January 1, 2012 regulatory gross assets. The applicant must provide schedules (including Appendix 2-BA2, Fixed Asset Continuity Schedule) which must identify the following details to substantiate the continuity of historic cost for regulatory purposes:
A65: · December 31, 2011 regulatory gross assets of property, plant and equipment, by asset class; and
A66: · January 1, 2012 regulatory gross assets of property, plant and equipment, by asset class.
A68: For an applicant that adopts IFRS on January 1, 2014 for financial reporting purposes, the applicant must establish the continuity of historic cost by using the December 31, 2012 regulatory gross assets of property, plant and equipment as the opening January 1, 2013 regulatory gross assets. The applicant must provide schedules (including Appendix 2-BA2, Fixed Asset Continuity Schedule) which must identify the following details to substantiate the continuity of historic cost for regulatory purposes:
A72: · December 31, 2012 regulatory gross assets of property, plant and equipment, by asset class; and
A73: · January 1, 2013 regulatory gross assets of property, plant and equipment, by asset class.
A75: Accumulated Depreciation
A76: For an applicant that adopted IFRS on January 1, 2012 for financial reporting purposes, the applicant must establish the continuity of historic cost by using the December 31, 2010 regulatory accumulated depreciation as the opening January 1, 2011 regulatory accumulated depreciation. The applicant must provide schedules (including Appendix 2-BA2, Fixed Asset Continuity Schedule) which must identify the following details to substantiate the continuity of historic cost for regulatory purposes:
A79: · December 31, 2010 regulatory accumulated depreciation, by asset class; and
A80: · January 1, 2011 regulatory accumulated depreciation, by asset class.
A82: For an applicant that adopted IFRS on January 1, 2013 for financial reporting purposes, the applicant must establish the continuity of historic cost by using the December 31, 2011 regulatory accumulated depreciation as the opening January 1, 2012 regulatory accumulated depreciation. The applicant must provide schedules (including Appendix 2-BA2, Fixed Asset Continuity Schedule) which must identify the following details to substantiate the continuity of historic cost for regulatory purposes:
A85: · December 31, 2011 regulatory accumulated depreciation, by asset class; and
A86: · January 1, 2012 regulatory accumulated depreciation, by asset class.
A88: For an applicant that adopted IFRS on January 1, 2014 for financial reporting purposes, the applicant must establish the continuity of historic cost by using the December 31, 2012 regulatory accumulated depreciation as the opening January 1, 2013 regulatory accumulated depreciation. The applicant must provide schedules (including Appendix 2-BA2, Fixed Asset Continuity Schedule) which must identify the following details to substantiate the continuity of historic cost for regulatory purposes:
A91: · December 31, 2012 regulatory accumulated depreciation, by asset class; and
A92: · January 1, 2013 regulatory accumulated depreciation, by asset class.
A94: Account 1575, IFRS-CGAAP Transitional PP&E Amounts - Appendix 2-EA, Appendix 2-EB, Appendix 2-EC
A95: Please refer to section 2.12.4 of the Filing Requirements.
A97: Account 1576, Accounting Changes Under CGAAP - Appendix 2-ED, Appendix 2-EE
A98: Please refer to section 2.12.5 of the Filing Requirements.

Sheet App.2-CA_CGAAP_DepExp_2011 (hidden)
K1: File Number: | L1: =EBNUMBER -> EB-2013-0155
K2: Exhibit:
K3: Tab:
K4: Schedule:
K5: Page:
K7: Date:
A9: Appendix 2-CA
A10: Depreciation and Amortization Expense
A11: Assumes the applicant adopted IFRS for financial reporting purposes January 1, 2012
C12: Year | D12: 2011 | E12: CGAAP
A14: Account | B14: Description | C14: Opening Regulatory Gross PP&E as at Jan 1, 2011 | D14: Less Fully Depreciated | E14: Net for Depreciation | F14: Additions | G14: Total for Depreciation | H14: Years | I14: Depreciation Rate | J14: Depreciation Expense | K14: 2011 Depreciation Expense per Appendix 2-B Fixed Assets, Column K (l) | L14: Variance 2
C15: (a) | D15: (b) | E15: (c) | F15: (d) | G15: (e) = (c) + ½ x (d) 1 | H15: (f) | I15: (g) = 1 / (f) | J15: (h) = (e) / (f) | L15: (m) = (h) - (l)
A16: 1611 | B16: Computer Software (Formally known as Account 1925) | E16: =C16-D16 -> 0 | G16: =E16+0.5*F16 -> 0 | I16: =IF(H16=0,0,1/H16) -> 0 | J16: =IF(H16=0,0,G16/H16) -> 0 | L16: =IF(ISERROR(+J16-K16), 0, +J16-K16) -> 0
A17: 1612 | B17: Land Rights (Formally known as Account 1906) | E17: =C17-D17 -> 0 | G17: =E17+0.5*F17 -> 0 | I17: 0 | J17: 0 | L17: 0
A18: 1805 | B18: Land | E18: 0 | G18: 0 | I18: 0 | J18: 0 | L18: 0
A19: 1808 | B19: Buildings | E19: 0 | G19: 0 | I19: 0 | J19: 0 | L19: 0
A20: 1810 | B20: Leasehold Improvements | E20: 0 | G20: 0 | I20: 0 | J20: 0 | L20: 0
A21: 1815 | B21: Transformer Station Equipment >50 kV | E21: 0 | G21: 0 | I21: 0 | J21: 0 | L21: 0
A22: 1820 | B22: Distribution Station Equipment <50 kV | E22: 0 | G22: 0 | I22: 0 | J22: 0 | L22: 0
A23: 1825 | B23: Storage Battery Equipment | E23: 0 | G23: 0 | I23: 0 | J23: 0 | L23: 0
A24: 1830 | B24: Poles, Towers & Fixtures | E24: 0 | G24: 0 | I24: 0 | J24: 0 | L24: 0
A25: 1835 | B25: Overhead Conductors & Devices | E25: 0 | G25: 0 | I25: 0 | J25: 0 | L25: 0
A26: 1840 | B26: Underground Conduit | E26: 0 | G26: 0 | I26: 0 | J26: 0 | L26: 0
A27: 1845 | B27: Underground Conductors & Devices | E27: 0 | G27: 0 | I27: 0 | J27: 0 | L27: 0
A28: 1850 | B28: Line Transformers | E28: 0 | G28: 0 | I28: 0 | J28: 0 | L28: 0
A29: 1855 | B29: Services (Overhead & Underground) | E29: 0 | G29: 0 | I29: 0 | J29: 0 | L29: 0
A30: 1860 | B30: Meters | E30: 0 | G30: 0 | I30: 0 | J30: 0 | L30: 0
A31: 1860 | B31: Meters (Smart Meters) | E31: 0 | G31: 0 | I31: 0 | J31: 0 | L31: 0
A32: 1905 | B32: Land | E32: 0 | G32: 0 | I32: 0 | J32: 0 | L32: 0
A33: 1908 | B33: Buildings & Fixtures | E33: 0 | G33: 0 | I33: 0 | J33: 0 | L33: 0
A34: 1910 | B34: Leasehold Improvements | E34: 0 | G34: 0 | I34: 0 | J34: 0 | L34: 0
A35: 1915 | B35: Office Furniture & Equipment (10 years) | E35: 0 | G35: 0 | I35: 0 | J35: 0 | L35: 0
A36: 1915 | B36: Office Furniture & Equipment (5 years) | E36: 0 | G36: 0 | I36: 0 | J36: 0 | L36: 0
A37: 1920 | B37: Computer Equipment - Hardware | E37: 0 | G37: 0 | I37: 0 | J37: 0 | L37: 0
A38: 1920 | B38: Computer Equip.-Hardware(Post Mar. 22/04) | E38: 0 | G38: 0 | I38: 0 | J38: 0 | L38: 0
A39: 1920 | B39: Computer Equip.-Hardware(Post Mar. 19/07) | E39: 0 | G39: 0 | I39: 0 | J39: 0 | L39: 0
A40: 1930 | B40: Transportation Equipment | E40: 0 | G40: 0 | I40: 0 | J40: 0 | L40: 0
A41: 1935 | B41: Stores Equipment | E41: 0 | G41: 0 | I41: 0 | J41: 0 | L41: 0
A42: 1940 | B42: Tools, Shop & Garage Equipment | E42: 0 | G42: 0 | I42: 0 | J42: 0 | L42: 0
A43: 1945 | B43: Measurement & Testing Equipment | E43: 0 | G43: 0 | I43: 0 | J43: 0 | L43: 0
A44: 1950 | B44: Power Operated Equipment | E44: 0 | G44: 0 | I44: 0 | J44: 0 | L44: 0
A45: 1955 | B45: Communications Equipment | E45: 0 | G45: 0 | I45: 0 | J45: 0 | L45: 0
A46: 1955 | B46: Communication Equipment (Smart Meters) | E46: 0 | G46: 0 | I46: 0 | J46: 0 | L46: 0
A47: 1960 | B47: Miscellaneous Equipment | E47: 0 | G47: 0 | I47: 0 | J47: 0 | L47: 0
A48: 1970 | B48: Load Management Controls Customer Premises | E48: 0 | G48: 0 | I48: 0 | J48: 0 | L48: 0
A49: 1975 | B49: Load Management Controls Utility Premises | E49: 0 | G49: 0 | I49: 0 | J49: 0 | L49: 0
A50: 1980 | B50: System Supervisor Equipment | E50: 0 | G50: 0 | I50: 0 | J50: 0 | L50: 0
A51: 1985 | B51: Miscellaneous Fixed Assets | E51: 0 | G51: 0 | I51: 0 | J51: 0 | L51: 0
A52: 1990 | B52: Other Tangible Property | E52: 0 | G52: 0 | I52: 0 | J52: 0 | L52: 0
A53: 1995 | B53: Contributions & Grants | E53: 0 | G53: 0 | I53: 0 | J53: 0 | L53: 0
A54: etc. | E54: 0 | G54: 0 | I54: 0 | J54: 0 | L54: 0
E55: 0 | G55: 0 | I55: 0 | J55: 0 | L55: 0
B56: Total | C56: =SUM(C16:C55) -> 0 | D56: =SUM(D16:D55) -> 0 | E56: =SUM(E16:E55) -> 0 | F56: =SUM(F16:F55) -> 0 | G56: =SUM(G16:G55) -> 0 | J56: =SUM(J16:J55) -> 0 | K56: =SUM(K16:K55) -> 0 | L56: =SUM(L16:L55) -> 0
A58: Notes:
A60: 1 | B60: Board policy of the "half-year" rule - the applicant must ensure that additions in the year attract a half-year depreciation expense in the first year. Deviations from this standard practice must be supported in the application.
A61: 2 | B61: The applicant must provide an explanation of material variances in evidence.
A63: General | B63: Applicants must provide a breakdown of depreciation and amortization expense in the above format for all relevant accounts. Asset Retirement Obligations (AROs), depreciation and accretion expense should be disclosed separately consistent with the Notes of historical Audited Financial Statements.

Sheet App.2-CB_MIFRS_DepExp_2011 (hidden)
N1: File Number: | O1: =EBNUMBER -> EB-2013-0155
N2: Exhibit:
N3: Tab:
N4: Schedule:
N5: Page:
N7: Date:
A9: Appendix 2-CB
A10: Depreciation and Amortization Expense
A11: Assumes the applicant adopted IFRS for financial reporting purposes January 1, 2012
C12: Year | D12: 2011 | E12: MIFRS
A14: Account | B14: Description | C14: Opening NBV as at Jan 1, 2011 5 | D14: Additions | E14: Average Remaining Life of Opening NBV 4 | F14: Years (new additions only) 3 | G14: Depreciation Rate on New Additions | H14: Depreciation Expense on Opening NBV | I14: Depreciation Expense on Additions 1 | J14: 2011 Depreciation Expense | K14: 2011 Depreciation Expense per Appendix 2-B Fixed Assets, Column K (l) | L14: Variance 2 | M14: Depreciation Expense on 2011 Full Year Additions | N14: Less Depreciation Expense on Assets Fully Depreciated during the year (o) | O14: 2011 Full Year Depreciation 6
C15: (a) | D15: (d) | E15: (i) | F15: (f) | G15: (g) = 1 / (f) | H15: (j) = (a) / (i) | I15: (h)=((d)*0.5)/(f) | J15: (k) = (j) + (h) | L15: (m) = (k) - (l) | M15: (n) = (d)/(f) | O15: (p) = (j) + (n) - (o)
A16: 1611 | B16: Computer Software (Formally known as Account 1925) | G16: =IF(F16=0,0,1/F16) -> 0 | H16: =IF(E16=0,0,+C16/E16) -> 0 | I16: =IF(F16=0,0,+(D16*0.5)/F16) -> 0 | J16: =IF(ISERROR(+H16+I16), 0, +H16+I16) -> 0 | L16: =IF(ISERROR(+J16-K16), 0, +J16-K16) -> 0 | M16: =IF(F16=0,0,+(D16)/F16) -> 0 | O16: =IF(ISERROR(+M16+H16-N16), 0, +M16+H16-N16) -> 0
A17: 1612 | B17: Land Rights (Formally known as Account 1906) | G17: 0 | H17: 0 | I17: 0 | J17: 0 | L17: 0 | M17: 0 | O17: =IF(ISERROR(+M17+H17-N17), 0, +M17+H17-N17) -> 0
A18: 1805 | B18: Land | G18: 0 | H18: 0 | I18: 0 | J18: 0 | L18: 0 | M18: 0 | O18: 0
A19: 1808 | B19: Buildings | G19: 0 | H19: 0 | I19: 0 | J19: 0 | L19: 0 | M19: 0 | O19: 0
A20: 1810 | B20: Leasehold Improvements | G20: 0 | H20: 0 | I20: 0 | J20: 0 | L20: 0 | M20: 0 | O20: 0
A21: 1815 | B21: Transformer Station Equipment >50 kV | G21: 0 | H21: 0 | I21: 0 | J21: 0 | L21: 0 | M21: 0 | O21: 0
A22: 1820 | B22: Distribution Station Equipment <50 kV | G22: 0 | H22: 0 | I22: 0 | J22: 0 | L22: 0 | M22: 0 | O22: 0
A23: 1825 | B23: Storage Battery Equipment | G23: 0 | H23: 0 | I23: 0 | J23: 0 | L23: 0 | M23: 0 | O23: 0
A24: 1830 | B24: Poles, Towers & Fixtures | G24: 0 | H24: 0 | I24: 0 | J24: 0 | L24: 0 | M24: 0 | O24: 0
A25: 1835 | B25: Overhead Conductors & Devices | G25: 0 | H25: 0 | I25: 0 | J25: 0 | L25: 0 | M25: 0 | O25: 0
A26: 1840 | B26: Underground Conduit | G26: 0 | H26: 0 | I26: 0 | J26: 0 | L26: 0 | M26: 0 | O26: 0
A27: 1845 | B27: Underground Conductors & Devices | G27: 0 | H27: 0 | I27: 0 | J27: 0 | L27: 0 | M27: 0 | O27: 0
A28: 1850 | B28: Line Transformers | G28: 0 | H28: 0 | I28: 0 | J28: 0 | L28: 0 | M28: 0 | O28: 0
A29: 1855 | B29: Services (Overhead & Underground) | G29: 0 | H29: 0 | I29: 0 | J29: 0 | L29: 0 | M29: 0 | O29: 0
A30: 1860 | B30: Meters | G30: 0 | H30: 0 | I30: 0 | J30: 0 | L30: 0 | M30: 0 | O30: 0
A31: 1860 | B31: Meters (Smart Meters) | G31: 0 | H31: 0 | I31: 0 | J31: 0 | L31: 0 | M31: 0 | O31: 0
A32: 1905 | B32: Land | G32: 0 | H32: 0 | I32: 0 | J32: 0 | L32: 0 | M32: 0 | O32: 0
A33: 1908 | B33: Buildings & Fixtures | G33: 0 | H33: 0 | I33: 0 | J33: 0 | L33: 0 | M33: 0 | O33: 0
A34: 1910 | B34: Leasehold Improvements | G34: 0 | H34: 0 | I34: 0 | J34: 0 | L34: 0 | M34: 0 | O34: 0
A35: 1915 | B35: Office Furniture & Equipment (10 years) | G35: 0 | H35: 0 | I35: 0 | J35: 0 | L35: 0 | M35: 0 | O35: 0
A36: 1915 | B36: Office Furniture & Equipment (5 years) | G36: 0 | H36: 0 | I36: 0 | J36: 0 | L36: 0 | M36: 0 | O36: 0
A37: 1920 | B37: Computer Equipment - Hardware | G37: 0 | H37: 0 | I37: 0 | J37: 0 | L37: 0 | M37: 0 | O37: 0
A38: 1920 | B38: Computer Equip.-Hardware(Post Mar. 22/04) | G38: 0 | H38: 0 | I38: 0 | J38: 0 | L38: 0 | M38: 0 | O38: 0
A39: 1920 | B39: Computer Equip.-Hardware(Post Mar. 19/07) | G39: 0 | H39: 0 | I39: 0 | J39: 0 | L39: 0 | M39: 0 | O39: 0
A40: 1930 | B40: Transportation Equipment | G40: 0 | H40: 0 | I40: 0 | J40: 0 | L40: 0 | M40: 0 | O40: 0
A41: 1935 | B41: Stores Equipment | G41: 0 | H41: 0 | I41: 0 | J41: 0 | L41: 0 | M41: 0 | O41: 0
A42: 1940 | B42: Tools, Shop & Garage Equipment | G42: 0 | H42: 0 | I42: 0 | J42: 0 | L42: 0 | M42: 0 | O42: 0
A43: 1945 | B43: Measurement & Testing Equipment | G43: 0 | H43: 0 | I43: 0 | J43: 0 | L43: 0 | M43: 0 | O43: 0
A44: 1950 | B44: Power Operated Equipment | G44: 0 | H44: 0 | I44: 0 | J44: 0 | L44: 0 | M44: 0 | O44: 0
A45: 1955 | B45: Communications Equipment | G45: 0 | H45: 0 | I45: 0 | J45: 0 | L45: 0 | M45: 0 | O45: 0
A46: 1955 | B46: Communication Equipment (Smart Meters) | G46: 0 | H46: 0 | I46: 0 | J46: 0 | L46: 0 | M46: 0 | O46: 0
A47: 1960 | B47: Miscellaneous Equipment | G47: 0 | H47: 0 | I47: 0 | J47: 0 | L47: 0 | M47: 0 | O47: 0
A48: 1970 | B48: Load Management Controls Customer Premises | G48: 0 | H48: 0 | I48: 0 | J48: 0 | L48: 0 | M48: 0 | O48: 0
A49: 1975 | B49: Load Management Controls Utility Premises | G49: 0 | H49: 0 | I49: 0 | J49: 0 | L49: 0 | M49: 0 | O49: 0
A50: 1980 | B50: System Supervisor Equipment | G50: 0 | H50: 0 | I50: 0 | J50: 0 | L50: 0 | M50: 0 | O50: 0
A51: 1985 | B51: Miscellaneous Fixed Assets | G51: 0 | H51: 0 | I51: 0 | J51: 0 | L51: 0 | M51: 0 | O51: 0
A52: 1990 | B52: Other Tangible Property | G52: 0 | H52: 0 | I52: 0 | J52: 0 | L52: 0 | M52: 0 | O52: 0
A53: 1995 | B53: Contributions & Grants | G53: 0 | H53: 0 | I53: 0 | J53: 0 | L53: 0 | M53: 0 | O53: 0
A54: etc. | G54: 0 | H54: 0 | I54: 0 | J54: 0 | L54: 0 | M54: 0 | O54: 0
G55: 0 | H55: 0 | I55: 0 | J55: 0 | L55: 0 | M55: 0 | O55: 0
B56: Total | C56: =SUM(C16:C55) -> 0 | D56: =SUM(D16:D55) -> 0 | H56: =SUM(H16:H55) -> 0 | I56: 0 | J56: 0 | K56: 0 | L56: 0 | M56: 0 | N56: =SUM(N16:N55) -> 0 | O56: 0
B57: Depreciation exp. adj. from gain or loss on the retirement of assets (pool of like assets) | J57: 0
B58: Total | J58: =+J57+J56 -> 0
A59: Notes:
A61: 1 | B61: Board policy of the "half-year" rule - the applicant must ensure that additions in the year attract a half-year depreciation expense in the first year. Deviations from this standard practice must be supported in the application.
A62: 2 | B62: The applicant must provide an explanation of material variances in evidence.
A63: 3 | B63: The applicant should ensure that the years for new additions of assets are the asset useful lives determined by management in accordance with IFRS.
A64: 4 | B64: A recalculation should be performed to determine the average remaining life of opening balance of assets (i.e. excluding 2011 additions) under IFRS. For example, Asset A had a useful life of 20 years under CGAAP. On January 1, 2011, the date of transition, Asset A was 3 years depreciated. As a result, Asset A would have a remaining service life of 17 years (20 years less 3 years) under CGAAP as of January 1, 2011. Due to the transition to IFRS, management re-assessed the asset useful lives under IFRS principles and concluded that the revised useful life of Asset A is now 30 years. Therefore, the average remaining useful life of opening balance of Asset A is determined to be 27 years (30 years less 3 years) under IFRS as of January 1, 2011.
A65: 5 | B65: NBV must exclude assets still on the books but which have been fully amortized or depreciated.
A66: 6 | B66: This column refers to the calculated full year depreciation but excludes the depreciation expense on assets fully depreciated during the year. This column is used for the purpose of calculating depreciation expense in the following year on the next worksheet.
A68: General: | B68: Applicants must provide a breakdown of depreciation and amortization expense in the above format for all relevant accounts. Asset Retirement Obligations (AROs), depreciation and accretion expense should be disclosed separately consistent with the Notes of historical Audited Financial Statements.

Sheet App.2-CC_MIFRS_DepExp_2012 (hidden)
J1: File Number: | K1: =EBNUMBER -> EB-2013-0155
J2: Exhibit:
J3: Tab:
J4: Schedule:
J5: Page:
J7: Date:
A9: Appendix 2-CC
A10: Depreciation and Amortization Expense
A11: Assumes the applicant adopted IFRS for financial reporting purposes January 1, 2012
C12: 2012 | D12: MIFRS
A14: Account | B14: Description | C14: Additions | D14: Years (new additions only) | E14: Depreciation Rate on New Additions | F14: 2012 Depreciation Expense 1 | G14: 2012 Depreciation Expense per Apppendix 2-B Fixed Assets, Column K (l) | H14: Variance 2 | I14: Depreciation Expense on 2012 Full Year Additions | J14: Less Depreciation Expense on Assets Fully Depreciated during the year (o) | K14: 2012 Full Year Depreciation 3
C15: (d) | D15: (f) | E15: (g) = 1 / (f) | F15: (h)=2011 Full Year Deprecation + ((d)*0.5)/(f) | H15: (m) = (h) - (l) | I15: (n)=((d))/(f) | K15: (p) = 2011 Full Year Depreciation + (n) - (o)
A16: 1611 | B16: Computer Software (Formally known as Account 1925) | E16: =IF(D16=0,0,1/D16) -> 0 | F16: =IF(D16=0,+'App.2-CB_MIFRS_DepExp_2011'!O16,+'App.2-CB_MIFRS_DepExp_2011'!O16+((C16*0.5)/D16)) -> 0 | H16: =IF(ISERROR(+F16-G16), 0, +F16-G16) -> 0 | I16: =IF(D16=0,0,+(C16)/D16) -> 0 | K16: =IF(ISERROR(+I16+'App.2-CB_MIFRS_DepExp_2011'!O16-J16), 0, +I16+'App.2-CB_MIFRS_DepExp_2011'!O16-J16) -> 0
A17: 1612 | B17: Land Rights (Formally known as Account 1906) | E17: 0 | F17: =IF(D17=0,+'App.2-CB_MIFRS_DepExp_2011'!O17,+'App.2-CB_MIFRS_DepExp_2011'!O17+((C17*0.5)/D17)) -> 0 | H17: 0 | I17: 0 | K17: =IF(ISERROR(+I17+'App.2-CB_MIFRS_DepExp_2011'!O17-J17), 0, +I17+'App.2-CB_MIFRS_DepExp_2011'!O17-J17) -> 0
A18: 1805 | B18: Land | E18: 0 | F18: =IF(D18=0,+'App.2-CB_MIFRS_DepExp_2011'!O18,+'App.2-CB_MIFRS_DepExp_2011'!O18+((C18*0.5)/D18)) -> 0 | H18: 0 | I18: 0 | K18: =IF(ISERROR(+I18+'App.2-CB_MIFRS_DepExp_2011'!O18-J18), 0, +I18+'App.2-CB_MIFRS_DepExp_2011'!O18-J18) -> 0
A19: 1808 | B19: Buildings | E19: 0 | F19: =IF(D19=0,+'App.2-CB_MIFRS_DepExp_2011'!O19,+'App.2-CB_MIFRS_DepExp_2011'!O19+((C19*0.5)/D19)) -> 0 | H19: 0 | I19: 0 | K19: =IF(ISERROR(+I19+'App.2-CB_MIFRS_DepExp_2011'!O19-J19), 0, +I19+'App.2-CB_MIFRS_DepExp_2011'!O19-J19) -> 0
A20: 1810 | B20: Leasehold Improvements | E20: 0 | F20: =IF(D20=0,+'App.2-CB_MIFRS_DepExp_2011'!O20,+'App.2-CB_MIFRS_DepExp_2011'!O20+((C20*0.5)/D20)) -> 0 | H20: 0 | I20: 0 | K20: =IF(ISERROR(+I20+'App.2-CB_MIFRS_DepExp_2011'!O20-J20), 0, +I20+'App.2-CB_MIFRS_DepExp_2011'!O20-J20) -> 0
A21: 1815 | B21: Transformer Station Equipment >50 kV | E21: 0 | F21: =IF(D21=0,+'App.2-CB_MIFRS_DepExp_2011'!O21,+'App.2-CB_MIFRS_DepExp_2011'!O21+((C21*0.5)/D21)) -> 0 | H21: 0 | I21: 0 | K21: =IF(ISERROR(+I21+'App.2-CB_MIFRS_DepExp_2011'!O21-J21), 0, +I21+'App.2-CB_MIFRS_DepExp_2011'!O21-J21) -> 0
A22: 1820 | B22: Distribution Station Equipment <50 kV | E22: 0 | F22: =IF(D22=0,+'App.2-CB_MIFRS_DepExp_2011'!O22,+'App.2-CB_MIFRS_DepExp_2011'!O22+((C22*0.5)/D22)) -> 0 | H22: 0 | I22: 0 | K22: =IF(ISERROR(+I22+'App.2-CB_MIFRS_DepExp_2011'!O22-J22), 0, +I22+'App.2-CB_MIFRS_DepExp_2011'!O22-J22) -> 0
A23: 1825 | B23: Storage Battery Equipment | E23: 0 | F23: =IF(D23=0,+'App.2-CB_MIFRS_DepExp_2011'!O23,+'App.2-CB_MIFRS_DepExp_2011'!O23+((C23*0.5)/D23)) -> 0 | H23: 0 | I23: 0 | K23: =IF(ISERROR(+I23+'App.2-CB_MIFRS_DepExp_2011'!O23-J23), 0, +I23+'App.2-CB_MIFRS_DepExp_2011'!O23-J23) -> 0
A24: 1830 | B24: Poles, Towers & Fixtures | E24: 0 | F24: =IF(D24=0,+'App.2-CB_MIFRS_DepExp_2011'!O24,+'App.2-CB_MIFRS_DepExp_2011'!O24+((C24*0.5)/D24)) -> 0 | H24: 0 | I24: 0 | K24: =IF(ISERROR(+I24+'App.2-CB_MIFRS_DepExp_2011'!O24-J24), 0, +I24+'App.2-CB_MIFRS_DepExp_2011'!O24-J24) -> 0
A25: 1835 | B25: Overhead Conductors & Devices | E25: 0 | F25: =IF(D25=0,+'App.2-CB_MIFRS_DepExp_2011'!O25,+'App.2-CB_MIFRS_DepExp_2011'!O25+((C25*0.5)/D25)) -> 0 | H25: 0 | I25: 0 | K25: =IF(ISERROR(+I25+'App.2-CB_MIFRS_DepExp_2011'!O25-J25), 0, +I25+'App.2-CB_MIFRS_DepExp_2011'!O25-J25) -> 0
A26: 1840 | B26: Underground Conduit | E26: 0 | F26: =IF(D26=0,+'App.2-CB_MIFRS_DepExp_2011'!O26,+'App.2-CB_MIFRS_DepExp_2011'!O26+((C26*0.5)/D26)) -> 0 | H26: 0 | I26: 0 | K26: =IF(ISERROR(+I26+'App.2-CB_MIFRS_DepExp_2011'!O26-J26), 0, +I26+'App.2-CB_MIFRS_DepExp_2011'!O26-J26) -> 0
A27: 1845 | B27: Underground Conductors & Devices | E27: 0 | F27: =IF(D27=0,+'App.2-CB_MIFRS_DepExp_2011'!O27,+'App.2-CB_MIFRS_DepExp_2011'!O27+((C27*0.5)/D27)) -> 0 | H27: 0 | I27: 0 | K27: =IF(ISERROR(+I27+'App.2-CB_MIFRS_DepExp_2011'!O27-J27), 0, +I27+'App.2-CB_MIFRS_DepExp_2011'!O27-J27) -> 0
A28: 1850 | B28: Line Transformers | E28: 0 | F28: =IF(D28=0,+'App.2-CB_MIFRS_DepExp_2011'!O28,+'App.2-CB_MIFRS_DepExp_2011'!O28+((C28*0.5)/D28)) -> 0 | H28: 0 | I28: 0 | K28: =IF(ISERROR(+I28+'App.2-CB_MIFRS_DepExp_2011'!O28-J28), 0, +I28+'App.2-CB_MIFRS_DepExp_2011'!O28-J28) -> 0
A29: 1855 | B29: Services (Overhead & Underground) | E29: 0 | F29: =IF(D29=0,+'App.2-CB_MIFRS_DepExp_2011'!O29,+'App.2-CB_MIFRS_DepExp_2011'!O29+((C29*0.5)/D29)) -> 0 | H29: 0 | I29: 0 | K29: =IF(ISERROR(+I29+'App.2-CB_MIFRS_DepExp_2011'!O29-J29), 0, +I29+'App.2-CB_MIFRS_DepExp_2011'!O29-J29) -> 0
A30: 1860 | B30: Meters | E30: 0 | F30: =IF(D30=0,+'App.2-CB_MIFRS_DepExp_2011'!O30,+'App.2-CB_MIFRS_DepExp_2011'!O30+((C30*0.5)/D30)) -> 0 | H30: 0 | I30: 0 | K30: =IF(ISERROR(+I30+'App.2-CB_MIFRS_DepExp_2011'!O30-J30), 0, +I30+'App.2-CB_MIFRS_DepExp_2011'!O30-J30) -> 0
A31: 1860 | B31: Meters (Smart Meters) | E31: 0 | F31: =IF(D31=0,+'App.2-CB_MIFRS_DepExp_2011'!O31,+'App.2-CB_MIFRS_DepExp_2011'!O31+((C31*0.5)/D31)) -> 0 | H31: 0 | I31: 0 | K31: =IF(ISERROR(+I31+'App.2-CB_MIFRS_DepExp_2011'!O31-J31), 0, +I31+'App.2-CB_MIFRS_DepExp_2011'!O31-J31) -> 0
A32: 1905 | B32: Land | E32: 0 | F32: =IF(D32=0,+'App.2-CB_MIFRS_DepExp_2011'!O32,+'App.2-CB_MIFRS_DepExp_2011'!O32+((C32*0.5)/D32)) -> 0 | H32: 0 | I32: 0 | K32: =IF(ISERROR(+I32+'App.2-CB_MIFRS_DepExp_2011'!O32-J32), 0, +I32+'App.2-CB_MIFRS_DepExp_2011'!O32-J32) -> 0
A33: 1908 | B33: Buildings & Fixtures | E33: 0 | F33: =IF(D33=0,+'App.2-CB_MIFRS_DepExp_2011'!O33,+'App.2-CB_MIFRS_DepExp_2011'!O33+((C33*0.5)/D33)) -> 0 | H33: 0 | I33: 0 | K33: =IF(ISERROR(+I33+'App.2-CB_MIFRS_DepExp_2011'!O33-J33), 0, +I33+'App.2-CB_MIFRS_DepExp_2011'!O33-J33) -> 0
A34: 1910 | B34: Leasehold Improvements | E34: 0 | F34: =IF(D34=0,+'App.2-CB_MIFRS_DepExp_2011'!O34,+'App.2-CB_MIFRS_DepExp_2011'!O34+((C34*0.5)/D34)) -> 0 | H34: 0 | I34: 0 | K34: =IF(ISERROR(+I34+'App.2-CB_MIFRS_DepExp_2011'!O34-J34), 0, +I34+'App.2-CB_MIFRS_DepExp_2011'!O34-J34) -> 0
A35: 1915 | B35: Office Furniture & Equipment (10 years) | E35: 0 | F35: =IF(D35=0,+'App.2-CB_MIFRS_DepExp_2011'!O35,+'App.2-CB_MIFRS_DepExp_2011'!O35+((C35*0.5)/D35)) -> 0 | H35: 0 | I35: 0 | K35: =IF(ISERROR(+I35+'App.2-CB_MIFRS_DepExp_2011'!O35-J35), 0, +I35+'App.2-CB_MIFRS_DepExp_2011'!O35-J35) -> 0
A36: 1915 | B36: Office Furniture & Equipment (5 years) | E36: 0 | F36: =IF(D36=0,+'App.2-CB_MIFRS_DepExp_2011'!O36,+'App.2-CB_MIFRS_DepExp_2011'!O36+((C36*0.5)/D36)) -> 0 | H36: 0 | I36: 0 | K36: =IF(ISERROR(+I36+'App.2-CB_MIFRS_DepExp_2011'!O36-J36), 0, +I36+'App.2-CB_MIFRS_DepExp_2011'!O36-J36) -> 0
A37: 1920 | B37: Computer Equipment - Hardware | E37: 0 | F37: =IF(D37=0,+'App.2-CB_MIFRS_DepExp_2011'!O37,+'App.2-CB_MIFRS_DepExp_2011'!O37+((C37*0.5)/D37)) -> 0 | H37: 0 | I37: 0 | K37: =IF(ISERROR(+I37+'App.2-CB_MIFRS_DepExp_2011'!O37-J37), 0, +I37+'App.2-CB_MIFRS_DepExp_2011'!O37-J37) -> 0
A38: 1920 | B38: Computer Equip.-Hardware(Post Mar. 22/04) | E38: 0 | F38: =IF(D38=0,+'App.2-CB_MIFRS_DepExp_2011'!O38,+'App.2-CB_MIFRS_DepExp_2011'!O38+((C38*0.5)/D38)) -> 0 | H38: 0 | I38: 0 | K38: =IF(ISERROR(+I38+'App.2-CB_MIFRS_DepExp_2011'!O38-J38), 0, +I38+'App.2-CB_MIFRS_DepExp_2011'!O38-J38) -> 0
A39: 1920 | B39: Computer Equip.-Hardware(Post Mar. 19/07) | E39: 0 | F39: =IF(D39=0,+'App.2-CB_MIFRS_DepExp_2011'!O39,+'App.2-CB_MIFRS_DepExp_2011'!O39+((C39*0.5)/D39)) -> 0 | H39: 0 | I39: 0 | K39: =IF(ISERROR(+I39+'App.2-CB_MIFRS_DepExp_2011'!O39-J39), 0, +I39+'App.2-CB_MIFRS_DepExp_2011'!O39-J39) -> 0
A40: 1930 | B40: Transportation Equipment | E40: 0 | F40: =IF(D40=0,+'App.2-CB_MIFRS_DepExp_2011'!O40,+'App.2-CB_MIFRS_DepExp_2011'!O40+((C40*0.5)/D40)) -> 0 | H40: 0 | I40: 0 | K40: =IF(ISERROR(+I40+'App.2-CB_MIFRS_DepExp_2011'!O40-J40), 0, +I40+'App.2-CB_MIFRS_DepExp_2011'!O40-J40) -> 0
A41: 1935 | B41: Stores Equipment | E41: 0 | F41: =IF(D41=0,+'App.2-CB_MIFRS_DepExp_2011'!O41,+'App.2-CB_MIFRS_DepExp_2011'!O41+((C41*0.5)/D41)) -> 0 | H41: 0 | I41: 0 | K41: =IF(ISERROR(+I41+'App.2-CB_MIFRS_DepExp_2011'!O41-J41), 0, +I41+'App.2-CB_MIFRS_DepExp_2011'!O41-J41) -> 0
A42: 1940 | B42: Tools, Shop & Garage Equipment | E42: 0 | F42: =IF(D42=0,+'App.2-CB_MIFRS_DepExp_2011'!O42,+'App.2-CB_MIFRS_DepExp_2011'!O42+((C42*0.5)/D42)) -> 0 | H42: 0 | I42: 0 | K42: =IF(ISERROR(+I42+'App.2-CB_MIFRS_DepExp_2011'!O42-J42), 0, +I42+'App.2-CB_MIFRS_DepExp_2011'!O42-J42) -> 0
A43: 1945 | B43: Measurement & Testing Equipment | E43: 0 | F43: =IF(D43=0,+'App.2-CB_MIFRS_DepExp_2011'!O43,+'App.2-CB_MIFRS_DepExp_2011'!O43+((C43*0.5)/D43)) -> 0 | H43: 0 | I43: 0 | K43: =IF(ISERROR(+I43+'App.2-CB_MIFRS_DepExp_2011'!O43-J43), 0, +I43+'App.2-CB_MIFRS_DepExp_2011'!O43-J43) -> 0
A44: 1950 | B44: Power Operated Equipment | E44: 0 | F44: =IF(D44=0,+'App.2-CB_MIFRS_DepExp_2011'!O44,+'App.2-CB_MIFRS_DepExp_2011'!O44+((C44*0.5)/D44)) -> 0 | H44: 0 | I44: 0 | K44: =IF(ISERROR(+I44+'App.2-CB_MIFRS_DepExp_2011'!O44-J44), 0, +I44+'App.2-CB_MIFRS_DepExp_2011'!O44-J44) -> 0
A45: 1955 | B45: Communications Equipment | E45: 0 | F45: =IF(D45=0,+'App.2-CB_MIFRS_DepExp_2011'!O45,+'App.2-CB_MIFRS_DepExp_2011'!O45+((C45*0.5)/D45)) -> 0 | H45: 0 | I45: 0 | K45: =IF(ISERROR(+I45+'App.2-CB_MIFRS_DepExp_2011'!O45-J45), 0, +I45+'App.2-CB_MIFRS_DepExp_2011'!O45-J45) -> 0
A46: 1955 | B46: Communication Equipment (Smart Meters) | E46: 0 | F46: =IF(D46=0,+'App.2-CB_MIFRS_DepExp_2011'!O46,+'App.2-CB_MIFRS_DepExp_2011'!O46+((C46*0.5)/D46)) -> 0 | H46: 0 | I46: 0 | K46: =IF(ISERROR(+I46+'App.2-CB_MIFRS_DepExp_2011'!O46-J46), 0, +I46+'App.2-CB_MIFRS_DepExp_2011'!O46-J46) -> 0
A47: 1960 | B47: Miscellaneous Equipment | E47: 0 | F47: =IF(D47=0,+'App.2-CB_MIFRS_DepExp_2011'!O47,+'App.2-CB_MIFRS_DepExp_2011'!O47+((C47*0.5)/D47)) -> 0 | H47: 0 | I47: 0 | K47: =IF(ISERROR(+I47+'App.2-CB_MIFRS_DepExp_2011'!O47-J47), 0, +I47+'App.2-CB_MIFRS_DepExp_2011'!O47-J47) -> 0
A48: 1970 | B48: Load Management Controls Customer Premises | E48: 0 | F48: =IF(D48=0,+'App.2-CB_MIFRS_DepExp_2011'!O48,+'App.2-CB_MIFRS_DepExp_2011'!O48+((C48*0.5)/D48)) -> 0 | H48: 0 | I48: 0 | K48: =IF(ISERROR(+I48+'App.2-CB_MIFRS_DepExp_2011'!O48-J48), 0, +I48+'App.2-CB_MIFRS_DepExp_2011'!O48-J48) -> 0
A49: 1975 | B49: Load Management Controls Utility Premises | E49: 0 | F49: =IF(D49=0,+'App.2-CB_MIFRS_DepExp_2011'!O49,+'App.2-CB_MIFRS_DepExp_2011'!O49+((C49*0.5)/D49)) -> 0 | H49: 0 | I49: 0 | K49: =IF(ISERROR(+I49+'App.2-CB_MIFRS_DepExp_2011'!O49-J49), 0, +I49+'App.2-CB_MIFRS_DepExp_2011'!O49-J49) -> 0
A50: 1980 | B50: System Supervisor Equipment | E50: 0 | F50: =IF(D50=0,+'App.2-CB_MIFRS_DepExp_2011'!O50,+'App.2-CB_MIFRS_DepExp_2011'!O50+((C50*0.5)/D50)) -> 0 | H50: 0 | I50: 0 | K50: =IF(ISERROR(+I50+'App.2-CB_MIFRS_DepExp_2011'!O50-J50), 0, +I50+'App.2-CB_MIFRS_DepExp_2011'!O50-J50) -> 0
A51: 1985 | B51: Miscellaneous Fixed Assets | E51: 0 | F51: =IF(D51=0,+'App.2-CB_MIFRS_DepExp_2011'!O51,+'App.2-CB_MIFRS_DepExp_2011'!O51+((C51*0.5)/D51)) -> 0 | H51: 0 | I51: 0 | K51: =IF(ISERROR(+I51+'App.2-CB_MIFRS_DepExp_2011'!O51-J51), 0, +I51+'App.2-CB_MIFRS_DepExp_2011'!O51-J51) -> 0
A52: 1990 | B52: Other Tangible Property | E52: 0 | F52: =IF(D52=0,+'App.2-CB_MIFRS_DepExp_2011'!O52,+'App.2-CB_MIFRS_DepExp_2011'!O52+((C52*0.5)/D52)) -> 0 | H52: 0 | I52: 0 | K52: =IF(ISERROR(+I52+'App.2-CB_MIFRS_DepExp_2011'!O52-J52), 0, +I52+'App.2-CB_MIFRS_DepExp_2011'!O52-J52) -> 0
A53: 1995 | B53: Contributions & Grants | E53: 0 | F53: =IF(D53=0,+'App.2-CB_MIFRS_DepExp_2011'!O53,+'App.2-CB_MIFRS_DepExp_2011'!O53+((C53*0.5)/D53)) -> 0 | H53: 0 | I53: 0 | K53: =IF(ISERROR(+I53+'App.2-CB_MIFRS_DepExp_2011'!O53-J53), 0, +I53+'App.2-CB_MIFRS_DepExp_2011'!O53-J53) -> 0
A54: etc. | E54: 0 | F54: =IF(D54=0,+'App.2-CB_MIFRS_DepExp_2011'!O54,+'App.2-CB_MIFRS_DepExp_2011'!O54+((C54*0.5)/D54)) -> 0 | H54: 0 | I54: 0 | K54: =IF(ISERROR(+I54+'App.2-CB_MIFRS_DepExp_2011'!O54-J54), 0, +I54+'App.2-CB_MIFRS_DepExp_2011'!O54-J54) -> 0
E55: 0 | F55: =IF(D55=0,+'App.2-CB_MIFRS_DepExp_2011'!O55,+'App.2-CB_MIFRS_DepExp_2011'!O55+((C55*0.5)/D55)) -> 0 | H55: 0 | I55: 0 | K55: =IF(ISERROR(+I55+'App.2-CB_MIFRS_DepExp_2011'!O55-J55), 0, +I55+'App.2-CB_MIFRS_DepExp_2011'!O55-J55) -> 0
B56: Total | C56: =SUM(C16:C55) -> 0 | F56: =SUM(F16:F55) -> 0 | G56: 0 | H56: 0 | I56: 0 | J56: 0 | K56: 0
B57: Depreciation exp. adj. from gain or loss on the retirement of assets (pool of like assets) | F57: 0
B58: Total | F58: =+F56+F57 -> 0
A59: Notes:
A60: 1 | B60: Board policy of the "half-year" rule - the applicant must ensure that additions in the year attract a half-year depreciation expense in the first year. Deviations from this standard practice must be supported in the application.
A61: 2 | B61: The applicant must provide an explanation of material variances in evidence.
A62: 3 | B62: This column refers to the calculated full year depreciation but excludes the depreciation expense on assets fully depreciated during the year. This column is used for the purpose of calculating depreciation expense in the following year on the next worksheet.
A64: General: | B64: Applicants must provide a breakdown of depreciation and amortization expense in the above format for all relevant accounts. Asset Retirement Obligations (AROs), depreciation and accretion expense should be disclosed separately consistent with the Notes of historical Audited Financial Statements.

Sheet App.2-CD_MIFRS_DepExp_2013 (hidden)
J1: File Number: | K1: =EBNUMBER -> EB-2013-0155
J2: Exhibit:
J3: Tab:
J4: Schedule:
J5: Page:
J7: Date:
A9: Appendix 2-CD
A10: Depreciation and Amortization Expense
A11: Assumes the applicant adopted IFRS for financial reporting purposes January 1, 2012
C12: 2013 | D12: MIFRS
A14: Account | B14: Description | C14: Additions | D14: Years (new additions only) | E14: Depreciation Rate on New Additions | F14: 2013 Depreciation Expense 1 | G14: 2013 Depreciation Expense per Apppendix 2-B Fixed Assets, Column K (l) | H14: Variance 2 | I14: Depreciation Expense on 2013 Full Year Additions | J14: Less Depreciation Expense on Assets Fully Depreciated during the year (o) | K14: 2013 Full Year Depreciation 3
C15: (d) | D15: (f) | E15: (g) = 1 / (f) | F15: (h)=2012 Full Year Deprecation + ((d)*0.5)/(f) | H15: (m) = (h) - (l) | I15: (n)=((d))/(f) | K15: (p) = 2012 Full Year Depreciation + (n) - (o)
A16: 1611 | B16: Computer Software (Formally known as Account 1925) | E16: =IF(D16=0,0,1/D16) -> 0 | F16: =IF(D16=0,+'App.2-CC_MIFRS_DepExp_2012'!K16,+'App.2-CC_MIFRS_DepExp_2012'!K16+((C16*0.5)/D16)) -> 0 | H16: =IF(ISERROR(+F16-G16), 0, +F16-G16) -> 0 | I16: =IF(D16=0,0,+(C16)/D16) -> 0 | K16: =IF(ISERROR(+I16+'App.2-CC_MIFRS_DepExp_2012'!K16-J16), 0, +I16+'App.2-CC_MIFRS_DepExp_2012'!K16-J16) -> 0
A17: 1612 | B17: Land Rights (Formally known as Account 1906) | E17: 0 | F17: =IF(D17=0,+'App.2-CC_MIFRS_DepExp_2012'!K17,+'App.2-CC_MIFRS_DepExp_2012'!K17+((C17*0.5)/D17)) -> 0 | H17: 0 | I17: 0 | K17: =IF(ISERROR(+I17+'App.2-CC_MIFRS_DepExp_2012'!K17-J17), 0, +I17+'App.2-CC_MIFRS_DepExp_2012'!K17-J17) -> 0
A18: 1805 | B18: Land | E18: 0 | F18: =IF(D18=0,+'App.2-CC_MIFRS_DepExp_2012'!K18,+'App.2-CC_MIFRS_DepExp_2012'!K18+((C18*0.5)/D18)) -> 0 | H18: 0 | I18: 0 | K18: =IF(ISERROR(+I18+'App.2-CC_MIFRS_DepExp_2012'!K18-J18), 0, +I18+'App.2-CC_MIFRS_DepExp_2012'!K18-J18) -> 0
A19: 1808 | B19: Buildings | E19: 0 | F19: =IF(D19=0,+'App.2-CC_MIFRS_DepExp_2012'!K19,+'App.2-CC_MIFRS_DepExp_2012'!K19+((C19*0.5)/D19)) -> 0 | H19: 0 | I19: 0 | K19: =IF(ISERROR(+I19+'App.2-CC_MIFRS_DepExp_2012'!K19-J19), 0, +I19+'App.2-CC_MIFRS_DepExp_2012'!K19-J19) -> 0
A20: 1810 | B20: Leasehold Improvements | E20: 0 | F20: =IF(D20=0,+'App.2-CC_MIFRS_DepExp_2012'!K20,+'App.2-CC_MIFRS_DepExp_2012'!K20+((C20*0.5)/D20)) -> 0 | H20: 0 | I20: 0 | K20: =IF(ISERROR(+I20+'App.2-CC_MIFRS_DepExp_2012'!K20-J20), 0, +I20+'App.2-CC_MIFRS_DepExp_2012'!K20-J20) -> 0
A21: 1815 | B21: Transformer Station Equipment >50 kV | E21: 0 | F21: =IF(D21=0,+'App.2-CC_MIFRS_DepExp_2012'!K21,+'App.2-CC_MIFRS_DepExp_2012'!K21+((C21*0.5)/D21)) -> 0 | H21: 0 | I21: 0 | K21: =IF(ISERROR(+I21+'App.2-CC_MIFRS_DepExp_2012'!K21-J21), 0, +I21+'App.2-CC_MIFRS_DepExp_2012'!K21-J21) -> 0
A22: 1820 | B22: Distribution Station Equipment <50 kV | E22: 0 | F22: =IF(D22=0,+'App.2-CC_MIFRS_DepExp_2012'!K22,+'App.2-CC_MIFRS_DepExp_2012'!K22+((C22*0.5)/D22)) -> 0 | H22: 0 | I22: 0 | K22: =IF(ISERROR(+I22+'App.2-CC_MIFRS_DepExp_2012'!K22-J22), 0, +I22+'App.2-CC_MIFRS_DepExp_2012'!K22-J22) -> 0
A23: 1825 | B23: Storage Battery Equipment | E23: 0 | F23: =IF(D23=0,+'App.2-CC_MIFRS_DepExp_2012'!K23,+'App.2-CC_MIFRS_DepExp_2012'!K23+((C23*0.5)/D23)) -> 0 | H23: 0 | I23: 0 | K23: =IF(ISERROR(+I23+'App.2-CC_MIFRS_DepExp_2012'!K23-J23), 0, +I23+'App.2-CC_MIFRS_DepExp_2012'!K23-J23) -> 0
A24: 1830 | B24: Poles, Towers & Fixtures | E24: 0 | F24: =IF(D24=0,+'App.2-CC_MIFRS_DepExp_2012'!K24,+'App.2-CC_MIFRS_DepExp_2012'!K24+((C24*0.5)/D24)) -> 0 | H24: 0 | I24: 0 | K24: =IF(ISERROR(+I24+'App.2-CC_MIFRS_DepExp_2012'!K24-J24), 0, +I24+'App.2-CC_MIFRS_DepExp_2012'!K24-J24) -> 0
A25: 1835 | B25: Overhead Conductors & Devices | E25: 0 | F25: =IF(D25=0,+'App.2-CC_MIFRS_DepExp_2012'!K25,+'App.2-CC_MIFRS_DepExp_2012'!K25+((C25*0.5)/D25)) -> 0 | H25: 0 | I25: 0 | K25: =IF(ISERROR(+I25+'App.2-CC_MIFRS_DepExp_2012'!K25-J25), 0, +I25+'App.2-CC_MIFRS_DepExp_2012'!K25-J25) -> 0
A26: 1840 | B26: Underground Conduit | E26: 0 | F26: =IF(D26=0,+'App.2-CC_MIFRS_DepExp_2012'!K26,+'App.2-CC_MIFRS_DepExp_2012'!K26+((C26*0.5)/D26)) -> 0 | H26: 0 | I26: 0 | K26: =IF(ISERROR(+I26+'App.2-CC_MIFRS_DepExp_2012'!K26-J26), 0, +I26+'App.2-CC_MIFRS_DepExp_2012'!K26-J26) -> 0
A27: 1845 | B27: Underground Conductors & Devices | E27: 0 | F27: =IF(D27=0,+'App.2-CC_MIFRS_DepExp_2012'!K27,+'App.2-CC_MIFRS_DepExp_2012'!K27+((C27*0.5)/D27)) -> 0 | H27: 0 | I27: 0 | K27: =IF(ISERROR(+I27+'App.2-CC_MIFRS_DepExp_2012'!K27-J27), 0, +I27+'App.2-CC_MIFRS_DepExp_2012'!K27-J27) -> 0
A28: 1850 | B28: Line Transformers | E28: 0 | F28: =IF(D28=0,+'App.2-CC_MIFRS_DepExp_2012'!K28,+'App.2-CC_MIFRS_DepExp_2012'!K28+((C28*0.5)/D28)) -> 0 | H28: 0 | I28: 0 | K28: =IF(ISERROR(+I28+'App.2-CC_MIFRS_DepExp_2012'!K28-J28), 0, +I28+'App.2-CC_MIFRS_DepExp_2012'!K28-J28) -> 0
A29: 1855 | B29: Services (Overhead & Underground) | E29: 0 | F29: =IF(D29=0,+'App.2-CC_MIFRS_DepExp_2012'!K29,+'App.2-CC_MIFRS_DepExp_2012'!K29+((C29*0.5)/D29)) -> 0 | H29: 0 | I29: 0 | K29: =IF(ISERROR(+I29+'App.2-CC_MIFRS_DepExp_2012'!K29-J29), 0, +I29+'App.2-CC_MIFRS_DepExp_2012'!K29-J29) -> 0
A30: 1860 | B30: Meters | E30: 0 | F30: =IF(D30=0,+'App.2-CC_MIFRS_DepExp_2012'!K30,+'App.2-CC_MIFRS_DepExp_2012'!K30+((C30*0.5)/D30)) -> 0 | H30: 0 | I30: 0 | K30: =IF(ISERROR(+I30+'App.2-CC_MIFRS_DepExp_2012'!K30-J30), 0, +I30+'App.2-CC_MIFRS_DepExp_2012'!K30-J30) -> 0
A31: 1860 | B31: Meters (Smart Meters) | E31: 0 | F31: =IF(D31=0,+'App.2-CC_MIFRS_DepExp_2012'!K31,+'App.2-CC_MIFRS_DepExp_2012'!K31+((C31*0.5)/D31)) -> 0 | H31: 0 | I31: 0 | K31: =IF(ISERROR(+I31+'App.2-CC_MIFRS_DepExp_2012'!K31-J31), 0, +I31+'App.2-CC_MIFRS_DepExp_2012'!K31-J31) -> 0
A32: 1905 | B32: Land | E32: 0 | F32: =IF(D32=0,+'App.2-CC_MIFRS_DepExp_2012'!K32,+'App.2-CC_MIFRS_DepExp_2012'!K32+((C32*0.5)/D32)) -> 0 | H32: 0 | I32: 0 | K32: =IF(ISERROR(+I32+'App.2-CC_MIFRS_DepExp_2012'!K32-J32), 0, +I32+'App.2-CC_MIFRS_DepExp_2012'!K32-J32) -> 0
A33: 1908 | B33: Buildings & Fixtures | E33: 0 | F33: =IF(D33=0,+'App.2-CC_MIFRS_DepExp_2012'!K33,+'App.2-CC_MIFRS_DepExp_2012'!K33+((C33*0.5)/D33)) -> 0 | H33: 0 | I33: 0 | K33: =IF(ISERROR(+I33+'App.2-CC_MIFRS_DepExp_2012'!K33-J33), 0, +I33+'App.2-CC_MIFRS_DepExp_2012'!K33-J33) -> 0
A34: 1910 | B34: Leasehold Improvements | E34: 0 | F34: =IF(D34=0,+'App.2-CC_MIFRS_DepExp_2012'!K34,+'App.2-CC_MIFRS_DepExp_2012'!K34+((C34*0.5)/D34)) -> 0 | H34: 0 | I34: 0 | K34: =IF(ISERROR(+I34+'App.2-CC_MIFRS_DepExp_2012'!K34-J34), 0, +I34+'App.2-CC_MIFRS_DepExp_2012'!K34-J34) -> 0
A35: 1915 | B35: Office Furniture & Equipment (10 years) | E35: 0 | F35: =IF(D35=0,+'App.2-CC_MIFRS_DepExp_2012'!K35,+'App.2-CC_MIFRS_DepExp_2012'!K35+((C35*0.5)/D35)) -> 0 | H35: 0 | I35: 0 | K35: =IF(ISERROR(+I35+'App.2-CC_MIFRS_DepExp_2012'!K35-J35), 0, +I35+'App.2-CC_MIFRS_DepExp_2012'!K35-J35) -> 0
A36: 1915 | B36: Office Furniture & Equipment (5 years) | E36: 0 | F36: =IF(D36=0,+'App.2-CC_MIFRS_DepExp_2012'!K36,+'App.2-CC_MIFRS_DepExp_2012'!K36+((C36*0.5)/D36)) -> 0 | H36: 0 | I36: 0 | K36: =IF(ISERROR(+I36+'App.2-CC_MIFRS_DepExp_2012'!K36-J36), 0, +I36+'App.2-CC_MIFRS_DepExp_2012'!K36-J36) -> 0
A37: 1920 | B37: Computer Equipment - Hardware | E37: 0 | F37: =IF(D37=0,+'App.2-CC_MIFRS_DepExp_2012'!K37,+'App.2-CC_MIFRS_DepExp_2012'!K37+((C37*0.5)/D37)) -> 0 | H37: 0 | I37: 0 | K37: =IF(ISERROR(+I37+'App.2-CC_MIFRS_DepExp_2012'!K37-J37), 0, +I37+'App.2-CC_MIFRS_DepExp_2012'!K37-J37) -> 0
A38: 1920 | B38: Computer Equip.-Hardware(Post Mar. 22/04) | E38: 0 | F38: =IF(D38=0,+'App.2-CC_MIFRS_DepExp_2012'!K38,+'App.2-CC_MIFRS_DepExp_2012'!K38+((C38*0.5)/D38)) -> 0 | H38: 0 | I38: 0 | K38: =IF(ISERROR(+I38+'App.2-CC_MIFRS_DepExp_2012'!K38-J38), 0, +I38+'App.2-CC_MIFRS_DepExp_2012'!K38-J38) -> 0
A39: 1920 | B39: Computer Equip.-Hardware(Post Mar. 19/07) | E39: 0 | F39: =IF(D39=0,+'App.2-CC_MIFRS_DepExp_2012'!K39,+'App.2-CC_MIFRS_DepExp_2012'!K39+((C39*0.5)/D39)) -> 0 | H39: 0 | I39: 0 | K39: =IF(ISERROR(+I39+'App.2-CC_MIFRS_DepExp_2012'!K39-J39), 0, +I39+'App.2-CC_MIFRS_DepExp_2012'!K39-J39) -> 0
A40: 1930 | B40: Transportation Equipment | E40: 0 | F40: =IF(D40=0,+'App.2-CC_MIFRS_DepExp_2012'!K40,+'App.2-CC_MIFRS_DepExp_2012'!K40+((C40*0.5)/D40)) -> 0 | H40: 0 | I40: 0 | K40: =IF(ISERROR(+I40+'App.2-CC_MIFRS_DepExp_2012'!K40-J40), 0, +I40+'App.2-CC_MIFRS_DepExp_2012'!K40-J40) -> 0
A41: 1935 | B41: Stores Equipment | E41: 0 | F41: =IF(D41=0,+'App.2-CC_MIFRS_DepExp_2012'!K41,+'App.2-CC_MIFRS_DepExp_2012'!K41+((C41*0.5)/D41)) -> 0 | H41: 0 | I41: 0 | K41: =IF(ISERROR(+I41+'App.2-CC_MIFRS_DepExp_2012'!K41-J41), 0, +I41+'App.2-CC_MIFRS_DepExp_2012'!K41-J41) -> 0
A42: 1940 | B42: Tools, Shop & Garage Equipment | E42: 0 | F42: =IF(D42=0,+'App.2-CC_MIFRS_DepExp_2012'!K42,+'App.2-CC_MIFRS_DepExp_2012'!K42+((C42*0.5)/D42)) -> 0 | H42: 0 | I42: 0 | K42: =IF(ISERROR(+I42+'App.2-CC_MIFRS_DepExp_2012'!K42-J42), 0, +I42+'App.2-CC_MIFRS_DepExp_2012'!K42-J42) -> 0
A43: 1945 | B43: Measurement & Testing Equipment | E43: 0 | F43: =IF(D43=0,+'App.2-CC_MIFRS_DepExp_2012'!K43,+'App.2-CC_MIFRS_DepExp_2012'!K43+((C43*0.5)/D43)) -> 0 | H43: 0 | I43: 0 | K43: =IF(ISERROR(+I43+'App.2-CC_MIFRS_DepExp_2012'!K43-J43), 0, +I43+'App.2-CC_MIFRS_DepExp_2012'!K43-J43) -> 0
A44: 1950 | B44: Power Operated Equipment | E44: 0 | F44: =IF(D44=0,+'App.2-CC_MIFRS_DepExp_2012'!K44,+'App.2-CC_MIFRS_DepExp_2012'!K44+((C44*0.5)/D44)) -> 0 | H44: 0 | I44: 0 | K44: =IF(ISERROR(+I44+'App.2-CC_MIFRS_DepExp_2012'!K44-J44), 0, +I44+'App.2-CC_MIFRS_DepExp_2012'!K44-J44) -> 0
A45: 1955 | B45: Communications Equipment | E45: 0 | F45: =IF(D45=0,+'App.2-CC_MIFRS_DepExp_2012'!K45,+'App.2-CC_MIFRS_DepExp_2012'!K45+((C45*0.5)/D45)) -> 0 | H45: 0 | I45: 0 | K45: =IF(ISERROR(+I45+'App.2-CC_MIFRS_DepExp_2012'!K45-J45), 0, +I45+'App.2-CC_MIFRS_DepExp_2012'!K45-J45) -> 0
A46: 1955 | B46: Communication Equipment (Smart Meters) | E46: 0 | F46: =IF(D46=0,+'App.2-CC_MIFRS_DepExp_2012'!K46,+'App.2-CC_MIFRS_DepExp_2012'!K46+((C46*0.5)/D46)) -> 0 | H46: 0 | I46: 0 | K46: =IF(ISERROR(+I46+'App.2-CC_MIFRS_DepExp_2012'!K46-J46), 0, +I46+'App.2-CC_MIFRS_DepExp_2012'!K46-J46) -> 0
A47: 1960 | B47: Miscellaneous Equipment | E47: 0 | F47: =IF(D47=0,+'App.2-CC_MIFRS_DepExp_2012'!K47,+'App.2-CC_MIFRS_DepExp_2012'!K47+((C47*0.5)/D47)) -> 0 | H47: 0 | I47: 0 | K47: =IF(ISERROR(+I47+'App.2-CC_MIFRS_DepExp_2012'!K47-J47), 0, +I47+'App.2-CC_MIFRS_DepExp_2012'!K47-J47) -> 0
A48: 1970 | B48: Load Management Controls Customer Premises | E48: 0 | F48: =IF(D48=0,+'App.2-CC_MIFRS_DepExp_2012'!K48,+'App.2-CC_MIFRS_DepExp_2012'!K48+((C48*0.5)/D48)) -> 0 | H48: 0 | I48: 0 | K48: =IF(ISERROR(+I48+'App.2-CC_MIFRS_DepExp_2012'!K48-J48), 0, +I48+'App.2-CC_MIFRS_DepExp_2012'!K48-J48) -> 0
A49: 1975 | B49: Load Management Controls Utility Premises | E49: 0 | F49: =IF(D49=0,+'App.2-CC_MIFRS_DepExp_2012'!K49,+'App.2-CC_MIFRS_DepExp_2012'!K49+((C49*0.5)/D49)) -> 0 | H49: 0 | I49: 0 | K49: =IF(ISERROR(+I49+'App.2-CC_MIFRS_DepExp_2012'!K49-J49), 0, +I49+'App.2-CC_MIFRS_DepExp_2012'!K49-J49) -> 0
A50: 1980 | B50: System Supervisor Equipment | E50: 0 | F50: =IF(D50=0,+'App.2-CC_MIFRS_DepExp_2012'!K50,+'App.2-CC_MIFRS_DepExp_2012'!K50+((C50*0.5)/D50)) -> 0 | H50: 0 | I50: 0 | K50: =IF(ISERROR(+I50+'App.2-CC_MIFRS_DepExp_2012'!K50-J50), 0, +I50+'App.2-CC_MIFRS_DepExp_2012'!K50-J50) -> 0
A51: 1985 | B51: Miscellaneous Fixed Assets | E51: 0 | F51: =IF(D51=0,+'App.2-CC_MIFRS_DepExp_2012'!K51,+'App.2-CC_MIFRS_DepExp_2012'!K51+((C51*0.5)/D51)) -> 0 | H51: 0 | I51: 0 | K51: =IF(ISERROR(+I51+'App.2-CC_MIFRS_DepExp_2012'!K51-J51), 0, +I51+'App.2-CC_MIFRS_DepExp_2012'!K51-J51) -> 0
A52: 1990 | B52: Other Tangible Property | E52: 0 | F52: =IF(D52=0,+'App.2-CC_MIFRS_DepExp_2012'!K52,+'App.2-CC_MIFRS_DepExp_2012'!K52+((C52*0.5)/D52)) -> 0 | H52: 0 | I52: 0 | K52: =IF(ISERROR(+I52+'App.2-CC_MIFRS_DepExp_2012'!K52-J52), 0, +I52+'App.2-CC_MIFRS_DepExp_2012'!K52-J52) -> 0
A53: 1995 | B53: Contributions & Grants | E53: 0 | F53: =IF(D53=0,+'App.2-CC_MIFRS_DepExp_2012'!K53,+'App.2-CC_MIFRS_DepExp_2012'!K53+((C53*0.5)/D53)) -> 0 | H53: 0 | I53: 0 | K53: =IF(ISERROR(+I53+'App.2-CC_MIFRS_DepExp_2012'!K53-J53), 0, +I53+'App.2-CC_MIFRS_DepExp_2012'!K53-J53) -> 0
A54: etc. | E54: 0 | F54: =IF(D54=0,+'App.2-CC_MIFRS_DepExp_2012'!K54,+'App.2-CC_MIFRS_DepExp_2012'!K54+((C54*0.5)/D54)) -> 0 | H54: 0 | I54: 0 | K54: =IF(ISERROR(+I54+'App.2-CC_MIFRS_DepExp_2012'!K54-J54), 0, +I54+'App.2-CC_MIFRS_DepExp_2012'!K54-J54) -> 0
E55: 0 | F55: =IF(D55=0,+'App.2-CC_MIFRS_DepExp_2012'!K55,+'App.2-CC_MIFRS_DepExp_2012'!K55+((C55*0.5)/D55)) -> 0 | H55: 0 | I55: 0 | K55: =IF(ISERROR(+I55+'App.2-CC_MIFRS_DepExp_2012'!K55-J55), 0, +I55+'App.2-CC_MIFRS_DepExp_2012'!K55-J55) -> 0
B56: Total | C56: =SUM(C16:C55) -> 0 | F56: =SUM(F16:F55) -> 0 | G56: 0 | H56: 0 | I56: 0 | J56: 0 | K56: 0
B57: Depreciation exp. adj. from gain or loss on the retirement of assets (pool of like assets) | F57: 0
B58: Total | F58: =+F57+F56 -> 0
A59: Notes:
A60: 1 | B60: Board policy of the "half-year" rule - the applicant must ensure that additions in the year attract a half-year depreciation expense in the first year. Deviations from this standard practice must be supported in the application.
A61: 2 | B61: The applicant must provide an explanation of material variances in evidence.
A62: 3 | B62: This column refers to the calculated full year depreciation but excludes the depreciation expense on assets fully depreciated during the year. This column is used for the purpose of calculating depreciation expense in the following year on the next worksheet.
A64: General: | B64: Applicants must provide a breakdown of depreciation and amortization expense in the above format for all relevant accounts. Asset Retirement Obligations (AROs), depreciation and accretion expense should be disclosed separately consistent with the Notes of historical Audited Financial Statements.

Sheet App.2-CE_MIFRS_DepExp_2014 (hidden)
G1: File Number: | H1: =EBNUMBER -> EB-2013-0155
G2: Exhibit:
G3: Tab:
G4: Schedule:
G5: Page:
G7: Date:
A9: Appendix 2-CE
A10: Depreciation and Amortization Expense
A11: Assumes the applicant adopted IFRS for financial reporting purposes January 1, 2012
C12: 2014 | D12: MIFRS
A14: Account | B14: Description | C14: Additions | D14: Years (new additions only) | E14: Depreciation Rate on New Additions | F14: 2014 Depreciation Expense 1 | G14: 2014 Depreciation Expense per Appendix 2-B Fixed Assets, Column K (l) | H14: Variance 2
C15: (d) | D15: (f) | E15: (g) = 1 / (f) | F15: (h)=2013 Full Year Depreciation + ((d)*0.5)/(f) | H15: (m) = (h) - (l)
A16: 1611 | B16: Computer Software (Formally known as Account 1925) | E16: =IF(D16=0,0,1/D16) -> 0 | F16: =IF(D16=0,'App.2-CD_MIFRS_DepExp_2013'!K16,+'App.2-CD_MIFRS_DepExp_2013'!K16+((C16*0.5)/D16)) -> 0 | H16: =IF(ISERROR(+F16-G16), 0, +F16-G16) -> 0
A17: 1612 | B17: Land Rights (Formally known as Account 1906) | E17: 0 | F17: =IF(D17=0,'App.2-CD_MIFRS_DepExp_2013'!K17,+'App.2-CD_MIFRS_DepExp_2013'!K17+((C17*0.5)/D17)) -> 0 | H17: 0
A18: 1805 | B18: Land | E18: 0 | F18: =IF(D18=0,'App.2-CD_MIFRS_DepExp_2013'!K18,+'App.2-CD_MIFRS_DepExp_2013'!K18+((C18*0.5)/D18)) -> 0 | H18: 0
A19: 1808 | B19: Buildings | E19: 0 | F19: =IF(D19=0,'App.2-CD_MIFRS_DepExp_2013'!K19,+'App.2-CD_MIFRS_DepExp_2013'!K19+((C19*0.5)/D19)) -> 0 | H19: 0
A20: 1810 | B20: Leasehold Improvements | E20: 0 | F20: =IF(D20=0,'App.2-CD_MIFRS_DepExp_2013'!K20,+'App.2-CD_MIFRS_DepExp_2013'!K20+((C20*0.5)/D20)) -> 0 | H20: 0
A21: 1815 | B21: Transformer Station Equipment >50 kV | E21: 0 | F21: =IF(D21=0,'App.2-CD_MIFRS_DepExp_2013'!K21,+'App.2-CD_MIFRS_DepExp_2013'!K21+((C21*0.5)/D21)) -> 0 | H21: 0
A22: 1820 | B22: Distribution Station Equipment <50 kV | E22: 0 | F22: =IF(D22=0,'App.2-CD_MIFRS_DepExp_2013'!K22,+'App.2-CD_MIFRS_DepExp_2013'!K22+((C22*0.5)/D22)) -> 0 | H22: 0
A23: 1825 | B23: Storage Battery Equipment | E23: 0 | F23: =IF(D23=0,'App.2-CD_MIFRS_DepExp_2013'!K23,+'App.2-CD_MIFRS_DepExp_2013'!K23+((C23*0.5)/D23)) -> 0 | H23: 0
A24: 1830 | B24: Poles, Towers & Fixtures | E24: 0 | F24: =IF(D24=0,'App.2-CD_MIFRS_DepExp_2013'!K24,+'App.2-CD_MIFRS_DepExp_2013'!K24+((C24*0.5)/D24)) -> 0 | H24: 0
A25: 1835 | B25: Overhead Conductors & Devices | E25: 0 | F25: =IF(D25=0,'App.2-CD_MIFRS_DepExp_2013'!K25,+'App.2-CD_MIFRS_DepExp_2013'!K25+((C25*0.5)/D25)) -> 0 | H25: 0
A26: 1840 | B26: Underground Conduit | E26: 0 | F26: =IF(D26=0,'App.2-CD_MIFRS_DepExp_2013'!K26,+'App.2-CD_MIFRS_DepExp_2013'!K26+((C26*0.5)/D26)) -> 0 | H26: 0
A27: 1845 | B27: Underground Conductors & Devices | E27: 0 | F27: =IF(D27=0,'App.2-CD_MIFRS_DepExp_2013'!K27,+'App.2-CD_MIFRS_DepExp_2013'!K27+((C27*0.5)/D27)) -> 0 | H27: 0
A28: 1850 | B28: Line Transformers | E28: 0 | F28: =IF(D28=0,'App.2-CD_MIFRS_DepExp_2013'!K28,+'App.2-CD_MIFRS_DepExp_2013'!K28+((C28*0.5)/D28)) -> 0 | H28: 0
A29: 1855 | B29: Services (Overhead & Underground) | E29: 0 | F29: =IF(D29=0,'App.2-CD_MIFRS_DepExp_2013'!K29,+'App.2-CD_MIFRS_DepExp_2013'!K29+((C29*0.5)/D29)) -> 0 | H29: 0
A30: 1860 | B30: Meters | E30: 0 | F30: =IF(D30=0,'App.2-CD_MIFRS_DepExp_2013'!K30,+'App.2-CD_MIFRS_DepExp_2013'!K30+((C30*0.5)/D30)) -> 0 | H30: 0
A31: 1860 | B31: Meters (Smart Meters) | E31: 0 | F31: =IF(D31=0,'App.2-CD_MIFRS_DepExp_2013'!K31,+'App.2-CD_MIFRS_DepExp_2013'!K31+((C31*0.5)/D31)) -> 0 | H31: 0
A32: 1905 | B32: Land | E32: 0 | F32: =IF(D32=0,'App.2-CD_MIFRS_DepExp_2013'!K32,+'App.2-CD_MIFRS_DepExp_2013'!K32+((C32*0.5)/D32)) -> 0 | H32: 0
A33: 1908 | B33: Buildings & Fixtures | E33: 0 | F33: =IF(D33=0,'App.2-CD_MIFRS_DepExp_2013'!K33,+'App.2-CD_MIFRS_DepExp_2013'!K33+((C33*0.5)/D33)) -> 0 | H33: 0
A34: 1910 | B34: Leasehold Improvements | E34: 0 | F34: =IF(D34=0,'App.2-CD_MIFRS_DepExp_2013'!K34,+'App.2-CD_MIFRS_DepExp_2013'!K34+((C34*0.5)/D34)) -> 0 | H34: 0
A35: 1915 | B35: Office Furniture & Equipment (10 years) | E35: 0 | F35: =IF(D35=0,'App.2-CD_MIFRS_DepExp_2013'!K35,+'App.2-CD_MIFRS_DepExp_2013'!K35+((C35*0.5)/D35)) -> 0 | H35: 0
A36: 1915 | B36: Office Furniture & Equipment (5 years) | E36: 0 | F36: =IF(D36=0,'App.2-CD_MIFRS_DepExp_2013'!K36,+'App.2-CD_MIFRS_DepExp_2013'!K36+((C36*0.5)/D36)) -> 0 | H36: 0
A37: 1920 | B37: Computer Equipment - Hardware | E37: 0 | F37: =IF(D37=0,'App.2-CD_MIFRS_DepExp_2013'!K37,+'App.2-CD_MIFRS_DepExp_2013'!K37+((C37*0.5)/D37)) -> 0 | H37: 0
A38: 1920 | B38: Computer Equip.-Hardware(Post Mar. 22/04) | E38: 0 | F38: =IF(D38=0,'App.2-CD_MIFRS_DepExp_2013'!K38,+'App.2-CD_MIFRS_DepExp_2013'!K38+((C38*0.5)/D38)) -> 0 | H38: 0
A39: 1920 | B39: Computer Equip.-Hardware(Post Mar. 19/07) | E39: 0 | F39: =IF(D39=0,'App.2-CD_MIFRS_DepExp_2013'!K39,+'App.2-CD_MIFRS_DepExp_2013'!K39+((C39*0.5)/D39)) -> 0 | H39: 0
A40: 1930 | B40: Transportation Equipment | E40: 0 | F40: =IF(D40=0,'App.2-CD_MIFRS_DepExp_2013'!K40,+'App.2-CD_MIFRS_DepExp_2013'!K40+((C40*0.5)/D40)) -> 0 | H40: 0
A41: 1935 | B41: Stores Equipment | E41: 0 | F41: =IF(D41=0,'App.2-CD_MIFRS_DepExp_2013'!K41,+'App.2-CD_MIFRS_DepExp_2013'!K41+((C41*0.5)/D41)) -> 0 | H41: 0
A42: 1940 | B42: Tools, Shop & Garage Equipment | E42: 0 | F42: =IF(D42=0,'App.2-CD_MIFRS_DepExp_2013'!K42,+'App.2-CD_MIFRS_DepExp_2013'!K42+((C42*0.5)/D42)) -> 0 | H42: 0
A43: 1945 | B43: Measurement & Testing Equipment | E43: 0 | F43: =IF(D43=0,'App.2-CD_MIFRS_DepExp_2013'!K43,+'App.2-CD_MIFRS_DepExp_2013'!K43+((C43*0.5)/D43)) -> 0 | H43: 0
A44: 1950 | B44: Power Operated Equipment | E44: 0 | F44: =IF(D44=0,'App.2-CD_MIFRS_DepExp_2013'!K44,+'App.2-CD_MIFRS_DepExp_2013'!K44+((C44*0.5)/D44)) -> 0 | H44: 0
A45: 1955 | B45: Communications Equipment | E45: 0 | F45: =IF(D45=0,'App.2-CD_MIFRS_DepExp_2013'!K45,+'App.2-CD_MIFRS_DepExp_2013'!K45+((C45*0.5)/D45)) -> 0 | H45: 0
A46: 1955 | B46: Communication Equipment (Smart Meters) | E46: 0 | F46: =IF(D46=0,'App.2-CD_MIFRS_DepExp_2013'!K46,+'App.2-CD_MIFRS_DepExp_2013'!K46+((C46*0.5)/D46)) -> 0 | H46: 0
A47: 1960 | B47: Miscellaneous Equipment | E47: 0 | F47: =IF(D47=0,'App.2-CD_MIFRS_DepExp_2013'!K47,+'App.2-CD_MIFRS_DepExp_2013'!K47+((C47*0.5)/D47)) -> 0 | H47: 0
A48: 1970 | B48: Load Management Controls Customer Premises | E48: 0 | F48: =IF(D48=0,'App.2-CD_MIFRS_DepExp_2013'!K48,+'App.2-CD_MIFRS_DepExp_2013'!K48+((C48*0.5)/D48)) -> 0 | H48: 0
A49: 1975 | B49: Load Management Controls Utility Premises | E49: 0 | F49: =IF(D49=0,'App.2-CD_MIFRS_DepExp_2013'!K49,+'App.2-CD_MIFRS_DepExp_2013'!K49+((C49*0.5)/D49)) -> 0 | H49: 0
A50: 1980 | B50: System Supervisor Equipment | E50: 0 | F50: =IF(D50=0,'App.2-CD_MIFRS_DepExp_2013'!K50,+'App.2-CD_MIFRS_DepExp_2013'!K50+((C50*0.5)/D50)) -> 0 | H50: 0
A51: 1985 | B51: Miscellaneous Fixed Assets | E51: 0 | F51: =IF(D51=0,'App.2-CD_MIFRS_DepExp_2013'!K51,+'App.2-CD_MIFRS_DepExp_2013'!K51+((C51*0.5)/D51)) -> 0 | H51: 0
A52: 1990 | B52: Other Tangible Property | E52: 0 | F52: =IF(D52=0,'App.2-CD_MIFRS_DepExp_2013'!K52,+'App.2-CD_MIFRS_DepExp_2013'!K52+((C52*0.5)/D52)) -> 0 | H52: 0
A53: 1995 | B53: Contributions & Grants | E53: 0 | F53: =IF(D53=0,'App.2-CD_MIFRS_DepExp_2013'!K53,+'App.2-CD_MIFRS_DepExp_2013'!K53+((C53*0.5)/D53)) -> 0 | H53: 0
A54: etc. | E54: 0 | F54: =IF(D54=0,'App.2-CD_MIFRS_DepExp_2013'!K54,+'App.2-CD_MIFRS_DepExp_2013'!K54+((C54*0.5)/D54)) -> 0 | H54: 0
E55: 0 | F55: =IF(D55=0,'App.2-CD_MIFRS_DepExp_2013'!K55,+'App.2-CD_MIFRS_DepExp_2013'!K55+((C55*0.5)/D55)) -> 0 | H55: 0
B56: Total | C56: =SUM(C16:C55) -> 0 | F56: =SUM(F16:F55) -> 0 | G56: =SUM(G16:G55) -> 0 | H56: =SUM(H16:H55) -> 0
B57: Depreciation exp. adj. from gain or loss on the retirement of assets (pool of like assets)
B58: Total Depreciation expense to be included in the test year revenue requirement | F58: =SUM(F56:F57) -> 0
A59: Notes:
A60: 1 | B60: Board policy of the "half-year" rule - the applicant must ensure that additions in the year attract a half-year depreciation expense in the first year. Deviations from this standard practice must be supported in the application.
A61: 2 | B61: The applicant must provide an explanation of material variances in evidence.
A63: General: | B63: Applicants must provide a breakdown of depreciation and amortization expense in the above format for all relevant accounts. Asset Retirement Obligations (AROs), depreciation and accretion expense should be disclosed separately consistent with the Notes of historical Audited Financial Statements.

Sheet App.2-CF_CGAAP_DepExp_2012 (hidden)
K1: File Number: | L1: =EBNUMBER -> EB-2013-0155
K2: Exhibit:
K3: Tab:
K4: Schedule:
K5: Page:
K7: Date:
A9: Appendix 2-CF
A10: Depreciation and Amortization Expense
A11: Assumes the applicant adopted IFRS for financial reporting purposes January 1, 2013
C12: Year | D12: 2012 | E12: CGAAP
A14: Account | B14: Description | C14: Opening Regulatory Gross PP&E as at Jan 1, 2012 | D14: Less Fully Depreciated | E14: Net for Depreciation | F14: Additions | G14: Total for Depreciation | H14: Years | I14: Depreciation Rate | J14: Depreciation Expense | K14: 2012 Depreciation Expense per Appendix 2-B Fixed Assets, Column K (l) | L14: Variance 2
C15: (a) | D15: (b) | E15: (c) | F15: (d) | G15: (e) = (c) + ½ x (d) 1 | H15: (f) | I15: (g) = 1 / (f) | J15: (h) = (e) / (f) | L15: (m) = (h) - (l)
A16: 1611 | B16: Computer Software (Formally known as Account 1925) | E16: =C16-D16 -> 0 | G16: =E16+0.5*F16 -> 0 | I16: =IF(H16=0,0,1/H16) -> 0 | J16: =IF(H16=0,0,G16/H16) -> 0 | L16: =IF(ISERROR(+J16-K16), 0, +J16-K16) -> 0
A17: 1612 | B17: Land Rights (Formally known as Account 1906) | E17: =C17-D17 -> 0 | G17: =E17+0.5*F17 -> 0 | I17: 0 | J17: 0 | L17: 0
A18: 1805 | B18: Land | E18: 0 | G18: 0 | I18: 0 | J18: 0 | L18: 0
A19: 1808 | B19: Buildings | E19: 0 | G19: 0 | I19: 0 | J19: 0 | L19: 0
A20: 1810 | B20: Leasehold Improvements | E20: 0 | G20: 0 | I20: 0 | J20: 0 | L20: 0
A21: 1815 | B21: Transformer Station Equipment >50 kV | E21: 0 | G21: 0 | I21: 0 | J21: 0 | L21: 0
A22: 1820 | B22: Distribution Station Equipment <50 kV | E22: 0 | G22: 0 | I22: 0 | J22: 0 | L22: 0
A23: 1825 | B23: Storage Battery Equipment | E23: 0 | G23: 0 | I23: 0 | J23: 0 | L23: 0
A24: 1830 | B24: Poles, Towers & Fixtures | E24: 0 | G24: 0 | I24: 0 | J24: 0 | L24: 0
A25: 1835 | B25: Overhead Conductors & Devices | E25: 0 | G25: 0 | I25: 0 | J25: 0 | L25: 0
A26: 1840 | B26: Underground Conduit | E26: 0 | G26: 0 | I26: 0 | J26: 0 | L26: 0
A27: 1845 | B27: Underground Conductors & Devices | E27: 0 | G27: 0 | I27: 0 | J27: 0 | L27: 0
A28: 1850 | B28: Line Transformers | E28: 0 | G28: 0 | I28: 0 | J28: 0 | L28: 0
A29: 1855 | B29: Services (Overhead & Underground) | E29: 0 | G29: 0 | I29: 0 | J29: 0 | L29: 0
A30: 1860 | B30: Meters | E30: 0 | G30: 0 | I30: 0 | J30: 0 | L30: 0
A31: 1860 | B31: Meters (Smart Meters) | E31: 0 | G31: 0 | I31: 0 | J31: 0 | L31: 0
A32: 1905 | B32: Land | E32: 0 | G32: 0 | I32: 0 | J32: 0 | L32: 0
A33: 1908 | B33: Buildings & Fixtures | E33: 0 | G33: 0 | I33: 0 | J33: 0 | L33: 0
A34: 1910 | B34: Leasehold Improvements | E34: 0 | G34: 0 | I34: 0 | J34: 0 | L34: 0
A35: 1915 | B35: Office Furniture & Equipment (10 years) | E35: 0 | G35: 0 | I35: 0 | J35: 0 | L35: 0
A36: 1915 | B36: Office Furniture & Equipment (5 years) | E36: 0 | G36: 0 | I36: 0 | J36: 0 | L36: 0
A37: 1920 | B37: Computer Equipment - Hardware | E37: 0 | G37: 0 | I37: 0 | J37: 0 | L37: 0
A38: 1920 | B38: Computer Equip.-Hardware(Post Mar. 22/04) | E38: 0 | G38: 0 | I38: 0 | J38: 0 | L38: 0
A39: 1920 | B39: Computer Equip.-Hardware(Post Mar. 19/07) | E39: 0 | G39: 0 | I39: 0 | J39: 0 | L39: 0
A40: 1930 | B40: Transportation Equipment | E40: 0 | G40: 0 | I40: 0 | J40: 0 | L40: 0
A41: 1935 | B41: Stores Equipment | E41: 0 | G41: 0 | I41: 0 | J41: 0 | L41: 0
A42: 1940 | B42: Tools, Shop & Garage Equipment | E42: 0 | G42: 0 | I42: 0 | J42: 0 | L42: 0
A43: 1945 | B43: Measurement & Testing Equipment | E43: 0 | G43: 0 | I43: 0 | J43: 0 | L43: 0
A44: 1950 | B44: Power Operated Equipment | E44: 0 | G44: 0 | I44: 0 | J44: 0 | L44: 0
A45: 1955 | B45: Communications Equipment | E45: 0 | G45: 0 | I45: 0 | J45: 0 | L45: 0
A46: 1955 | B46: Communication Equipment (Smart Meters) | E46: 0 | G46: 0 | I46: 0 | J46: 0 | L46: 0
A47: 1960 | B47: Miscellaneous Equipment | E47: 0 | G47: 0 | I47: 0 | J47: 0 | L47: 0
A48: 1970 | B48: Load Management Controls Customer Premises | E48: 0 | G48: 0 | I48: 0 | J48: 0 | L48: 0
A49: 1975 | B49: Load Management Controls Utility Premises | E49: 0 | G49: 0 | I49: 0 | J49: 0 | L49: 0
A50: 1980 | B50: System Supervisor Equipment | E50: 0 | G50: 0 | I50: 0 | J50: 0 | L50: 0
A51: 1985 | B51: Miscellaneous Fixed Assets | E51: 0 | G51: 0 | I51: 0 | J51: 0 | L51: 0
A52: 1990 | B52: Other Tangible Property | E52: 0 | G52: 0 | I52: 0 | J52: 0 | L52: 0
A53: 1995 | B53: Contributions & Grants | E53: 0 | G53: 0 | I53: 0 | J53: 0 | L53: 0
A54: etc. | E54: 0 | G54: 0 | I54: 0 | J54: 0 | L54: 0
E55: 0 | G55: 0 | I55: 0 | J55: 0 | L55: 0
B56: Total | C56: =SUM(C16:C55) -> 0 | D56: =SUM(D16:D55) -> 0 | E56: =SUM(E16:E55) -> 0 | F56: =SUM(F16:F55) -> 0 | G56: =SUM(G16:G55) -> 0 | J56: =SUM(J16:J55) -> 0 | K56: =SUM(K16:K55) -> 0 | L56: =SUM(L16:L55) -> 0
A58: Notes:
A60: 1 | B60: Board policy of the "half-year" rule - the applicant must ensure that additions in the year attract a half-year depreciation expense in the first year. Deviations from this standard practice must be supported in the application.
A61: 2 | B61: The applicant must provide an explanation of material variances in evidence.
A63: General | B63: Applicants must provide a breakdown of depreciation and amortization expense in the above format for all relevant accounts. Asset Retirement Obligations (AROs), depreciation and accretion expense should be disclosed separately consistent with the Notes of historical Audited Financial Statements.

Sheet App.2-CG_MIFRS_DepExp_2012 (hidden)
N1: File Number: | O1: =EBNUMBER -> EB-2013-0155
N2: Exhibit:
N3: Tab:
N4: Schedule:
N5: Page:
N7: Date:
A9: Appendix 2-CG
A10: Depreciation and Amortization Expense
A11: Assumes the applicant adopted IFRS for financial reporting purposes January 1, 2013
C12: Year | D12: 2012 | E12: MIFRS
A14: Account | B14: Description | C14: Opening NBV as at Jan 1, 2012 5 | D14: Additions | E14: Average Remaining Life of Opening NBV 4 | F14: Years (new additions only) 3 | G14: Depreciation Rate on New Additions | H14: Depreciation Expense on Opening NBV | I14: Depreciation Expense on Additions 1 | J14: 2012 Depreciation Expense | K14: 2012 Depreciation Expense per Appendix 2-B Fixed Assets, Column K (l) | L14: Variance 2 | M14: Depreciation Expense on 2012 Full Year Additions | N14: Less Depreciation Expense on Assets Fully Depreciated during the year (o) | O14: 2012 Full Year Depreciation 6
C15: (a) | D15: (d) | E15: (i) | F15: (f) | G15: (g) = 1 / (f) | H15: (j) = (a) / (i) | I15: (h)=((d)*0.5)/(f) | J15: (k) = (j) + (h) | L15: (m) = (k) - (l) | M15: (n) = (d)/(f) | O15: (p) = (j) + (n) - (o)
A16: 1611 | B16: Computer Software (Formally known as Account 1925) | G16: =IF(F16=0,0,1/F16) -> 0 | H16: =IF(E16=0,0,+C16/E16) -> 0 | I16: =IF(F16=0,0,+(D16*0.5)/F16) -> 0 | J16: =IF(ISERROR(+H16+I16), 0, +H16+I16) -> 0 | L16: =IF(ISERROR(+J16-K16), 0, +J16-K16) -> 0 | M16: =IF(F16=0,0,+(D16)/F16) -> 0 | O16: =IF(ISERROR(+M16+H16-N16), 0, +M16+H16-N16) -> 0
A17: 1612 | B17: Land Rights (Formally known as Account 1906) | G17: 0 | H17: 0 | I17: 0 | J17: 0 | L17: 0 | M17: 0 | O17: =IF(ISERROR(+M17+H17-N17), 0, +M17+H17-N17) -> 0
A18: 1805 | B18: Land | G18: 0 | H18: 0 | I18: 0 | J18: 0 | L18: 0 | M18: 0 | O18: 0
A19: 1808 | B19: Buildings | G19: 0 | H19: 0 | I19: 0 | J19: 0 | L19: 0 | M19: 0 | O19: 0
A20: 1810 | B20: Leasehold Improvements | G20: 0 | H20: 0 | I20: 0 | J20: 0 | L20: 0 | M20: 0 | O20: 0
A21: 1815 | B21: Transformer Station Equipment >50 kV | G21: 0 | H21: 0 | I21: 0 | J21: 0 | L21: 0 | M21: 0 | O21: 0
A22: 1820 | B22: Distribution Station Equipment <50 kV | G22: 0 | H22: 0 | I22: 0 | J22: 0 | L22: 0 | M22: 0 | O22: 0
A23: 1825 | B23: Storage Battery Equipment | G23: 0 | H23: 0 | I23: 0 | J23: 0 | L23: 0 | M23: 0 | O23: 0
A24: 1830 | B24: Poles, Towers & Fixtures | G24: 0 | H24: 0 | I24: 0 | J24: 0 | L24: 0 | M24: 0 | O24: 0
A25: 1835 | B25: Overhead Conductors & Devices | G25: 0 | H25: 0 | I25: 0 | J25: 0 | L25: 0 | M25: 0 | O25: 0
A26: 1840 | B26: Underground Conduit | G26: 0 | H26: 0 | I26: 0 | J26: 0 | L26: 0 | M26: 0 | O26: 0
A27: 1845 | B27: Underground Conductors & Devices | G27: 0 | H27: 0 | I27: 0 | J27: 0 | L27: 0 | M27: 0 | O27: 0
A28: 1850 | B28: Line Transformers | G28: 0 | H28: 0 | I28: 0 | J28: 0 | L28: 0 | M28: 0 | O28: 0
A29: 1855 | B29: Services (Overhead & Underground) | G29: 0 | H29: 0 | I29: 0 | J29: 0 | L29: 0 | M29: 0 | O29: 0
A30: 1860 | B30: Meters | G30: 0 | H30: 0 | I30: 0 | J30: 0 | L30: 0 | M30: 0 | O30: 0
A31: 1860 | B31: Meters (Smart Meters) | G31: 0 | H31: 0 | I31: 0 | J31: 0 | L31: 0 | M31: 0 | O31: 0
A32: 1905 | B32: Land | G32: 0 | H32: 0 | I32: 0 | J32: 0 | L32: 0 | M32: 0 | O32: 0
A33: 1908 | B33: Buildings & Fixtures | G33: 0 | H33: 0 | I33: 0 | J33: 0 | L33: 0 | M33: 0 | O33: 0
A34: 1910 | B34: Leasehold Improvements | G34: 0 | H34: 0 | I34: 0 | J34: 0 | L34: 0 | M34: 0 | O34: 0
A35: 1915 | B35: Office Furniture & Equipment (10 years) | G35: 0 | H35: 0 | I35: 0 | J35: 0 | L35: 0 | M35: 0 | O35: 0
A36: 1915 | B36: Office Furniture & Equipment (5 years) | G36: 0 | H36: 0 | I36: 0 | J36: 0 | L36: 0 | M36: 0 | O36: 0
A37: 1920 | B37: Computer Equipment - Hardware | G37: 0 | H37: 0 | I37: 0 | J37: 0 | L37: 0 | M37: 0 | O37: 0
A38: 1920 | B38: Computer Equip.-Hardware(Post Mar. 22/04) | G38: 0 | H38: 0 | I38: 0 | J38: 0 | L38: 0 | M38: 0 | O38: 0
A39: 1920 | B39: Computer Equip.-Hardware(Post Mar. 19/07) | G39: 0 | H39: 0 | I39: 0 | J39: 0 | L39: 0 | M39: 0 | O39: 0
A40: 1930 | B40: Transportation Equipment | G40: 0 | H40: 0 | I40: 0 | J40: 0 | L40: 0 | M40: 0 | O40: 0
A41: 1935 | B41: Stores Equipment | G41: 0 | H41: 0 | I41: 0 | J41: 0 | L41: 0 | M41: 0 | O41: 0
A42: 1940 | B42: Tools, Shop & Garage Equipment | G42: 0 | H42: 0 | I42: 0 | J42: 0 | L42: 0 | M42: 0 | O42: 0
A43: 1945 | B43: Measurement & Testing Equipment | G43: 0 | H43: 0 | I43: 0 | J43: 0 | L43: 0 | M43: 0 | O43: 0
A44: 1950 | B44: Power Operated Equipment | G44: 0 | H44: 0 | I44: 0 | J44: 0 | L44: 0 | M44: 0 | O44: 0
A45: 1955 | B45: Communications Equipment | G45: 0 | H45: 0 | I45: 0 | J45: 0 | L45: 0 | M45: 0 | O45: 0
A46: 1955 | B46: Communication Equipment (Smart Meters) | G46: 0 | H46: 0 | I46: 0 | J46: 0 | L46: 0 | M46: 0 | O46: 0
A47: 1960 | B47: Miscellaneous Equipment | G47: 0 | H47: 0 | I47: 0 | J47: 0 | L47: 0 | M47: 0 | O47: 0
A48: 1970 | B48: Load Management Controls Customer Premises | G48: 0 | H48: 0 | I48: 0 | J48: 0 | L48: 0 | M48: 0 | O48: 0
A49: 1975 | B49: Load Management Controls Utility Premises | G49: 0 | H49: 0 | I49: 0 | J49: 0 | L49: 0 | M49: 0 | O49: 0
A50: 1980 | B50: System Supervisor Equipment | G50: 0 | H50: 0 | I50: 0 | J50: 0 | L50: 0 | M50: 0 | O50: 0
A51: 1985 | B51: Miscellaneous Fixed Assets | G51: 0 | H51: 0 | I51: 0 | J51: 0 | L51: 0 | M51: 0 | O51: 0
A52: 1990 | B52: Other Tangible Property | G52: 0 | H52: 0 | I52: 0 | J52: 0 | L52: 0 | M52: 0 | O52: 0
A53: 1995 | B53: Contributions & Grants | G53: 0 | H53: 0 | I53: 0 | J53: 0 | L53: 0 | M53: 0 | O53: 0
A54: etc. | G54: 0 | H54: 0 | I54: 0 | J54: 0 | L54: 0 | M54: 0 | O54: 0
G55: 0 | H55: 0 | I55: 0 | J55: 0 | L55: 0 | M55: 0 | O55: 0
B56: Total | C56: =SUM(C16:C55) -> 0 | D56: =SUM(D16:D55) -> 0 | H56: =SUM(H16:H55) -> 0 | I56: 0 | J56: 0 | K56: 0 | L56: 0 | M56: 0 | N56: =SUM(N16:N55) -> 0 | O56: 0
B57: Depreciation exp. adj. from gain or loss on the retirement of assets (pool of like assets) | J57: 0
B58: Total | J58: =+J56+J57 -> 0
A59: Notes:
A61: 1 | B61: Board policy of the "half-year" rule - the applicant must ensure that additions in the year attract a half-year depreciation expense in the first year. Deviations from this standard practice must be supported in the application.
A62: 2 | B62: The applicant must provide an explanation of material variances in evidence.
A63: 3 | B63: The applicant should ensure that the years for new additions of assets are the asset useful lives determined by management in accordance with IFRS.
A64: 4 | B64: A recalculation should be performed to determine the average remaining life of opening balance of assets (i.e. excluding 2012 additions) under IFRS. For example, Asset A had a useful life of 20 years under CGAAP. On January 1, 2012, the date of transition, Asset A was 3 years depreciated. As a result, Asset A would have a remaining service life of 17 years (20 years less 3 years) under CGAAP as of January 1, 2012. Due to the transition to IFRS, management re-assessed the asset useful lives under IFRS principles and concluded that the revised useful life of Asset A is now 30 years. Therefore, the average remaining useful life of opening balance of Asset A is determined to be 27 years (30 years less 3 years) under IFRS as of January 1, 2012.
A65: 5 | B65: NBV must exclude assets still on the books but which have been fully amortized or depreciated.
A66: 6 | B66: This column refers to the calculated full year depreciation but excludes the depreciation expense on assets fully depreciated during the year. This column is used for the purpose of calculating depreciation expense in the following year on the next worksheet.
A68: General: | B68: Applicants must provide a breakdown of depreciation and amortization expense in the above format for all relevant accounts. Asset Retirement Obligations (AROs), depreciation and accretion expense should be disclosed separately consistent with the Notes of historical Audited Financial Statements.

Sheet App.2-CH_MIFRS_DepExp_2013 (hidden)
J1: File Number: | K1: =EBNUMBER -> EB-2013-0155
J2: Exhibit:
J3: Tab:
J4: Schedule:
J5: Page:
J7: Date:
A9: Appendix 2-CH
A10: Depreciation and Amortization Expense
A11: Assumes the applicant adopted IFRS for financial reporting purposes January 1, 2013
C12: 2013 | D12: MIFRS
A14: Account | B14: Description | C14: Additions | D14: Years (new additions only) | E14: Depreciation Rate on New Additions | F14: 2013 Depreciation Expense 1 | G14: 2013 Depreciation Expense per Apppendix 2-B Fixed Assets, Column K (l) | H14: Variance 2 | I14: Depreciation Expense on 2013 Full Year Additions | J14: Less Depreciation Expense on Assets Fully Depreciated during the year (o) | K14: 2013 Full Year Depreciation 3
C15: (d) | D15: (f) | E15: (g) = 1 / (f) | F15: (h)=2012 Full Year Deprecation + ((d)*0.5)/(f) | H15: (m) = (h) - (l) | I15: (n)=((d))/(f) | K15: (p) = 2012 Full Year Depreciation + (n) - (o)
A16: 1611 | B16: Computer Software (Formally known as Account 1925) | E16: =IF(D16=0,0,1/D16) -> 0 | F16: =IF(D16=0,+'App.2-CG_MIFRS_DepExp_2012'!O16,+'App.2-CG_MIFRS_DepExp_2012'!O16+((C16*0.5)/D16)) -> 0 | H16: =IF(ISERROR(+F16-G16), 0, +F16-G16) -> 0 | I16: =IF(D16=0,0,+(C16)/D16) -> 0 | K16: =IF(ISERROR(+I16+'App.2-CG_MIFRS_DepExp_2012'!O16-J16), 0, +I16+'App.2-CG_MIFRS_DepExp_2012'!O16-J16) -> 0
A17: 1612 | B17: Land Rights (Formally known as Account 1906) | E17: 0 | F17: =IF(D17=0,+'App.2-CG_MIFRS_DepExp_2012'!O17,+'App.2-CG_MIFRS_DepExp_2012'!O17+((C17*0.5)/D17)) -> 0 | H17: 0 | I17: 0 | K17: =IF(ISERROR(+I17+'App.2-CG_MIFRS_DepExp_2012'!O17-J17), 0, +I17+'App.2-CG_MIFRS_DepExp_2012'!O17-J17) -> 0
A18: 1805 | B18: Land | E18: 0 | F18: =IF(D18=0,+'App.2-CG_MIFRS_DepExp_2012'!O18,+'App.2-CG_MIFRS_DepExp_2012'!O18+((C18*0.5)/D18)) -> 0 | H18: 0 | I18: 0 | K18: =IF(ISERROR(+I18+'App.2-CG_MIFRS_DepExp_2012'!O18-J18), 0, +I18+'App.2-CG_MIFRS_DepExp_2012'!O18-J18) -> 0
A19: 1808 | B19: Buildings | E19: 0 | F19: =IF(D19=0,+'App.2-CG_MIFRS_DepExp_2012'!O19,+'App.2-CG_MIFRS_DepExp_2012'!O19+((C19*0.5)/D19)) -> 0 | H19: 0 | I19: 0 | K19: =IF(ISERROR(+I19+'App.2-CG_MIFRS_DepExp_2012'!O19-J19), 0, +I19+'App.2-CG_MIFRS_DepExp_2012'!O19-J19) -> 0
A20: 1810 | B20: Leasehold Improvements | E20: 0 | F20: =IF(D20=0,+'App.2-CG_MIFRS_DepExp_2012'!O20,+'App.2-CG_MIFRS_DepExp_2012'!O20+((C20*0.5)/D20)) -> 0 | H20: 0 | I20: 0 | K20: =IF(ISERROR(+I20+'App.2-CG_MIFRS_DepExp_2012'!O20-J20), 0, +I20+'App.2-CG_MIFRS_DepExp_2012'!O20-J20) -> 0
A21: 1815 | B21: Transformer Station Equipment >50 kV | E21: 0 | F21: =IF(D21=0,+'App.2-CG_MIFRS_DepExp_2012'!O21,+'App.2-CG_MIFRS_DepExp_2012'!O21+((C21*0.5)/D21)) -> 0 | H21: 0 | I21: 0 | K21: =IF(ISERROR(+I21+'App.2-CG_MIFRS_DepExp_2012'!O21-J21), 0, +I21+'App.2-CG_MIFRS_DepExp_2012'!O21-J21) -> 0
A22: 1820 | B22: Distribution Station Equipment <50 kV | E22: 0 | F22: =IF(D22=0,+'App.2-CG_MIFRS_DepExp_2012'!O22,+'App.2-CG_MIFRS_DepExp_2012'!O22+((C22*0.5)/D22)) -> 0 | H22: 0 | I22: 0 | K22: =IF(ISERROR(+I22+'App.2-CG_MIFRS_DepExp_2012'!O22-J22), 0, +I22+'App.2-CG_MIFRS_DepExp_2012'!O22-J22) -> 0
A23: 1825 | B23: Storage Battery Equipment | E23: 0 | F23: =IF(D23=0,+'App.2-CG_MIFRS_DepExp_2012'!O23,+'App.2-CG_MIFRS_DepExp_2012'!O23+((C23*0.5)/D23)) -> 0 | H23: 0 | I23: 0 | K23: =IF(ISERROR(+I23+'App.2-CG_MIFRS_DepExp_2012'!O23-J23), 0, +I23+'App.2-CG_MIFRS_DepExp_2012'!O23-J23) -> 0
A24: 1830 | B24: Poles, Towers & Fixtures | E24: 0 | F24: =IF(D24=0,+'App.2-CG_MIFRS_DepExp_2012'!O24,+'App.2-CG_MIFRS_DepExp_2012'!O24+((C24*0.5)/D24)) -> 0 | H24: 0 | I24: 0 | K24: =IF(ISERROR(+I24+'App.2-CG_MIFRS_DepExp_2012'!O24-J24), 0, +I24+'App.2-CG_MIFRS_DepExp_2012'!O24-J24) -> 0
A25: 1835 | B25: Overhead Conductors & Devices | E25: 0 | F25: =IF(D25=0,+'App.2-CG_MIFRS_DepExp_2012'!O25,+'App.2-CG_MIFRS_DepExp_2012'!O25+((C25*0.5)/D25)) -> 0 | H25: 0 | I25: 0 | K25: =IF(ISERROR(+I25+'App.2-CG_MIFRS_DepExp_2012'!O25-J25), 0, +I25+'App.2-CG_MIFRS_DepExp_2012'!O25-J25) -> 0
A26: 1840 | B26: Underground Conduit | E26: 0 | F26: =IF(D26=0,+'App.2-CG_MIFRS_DepExp_2012'!O26,+'App.2-CG_MIFRS_DepExp_2012'!O26+((C26*0.5)/D26)) -> 0 | H26: 0 | I26: 0 | K26: =IF(ISERROR(+I26+'App.2-CG_MIFRS_DepExp_2012'!O26-J26), 0, +I26+'App.2-CG_MIFRS_DepExp_2012'!O26-J26) -> 0
A27: 1845 | B27: Underground Conductors & Devices | E27: 0 | F27: =IF(D27=0,+'App.2-CG_MIFRS_DepExp_2012'!O27,+'App.2-CG_MIFRS_DepExp_2012'!O27+((C27*0.5)/D27)) -> 0 | H27: 0 | I27: 0 | K27: =IF(ISERROR(+I27+'App.2-CG_MIFRS_DepExp_2012'!O27-J27), 0, +I27+'App.2-CG_MIFRS_DepExp_2012'!O27-J27) -> 0
A28: 1850 | B28: Line Transformers | E28: 0 | F28: =IF(D28=0,+'App.2-CG_MIFRS_DepExp_2012'!O28,+'App.2-CG_MIFRS_DepExp_2012'!O28+((C28*0.5)/D28)) -> 0 | H28: 0 | I28: 0 | K28: =IF(ISERROR(+I28+'App.2-CG_MIFRS_DepExp_2012'!O28-J28), 0, +I28+'App.2-CG_MIFRS_DepExp_2012'!O28-J28) -> 0
A29: 1855 | B29: Services (Overhead & Underground) | E29: 0 | F29: =IF(D29=0,+'App.2-CG_MIFRS_DepExp_2012'!O29,+'App.2-CG_MIFRS_DepExp_2012'!O29+((C29*0.5)/D29)) -> 0 | H29: 0 | I29: 0 | K29: =IF(ISERROR(+I29+'App.2-CG_MIFRS_DepExp_2012'!O29-J29), 0, +I29+'App.2-CG_MIFRS_DepExp_2012'!O29-J29) -> 0
A30: 1860 | B30: Meters | E30: 0 | F30: =IF(D30=0,+'App.2-CG_MIFRS_DepExp_2012'!O30,+'App.2-CG_MIFRS_DepExp_2012'!O30+((C30*0.5)/D30)) -> 0 | H30: 0 | I30: 0 | K30: =IF(ISERROR(+I30+'App.2-CG_MIFRS_DepExp_2012'!O30-J30), 0, +I30+'App.2-CG_MIFRS_DepExp_2012'!O30-J30) -> 0
A31: 1860 | B31: Meters (Smart Meters) | E31: 0 | F31: =IF(D31=0,+'App.2-CG_MIFRS_DepExp_2012'!O31,+'App.2-CG_MIFRS_DepExp_2012'!O31+((C31*0.5)/D31)) -> 0 | H31: 0 | I31: 0 | K31: =IF(ISERROR(+I31+'App.2-CG_MIFRS_DepExp_2012'!O31-J31), 0, +I31+'App.2-CG_MIFRS_DepExp_2012'!O31-J31) -> 0
A32: 1905 | B32: Land | E32: 0 | F32: =IF(D32=0,+'App.2-CG_MIFRS_DepExp_2012'!O32,+'App.2-CG_MIFRS_DepExp_2012'!O32+((C32*0.5)/D32)) -> 0 | H32: 0 | I32: 0 | K32: =IF(ISERROR(+I32+'App.2-CG_MIFRS_DepExp_2012'!O32-J32), 0, +I32+'App.2-CG_MIFRS_DepExp_2012'!O32-J32) -> 0
A33: 1908 | B33: Buildings & Fixtures | E33: 0 | F33: =IF(D33=0,+'App.2-CG_MIFRS_DepExp_2012'!O33,+'App.2-CG_MIFRS_DepExp_2012'!O33+((C33*0.5)/D33)) -> 0 | H33: 0 | I33: 0 | K33: =IF(ISERROR(+I33+'App.2-CG_MIFRS_DepExp_2012'!O33-J33), 0, +I33+'App.2-CG_MIFRS_DepExp_2012'!O33-J33) -> 0
A34: 1910 | B34: Leasehold Improvements | E34: 0 | F34: =IF(D34=0,+'App.2-CG_MIFRS_DepExp_2012'!O34,+'App.2-CG_MIFRS_DepExp_2012'!O34+((C34*0.5)/D34)) -> 0 | H34: 0 | I34: 0 | K34: =IF(ISERROR(+I34+'App.2-CG_MIFRS_DepExp_2012'!O34-J34), 0, +I34+'App.2-CG_MIFRS_DepExp_2012'!O34-J34) -> 0
A35: 1915 | B35: Office Furniture & Equipment (10 years) | E35: 0 | F35: =IF(D35=0,+'App.2-CG_MIFRS_DepExp_2012'!O35,+'App.2-CG_MIFRS_DepExp_2012'!O35+((C35*0.5)/D35)) -> 0 | H35: 0 | I35: 0 | K35: =IF(ISERROR(+I35+'App.2-CG_MIFRS_DepExp_2012'!O35-J35), 0, +I35+'App.2-CG_MIFRS_DepExp_2012'!O35-J35) -> 0
A36: 1915 | B36: Office Furniture & Equipment (5 years) | E36: 0 | F36: =IF(D36=0,+'App.2-CG_MIFRS_DepExp_2012'!O36,+'App.2-CG_MIFRS_DepExp_2012'!O36+((C36*0.5)/D36)) -> 0 | H36: 0 | I36: 0 | K36: =IF(ISERROR(+I36+'App.2-CG_MIFRS_DepExp_2012'!O36-J36), 0, +I36+'App.2-CG_MIFRS_DepExp_2012'!O36-J36) -> 0
A37: 1920 | B37: Computer Equipment - Hardware | E37: 0 | F37: =IF(D37=0,+'App.2-CG_MIFRS_DepExp_2012'!O37,+'App.2-CG_MIFRS_DepExp_2012'!O37+((C37*0.5)/D37)) -> 0 | H37: 0 | I37: 0 | K37: =IF(ISERROR(+I37+'App.2-CG_MIFRS_DepExp_2012'!O37-J37), 0, +I37+'App.2-CG_MIFRS_DepExp_2012'!O37-J37) -> 0
A38: 1920 | B38: Computer Equip.-Hardware(Post Mar. 22/04) | E38: 0 | F38: =IF(D38=0,+'App.2-CG_MIFRS_DepExp_2012'!O38,+'App.2-CG_MIFRS_DepExp_2012'!O38+((C38*0.5)/D38)) -> 0 | H38: 0 | I38: 0 | K38: =IF(ISERROR(+I38+'App.2-CG_MIFRS_DepExp_2012'!O38-J38), 0, +I38+'App.2-CG_MIFRS_DepExp_2012'!O38-J38) -> 0
A39: 1920 | B39: Computer Equip.-Hardware(Post Mar. 19/07) | E39: 0 | F39: =IF(D39=0,+'App.2-CG_MIFRS_DepExp_2012'!O39,+'App.2-CG_MIFRS_DepExp_2012'!O39+((C39*0.5)/D39)) -> 0 | H39: 0 | I39: 0 | K39: =IF(ISERROR(+I39+'App.2-CG_MIFRS_DepExp_2012'!O39-J39), 0, +I39+'App.2-CG_MIFRS_DepExp_2012'!O39-J39) -> 0
A40: 1930 | B40: Transportation Equipment | E40: 0 | F40: =IF(D40=0,+'App.2-CG_MIFRS_DepExp_2012'!O40,+'App.2-CG_MIFRS_DepExp_2012'!O40+((C40*0.5)/D40)) -> 0 | H40: 0 | I40: 0 | K40: =IF(ISERROR(+I40+'App.2-CG_MIFRS_DepExp_2012'!O40-J40), 0, +I40+'App.2-CG_MIFRS_DepExp_2012'!O40-J40) -> 0
A41: 1935 | B41: Stores Equipment | E41: 0 | F41: =IF(D41=0,+'App.2-CG_MIFRS_DepExp_2012'!O41,+'App.2-CG_MIFRS_DepExp_2012'!O41+((C41*0.5)/D41)) -> 0 | H41: 0 | I41: 0 | K41: =IF(ISERROR(+I41+'App.2-CG_MIFRS_DepExp_2012'!O41-J41), 0, +I41+'App.2-CG_MIFRS_DepExp_2012'!O41-J41) -> 0
A42: 1940 | B42: Tools, Shop & Garage Equipment | E42: 0 | F42: =IF(D42=0,+'App.2-CG_MIFRS_DepExp_2012'!O42,+'App.2-CG_MIFRS_DepExp_2012'!O42+((C42*0.5)/D42)) -> 0 | H42: 0 | I42: 0 | K42: =IF(ISERROR(+I42+'App.2-CG_MIFRS_DepExp_2012'!O42-J42), 0, +I42+'App.2-CG_MIFRS_DepExp_2012'!O42-J42) -> 0
A43: 1945 | B43: Measurement & Testing Equipment | E43: 0 | F43: =IF(D43=0,+'App.2-CG_MIFRS_DepExp_2012'!O43,+'App.2-CG_MIFRS_DepExp_2012'!O43+((C43*0.5)/D43)) -> 0 | H43: 0 | I43: 0 | K43: =IF(ISERROR(+I43+'App.2-CG_MIFRS_DepExp_2012'!O43-J43), 0, +I43+'App.2-CG_MIFRS_DepExp_2012'!O43-J43) -> 0
A44: 1950 | B44: Power Operated Equipment | E44: 0 | F44: =IF(D44=0,+'App.2-CG_MIFRS_DepExp_2012'!O44,+'App.2-CG_MIFRS_DepExp_2012'!O44+((C44*0.5)/D44)) -> 0 | H44: 0 | I44: 0 | K44: =IF(ISERROR(+I44+'App.2-CG_MIFRS_DepExp_2012'!O44-J44), 0, +I44+'App.2-CG_MIFRS_DepExp_2012'!O44-J44) -> 0
A45: 1955 | B45: Communications Equipment | E45: 0 | F45: =IF(D45=0,+'App.2-CG_MIFRS_DepExp_2012'!O45,+'App.2-CG_MIFRS_DepExp_2012'!O45+((C45*0.5)/D45)) -> 0 | H45: 0 | I45: 0 | K45: =IF(ISERROR(+I45+'App.2-CG_MIFRS_DepExp_2012'!O45-J45), 0, +I45+'App.2-CG_MIFRS_DepExp_2012'!O45-J45) -> 0
A46: 1955 | B46: Communication Equipment (Smart Meters) | E46: 0 | F46: =IF(D46=0,+'App.2-CG_MIFRS_DepExp_2012'!O46,+'App.2-CG_MIFRS_DepExp_2012'!O46+((C46*0.5)/D46)) -> 0 | H46: 0 | I46: 0 | K46: =IF(ISERROR(+I46+'App.2-CG_MIFRS_DepExp_2012'!O46-J46), 0, +I46+'App.2-CG_MIFRS_DepExp_2012'!O46-J46) -> 0
A47: 1960 | B47: Miscellaneous Equipment | E47: 0 | F47: =IF(D47=0,+'App.2-CG_MIFRS_DepExp_2012'!O47,+'App.2-CG_MIFRS_DepExp_2012'!O47+((C47*0.5)/D47)) -> 0 | H47: 0 | I47: 0 | K47: =IF(ISERROR(+I47+'App.2-CG_MIFRS_DepExp_2012'!O47-J47), 0, +I47+'App.2-CG_MIFRS_DepExp_2012'!O47-J47) -> 0
A48: 1970 | B48: Load Management Controls Customer Premises | E48: 0 | F48: =IF(D48=0,+'App.2-CG_MIFRS_DepExp_2012'!O48,+'App.2-CG_MIFRS_DepExp_2012'!O48+((C48*0.5)/D48)) -> 0 | H48: 0 | I48: 0 | K48: =IF(ISERROR(+I48+'App.2-CG_MIFRS_DepExp_2012'!O48-J48), 0, +I48+'App.2-CG_MIFRS_DepExp_2012'!O48-J48) -> 0
A49: 1975 | B49: Load Management Controls Utility Premises | E49: 0 | F49: =IF(D49=0,+'App.2-CG_MIFRS_DepExp_2012'!O49,+'App.2-CG_MIFRS_DepExp_2012'!O49+((C49*0.5)/D49)) -> 0 | H49: 0 | I49: 0 | K49: =IF(ISERROR(+I49+'App.2-CG_MIFRS_DepExp_2012'!O49-J49), 0, +I49+'App.2-CG_MIFRS_DepExp_2012'!O49-J49) -> 0
A50: 1980 | B50: System Supervisor Equipment | E50: 0 | F50: =IF(D50=0,+'App.2-CG_MIFRS_DepExp_2012'!O50,+'App.2-CG_MIFRS_DepExp_2012'!O50+((C50*0.5)/D50)) -> 0 | H50: 0 | I50: 0 | K50: =IF(ISERROR(+I50+'App.2-CG_MIFRS_DepExp_2012'!O50-J50), 0, +I50+'App.2-CG_MIFRS_DepExp_2012'!O50-J50) -> 0
A51: 1985 | B51: Miscellaneous Fixed Assets | E51: 0 | F51: =IF(D51=0,+'App.2-CG_MIFRS_DepExp_2012'!O51,+'App.2-CG_MIFRS_DepExp_2012'!O51+((C51*0.5)/D51)) -> 0 | H51: 0 | I51: 0 | K51: =IF(ISERROR(+I51+'App.2-CG_MIFRS_DepExp_2012'!O51-J51), 0, +I51+'App.2-CG_MIFRS_DepExp_2012'!O51-J51) -> 0
A52: 1990 | B52: Other Tangible Property | E52: 0 | F52: =IF(D52=0,+'App.2-CG_MIFRS_DepExp_2012'!O52,+'App.2-CG_MIFRS_DepExp_2012'!O52+((C52*0.5)/D52)) -> 0 | H52: 0 | I52: 0 | K52: =IF(ISERROR(+I52+'App.2-CG_MIFRS_DepExp_2012'!O52-J52), 0, +I52+'App.2-CG_MIFRS_DepExp_2012'!O52-J52) -> 0
A53: 1995 | B53: Contributions & Grants | E53: 0 | F53: =IF(D53=0,+'App.2-CG_MIFRS_DepExp_2012'!O53,+'App.2-CG_MIFRS_DepExp_2012'!O53+((C53*0.5)/D53)) -> 0 | H53: 0 | I53: 0 | K53: =IF(ISERROR(+I53+'App.2-CG_MIFRS_DepExp_2012'!O53-J53), 0, +I53+'App.2-CG_MIFRS_DepExp_2012'!O53-J53) -> 0
A54: etc. | E54: 0 | F54: =IF(D54=0,+'App.2-CG_MIFRS_DepExp_2012'!O54,+'App.2-CG_MIFRS_DepExp_2012'!O54+((C54*0.5)/D54)) -> 0 | H54: 0 | I54: 0 | K54: =IF(ISERROR(+I54+'App.2-CG_MIFRS_DepExp_2012'!O54-J54), 0, +I54+'App.2-CG_MIFRS_DepExp_2012'!O54-J54) -> 0
E55: 0 | F55: =IF(D55=0,+'App.2-CG_MIFRS_DepExp_2012'!O55,+'App.2-CG_MIFRS_DepExp_2012'!O55+((C55*0.5)/D55)) -> 0 | H55: 0 | I55: 0 | K55: =IF(ISERROR(+I55+'App.2-CG_MIFRS_DepExp_2012'!O55-J55), 0, +I55+'App.2-CG_MIFRS_DepExp_2012'!O55-J55) -> 0
B56: Total | C56: =SUM(C16:C55) -> 0 | F56: =SUM(F16:F55) -> 0 | G56: 0 | H56: 0 | I56: 0 | J56: 0 | K56: 0
B57: Depreciation exp. adj. from gain or loss on the retirement of assets (pool of like assets) | F57: 0
B58: Total | F58: =+F57+F56 -> 0
A59: Notes:
A60: 1 | B60: Board policy of the "half-year" rule - the applicant must ensure that additions in the year attract a half-year depreciation expense in the first year. Deviations from this standard practice must be supported in the application.
A61: 2 | B61: The applicant must provide an explanation of material variances in evidence.
A62: 3 | B62: This column refers to the calculated full year depreciation but excludes the depreciation expense on assets fully depreciated during the year. This column is used for the purpose of calculating depreciation expense in the following year on the next worksheet.
A64: General: | B64: Applicants must provide a breakdown of depreciation and amortization expense in the above format for all relevant accounts. Asset Retirement Obligations (AROs), depreciation and accretion expense should be disclosed separately consistent with the Notes of historical Audited Financial Statements.

Sheet App.2-CI_MIFRS_DepExp_2014 (hidden)
G1: File Number: | H1: =EBNUMBER -> EB-2013-0155
G2: Exhibit:
G3: Tab:
G4: Schedule:
G5: Page:
G7: Date:
A9: Appendix 2-CI
A10: Depreciation and Amortization Expense
A11: Assumes the applicant adopted IFRS for financial reporting purposes January 1, 2013
C12: 2014 | D12: MIFRS
A14: Account | B14: Description | C14: Additions | D14: Years (new additions only) | E14: Depreciation Rate on New Additions | F14: 2014 Depreciation Expense 1 | G14: 2014 Depreciation Expense per Appendix 2-B Fixed Assets, Column K (l) | H14: Variance 2
C15: (d) | D15: (f) | E15: (g) = 1 / (f) | F15: (h)=2013 Full Year Depreciation + ((d)*0.5)/(f) | H15: (m) = (h) - (l)
A16: 1611 | B16: Computer Software (Formally known as Account 1925) | E16: =IF(D16=0,0,1/D16) -> 0 | F16: =IF(D16=0,'App.2-CH_MIFRS_DepExp_2013'!K16,+'App.2-CH_MIFRS_DepExp_2013'!K16+((C16*0.5)/D16)) -> 0 | H16: =IF(ISERROR(+F16-G16), 0, +F16-G16) -> 0
A17: 1612 | B17: Land Rights (Formally known as Account 1906) | E17: 0 | F17: =IF(D17=0,'App.2-CH_MIFRS_DepExp_2013'!K17,+'App.2-CH_MIFRS_DepExp_2013'!K17+((C17*0.5)/D17)) -> 0 | H17: 0
A18: 1805 | B18: Land | E18: 0 | F18: =IF(D18=0,'App.2-CH_MIFRS_DepExp_2013'!K18,+'App.2-CH_MIFRS_DepExp_2013'!K18+((C18*0.5)/D18)) -> 0 | H18: 0
A19: 1808 | B19: Buildings | E19: 0 | F19: =IF(D19=0,'App.2-CH_MIFRS_DepExp_2013'!K19,+'App.2-CH_MIFRS_DepExp_2013'!K19+((C19*0.5)/D19)) -> 0 | H19: 0
A20: 1810 | B20: Leasehold Improvements | E20: 0 | F20: =IF(D20=0,'App.2-CH_MIFRS_DepExp_2013'!K20,+'App.2-CH_MIFRS_DepExp_2013'!K20+((C20*0.5)/D20)) -> 0 | H20: 0
A21: 1815 | B21: Transformer Station Equipment >50 kV | E21: 0 | F21: =IF(D21=0,'App.2-CH_MIFRS_DepExp_2013'!K21,+'App.2-CH_MIFRS_DepExp_2013'!K21+((C21*0.5)/D21)) -> 0 | H21: 0
A22: 1820 | B22: Distribution Station Equipment <50 kV | E22: 0 | F22: =IF(D22=0,'App.2-CH_MIFRS_DepExp_2013'!K22,+'App.2-CH_MIFRS_DepExp_2013'!K22+((C22*0.5)/D22)) -> 0 | H22: 0
A23: 1825 | B23: Storage Battery Equipment | E23: 0 | F23: =IF(D23=0,'App.2-CH_MIFRS_DepExp_2013'!K23,+'App.2-CH_MIFRS_DepExp_2013'!K23+((C23*0.5)/D23)) -> 0 | H23: 0
A24: 1830 | B24: Poles, Towers & Fixtures | E24: 0 | F24: =IF(D24=0,'App.2-CH_MIFRS_DepExp_2013'!K24,+'App.2-CH_MIFRS_DepExp_2013'!K24+((C24*0.5)/D24)) -> 0 | H24: 0
A25: 1835 | B25: Overhead Conductors & Devices | E25: 0 | F25: =IF(D25=0,'App.2-CH_MIFRS_DepExp_2013'!K25,+'App.2-CH_MIFRS_DepExp_2013'!K25+((C25*0.5)/D25)) -> 0 | H25: 0
A26: 1840 | B26: Underground Conduit | E26: 0 | F26: =IF(D26=0,'App.2-CH_MIFRS_DepExp_2013'!K26,+'App.2-CH_MIFRS_DepExp_2013'!K26+((C26*0.5)/D26)) -> 0 | H26: 0
A27: 1845 | B27: Underground Conductors & Devices | E27: 0 | F27: =IF(D27=0,'App.2-CH_MIFRS_DepExp_2013'!K27,+'App.2-CH_MIFRS_DepExp_2013'!K27+((C27*0.5)/D27)) -> 0 | H27: 0
A28: 1850 | B28: Line Transformers | E28: 0 | F28: =IF(D28=0,'App.2-CH_MIFRS_DepExp_2013'!K28,+'App.2-CH_MIFRS_DepExp_2013'!K28+((C28*0.5)/D28)) -> 0 | H28: 0
A29: 1855 | B29: Services (Overhead & Underground) | E29: 0 | F29: =IF(D29=0,'App.2-CH_MIFRS_DepExp_2013'!K29,+'App.2-CH_MIFRS_DepExp_2013'!K29+((C29*0.5)/D29)) -> 0 | H29: 0
A30: 1860 | B30: Meters | E30: 0 | F30: =IF(D30=0,'App.2-CH_MIFRS_DepExp_2013'!K30,+'App.2-CH_MIFRS_DepExp_2013'!K30+((C30*0.5)/D30)) -> 0 | H30: 0
A31: 1860 | B31: Meters (Smart Meters) | E31: 0 | F31: =IF(D31=0,'App.2-CH_MIFRS_DepExp_2013'!K31,+'App.2-CH_MIFRS_DepExp_2013'!K31+((C31*0.5)/D31)) -> 0 | H31: 0
A32: 1905 | B32: Land | E32: 0 | F32: =IF(D32=0,'App.2-CH_MIFRS_DepExp_2013'!K32,+'App.2-CH_MIFRS_DepExp_2013'!K32+((C32*0.5)/D32)) -> 0 | H32: 0
A33: 1908 | B33: Buildings & Fixtures | E33: 0 | F33: =IF(D33=0,'App.2-CH_MIFRS_DepExp_2013'!K33,+'App.2-CH_MIFRS_DepExp_2013'!K33+((C33*0.5)/D33)) -> 0 | H33: 0
A34: 1910 | B34: Leasehold Improvements | E34: 0 | F34: =IF(D34=0,'App.2-CH_MIFRS_DepExp_2013'!K34,+'App.2-CH_MIFRS_DepExp_2013'!K34+((C34*0.5)/D34)) -> 0 | H34: 0
A35: 1915 | B35: Office Furniture & Equipment (10 years) | E35: 0 | F35: =IF(D35=0,'App.2-CH_MIFRS_DepExp_2013'!K35,+'App.2-CH_MIFRS_DepExp_2013'!K35+((C35*0.5)/D35)) -> 0 | H35: 0
A36: 1915 | B36: Office Furniture & Equipment (5 years) | E36: 0 | F36: =IF(D36=0,'App.2-CH_MIFRS_DepExp_2013'!K36,+'App.2-CH_MIFRS_DepExp_2013'!K36+((C36*0.5)/D36)) -> 0 | H36: 0
A37: 1920 | B37: Computer Equipment - Hardware | E37: 0 | F37: =IF(D37=0,'App.2-CH_MIFRS_DepExp_2013'!K37,+'App.2-CH_MIFRS_DepExp_2013'!K37+((C37*0.5)/D37)) -> 0 | H37: 0
A38: 1920 | B38: Computer Equip.-Hardware(Post Mar. 22/04) | E38: 0 | F38: =IF(D38=0,'App.2-CH_MIFRS_DepExp_2013'!K38,+'App.2-CH_MIFRS_DepExp_2013'!K38+((C38*0.5)/D38)) -> 0 | H38: 0
A39: 1920 | B39: Computer Equip.-Hardware(Post Mar. 19/07) | E39: 0 | F39: =IF(D39=0,'App.2-CH_MIFRS_DepExp_2013'!K39,+'App.2-CH_MIFRS_DepExp_2013'!K39+((C39*0.5)/D39)) -> 0 | H39: 0
A40: 1930 | B40: Transportation Equipment | E40: 0 | F40: =IF(D40=0,'App.2-CH_MIFRS_DepExp_2013'!K40,+'App.2-CH_MIFRS_DepExp_2013'!K40+((C40*0.5)/D40)) -> 0 | H40: 0
A41: 1935 | B41: Stores Equipment | E41: 0 | F41: =IF(D41=0,'App.2-CH_MIFRS_DepExp_2013'!K41,+'App.2-CH_MIFRS_DepExp_2013'!K41+((C41*0.5)/D41)) -> 0 | H41: 0
A42: 1940 | B42: Tools, Shop & Garage Equipment | E42: 0 | F42: =IF(D42=0,'App.2-CH_MIFRS_DepExp_2013'!K42,+'App.2-CH_MIFRS_DepExp_2013'!K42+((C42*0.5)/D42)) -> 0 | H42: 0
A43: 1945 | B43: Measurement & Testing Equipment | E43: 0 | F43: =IF(D43=0,'App.2-CH_MIFRS_DepExp_2013'!K43,+'App.2-CH_MIFRS_DepExp_2013'!K43+((C43*0.5)/D43)) -> 0 | H43: 0
A44: 1950 | B44: Power Operated Equipment | E44: 0 | F44: =IF(D44=0,'App.2-CH_MIFRS_DepExp_2013'!K44,+'App.2-CH_MIFRS_DepExp_2013'!K44+((C44*0.5)/D44)) -> 0 | H44: 0
A45: 1955 | B45: Communications Equipment | E45: 0 | F45: =IF(D45=0,'App.2-CH_MIFRS_DepExp_2013'!K45,+'App.2-CH_MIFRS_DepExp_2013'!K45+((C45*0.5)/D45)) -> 0 | H45: 0
A46: 1955 | B46: Communication Equipment (Smart Meters) | E46: 0 | F46: =IF(D46=0,'App.2-CH_MIFRS_DepExp_2013'!K46,+'App.2-CH_MIFRS_DepExp_2013'!K46+((C46*0.5)/D46)) -> 0 | H46: 0
A47: 1960 | B47: Miscellaneous Equipment | E47: 0 | F47: =IF(D47=0,'App.2-CH_MIFRS_DepExp_2013'!K47,+'App.2-CH_MIFRS_DepExp_2013'!K47+((C47*0.5)/D47)) -> 0 | H47: 0
A48: 1970 | B48: Load Management Controls Customer Premises | E48: 0 | F48: =IF(D48=0,'App.2-CH_MIFRS_DepExp_2013'!K48,+'App.2-CH_MIFRS_DepExp_2013'!K48+((C48*0.5)/D48)) -> 0 | H48: 0
A49: 1975 | B49: Load Management Controls Utility Premises | E49: 0 | F49: =IF(D49=0,'App.2-CH_MIFRS_DepExp_2013'!K49,+'App.2-CH_MIFRS_DepExp_2013'!K49+((C49*0.5)/D49)) -> 0 | H49: 0
A50: 1980 | B50: System Supervisor Equipment | E50: 0 | F50: =IF(D50=0,'App.2-CH_MIFRS_DepExp_2013'!K50,+'App.2-CH_MIFRS_DepExp_2013'!K50+((C50*0.5)/D50)) -> 0 | H50: 0
A51: 1985 | B51: Miscellaneous Fixed Assets | E51: 0 | F51: =IF(D51=0,'App.2-CH_MIFRS_DepExp_2013'!K51,+'App.2-CH_MIFRS_DepExp_2013'!K51+((C51*0.5)/D51)) -> 0 | H51: 0
A52: 1990 | B52: Other Tangible Property | E52: 0 | F52: =IF(D52=0,'App.2-CH_MIFRS_DepExp_2013'!K52,+'App.2-CH_MIFRS_DepExp_2013'!K52+((C52*0.5)/D52)) -> 0 | H52: 0
A53: 1995 | B53: Contributions & Grants | E53: 0 | F53: =IF(D53=0,'App.2-CH_MIFRS_DepExp_2013'!K53,+'App.2-CH_MIFRS_DepExp_2013'!K53+((C53*0.5)/D53)) -> 0 | H53: 0
A54: etc. | E54: 0 | F54: =IF(D54=0,'App.2-CH_MIFRS_DepExp_2013'!K54,+'App.2-CH_MIFRS_DepExp_2013'!K54+((C54*0.5)/D54)) -> 0 | H54: 0
E55: 0 | F55: =IF(D55=0,'App.2-CH_MIFRS_DepExp_2013'!K55,+'App.2-CH_MIFRS_DepExp_2013'!K55+((C55*0.5)/D55)) -> 0 | H55: 0
B56: Total | C56: =SUM(C16:C55) -> 0 | F56: =SUM(F16:F55) -> 0 | G56: =SUM(G16:G55) -> 0 | H56: =SUM(H16:H55) -> 0
B57: Depreciation exp. adj. from gain or loss on the retirement of assets (pool of like assets) | F57: 0
B58: Total Depreciation expense to be included in the test year revenue requirement | F58: =SUM(F56:F57) -> 0
A59: Notes:
A60: 1 | B60: Board policy of the "half-year" rule - the applicant must ensure that additions in the year attract a half-year depreciation expense in the first year. Deviations from this standard practice must be supported in the application.
A61: 2 | B61: The applicant must provide an explanation of material variances in evidence.
A63: General: | B63: Applicants must provide a breakdown of depreciation and amortization expense in the above format for all relevant accounts. Asset Retirement Obligations (AROs), depreciation and accretion expense should be disclosed separately consistent with the Notes of historical Audited Financial Statements.

Sheet App.2-CJ_CGAAP_DepExp_2012 (hidden)
K1: File Number: | L1: =EBNUMBER -> EB-2013-0155
K2: Exhibit:
K3: Tab:
K4: Schedule:
K5: Page:
K7: Date:
A9: Appendix 2-CJ
A10: Depreciation and Amortization Expense
A11: Assumes the applicant adopted IFRS for financial reporting purposes January 1, 2014
C12: Year | D12: 2012 | E12: CGAAP
A14: Account | B14: Description | C14: Opening Regulatory Gross PP&E as at Jan 1, 2012 | D14: Less Fully Depreciated | E14: Net for Depreciation | F14: Additions | G14: Total for Depreciation | H14: Years | I14: Depreciation Rate | J14: 2012 Depreciation Expense | K14: 2012 Depreciation Expense per Appendix 2-B Fixed Assets, Column K (l) | L14: Variance 2
C15: (a) | D15: (b) | E15: (c) | F15: (d) | G15: (e) = (c) + ½ x (d) 1 | H15: (f) | I15: (g) = 1 / (f) | J15: (h) = (e) / (f) | L15: (m) = (h) - (l)
A16: 1611 | B16: Computer Software (Formally known as Account 1925) | E16: =C16-D16 -> 0 | G16: =E16+0.5*F16 -> 0 | I16: =IF(H16=0,"",1/H16) ->  | J16: =IF(H16=0,0,G16/H16) -> 0 | L16: =IF(ISERROR(+J16-K16), "", +J16-K16) -> 0
A17: 1612 | B17: Land Rights (Formally known as Account 1906) | E17: =C17-D17 -> 0 | G17: =E17+0.5*F17 -> 0 | J17: 0 | L17: =IF(ISERROR(+J17-K17), "", +J17-K17) -> 0
A18: 1805 | B18: Land | E18: 0 | G18: 0 | J18: 0 | L18: 0
A19: 1808 | B19: Buildings | E19: 0 | G19: 0 | J19: 0 | L19: 0
A20: 1810 | B20: Leasehold Improvements | E20: 0 | G20: 0 | J20: 0 | L20: 0
A21: 1815 | B21: Transformer Station Equipment >50 kV | E21: 0 | G21: 0 | J21: 0 | L21: 0
A22: 1820 | B22: Distribution Station Equipment <50 kV | E22: 0 | G22: 0 | J22: 0 | L22: 0
A23: 1825 | B23: Storage Battery Equipment | E23: 0 | G23: 0 | J23: 0 | L23: 0
A24: 1830 | B24: Poles, Towers & Fixtures | E24: 0 | G24: 0 | J24: 0 | L24: 0
A25: 1835 | B25: Overhead Conductors & Devices | E25: 0 | G25: 0 | J25: 0 | L25: 0
A26: 1840 | B26: Underground Conduit | E26: 0 | G26: 0 | J26: 0 | L26: 0
A27: 1845 | B27: Underground Conductors & Devices | E27: 0 | G27: 0 | J27: 0 | L27: 0
A28: 1850 | B28: Line Transformers | E28: 0 | G28: 0 | J28: 0 | L28: 0
A29: 1855 | B29: Services (Overhead & Underground) | E29: 0 | G29: 0 | J29: 0 | L29: 0
A30: 1860 | B30: Meters | E30: 0 | G30: 0 | J30: 0 | L30: 0
A31: 1860 | B31: Meters (Smart Meters) | E31: 0 | G31: 0 | J31: 0 | L31: 0
A32: 1905 | B32: Land | E32: 0 | G32: 0 | J32: 0 | L32: 0
A33: 1908 | B33: Buildings & Fixtures | E33: 0 | G33: 0 | J33: 0 | L33: 0
A34: 1910 | B34: Leasehold Improvements | E34: 0 | G34: 0 | J34: 0 | L34: 0
A35: 1915 | B35: Office Furniture & Equipment (10 years) | E35: 0 | G35: 0 | J35: 0 | L35: 0
A36: 1915 | B36: Office Furniture & Equipment (5 years) | E36: 0 | G36: 0 | J36: 0 | L36: 0
A37: 1920 | B37: Computer Equipment - Hardware | E37: 0 | G37: 0 | J37: 0 | L37: 0
A38: 1920 | B38: Computer Equip.-Hardware(Post Mar. 22/04) | E38: 0 | G38: 0 | J38: 0 | L38: 0
A39: 1920 | B39: Computer Equip.-Hardware(Post Mar. 19/07) | E39: 0 | G39: 0 | J39: 0 | L39: 0
A40: 1930 | B40: Transportation Equipment | E40: 0 | G40: 0 | J40: 0 | L40: 0
A41: 1935 | B41: Stores Equipment | E41: 0 | G41: 0 | J41: 0 | L41: 0
A42: 1940 | B42: Tools, Shop & Garage Equipment | E42: 0 | G42: 0 | J42: 0 | L42: 0
A43: 1945 | B43: Measurement & Testing Equipment | E43: 0 | G43: 0 | J43: 0 | L43: 0
A44: 1950 | B44: Power Operated Equipment | E44: 0 | G44: 0 | J44: 0 | L44: 0
A45: 1955 | B45: Communications Equipment | E45: 0 | G45: 0 | J45: 0 | L45: 0
A46: 1955 | B46: Communication Equipment (Smart Meters) | E46: 0 | G46: 0 | J46: 0 | L46: 0
A47: 1960 | B47: Miscellaneous Equipment | E47: 0 | G47: 0 | J47: 0 | L47: 0
A48: 1970 | B48: Load Management Controls Customer Premises | E48: 0 | G48: 0 | J48: 0 | L48: 0
A49: 1975 | B49: Load Management Controls Utility Premises | E49: 0 | G49: 0 | J49: 0 | L49: 0
A50: 1980 | B50: System Supervisor Equipment | E50: 0 | G50: 0 | J50: 0 | L50: 0
A51: 1985 | B51: Miscellaneous Fixed Assets | E51: 0 | G51: 0 | J51: 0 | L51: 0
A52: 1990 | B52: Other Tangible Property | E52: 0 | G52: 0 | J52: 0 | L52: 0
A53: 1995 | B53: Contributions & Grants | E53: 0 | G53: 0 | J53: 0 | L53: 0
A54: etc. | E54: 0 | G54: 0 | J54: 0 | L54: 0
E55: 0 | G55: 0 | J55: 0 | L55: 0
B56: Total | C56: =SUM(C16:C55) -> 0 | D56: =SUM(D16:D55) -> 0 | E56: =SUM(E16:E55) -> 0 | F56: =SUM(F16:F55) -> 0 | G56: =SUM(G16:G55) -> 0 | J56: =SUM(J16:J55) -> 0 | K56: =SUM(K16:K55) -> 0 | L56: =SUM(L16:L55) -> 0
A58: Notes:
A59: 1 | B59: Board policy of the "half-year" rule - the applicant must ensure that additions in the year attract a half-year depreciation expense in the first year. Deviations from this standard practice must be supported in the application.
A60: 2 | B60: The applicant must provide an explanation of material variances in evidence.
A61: General: | B61: Applicants must provide a breakdown of depreciation and amortization expense in the above format for all relevant accounts. Asset Retirement Obligations (AROs), depreciation and accretion expense should be disclosed separately consistent with the Notes of historical Audited Financial Statements.

Sheet App.2-CK_CGAAP_DepExp_2013 (hidden)
K1: File Number: | L1: =EBNUMBER -> EB-2013-0155
K2: Exhibit:
K3: Tab:
K4: Schedule:
K5: Page:
K7: Date:
A9: Appendix 2-CK
A10: Depreciation and Amortization Expense
A11: Assumes the applicant adopted IFRS for financial reporting purposes January 1, 2014
C12: Year | D12: 2013 | E12: CGAAP
A14: Account | B14: Description | C14: Opening Regulatory Gross PP&E as at Jan 1, 2013 | D14: Less Fully Depreciated | E14: Net for Depreciation | F14: Additions | G14: Total for Depreciation | H14: Years | I14: Depreciation Rate | J14: 2013 Depreciation Expense | K14: 2013 Depreciation Expense per Appendix 2-B Fixed Assets, Column K (l) | L14: Variance 2
C15: (a) | D15: (b) | E15: (c) | F15: (d) | G15: (e) = (c) + ½ x (d) 1 | H15: (f) | I15: (g) = 1 / (f) | J15: (h) = (e) / (f) | L15: (m) = (h) - (l)
A16: 1611 | B16: Computer Software (Formally known as Account 1925) | E16: =C16-D16 -> 0 | G16: =E16+0.5*F16 -> 0 | I16: =IF(H16=0,0,1/H16) -> 0 | J16: =IF(H16=0,0,G16/H16) -> 0 | L16: =IF(ISERROR(+J16-K16), 0, +J16-K16) -> 0
A17: 1612 | B17: Land Rights (Formally known as Account 1906) | E17: =C17-D17 -> 0 | G17: =E17+0.5*F17 -> 0 | I17: 0 | J17: 0 | L17: 0
A18: 1805 | B18: Land | E18: 0 | G18: 0 | I18: 0 | J18: 0 | L18: 0
A19: 1808 | B19: Buildings | E19: 0 | G19: 0 | I19: 0 | J19: 0 | L19: 0
A20: 1810 | B20: Leasehold Improvements | E20: 0 | G20: 0 | I20: 0 | J20: 0 | L20: 0
A21: 1815 | B21: Transformer Station Equipment >50 kV | E21: 0 | G21: 0 | I21: 0 | J21: 0 | L21: 0
A22: 1820 | B22: Distribution Station Equipment <50 kV | E22: 0 | G22: 0 | I22: 0 | J22: 0 | L22: 0
A23: 1825 | B23: Storage Battery Equipment | E23: 0 | G23: 0 | I23: 0 | J23: 0 | L23: 0
A24: 1830 | B24: Poles, Towers & Fixtures | E24: 0 | G24: 0 | I24: 0 | J24: 0 | L24: 0
A25: 1835 | B25: Overhead Conductors & Devices | E25: 0 | G25: 0 | I25: 0 | J25: 0 | L25: 0
A26: 1840 | B26: Underground Conduit | E26: 0 | G26: 0 | I26: 0 | J26: 0 | L26: 0
A27: 1845 | B27: Underground Conductors & Devices | E27: 0 | G27: 0 | I27: 0 | J27: 0 | L27: 0
A28: 1850 | B28: Line Transformers | E28: 0 | G28: 0 | I28: 0 | J28: 0 | L28: 0
A29: 1855 | B29: Services (Overhead & Underground) | E29: 0 | G29: 0 | I29: 0 | J29: 0 | L29: 0
A30: 1860 | B30: Meters | E30: 0 | G30: 0 | I30: 0 | J30: 0 | L30: 0
A31: 1860 | B31: Meters (Smart Meters) | E31: 0 | G31: 0 | I31: 0 | J31: 0 | L31: 0
A32: 1905 | B32: Land | E32: 0 | G32: 0 | I32: 0 | J32: 0 | L32: 0
A33: 1908 | B33: Buildings & Fixtures | E33: 0 | G33: 0 | I33: 0 | J33: 0 | L33: 0
A34: 1910 | B34: Leasehold Improvements | E34: 0 | G34: 0 | I34: 0 | J34: 0 | L34: 0
A35: 1915 | B35: Office Furniture & Equipment (10 years) | E35: 0 | G35: 0 | I35: 0 | J35: 0 | L35: 0
A36: 1915 | B36: Office Furniture & Equipment (5 years) | E36: 0 | G36: 0 | I36: 0 | J36: 0 | L36: 0
A37: 1920 | B37: Computer Equipment - Hardware | E37: 0 | G37: 0 | I37: 0 | J37: 0 | L37: 0
A38: 1920 | B38: Computer Equip.-Hardware(Post Mar. 22/04) | E38: 0 | G38: 0 | I38: 0 | J38: 0 | L38: 0
A39: 1920 | B39: Computer Equip.-Hardware(Post Mar. 19/07) | E39: 0 | G39: 0 | I39: 0 | J39: 0 | L39: 0
A40: 1930 | B40: Transportation Equipment | E40: 0 | G40: 0 | I40: 0 | J40: 0 | L40: 0
A41: 1935 | B41: Stores Equipment | E41: 0 | G41: 0 | I41: 0 | J41: 0 | L41: 0
A42: 1940 | B42: Tools, Shop & Garage Equipment | E42: 0 | G42: 0 | I42: 0 | J42: 0 | L42: 0
A43: 1945 | B43: Measurement & Testing Equipment | E43: 0 | G43: 0 | I43: 0 | J43: 0 | L43: 0
A44: 1950 | B44: Power Operated Equipment | E44: 0 | G44: 0 | I44: 0 | J44: 0 | L44: 0
A45: 1955 | B45: Communications Equipment | E45: 0 | G45: 0 | I45: 0 | J45: 0 | L45: 0
A46: 1955 | B46: Communication Equipment (Smart Meters) | E46: 0 | G46: 0 | I46: 0 | J46: 0 | L46: 0
A47: 1960 | B47: Miscellaneous Equipment | E47: 0 | G47: 0 | I47: 0 | J47: 0 | L47: 0
A48: 1970 | B48: Load Management Controls Customer Premises | E48: 0 | G48: 0 | I48: 0 | J48: 0 | L48: 0
A49: 1975 | B49: Load Management Controls Utility Premises | E49: 0 | G49: 0 | I49: 0 | J49: 0 | L49: 0
A50: 1980 | B50: System Supervisor Equipment | E50: 0 | G50: 0 | I50: 0 | J50: 0 | L50: 0
A51: 1985 | B51: Miscellaneous Fixed Assets | E51: 0 | G51: 0 | I51: 0 | J51: 0 | L51: 0
A52: 1990 | B52: Other Tangible Property | E52: 0 | G52: 0 | I52: 0 | J52: 0 | L52: 0
A53: 1995 | B53: Contributions & Grants | E53: 0 | G53: 0 | I53: 0 | J53: 0 | L53: 0
A54: etc. | E54: 0 | G54: 0 | I54: 0 | J54: 0 | L54: 0
E55: 0 | G55: 0 | I55: 0 | J55: 0 | L55: 0
B56: Total | C56: =SUM(C16:C55) -> 0 | D56: =SUM(D16:D55) -> 0 | E56: =SUM(E16:E55) -> 0 | F56: =SUM(F16:F55) -> 0 | G56: =SUM(G16:G55) -> 0 | J56: =SUM(J16:J55) -> 0 | K56: =SUM(K16:K55) -> 0 | L56: =SUM(L16:L55) -> 0
A58: Notes:
A59: 1 | B59: Board policy of the "half-year" rule - the applicant must ensure that additions in the year attract a half-year depreciation expense in the first year. Deviations from this standard practice must be supported in the application.
A60: 2 | B60: The applicant must provide an explanation of material variances in evidence.
A62: General: | B62: Applicants must provide a breakdown of depreciation and amortization expense in the above format for all relevant accounts. Asset Retirement Obligations (AROs), depreciation and accretion expense should be disclosed separately consistent with the Notes of historical Audited Financial Statements.

Sheet App.2-CL_MIFRS_DepExp_2013 (hidden)
N1: File Number: | O1: =EBNUMBER -> EB-2013-0155
N2: Exhibit:
N3: Tab:
N4: Schedule:
N5: Page:
N7: Date:
A9: Appendix 2-CL
A10: Depreciation and Amortization Expense
A11: Assumes the applicant adopted IFRS for financial reporting purposes January 1, 2014
C12: Year | D12: 2013 | E12: MIFRS
A14: Account | B14: Description | C14: Opening NBV as at Jan 1, 2013 5 | D14: Additions | E14: Average Remaining Life of Opening NBV 4 | F14: Years (new additions only) 3 | G14: Depreciation Rate on New Additions | H14: Depreciation Expense on Opening NBV | I14: Depreciation Expense on Additions 1 | J14: 2013 Depreciation Expense | K14: 2013 Depreciation Expense per Appendix 2-B Fixed Assets, Column K (l) | L14: Variance 2 | M14: Depreciation Expense on 2013 Full Year Additions | N14: Less Depreciation Expense on Assets Fully Depreciated during the year (o) | O14: 2013 Full Year Depreciation 6
C15: (a) | D15: (d) | E15: (i) | F15: (f) | G15: (g) = 1 / (f) | H15: (j) = (a) / (i) | I15: (h)=((d)*0.5)/(f) | J15: (k) = (j) + (h) | L15: (m) = (k) - (l) | M15: (n)=((d))/(f) | O15: (p) = (j) + (n) - (o)
A16: 1611 | B16: Computer Software (Formally known as Account 1925) | G16: =IF(F16=0,0,1/F16) -> 0 | H16: =IF(E16=0,0,+C16/E16) -> 0 | I16: =IF(F16=0,0,+(D16*0.5)/F16) -> 0 | J16: =IF(ISERROR(+H16+I16), 0, +H16+I16) -> 0 | L16: =IF(ISERROR(+J16-K16), 0, +J16-K16) -> 0 | M16: =IF(F16=0,0,+(D16)/F16) -> 0 | O16: =IF(ISERROR(+M16+H16-N16), 0, +M16+H16-N16) -> 0
A17: 1612 | B17: Land Rights (Formally known as Account 1906) | G17: 0 | H17: 0 | I17: 0 | J17: 0 | L17: 0 | M17: 0 | O17: =IF(ISERROR(+M17+H17-N17), 0, +M17+H17-N17) -> 0
A18: 1805 | B18: Land | G18: 0 | H18: 0 | I18: 0 | J18: 0 | L18: 0 | M18: 0 | O18: 0
A19: 1808 | B19: Buildings | G19: 0 | H19: 0 | I19: 0 | J19: 0 | L19: 0 | M19: 0 | O19: 0
A20: 1810 | B20: Leasehold Improvements | G20: 0 | H20: 0 | I20: 0 | J20: 0 | L20: 0 | M20: 0 | O20: 0
A21: 1815 | B21: Transformer Station Equipment >50 kV | G21: 0 | H21: 0 | I21: 0 | J21: 0 | L21: 0 | M21: 0 | O21: 0
A22: 1820 | B22: Distribution Station Equipment <50 kV | G22: 0 | H22: 0 | I22: 0 | J22: 0 | L22: 0 | M22: 0 | O22: 0
A23: 1825 | B23: Storage Battery Equipment | G23: 0 | H23: 0 | I23: 0 | J23: 0 | L23: 0 | M23: 0 | O23: 0
A24: 1830 | B24: Poles, Towers & Fixtures | G24: 0 | H24: 0 | I24: 0 | J24: 0 | L24: 0 | M24: 0 | O24: 0
A25: 1835 | B25: Overhead Conductors & Devices | G25: 0 | H25: 0 | I25: 0 | J25: 0 | L25: 0 | M25: 0 | O25: 0
A26: 1840 | B26: Underground Conduit | G26: 0 | H26: 0 | I26: 0 | J26: 0 | L26: 0 | M26: 0 | O26: 0
A27: 1845 | B27: Underground Conductors & Devices | G27: 0 | H27: 0 | I27: 0 | J27: 0 | L27: 0 | M27: 0 | O27: 0
A28: 1850 | B28: Line Transformers | G28: 0 | H28: 0 | I28: 0 | J28: 0 | L28: 0 | M28: 0 | O28: 0
A29: 1855 | B29: Services (Overhead & Underground) | G29: 0 | H29: 0 | I29: 0 | J29: 0 | L29: 0 | M29: 0 | O29: 0
A30: 1860 | B30: Meters | G30: 0 | H30: 0 | I30: 0 | J30: 0 | L30: 0 | M30: 0 | O30: 0
A31: 1860 | B31: Meters (Smart Meters) | G31: 0 | H31: 0 | I31: 0 | J31: 0 | L31: 0 | M31: 0 | O31: 0
A32: 1905 | B32: Land | G32: 0 | H32: 0 | I32: 0 | J32: 0 | L32: 0 | M32: 0 | O32: 0
A33: 1908 | B33: Buildings & Fixtures | G33: 0 | H33: 0 | I33: 0 | J33: 0 | L33: 0 | M33: 0 | O33: 0
A34: 1910 | B34: Leasehold Improvements | G34: 0 | H34: 0 | I34: 0 | J34: 0 | L34: 0 | M34: 0 | O34: 0
A35: 1915 | B35: Office Furniture & Equipment (10 years) | G35: 0 | H35: 0 | I35: 0 | J35: 0 | L35: 0 | M35: 0 | O35: 0
A36: 1915 | B36: Office Furniture & Equipment (5 years) | G36: 0 | H36: 0 | I36: 0 | J36: 0 | L36: 0 | M36: 0 | O36: 0
A37: 1920 | B37: Computer Equipment - Hardware | G37: 0 | H37: 0 | I37: 0 | J37: 0 | L37: 0 | M37: 0 | O37: 0
A38: 1920 | B38: Computer Equip.-Hardware(Post Mar. 22/04) | G38: 0 | H38: 0 | I38: 0 | J38: 0 | L38: 0 | M38: 0 | O38: 0
A39: 1920 | B39: Computer Equip.-Hardware(Post Mar. 19/07) | G39: 0 | H39: 0 | I39: 0 | J39: 0 | L39: 0 | M39: 0 | O39: 0
A40: 1930 | B40: Transportation Equipment | G40: 0 | H40: 0 | I40: 0 | J40: 0 | L40: 0 | M40: 0 | O40: 0
A41: 1935 | B41: Stores Equipment | G41: 0 | H41: 0 | I41: 0 | J41: 0 | L41: 0 | M41: 0 | O41: 0
A42: 1940 | B42: Tools, Shop & Garage Equipment | G42: 0 | H42: 0 | I42: 0 | J42: 0 | L42: 0 | M42: 0 | O42: 0
A43: 1945 | B43: Measurement & Testing Equipment | G43: 0 | H43: 0 | I43: 0 | J43: 0 | L43: 0 | M43: 0 | O43: 0
A44: 1950 | B44: Power Operated Equipment | G44: 0 | H44: 0 | I44: 0 | J44: 0 | L44: 0 | M44: 0 | O44: 0
A45: 1955 | B45: Communications Equipment | G45: 0 | H45: 0 | I45: 0 | J45: 0 | L45: 0 | M45: 0 | O45: 0
A46: 1955 | B46: Communication Equipment (Smart Meters) | G46: 0 | H46: 0 | I46: 0 | J46: 0 | L46: 0 | M46: 0 | O46: 0
A47: 1960 | B47: Miscellaneous Equipment | G47: 0 | H47: 0 | I47: 0 | J47: 0 | L47: 0 | M47: 0 | O47: 0
A48: 1970 | B48: Load Management Controls Customer Premises | G48: 0 | H48: 0 | I48: 0 | J48: 0 | L48: 0 | M48: 0 | O48: 0
A49: 1975 | B49: Load Management Controls Utility Premises | G49: 0 | H49: 0 | I49: 0 | J49: 0 | L49: 0 | M49: 0 | O49: 0
A50: 1980 | B50: System Supervisor Equipment | G50: 0 | H50: 0 | I50: 0 | J50: 0 | L50: 0 | M50: 0 | O50: 0
A51: 1985 | B51: Miscellaneous Fixed Assets | G51: 0 | H51: 0 | I51: 0 | J51: 0 | L51: 0 | M51: 0 | O51: 0
A52: 1990 | B52: Other Tangible Property | G52: 0 | H52: 0 | I52: 0 | J52: 0 | L52: 0 | M52: 0 | O52: 0
A53: 1995 | B53: Contributions & Grants | G53: 0 | H53: 0 | I53: 0 | J53: 0 | L53: 0 | M53: 0 | O53: 0
A54: etc. | G54: 0 | H54: 0 | I54: 0 | J54: 0 | L54: 0 | M54: 0 | O54: 0
G55: 0 | H55: 0 | I55: 0 | J55: 0 | L55: 0 | M55: 0 | O55: 0
B56: Total | C56: =SUM(C16:C55) -> 0 | D56: =SUM(D16:D55) -> 0 | H56: =SUM(H16:H55) -> 0 | I56: 0 | J56: 0 | K56: 0 | L56: 0 | M56: 0 | N56: =SUM(N16:N55) -> 0 | O56: 0
B57: Depreciation exp. adj. from gain or loss on the retirement of assets (pool of like assets) | J57: 0
B58: Total | J58: =+J56+J57 -> 0
A59: Notes:
A61: 1 | B61: Board policy of the "half-year" rule - the applicant must ensure that additions in the year attract a half-year depreciation expense in the first year. Deviations from this standard practice must be supported in the application.
A62: 2 | B62: The applicant must provide an explanation of material variances in evidence.
A63: 3 | B63: The applicant should ensure that the years for new additions of assets are the asset useful lives determined by management in accordance with IFRS.
A64: 4 | B64: A recalculation should be performed to determine the average remaining life of opening balance of assets (i.e. excluding 2013 additions) under IFRS. For example, Asset A had a useful life of 20 years under CGAAP. On January 1, 2013, the date of transition, Asset A was 3 years depreciated. As a result, Asset A would have a remaining service life of 17 years (20 years less 3 years) under CGAAP as of January 1, 2013. Due to the transition to IFRS, management re-assessed the asset useful lives under IFRS principles and concluded that the revised useful life of Asset A is now 30 years. Therefore, the average remaining useful life of opening balance of Asset A is determined to be 27 years (30 years less 3 years) under IFRS as of January 1, 2013.
A65: 5 | B65: NBV must exclude assets still on the books but which have been fully amortized or depreciated.
A66: 6 | B66: This column refers to the calculated full year depreciation but excludes the depreciation expense on assets fully depreciated during the year. This column is used for the purpose of calculating depreciation expense in the following year on the next worksheet.
A68: General: | B68: Applicants must provide a breakdown of depreciation and amortization expense in the above format for all relevant accounts. Asset Retirement Obligations (AROs), depreciation and accretion expense should be disclosed separately consistent with the Notes of historical Audited Financial Statements.

Sheet App.2-CM_MIFRS_DepExp_2014 (hidden)
I1: File Number: | J1: =EBNUMBER -> EB-2013-0155
I2: Exhibit:
I3: Tab:
I4: Schedule:
I5: Page:
I7: Date:
A9: Appendix 2-CM
A10: Depreciation and Amortization Expense
A11: Assumes the applicant adopted IFRS for financial reporting purposes January 1, 2014
C12: Year | D12: 2014 | E12: MIFRS
A14: Account | B14: Description | C14: Additions | D14: Years (new additions only) | E14: Depreciation Rate on New Additions | F14: 2014 Depreciation Expense 1 | G14: 2014 Depreciation Expense per Appendix 2-B Fixed Assets, Column K (l) | H14: Variance 2
C15: (d) | D15: (f) | E15: (g) = 1 / (f) | F15: (h)=2013 Full Year Depreciation + ((d)*0.5)/(f) | H15: (m) = (h) - (l)
A16: 1611 | B16: Computer Software (Formally known as Account 1925) | E16: =IF(D16=0,0,1/D16) -> 0 | F16: =IF(D16=0,'App.2-CL_MIFRS_DepExp_2013'!O16,+'App.2-CL_MIFRS_DepExp_2013'!O16+((C16*0.5)/D16)) -> 0 | H16: =IF(ISERROR(+F16-G16), 0, +F16-G16) -> 0
A17: 1612 | B17: Land Rights (Formally known as Account 1906) | E17: 0 | F17: =IF(D17=0,'App.2-CL_MIFRS_DepExp_2013'!O17,+'App.2-CL_MIFRS_DepExp_2013'!O17+((C17*0.5)/D17)) -> 0 | H17: 0
A18: 1805 | B18: Land | E18: 0 | F18: =IF(D18=0,'App.2-CL_MIFRS_DepExp_2013'!O18,+'App.2-CL_MIFRS_DepExp_2013'!O18+((C18*0.5)/D18)) -> 0 | H18: 0
A19: 1808 | B19: Buildings | E19: 0 | F19: =IF(D19=0,'App.2-CL_MIFRS_DepExp_2013'!O19,+'App.2-CL_MIFRS_DepExp_2013'!O19+((C19*0.5)/D19)) -> 0 | H19: 0
A20: 1810 | B20: Leasehold Improvements | E20: 0 | F20: =IF(D20=0,'App.2-CL_MIFRS_DepExp_2013'!O20,+'App.2-CL_MIFRS_DepExp_2013'!O20+((C20*0.5)/D20)) -> 0 | H20: 0
A21: 1815 | B21: Transformer Station Equipment >50 kV | E21: 0 | F21: =IF(D21=0,'App.2-CL_MIFRS_DepExp_2013'!O21,+'App.2-CL_MIFRS_DepExp_2013'!O21+((C21*0.5)/D21)) -> 0 | H21: 0
A22: 1820 | B22: Distribution Station Equipment <50 kV | E22: 0 | F22: =IF(D22=0,'App.2-CL_MIFRS_DepExp_2013'!O22,+'App.2-CL_MIFRS_DepExp_2013'!O22+((C22*0.5)/D22)) -> 0 | H22: 0
A23: 1825 | B23: Storage Battery Equipment | E23: 0 | F23: =IF(D23=0,'App.2-CL_MIFRS_DepExp_2013'!O23,+'App.2-CL_MIFRS_DepExp_2013'!O23+((C23*0.5)/D23)) -> 0 | H23: 0
A24: 1830 | B24: Poles, Towers & Fixtures | E24: 0 | F24: =IF(D24=0,'App.2-CL_MIFRS_DepExp_2013'!O24,+'App.2-CL_MIFRS_DepExp_2013'!O24+((C24*0.5)/D24)) -> 0 | H24: 0
A25: 1835 | B25: Overhead Conductors & Devices | E25: 0 | F25: =IF(D25=0,'App.2-CL_MIFRS_DepExp_2013'!O25,+'App.2-CL_MIFRS_DepExp_2013'!O25+((C25*0.5)/D25)) -> 0 | H25: 0
A26: 1840 | B26: Underground Conduit | E26: 0 | F26: =IF(D26=0,'App.2-CL_MIFRS_DepExp_2013'!O26,+'App.2-CL_MIFRS_DepExp_2013'!O26+((C26*0.5)/D26)) -> 0 | H26: 0
A27: 1845 | B27: Underground Conductors & Devices | E27: 0 | F27: =IF(D27=0,'App.2-CL_MIFRS_DepExp_2013'!O27,+'App.2-CL_MIFRS_DepExp_2013'!O27+((C27*0.5)/D27)) -> 0 | H27: 0
A28: 1850 | B28: Line Transformers | E28: 0 | F28: =IF(D28=0,'App.2-CL_MIFRS_DepExp_2013'!O28,+'App.2-CL_MIFRS_DepExp_2013'!O28+((C28*0.5)/D28)) -> 0 | H28: 0
A29: 1855 | B29: Services (Overhead & Underground) | E29: 0 | F29: =IF(D29=0,'App.2-CL_MIFRS_DepExp_2013'!O29,+'App.2-CL_MIFRS_DepExp_2013'!O29+((C29*0.5)/D29)) -> 0 | H29: 0
A30: 1860 | B30: Meters | E30: 0 | F30: =IF(D30=0,'App.2-CL_MIFRS_DepExp_2013'!O30,+'App.2-CL_MIFRS_DepExp_2013'!O30+((C30*0.5)/D30)) -> 0 | H30: 0
A31: 1860 | B31: Meters (Smart Meters) | E31: 0 | F31: =IF(D31=0,'App.2-CL_MIFRS_DepExp_2013'!O31,+'App.2-CL_MIFRS_DepExp_2013'!O31+((C31*0.5)/D31)) -> 0 | H31: 0
A32: 1905 | B32: Land | E32: 0 | F32: =IF(D32=0,'App.2-CL_MIFRS_DepExp_2013'!O32,+'App.2-CL_MIFRS_DepExp_2013'!O32+((C32*0.5)/D32)) -> 0 | H32: 0
A33: 1908 | B33: Buildings & Fixtures | E33: 0 | F33: =IF(D33=0,'App.2-CL_MIFRS_DepExp_2013'!O33,+'App.2-CL_MIFRS_DepExp_2013'!O33+((C33*0.5)/D33)) -> 0 | H33: 0
A34: 1910 | B34: Leasehold Improvements | E34: 0 | F34: =IF(D34=0,'App.2-CL_MIFRS_DepExp_2013'!O34,+'App.2-CL_MIFRS_DepExp_2013'!O34+((C34*0.5)/D34)) -> 0 | H34: 0
A35: 1915 | B35: Office Furniture & Equipment (10 years) | E35: 0 | F35: =IF(D35=0,'App.2-CL_MIFRS_DepExp_2013'!O35,+'App.2-CL_MIFRS_DepExp_2013'!O35+((C35*0.5)/D35)) -> 0 | H35: 0
A36: 1915 | B36: Office Furniture & Equipment (5 years) | E36: 0 | F36: =IF(D36=0,'App.2-CL_MIFRS_DepExp_2013'!O36,+'App.2-CL_MIFRS_DepExp_2013'!O36+((C36*0.5)/D36)) -> 0 | H36: 0
A37: 1920 | B37: Computer Equipment - Hardware | E37: 0 | F37: =IF(D37=0,'App.2-CL_MIFRS_DepExp_2013'!O37,+'App.2-CL_MIFRS_DepExp_2013'!O37+((C37*0.5)/D37)) -> 0 | H37: 0
A38: 1920 | B38: Computer Equip.-Hardware(Post Mar. 22/04) | E38: 0 | F38: =IF(D38=0,'App.2-CL_MIFRS_DepExp_2013'!O38,+'App.2-CL_MIFRS_DepExp_2013'!O38+((C38*0.5)/D38)) -> 0 | H38: 0
A39: 1920 | B39: Computer Equip.-Hardware(Post Mar. 19/07) | E39: 0 | F39: =IF(D39=0,'App.2-CL_MIFRS_DepExp_2013'!O39,+'App.2-CL_MIFRS_DepExp_2013'!O39+((C39*0.5)/D39)) -> 0 | H39: 0
A40: 1930 | B40: Transportation Equipment | E40: 0 | F40: =IF(D40=0,'App.2-CL_MIFRS_DepExp_2013'!O40,+'App.2-CL_MIFRS_DepExp_2013'!O40+((C40*0.5)/D40)) -> 0 | H40: 0
A41: 1935 | B41: Stores Equipment | E41: 0 | F41: =IF(D41=0,'App.2-CL_MIFRS_DepExp_2013'!O41,+'App.2-CL_MIFRS_DepExp_2013'!O41+((C41*0.5)/D41)) -> 0 | H41: 0
A42: 1940 | B42: Tools, Shop & Garage Equipment | E42: 0 | F42: =IF(D42=0,'App.2-CL_MIFRS_DepExp_2013'!O42,+'App.2-CL_MIFRS_DepExp_2013'!O42+((C42*0.5)/D42)) -> 0 | H42: 0
A43: 1945 | B43: Measurement & Testing Equipment | E43: 0 | F43: =IF(D43=0,'App.2-CL_MIFRS_DepExp_2013'!O43,+'App.2-CL_MIFRS_DepExp_2013'!O43+((C43*0.5)/D43)) -> 0 | H43: 0
A44: 1950 | B44: Power Operated Equipment | E44: 0 | F44: =IF(D44=0,'App.2-CL_MIFRS_DepExp_2013'!O44,+'App.2-CL_MIFRS_DepExp_2013'!O44+((C44*0.5)/D44)) -> 0 | H44: 0
A45: 1955 | B45: Communications Equipment | E45: 0 | F45: =IF(D45=0,'App.2-CL_MIFRS_DepExp_2013'!O45,+'App.2-CL_MIFRS_DepExp_2013'!O45+((C45*0.5)/D45)) -> 0 | H45: 0
A46: 1955 | B46: Communication Equipment (Smart Meters) | E46: 0 | F46: =IF(D46=0,'App.2-CL_MIFRS_DepExp_2013'!O46,+'App.2-CL_MIFRS_DepExp_2013'!O46+((C46*0.5)/D46)) -> 0 | H46: 0
A47: 1960 | B47: Miscellaneous Equipment | E47: 0 | F47: =IF(D47=0,'App.2-CL_MIFRS_DepExp_2013'!O47,+'App.2-CL_MIFRS_DepExp_2013'!O47+((C47*0.5)/D47)) -> 0 | H47: 0
A48: 1970 | B48: Load Management Controls Customer Premises | E48: 0 | F48: =IF(D48=0,'App.2-CL_MIFRS_DepExp_2013'!O48,+'App.2-CL_MIFRS_DepExp_2013'!O48+((C48*0.5)/D48)) -> 0 | H48: 0
A49: 1975 | B49: Load Management Controls Utility Premises | E49: 0 | F49: =IF(D49=0,'App.2-CL_MIFRS_DepExp_2013'!O49,+'App.2-CL_MIFRS_DepExp_2013'!O49+((C49*0.5)/D49)) -> 0 | H49: 0
A50: 1980 | B50: System Supervisor Equipment | E50: 0 | F50: =IF(D50=0,'App.2-CL_MIFRS_DepExp_2013'!O50,+'App.2-CL_MIFRS_DepExp_2013'!O50+((C50*0.5)/D50)) -> 0 | H50: 0
A51: 1985 | B51: Miscellaneous Fixed Assets | E51: 0 | F51: =IF(D51=0,'App.2-CL_MIFRS_DepExp_2013'!O51,+'App.2-CL_MIFRS_DepExp_2013'!O51+((C51*0.5)/D51)) -> 0 | H51: 0
A52: 1990 | B52: Other Tangible Property | E52: 0 | F52: =IF(D52=0,'App.2-CL_MIFRS_DepExp_2013'!O52,+'App.2-CL_MIFRS_DepExp_2013'!O52+((C52*0.5)/D52)) -> 0 | H52: 0
A53: 1995 | B53: Contributions & Grants | E53: 0 | F53: =IF(D53=0,'App.2-CL_MIFRS_DepExp_2013'!O53,+'App.2-CL_MIFRS_DepExp_2013'!O53+((C53*0.5)/D53)) -> 0 | H53: 0
A54: etc. | E54: 0 | F54: =IF(D54=0,'App.2-CL_MIFRS_DepExp_2013'!O54,+'App.2-CL_MIFRS_DepExp_2013'!O54+((C54*0.5)/D54)) -> 0 | H54: 0
E55: 0 | F55: =IF(D55=0,'App.2-CL_MIFRS_DepExp_2013'!O55,+'App.2-CL_MIFRS_DepExp_2013'!O55+((C55*0.5)/D55)) -> 0 | H55: 0
B56: Total | C56: =SUM(C16:C55) -> 0 | F56: =SUM(F16:F55) -> 0 | G56: =SUM(G16:G55) -> 0 | H56: =SUM(H16:H55) -> 0
B57: Depreciation exp. adj. from gain or loss on the retirement of assets (pool of like assets) | F57: 0
B58: Total Depreciation expense to be included in the test year revenue requirement | F58: =SUM(F56:F57) -> 0
A60: Notes:
A61: 1 | B61: Board policy of the "half-year" rule - the applicant must ensure that additions in the year attract a half-year depreciation expense in the first year. Deviations from this standard practice must be supported in the application.
A62: 2 | B62: The applicant must provide an explanation of material variances in evidence.
A65: General: | B65: Applicants must provide a breakdown of depreciation and amortization expense in the above format for all relevant accounts. Asset Retirement Obligations (AROs), depreciation and accretion expense should be disclosed separately consistent with the Notes of historical Audited Financial Statements.

Sheet Instruction for App. 2-C CGAAP
A1: General Instructions to CGAAP - ASPE Appendices
A2: Types of Schedules to File
A5: Applicants filing a CGAAP or ASPE application should provide the following information:
A7: Depreciation and Amortization - Appendix 2-C
A8: If an applicant chooses to remain on CGAAP or adopt ASPE and make the changes to capitalization and depreciation expense policies in 2012, the applicant must complete Appendix 2-CN to Appendix 2-CQ (inclusive).
A9: If an applicant chooses to remain on CGAAP or adopt ASPE and make the changes to capitalization and depreciation expense policies in 2013, the applicant must complete Appendix 2-CR to Appendix 2-CU (inclusive).
A11: Account 1576, Accounting Changes Under CGAAP - Appendix 2-ED, Appendix 2-EE
A12: Please refer to section 2.12.5 of the Filing Requirements.

Sheet App.2-CN_OldCGAAP_DepExp_2012 (hidden)
K1: File Number: | L1: =EBNUMBER -> EB-2013-0155
K2: Exhibit:
K3: Tab:
K4: Schedule:
K5: Page:
K7: Date:
A9: Appendix 2-CN
A10: Depreciation and Amortization Expense
A11: Assumes the applicant made capitalization and depreciation expense accounting policy changes under CGAAP effective January 1, 2012
C12: Year | D12: 2012 | E12: Former CGAAP - CGAAP without the changes to the policies
A14: Account | B14: Description | C14: Opening Regulatory Gross PP&E as at Jan 1, 2012 | D14: Less Fully Depreciated | E14: Net for Depreciation | F14: Additions | G14: Total for Depreciation | H14: Years | I14: Depreciation Rate | J14: Depreciation Expense | K14: 2012 Depreciation Expense per Appendix 2-B Fixed Assets, Column K (l) | L14: Variance 2
C15: (a) | D15: (b) | E15: (c) | F15: (d) | G15: (e) = (c) + ½ x (d) 1 | H15: (f) | I15: (g) = 1 / (f) | J15: (h) = (e) / (f) | L15: (m) = (h) - (l)
A16: 1611 | B16: Computer Software (Formally known as Account 1925) | E16: =C16-D16 -> 0 | G16: =E16+0.5*F16 -> 0 | I16: =IF(H16=0,0,1/H16) -> 0 | J16: =IF(H16=0,0,G16/H16) -> 0 | L16: =IF(ISERROR(+J16-K16), 0, +J16-K16) -> 0
A17: 1612 | B17: Land Rights (Formally known as Account 1906) | E17: =C17-D17 -> 0 | G17: =E17+0.5*F17 -> 0 | I17: 0 | J17: 0 | L17: 0
A18: 1805 | B18: Land | E18: 0 | G18: 0 | I18: 0 | J18: 0 | L18: 0
A19: 1808 | B19: Buildings | E19: 0 | G19: 0 | I19: 0 | J19: 0 | L19: 0
A20: 1810 | B20: Leasehold Improvements | E20: 0 | G20: 0 | I20: 0 | J20: 0 | L20: 0
A21: 1815 | B21: Transformer Station Equipment >50 kV | E21: 0 | G21: 0 | I21: 0 | J21: 0 | L21: 0
A22: 1820 | B22: Distribution Station Equipment <50 kV | E22: 0 | G22: 0 | I22: 0 | J22: 0 | L22: 0
A23: 1825 | B23: Storage Battery Equipment | E23: 0 | G23: 0 | I23: 0 | J23: 0 | L23: 0
A24: 1830 | B24: Poles, Towers & Fixtures | E24: 0 | G24: 0 | I24: 0 | J24: 0 | L24: 0
A25: 1835 | B25: Overhead Conductors & Devices | E25: 0 | G25: 0 | I25: 0 | J25: 0 | L25: 0
A26: 1840 | B26: Underground Conduit | E26: 0 | G26: 0 | I26: 0 | J26: 0 | L26: 0
A27: 1845 | B27: Underground Conductors & Devices | E27: 0 | G27: 0 | I27: 0 | J27: 0 | L27: 0
A28: 1850 | B28: Line Transformers | E28: 0 | G28: 0 | I28: 0 | J28: 0 | L28: 0
A29: 1855 | B29: Services (Overhead & Underground) | E29: 0 | G29: 0 | I29: 0 | J29: 0 | L29: 0
A30: 1860 | B30: Meters | E30: 0 | G30: 0 | I30: 0 | J30: 0 | L30: 0
A31: 1860 | B31: Meters (Smart Meters) | E31: 0 | G31: 0 | I31: 0 | J31: 0 | L31: 0
A32: 1905 | B32: Land | E32: 0 | G32: 0 | I32: 0 | J32: 0 | L32: 0
A33: 1908 | B33: Buildings & Fixtures | E33: 0 | G33: 0 | I33: 0 | J33: 0 | L33: 0
A34: 1910 | B34: Leasehold Improvements | E34: 0 | G34: 0 | I34: 0 | J34: 0 | L34: 0
A35: 1915 | B35: Office Furniture & Equipment (10 years) | E35: 0 | G35: 0 | I35: 0 | J35: 0 | L35: 0
A36: 1915 | B36: Office Furniture & Equipment (5 years) | E36: 0 | G36: 0 | I36: 0 | J36: 0 | L36: 0
A37: 1920 | B37: Computer Equipment - Hardware | E37: 0 | G37: 0 | I37: 0 | J37: 0 | L37: 0
A38: 1920 | B38: Computer Equip.-Hardware(Post Mar. 22/04) | E38: 0 | G38: 0 | I38: 0 | J38: 0 | L38: 0
A39: 1920 | B39: Computer Equip.-Hardware(Post Mar. 19/07) | E39: 0 | G39: 0 | I39: 0 | J39: 0 | L39: 0
A40: 1930 | B40: Transportation Equipment | E40: 0 | G40: 0 | I40: 0 | J40: 0 | L40: 0
A41: 1935 | B41: Stores Equipment | E41: 0 | G41: 0 | I41: 0 | J41: 0 | L41: 0
A42: 1940 | B42: Tools, Shop & Garage Equipment | E42: 0 | G42: 0 | I42: 0 | J42: 0 | L42: 0
A43: 1945 | B43: Measurement & Testing Equipment | E43: 0 | G43: 0 | I43: 0 | J43: 0 | L43: 0
A44: 1950 | B44: Power Operated Equipment | E44: 0 | G44: 0 | I44: 0 | J44: 0 | L44: 0
A45: 1955 | B45: Communications Equipment | E45: 0 | G45: 0 | I45: 0 | J45: 0 | L45: 0
A46: 1955 | B46: Communication Equipment (Smart Meters) | E46: 0 | G46: 0 | I46: 0 | J46: 0 | L46: 0
A47: 1960 | B47: Miscellaneous Equipment | E47: 0 | G47: 0 | I47: 0 | J47: 0 | L47: 0
A48: 1970 | B48: Load Management Controls - Customer Premises | E48: 0 | G48: 0 | I48: 0 | J48: 0 | L48: 0
A49: 1975 | B49: Load Management Controls Utility Premises | E49: 0 | G49: 0 | I49: 0 | J49: 0 | L49: 0
A50: 1980 | B50: System Supervisor Equipment | E50: 0 | G50: 0 | I50: 0 | J50: 0 | L50: 0
A51: 1985 | B51: Miscellaneous Fixed Assets | E51: 0 | G51: 0 | I51: 0 | J51: 0 | L51: 0
A52: 1990 | B52: Other Tangible Property | E52: 0 | G52: 0 | I52: 0 | J52: 0 | L52: 0
A53: 1995 | B53: Contributions & Grants | E53: 0 | G53: 0 | I53: 0 | J53: 0 | L53: 0
A54: etc. | E54: 0 | G54: 0 | I54: 0 | J54: 0 | L54: 0
E55: 0 | G55: 0 | I55: 0 | J55: 0 | L55: 0
B56: Total | C56: =SUM(C16:C55) -> 0 | D56: =SUM(D16:D55) -> 0 | E56: =SUM(E16:E55) -> 0 | F56: =SUM(F16:F55) -> 0 | G56: =SUM(G16:G55) -> 0 | J56: =SUM(J16:J55) -> 0 | K56: =SUM(K16:K55) -> 0 | L56: =SUM(L16:L55) -> 0
A58: Notes:
A60: 1 | B60: Board policy of the "half-year" rule - the applicant must ensure that additions in the year attract a half-year depreciation expense in the first year. Deviations from this standard practice must be supported in the application.
A61: 2 | B61: The applicant must provide an explanation of material variances in evidence.
A63: General | B63: Applicants must provide a breakdown of depreciation and amortization expense in the above format for all relevant accounts. Asset Retirement Obligations (AROs), depreciation and accretion expense should be disclosed separately consistent with the Notes of historical Audited Financial Statements.

Sheet App.2-CO_NewCGAAP_DepExp_2012 (hidden)
N1: File Number: | O1: =EBNUMBER -> EB-2013-0155
N2: Exhibit:
N3: Tab:
N4: Schedule:
N5: Page:
N7: Date:
A9: Appendix 2-CO
A10: Depreciation and Amortization Expense
A11: Assumes the applicant made capitalization and depreciation expense accounting policy changes under CGAAP effective January 1, 2012
C13: Year | D13: 2012 | E13: Revised CGAAP or ASPE - CGAAP or ASPE with the changes to the policies
A15: Account | B15: Description | C15: Opening NBV as at Jan 1, 2012 5 | D15: Additions | E15: Average Remaining Life of Opening NBV 4 | F15: Years (new additions only) 3 | G15: Depreciation Rate on New Additions | H15: Depreciation Expense on Opening NBV | I15: Depreciation Expense on Additions 1 | J15: 2012 Depreciation Expense | K15: 2012 Depreciation Expense per Appendix 2-B Fixed Assets, Column K (l) | L15: Variance 2 | M15: Depreciation Expense on 2012 Full Year Additions | N15: Less Depreciation Expense on Assets Fully Depreciated during the year (o) | O15: 2012 Full Year Depreciation 6
C16: (a) | D16: (d) | E16: (i) | F16: (f) | G16: (g) = 1 / (f) | H16: (j) = (a) / (i) | I16: (h)=((d)*0.5)/(f) | J16: (k) = (j) + (h) | L16: (m) = (k) - (l) | M16: (n) = (d)/(f) | O16: (p) = (j) + (n) - (o)
A17: 1611 | B17: Computer Software (Formally known as Account 1925) | G17: =IF(F17=0,0,1/F17) -> 0 | H17: =IF(E17=0,0,+C17/E17) -> 0 | I17: =IF(F17=0,0,+(D17*0.5)/F17) -> 0 | J17: =IF(ISERROR(+H17+I17), 0, +H17+I17) -> 0 | L17: =IF(ISERROR(+J17-K17), 0, +J17-K17) -> 0 | M17: =IF(F17=0,0,+(D17)/F17) -> 0 | O17: =IF(ISERROR(+M17+H17-N17), 0, +M17+H17-N17) -> 0
A18: 1612 | B18: Land Rights (Formally known as Account 1906) | G18: 0 | H18: 0 | I18: 0 | J18: 0 | L18: 0 | M18: 0 | O18: =IF(ISERROR(+M18+H18-N18), 0, +M18+H18-N18) -> 0
A19: 1805 | B19: Land | G19: 0 | H19: 0 | I19: 0 | J19: 0 | L19: 0 | M19: 0 | O19: 0
A20: 1808 | B20: Buildings | G20: 0 | H20: 0 | I20: 0 | J20: 0 | L20: 0 | M20: 0 | O20: 0
A21: 1810 | B21: Leasehold Improvements | G21: 0 | H21: 0 | I21: 0 | J21: 0 | L21: 0 | M21: 0 | O21: 0
A22: 1815 | B22: Transformer Station Equipment >50 kV | G22: 0 | H22: 0 | I22: 0 | J22: 0 | L22: 0 | M22: 0 | O22: 0
A23: 1820 | B23: Distribution Station Equipment <50 kV | G23: 0 | H23: 0 | I23: 0 | J23: 0 | L23: 0 | M23: 0 | O23: 0
A24: 1825 | B24: Storage Battery Equipment | G24: 0 | H24: 0 | I24: 0 | J24: 0 | L24: 0 | M24: 0 | O24: 0
A25: 1830 | B25: Poles, Towers & Fixtures | G25: 0 | H25: 0 | I25: 0 | J25: 0 | L25: 0 | M25: 0 | O25: 0
A26: 1835 | B26: Overhead Conductors & Devices | G26: 0 | H26: 0 | I26: 0 | J26: 0 | L26: 0 | M26: 0 | O26: 0
A27: 1840 | B27: Underground Conduit | G27: 0 | H27: 0 | I27: 0 | J27: 0 | L27: 0 | M27: 0 | O27: 0
A28: 1845 | B28: Underground Conductors & Devices | G28: 0 | H28: 0 | I28: 0 | J28: 0 | L28: 0 | M28: 0 | O28: 0
A29: 1850 | B29: Line Transformers | G29: 0 | H29: 0 | I29: 0 | J29: 0 | L29: 0 | M29: 0 | O29: 0
A30: 1855 | B30: Services (Overhead & Underground) | G30: 0 | H30: 0 | I30: 0 | J30: 0 | L30: 0 | M30: 0 | O30: 0
A31: 1860 | B31: Meters | G31: 0 | H31: 0 | I31: 0 | J31: 0 | L31: 0 | M31: 0 | O31: 0
A32: 1860 | B32: Meters (Smart Meters) | G32: 0 | H32: 0 | I32: 0 | J32: 0 | L32: 0 | M32: 0 | O32: 0
A33: 1905 | B33: Land | G33: 0 | H33: 0 | I33: 0 | J33: 0 | L33: 0 | M33: 0 | O33: 0
A34: 1908 | B34: Buildings & Fixtures | G34: 0 | H34: 0 | I34: 0 | J34: 0 | L34: 0 | M34: 0 | O34: 0
A35: 1910 | B35: Leasehold Improvements | G35: 0 | H35: 0 | I35: 0 | J35: 0 | L35: 0 | M35: 0 | O35: 0
A36: 1915 | B36: Office Furniture & Equipment (10 years) | G36: 0 | H36: 0 | I36: 0 | J36: 0 | L36: 0 | M36: 0 | O36: 0
A37: 1915 | B37: Office Furniture & Equipment (5 years) | G37: 0 | H37: 0 | I37: 0 | J37: 0 | L37: 0 | M37: 0 | O37: 0
A38: 1920 | B38: Computer Equipment - Hardware | G38: 0 | H38: 0 | I38: 0 | J38: 0 | L38: 0 | M38: 0 | O38: 0
A39: 1920 | B39: Computer Equip.-Hardware(Post Mar. 22/04) | G39: 0 | H39: 0 | I39: 0 | J39: 0 | L39: 0 | M39: 0 | O39: 0
A40: 1920 | B40: Computer Equip.-Hardware(Post Mar. 19/07) | G40: 0 | H40: 0 | I40: 0 | J40: 0 | L40: 0 | M40: 0 | O40: 0
A41: 1930 | B41: Transportation Equipment | G41: 0 | H41: 0 | I41: 0 | J41: 0 | L41: 0 | M41: 0 | O41: 0
A42: 1935 | B42: Stores Equipment | G42: 0 | H42: 0 | I42: 0 | J42: 0 | L42: 0 | M42: 0 | O42: 0
A43: 1940 | B43: Tools, Shop & Garage Equipment | G43: 0 | H43: 0 | I43: 0 | J43: 0 | L43: 0 | M43: 0 | O43: 0
A44: 1945 | B44: Measurement & Testing Equipment | G44: 0 | H44: 0 | I44: 0 | J44: 0 | L44: 0 | M44: 0 | O44: 0
A45: 1950 | B45: Power Operated Equipment | G45: 0 | H45: 0 | I45: 0 | J45: 0 | L45: 0 | M45: 0 | O45: 0
A46: 1955 | B46: Communications Equipment | G46: 0 | H46: 0 | I46: 0 | J46: 0 | L46: 0 | M46: 0 | O46: 0
A47: 1955 | B47: Communication Equipment (Smart Meters) | G47: 0 | H47: 0 | I47: 0 | J47: 0 | L47: 0 | M47: 0 | O47: 0
A48: 1960 | B48: Miscellaneous Equipment | G48: 0 | H48: 0 | I48: 0 | J48: 0 | L48: 0 | M48: 0 | O48: 0
A49: 1970 | B49: Load Management Controls - Customer Premises | G49: 0 | H49: 0 | I49: 0 | J49: 0 | L49: 0 | M49: 0 | O49: 0
A50: 1975 | B50: Load Management Controls Utility Premises | G50: 0 | H50: 0 | I50: 0 | J50: 0 | L50: 0 | M50: 0 | O50: 0
A51: 1980 | B51: System Supervisor Equipment | G51: 0 | H51: 0 | I51: 0 | J51: 0 | L51: 0 | M51: 0 | O51: 0
A52: 1985 | B52: Miscellaneous Fixed Assets | G52: 0 | H52: 0 | I52: 0 | J52: 0 | L52: 0 | M52: 0 | O52: 0
A53: 1990 | B53: Other Tangible Property | G53: 0 | H53: 0 | I53: 0 | J53: 0 | L53: 0 | M53: 0 | O53: 0
A54: 1995 | B54: Contributions & Grants | G54: 0 | H54: 0 | I54: 0 | J54: 0 | L54: 0 | M54: 0 | O54: 0
A55: etc. | G55: 0 | H55: 0 | I55: 0 | J55: 0 | L55: 0 | M55: 0 | O55: 0
G56: 0 | H56: 0 | I56: 0 | J56: 0 | L56: 0 | M56: 0 | O56: 0
B57: Total | C57: =SUM(C17:C56) -> 0 | D57: =SUM(D17:D56) -> 0 | H57: =SUM(H17:H56) -> 0 | I57: 0 | J57: 0 | K57: 0 | L57: 0 | M57: 0 | N57: =SUM(N17:N56) -> 0 | O57: 0
A59: Notes:
A61: 1 | B61: Board policy of the "half-year" rule - the applicant must ensure that additions in the year attract a half-year depreciation expense in the first year. Deviations from this standard practice must be supported in the application.
A62: 2 | B62: The applicant must provide an explanation of material variances in evidence.
A63: 3 | B63: The applicant should ensure that the years for new additions of assets are the asset useful lives determined by management in accordance with the Board's regulatory accounting policies. The capitalization and depreciation expense accounting changes should be implemented consistent with the Board’s regulatory accounting policies as set out for modified IFRS as contained in the Report of the Board, Transition to International Financial Reporting Standards, EB-2008-0408, the Kinectrics Report, and the Revised 2012 Accounting Procedures Handbook for Electricity Distributors (“APH”).
A64: 4 | B64: A recalculation should be performed to determine the average remaining life of opening balance of assets (i.e. excluding 2012 additions) under the change in policies under CGAAP. For example, Asset A had a useful life of 20 years under CGAAP without the change in policies. On January 1, 2012, the effective date of the changes in policies, Asset A was 3 years depreciated. As a result, Asset A would have a remaining service life of 17 years (20 years less 3 years) as of January 1, 2012. Due to making the change in policies under CGAAP, management re-assessed the asset useful lives and concluded that the revised useful life of Asset A is now 30 years. Therefore, the average remaining useful life of the opening balance of Asset A is determined to be 27 years (30 years less 3 years) under the revised CGAAP as of January 1, 2012.
A65: 5 | B65: NBV must exclude assets still on the books but which have been fully amortized or depreciated.
A66: 6 | B66: This column refers to the calculated full year depreciation but excludes the depreciation expense on assets fully depreciated during the year. This column is used for the purpose of calculating depreciation expense in the following year on the next worksheet.
A68: General: | B68: Applicants must provide a breakdown of depreciation and amortization expense in the above format for all relevant accounts. Asset Retirement Obligations (AROs), depreciation and accretion expense should be disclosed separately consistent with the Notes of historical Audited Financial Statements.

Sheet App.2-CP_NewCGAAP_DepExp_2013 (hidden)
J1: File Number: | K1: =EBNUMBER -> EB-2013-0155
J2: Exhibit:
J3: Tab:
J4: Schedule:
J5: Page:
J7: Date:
A9: Appendix 2-CP
A10: Depreciation and Amortization Expense
A11: Assumes the applicant made capitalization and depreciation expense accounting policy changes under CGAAP effective January 1, 2012
C12: 2013 | D12: Revised CGAAP or ASPE - CGAAP or ASPE with the changes to the policies
A14: Account | B14: Description | C14: Additions | D14: Years (new additions only) | E14: Depreciation Rate on New Additions | F14: 2013 Depreciation Expense 1 | G14: 2013 Depreciation Expense per Apppendix 2-B Fixed Assets, Column K (l) | H14: Variance 2 | I14: Depreciation Expense on 2013 Full Year Additions | J14: Less Depreciation Expense on Assets Fully Depreciated during the year (o) | K14: 2013 Full Year Depreciation 3
C15: (d) | D15: (f) | E15: (g) = 1 / (f) | F15: (h)=2012 Full Year Deprecation + ((d)*0.5)/(f) | H15: (m) = (h) - (l) | I15: (n)=((d))/(f) | K15: (p) = 2012 Full Year Depreciation + (n) - (o)
A16: 1611 | B16: Computer Software (Formally known as Account 1925) | E16: =IF(D16=0,0,1/D16) -> 0 | F16: =IF(D16=0,+'App.2-CO_NewCGAAP_DepExp_2012'!O17,+'App.2-CO_NewCGAAP_DepExp_2012'!O17+((C16*0.5)/D16)) -> 0 | H16: =IF(ISERROR(+F16-G16), 0, +F16-G16) -> 0 | I16: =IF(D16=0,0,+(C16)/D16) -> 0 | K16: =IF(ISERROR(+I16+'App.2-CO_NewCGAAP_DepExp_2012'!O17-J16), 0, +I16+'App.2-CO_NewCGAAP_DepExp_2012'!O17-J16) -> 0
A17: 1612 | B17: Land Rights (Formally known as Account 1906) | E17: 0 | F17: =IF(D17=0,+'App.2-CO_NewCGAAP_DepExp_2012'!O18,+'App.2-CO_NewCGAAP_DepExp_2012'!O18+((C17*0.5)/D17)) -> 0 | H17: 0 | I17: 0 | K17: =IF(ISERROR(+I17+'App.2-CO_NewCGAAP_DepExp_2012'!O18-J17), 0, +I17+'App.2-CO_NewCGAAP_DepExp_2012'!O18-J17) -> 0
A18: 1805 | B18: Land | E18: 0 | F18: =IF(D18=0,+'App.2-CO_NewCGAAP_DepExp_2012'!O19,+'App.2-CO_NewCGAAP_DepExp_2012'!O19+((C18*0.5)/D18)) -> 0 | H18: 0 | I18: 0 | K18: =IF(ISERROR(+I18+'App.2-CO_NewCGAAP_DepExp_2012'!O19-J18), 0, +I18+'App.2-CO_NewCGAAP_DepExp_2012'!O19-J18) -> 0
A19: 1808 | B19: Buildings | E19: 0 | F19: =IF(D19=0,+'App.2-CO_NewCGAAP_DepExp_2012'!O20,+'App.2-CO_NewCGAAP_DepExp_2012'!O20+((C19*0.5)/D19)) -> 0 | H19: 0 | I19: 0 | K19: =IF(ISERROR(+I19+'App.2-CO_NewCGAAP_DepExp_2012'!O20-J19), 0, +I19+'App.2-CO_NewCGAAP_DepExp_2012'!O20-J19) -> 0
A20: 1810 | B20: Leasehold Improvements | E20: 0 | F20: =IF(D20=0,+'App.2-CO_NewCGAAP_DepExp_2012'!O21,+'App.2-CO_NewCGAAP_DepExp_2012'!O21+((C20*0.5)/D20)) -> 0 | H20: 0 | I20: 0 | K20: =IF(ISERROR(+I20+'App.2-CO_NewCGAAP_DepExp_2012'!O21-J20), 0, +I20+'App.2-CO_NewCGAAP_DepExp_2012'!O21-J20) -> 0
A21: 1815 | B21: Transformer Station Equipment >50 kV | E21: 0 | F21: =IF(D21=0,+'App.2-CO_NewCGAAP_DepExp_2012'!O22,+'App.2-CO_NewCGAAP_DepExp_2012'!O22+((C21*0.5)/D21)) -> 0 | H21: 0 | I21: 0 | K21: =IF(ISERROR(+I21+'App.2-CO_NewCGAAP_DepExp_2012'!O22-J21), 0, +I21+'App.2-CO_NewCGAAP_DepExp_2012'!O22-J21) -> 0
A22: 1820 | B22: Distribution Station Equipment <50 kV | E22: 0 | F22: =IF(D22=0,+'App.2-CO_NewCGAAP_DepExp_2012'!O23,+'App.2-CO_NewCGAAP_DepExp_2012'!O23+((C22*0.5)/D22)) -> 0 | H22: 0 | I22: 0 | K22: =IF(ISERROR(+I22+'App.2-CO_NewCGAAP_DepExp_2012'!O23-J22), 0, +I22+'App.2-CO_NewCGAAP_DepExp_2012'!O23-J22) -> 0
A23: 1825 | B23: Storage Battery Equipment | E23: 0 | F23: =IF(D23=0,+'App.2-CO_NewCGAAP_DepExp_2012'!O24,+'App.2-CO_NewCGAAP_DepExp_2012'!O24+((C23*0.5)/D23)) -> 0 | H23: 0 | I23: 0 | K23: =IF(ISERROR(+I23+'App.2-CO_NewCGAAP_DepExp_2012'!O24-J23), 0, +I23+'App.2-CO_NewCGAAP_DepExp_2012'!O24-J23) -> 0
A24: 1830 | B24: Poles, Towers & Fixtures | E24: 0 | F24: =IF(D24=0,+'App.2-CO_NewCGAAP_DepExp_2012'!O25,+'App.2-CO_NewCGAAP_DepExp_2012'!O25+((C24*0.5)/D24)) -> 0 | H24: 0 | I24: 0 | K24: =IF(ISERROR(+I24+'App.2-CO_NewCGAAP_DepExp_2012'!O25-J24), 0, +I24+'App.2-CO_NewCGAAP_DepExp_2012'!O25-J24) -> 0
A25: 1835 | B25: Overhead Conductors & Devices | E25: 0 | F25: =IF(D25=0,+'App.2-CO_NewCGAAP_DepExp_2012'!O26,+'App.2-CO_NewCGAAP_DepExp_2012'!O26+((C25*0.5)/D25)) -> 0 | H25: 0 | I25: 0 | K25: =IF(ISERROR(+I25+'App.2-CO_NewCGAAP_DepExp_2012'!O26-J25), 0, +I25+'App.2-CO_NewCGAAP_DepExp_2012'!O26-J25) -> 0
A26: 1840 | B26: Underground Conduit | E26: 0 | F26: =IF(D26=0,+'App.2-CO_NewCGAAP_DepExp_2012'!O27,+'App.2-CO_NewCGAAP_DepExp_2012'!O27+((C26*0.5)/D26)) -> 0 | H26: 0 | I26: 0 | K26: =IF(ISERROR(+I26+'App.2-CO_NewCGAAP_DepExp_2012'!O27-J26), 0, +I26+'App.2-CO_NewCGAAP_DepExp_2012'!O27-J26) -> 0
A27: 1845 | B27: Underground Conductors & Devices | E27: 0 | F27: =IF(D27=0,+'App.2-CO_NewCGAAP_DepExp_2012'!O28,+'App.2-CO_NewCGAAP_DepExp_2012'!O28+((C27*0.5)/D27)) -> 0 | H27: 0 | I27: 0 | K27: =IF(ISERROR(+I27+'App.2-CO_NewCGAAP_DepExp_2012'!O28-J27), 0, +I27+'App.2-CO_NewCGAAP_DepExp_2012'!O28-J27) -> 0
A28: 1850 | B28: Line Transformers | E28: 0 | F28: =IF(D28=0,+'App.2-CO_NewCGAAP_DepExp_2012'!O29,+'App.2-CO_NewCGAAP_DepExp_2012'!O29+((C28*0.5)/D28)) -> 0 | H28: 0 | I28: 0 | K28: =IF(ISERROR(+I28+'App.2-CO_NewCGAAP_DepExp_2012'!O29-J28), 0, +I28+'App.2-CO_NewCGAAP_DepExp_2012'!O29-J28) -> 0
A29: 1855 | B29: Services (Overhead & Underground) | E29: 0 | F29: =IF(D29=0,+'App.2-CO_NewCGAAP_DepExp_2012'!O30,+'App.2-CO_NewCGAAP_DepExp_2012'!O30+((C29*0.5)/D29)) -> 0 | H29: 0 | I29: 0 | K29: =IF(ISERROR(+I29+'App.2-CO_NewCGAAP_DepExp_2012'!O30-J29), 0, +I29+'App.2-CO_NewCGAAP_DepExp_2012'!O30-J29) -> 0
A30: 1860 | B30: Meters | E30: 0 | F30: =IF(D30=0,+'App.2-CO_NewCGAAP_DepExp_2012'!O31,+'App.2-CO_NewCGAAP_DepExp_2012'!O31+((C30*0.5)/D30)) -> 0 | H30: 0 | I30: 0 | K30: =IF(ISERROR(+I30+'App.2-CO_NewCGAAP_DepExp_2012'!O31-J30), 0, +I30+'App.2-CO_NewCGAAP_DepExp_2012'!O31-J30) -> 0
A31: 1860 | B31: Meters (Smart Meters) | E31: 0 | F31: =IF(D31=0,+'App.2-CO_NewCGAAP_DepExp_2012'!O32,+'App.2-CO_NewCGAAP_DepExp_2012'!O32+((C31*0.5)/D31)) -> 0 | H31: 0 | I31: 0 | K31: =IF(ISERROR(+I31+'App.2-CO_NewCGAAP_DepExp_2012'!O32-J31), 0, +I31+'App.2-CO_NewCGAAP_DepExp_2012'!O32-J31) -> 0
A32: 1905 | B32: Land | E32: 0 | F32: =IF(D32=0,+'App.2-CO_NewCGAAP_DepExp_2012'!O33,+'App.2-CO_NewCGAAP_DepExp_2012'!O33+((C32*0.5)/D32)) -> 0 | H32: 0 | I32: 0 | K32: =IF(ISERROR(+I32+'App.2-CO_NewCGAAP_DepExp_2012'!O33-J32), 0, +I32+'App.2-CO_NewCGAAP_DepExp_2012'!O33-J32) -> 0
A33: 1908 | B33: Buildings & Fixtures | E33: 0 | F33: =IF(D33=0,+'App.2-CO_NewCGAAP_DepExp_2012'!O34,+'App.2-CO_NewCGAAP_DepExp_2012'!O34+((C33*0.5)/D33)) -> 0 | H33: 0 | I33: 0 | K33: =IF(ISERROR(+I33+'App.2-CO_NewCGAAP_DepExp_2012'!O34-J33), 0, +I33+'App.2-CO_NewCGAAP_DepExp_2012'!O34-J33) -> 0
A34: 1910 | B34: Leasehold Improvements | E34: 0 | F34: =IF(D34=0,+'App.2-CO_NewCGAAP_DepExp_2012'!O35,+'App.2-CO_NewCGAAP_DepExp_2012'!O35+((C34*0.5)/D34)) -> 0 | H34: 0 | I34: 0 | K34: =IF(ISERROR(+I34+'App.2-CO_NewCGAAP_DepExp_2012'!O35-J34), 0, +I34+'App.2-CO_NewCGAAP_DepExp_2012'!O35-J34) -> 0
A35: 1915 | B35: Office Furniture & Equipment (10 years) | E35: 0 | F35: =IF(D35=0,+'App.2-CO_NewCGAAP_DepExp_2012'!O36,+'App.2-CO_NewCGAAP_DepExp_2012'!O36+((C35*0.5)/D35)) -> 0 | H35: 0 | I35: 0 | K35: =IF(ISERROR(+I35+'App.2-CO_NewCGAAP_DepExp_2012'!O36-J35), 0, +I35+'App.2-CO_NewCGAAP_DepExp_2012'!O36-J35) -> 0
A36: 1915 | B36: Office Furniture & Equipment (5 years) | E36: 0 | F36: =IF(D36=0,+'App.2-CO_NewCGAAP_DepExp_2012'!O37,+'App.2-CO_NewCGAAP_DepExp_2012'!O37+((C36*0.5)/D36)) -> 0 | H36: 0 | I36: 0 | K36: =IF(ISERROR(+I36+'App.2-CO_NewCGAAP_DepExp_2012'!O37-J36), 0, +I36+'App.2-CO_NewCGAAP_DepExp_2012'!O37-J36) -> 0
A37: 1920 | B37: Computer Equipment - Hardware | E37: 0 | F37: =IF(D37=0,+'App.2-CO_NewCGAAP_DepExp_2012'!O38,+'App.2-CO_NewCGAAP_DepExp_2012'!O38+((C37*0.5)/D37)) -> 0 | H37: 0 | I37: 0 | K37: =IF(ISERROR(+I37+'App.2-CO_NewCGAAP_DepExp_2012'!O38-J37), 0, +I37+'App.2-CO_NewCGAAP_DepExp_2012'!O38-J37) -> 0
A38: 1920 | B38: Computer Equip.-Hardware(Post Mar. 22/04) | E38: 0 | F38: =IF(D38=0,+'App.2-CO_NewCGAAP_DepExp_2012'!O39,+'App.2-CO_NewCGAAP_DepExp_2012'!O39+((C38*0.5)/D38)) -> 0 | H38: 0 | I38: 0 | K38: =IF(ISERROR(+I38+'App.2-CO_NewCGAAP_DepExp_2012'!O39-J38), 0, +I38+'App.2-CO_NewCGAAP_DepExp_2012'!O39-J38) -> 0
A39: 1920 | B39: Computer Equip.-Hardware(Post Mar. 19/07) | E39: 0 | F39: =IF(D39=0,+'App.2-CO_NewCGAAP_DepExp_2012'!O40,+'App.2-CO_NewCGAAP_DepExp_2012'!O40+((C39*0.5)/D39)) -> 0 | H39: 0 | I39: 0 | K39: =IF(ISERROR(+I39+'App.2-CO_NewCGAAP_DepExp_2012'!O40-J39), 0, +I39+'App.2-CO_NewCGAAP_DepExp_2012'!O40-J39) -> 0
A40: 1930 | B40: Transportation Equipment | E40: 0 | F40: =IF(D40=0,+'App.2-CO_NewCGAAP_DepExp_2012'!O41,+'App.2-CO_NewCGAAP_DepExp_2012'!O41+((C40*0.5)/D40)) -> 0 | H40: 0 | I40: 0 | K40: =IF(ISERROR(+I40+'App.2-CO_NewCGAAP_DepExp_2012'!O41-J40), 0, +I40+'App.2-CO_NewCGAAP_DepExp_2012'!O41-J40) -> 0
A41: 1935 | B41: Stores Equipment | E41: 0 | F41: =IF(D41=0,+'App.2-CO_NewCGAAP_DepExp_2012'!O42,+'App.2-CO_NewCGAAP_DepExp_2012'!O42+((C41*0.5)/D41)) -> 0 | H41: 0 | I41: 0 | K41: =IF(ISERROR(+I41+'App.2-CO_NewCGAAP_DepExp_2012'!O42-J41), 0, +I41+'App.2-CO_NewCGAAP_DepExp_2012'!O42-J41) -> 0
A42: 1940 | B42: Tools, Shop & Garage Equipment | E42: 0 | F42: =IF(D42=0,+'App.2-CO_NewCGAAP_DepExp_2012'!O43,+'App.2-CO_NewCGAAP_DepExp_2012'!O43+((C42*0.5)/D42)) -> 0 | H42: 0 | I42: 0 | K42: =IF(ISERROR(+I42+'App.2-CO_NewCGAAP_DepExp_2012'!O43-J42), 0, +I42+'App.2-CO_NewCGAAP_DepExp_2012'!O43-J42) -> 0
A43: 1945 | B43: Measurement & Testing Equipment | E43: 0 | F43: =IF(D43=0,+'App.2-CO_NewCGAAP_DepExp_2012'!O44,+'App.2-CO_NewCGAAP_DepExp_2012'!O44+((C43*0.5)/D43)) -> 0 | H43: 0 | I43: 0 | K43: =IF(ISERROR(+I43+'App.2-CO_NewCGAAP_DepExp_2012'!O44-J43), 0, +I43+'App.2-CO_NewCGAAP_DepExp_2012'!O44-J43) -> 0
A44: 1950 | B44: Power Operated Equipment | E44: 0 | F44: =IF(D44=0,+'App.2-CO_NewCGAAP_DepExp_2012'!O45,+'App.2-CO_NewCGAAP_DepExp_2012'!O45+((C44*0.5)/D44)) -> 0 | H44: 0 | I44: 0 | K44: =IF(ISERROR(+I44+'App.2-CO_NewCGAAP_DepExp_2012'!O45-J44), 0, +I44+'App.2-CO_NewCGAAP_DepExp_2012'!O45-J44) -> 0
A45: 1955 | B45: Communications Equipment | E45: 0 | F45: =IF(D45=0,+'App.2-CO_NewCGAAP_DepExp_2012'!O46,+'App.2-CO_NewCGAAP_DepExp_2012'!O46+((C45*0.5)/D45)) -> 0 | H45: 0 | I45: 0 | K45: =IF(ISERROR(+I45+'App.2-CO_NewCGAAP_DepExp_2012'!O46-J45), 0, +I45+'App.2-CO_NewCGAAP_DepExp_2012'!O46-J45) -> 0
A46: 1955 | B46: Communication Equipment (Smart Meters) | E46: 0 | F46: =IF(D46=0,+'App.2-CO_NewCGAAP_DepExp_2012'!O47,+'App.2-CO_NewCGAAP_DepExp_2012'!O47+((C46*0.5)/D46)) -> 0 | H46: 0 | I46: 0 | K46: =IF(ISERROR(+I46+'App.2-CO_NewCGAAP_DepExp_2012'!O47-J46), 0, +I46+'App.2-CO_NewCGAAP_DepExp_2012'!O47-J46) -> 0
A47: 1960 | B47: Miscellaneous Equipment | E47: 0 | F47: =IF(D47=0,+'App.2-CO_NewCGAAP_DepExp_2012'!O48,+'App.2-CO_NewCGAAP_DepExp_2012'!O48+((C47*0.5)/D47)) -> 0 | H47: 0 | I47: 0 | K47: =IF(ISERROR(+I47+'App.2-CO_NewCGAAP_DepExp_2012'!O48-J47), 0, +I47+'App.2-CO_NewCGAAP_DepExp_2012'!O48-J47) -> 0
A48: 1970 | B48: Load Management Controls - Customer Premises | E48: 0 | F48: =IF(D48=0,+'App.2-CO_NewCGAAP_DepExp_2012'!O49,+'App.2-CO_NewCGAAP_DepExp_2012'!O49+((C48*0.5)/D48)) -> 0 | H48: 0 | I48: 0 | K48: =IF(ISERROR(+I48+'App.2-CO_NewCGAAP_DepExp_2012'!O49-J48), 0, +I48+'App.2-CO_NewCGAAP_DepExp_2012'!O49-J48) -> 0
A49: 1975 | B49: Load Management Controls Utility Premises | E49: 0 | F49: =IF(D49=0,+'App.2-CO_NewCGAAP_DepExp_2012'!O50,+'App.2-CO_NewCGAAP_DepExp_2012'!O50+((C49*0.5)/D49)) -> 0 | H49: 0 | I49: 0 | K49: =IF(ISERROR(+I49+'App.2-CO_NewCGAAP_DepExp_2012'!O50-J49), 0, +I49+'App.2-CO_NewCGAAP_DepExp_2012'!O50-J49) -> 0
A50: 1980 | B50: System Supervisor Equipment | E50: 0 | F50: =IF(D50=0,+'App.2-CO_NewCGAAP_DepExp_2012'!O51,+'App.2-CO_NewCGAAP_DepExp_2012'!O51+((C50*0.5)/D50)) -> 0 | H50: 0 | I50: 0 | K50: =IF(ISERROR(+I50+'App.2-CO_NewCGAAP_DepExp_2012'!O51-J50), 0, +I50+'App.2-CO_NewCGAAP_DepExp_2012'!O51-J50) -> 0
A51: 1985 | B51: Miscellaneous Fixed Assets | E51: 0 | F51: =IF(D51=0,+'App.2-CO_NewCGAAP_DepExp_2012'!O52,+'App.2-CO_NewCGAAP_DepExp_2012'!O52+((C51*0.5)/D51)) -> 0 | H51: 0 | I51: 0 | K51: =IF(ISERROR(+I51+'App.2-CO_NewCGAAP_DepExp_2012'!O52-J51), 0, +I51+'App.2-CO_NewCGAAP_DepExp_2012'!O52-J51) -> 0
A52: 1990 | B52: Other Tangible Property | E52: 0 | F52: =IF(D52=0,+'App.2-CO_NewCGAAP_DepExp_2012'!O53,+'App.2-CO_NewCGAAP_DepExp_2012'!O53+((C52*0.5)/D52)) -> 0 | H52: 0 | I52: 0 | K52: =IF(ISERROR(+I52+'App.2-CO_NewCGAAP_DepExp_2012'!O53-J52), 0, +I52+'App.2-CO_NewCGAAP_DepExp_2012'!O53-J52) -> 0
A53: 1995 | B53: Contributions & Grants | E53: 0 | F53: =IF(D53=0,+'App.2-CO_NewCGAAP_DepExp_2012'!O54,+'App.2-CO_NewCGAAP_DepExp_2012'!O54+((C53*0.5)/D53)) -> 0 | H53: 0 | I53: 0 | K53: =IF(ISERROR(+I53+'App.2-CO_NewCGAAP_DepExp_2012'!O54-J53), 0, +I53+'App.2-CO_NewCGAAP_DepExp_2012'!O54-J53) -> 0
A54: etc. | E54: 0 | F54: =IF(D54=0,+'App.2-CO_NewCGAAP_DepExp_2012'!O55,+'App.2-CO_NewCGAAP_DepExp_2012'!O55+((C54*0.5)/D54)) -> 0 | H54: 0 | I54: 0 | K54: =IF(ISERROR(+I54+'App.2-CO_NewCGAAP_DepExp_2012'!O55-J54), 0, +I54+'App.2-CO_NewCGAAP_DepExp_2012'!O55-J54) -> 0
E55: 0 | F55: =IF(D55=0,+'App.2-CO_NewCGAAP_DepExp_2012'!O56,+'App.2-CO_NewCGAAP_DepExp_2012'!O56+((C55*0.5)/D55)) -> 0 | H55: 0 | I55: 0 | K55: =IF(ISERROR(+I55+'App.2-CO_NewCGAAP_DepExp_2012'!O56-J55), 0, +I55+'App.2-CO_NewCGAAP_DepExp_2012'!O56-J55) -> 0
B56: Total | C56: =SUM(C16:C55) -> 0 | F56: =SUM(F16:F55) -> 0 | G56: 0 | H56: 0 | I56: 0 | J56: 0 | K56: 0
A58: Notes:
A59: 1 | B59: Board policy of the "half-year" rule - the applicant must ensure that additions in the year attract a half-year depreciation expense in the first year. Deviations from this standard practice must be supported in the application.
A60: 2 | B60: The applicant must provide an explanation of material variances in evidence.
A61: 3 | B61: This column refers to the calculated full year depreciation but excludes the depreciation expense on assets fully depreciated during the year. This column is used for the purpose of calculating depreciation expense in the following year on the next worksheet.
A63: General: | B63: Applicants must provide a breakdown of depreciation and amortization expense in the above format for all relevant accounts. Asset Retirement Obligations (AROs), depreciation and accretion expense should be disclosed separately consistent with the Notes of historical Audited Financial Statements.

Sheet App.2-CQ NewCGAAP_DepExp_2014 (hidden)
G1: File Number: | H1: =EBNUMBER -> EB-2013-0155
G2: Exhibit:
G3: Tab:
G4: Schedule:
G5: Page:
G7: Date:
A9: Appendix 2-CQ
A10: Depreciation and Amortization Expense
A11: Assumes the applicant made capitalization and depreciation expense accounting policy changes under CGAAP effective January 1, 2012
B12: 2014 | C12: Revised CGAAP or ASPE - CGAAP or ASPE with the changes to the policies
A14: Account | B14: Description | C14: Additions | D14: Years (new additions only) | E14: Depreciation Rate on New Additions | F14: 2014 Depreciation Expense 1 | G14: 2014 Depreciation Expense per Appendix 2-B Fixed Assets, Column K (l) | H14: Variance 2
C15: (d) | D15: (f) | E15: (g) = 1 / (f) | F15: (h)=2013 Full Year Depreciation + ((d)*0.5)/(f) | H15: (m) = (h) - (l)
A16: 1611 | B16: Computer Software (Formally known as Account 1925) | E16: =IF(D16=0,0,1/D16) -> 0 | F16: =IF(D16=0,'App.2-CP_NewCGAAP_DepExp_2013'!K16,+'App.2-CP_NewCGAAP_DepExp_2013'!K16+((C16*0.5)/D16)) -> 0 | H16: =IF(ISERROR(+F16-G16), 0, +F16-G16) -> 0
A17: 1612 | B17: Land Rights (Formally known as Account 1906) | E17: 0 | F17: =IF(D17=0,'App.2-CP_NewCGAAP_DepExp_2013'!K17,+'App.2-CP_NewCGAAP_DepExp_2013'!K17+((C17*0.5)/D17)) -> 0 | H17: 0
A18: 1805 | B18: Land | E18: 0 | F18: =IF(D18=0,'App.2-CP_NewCGAAP_DepExp_2013'!K18,+'App.2-CP_NewCGAAP_DepExp_2013'!K18+((C18*0.5)/D18)) -> 0 | H18: 0
A19: 1808 | B19: Buildings | E19: 0 | F19: =IF(D19=0,'App.2-CP_NewCGAAP_DepExp_2013'!K19,+'App.2-CP_NewCGAAP_DepExp_2013'!K19+((C19*0.5)/D19)) -> 0 | H19: 0
A20: 1810 | B20: Leasehold Improvements | E20: 0 | F20: =IF(D20=0,'App.2-CP_NewCGAAP_DepExp_2013'!K20,+'App.2-CP_NewCGAAP_DepExp_2013'!K20+((C20*0.5)/D20)) -> 0 | H20: 0
A21: 1815 | B21: Transformer Station Equipment >50 kV | E21: 0 | F21: =IF(D21=0,'App.2-CP_NewCGAAP_DepExp_2013'!K21,+'App.2-CP_NewCGAAP_DepExp_2013'!K21+((C21*0.5)/D21)) -> 0 | H21: 0
A22: 1820 | B22: Distribution Station Equipment <50 kV | E22: 0 | F22: =IF(D22=0,'App.2-CP_NewCGAAP_DepExp_2013'!K22,+'App.2-CP_NewCGAAP_DepExp_2013'!K22+((C22*0.5)/D22)) -> 0 | H22: 0
A23: 1825 | B23: Storage Battery Equipment | E23: 0 | F23: =IF(D23=0,'App.2-CP_NewCGAAP_DepExp_2013'!K23,+'App.2-CP_NewCGAAP_DepExp_2013'!K23+((C23*0.5)/D23)) -> 0 | H23: 0
A24: 1830 | B24: Poles, Towers & Fixtures | E24: 0 | F24: =IF(D24=0,'App.2-CP_NewCGAAP_DepExp_2013'!K24,+'App.2-CP_NewCGAAP_DepExp_2013'!K24+((C24*0.5)/D24)) -> 0 | H24: 0
A25: 1835 | B25: Overhead Conductors & Devices | E25: 0 | F25: =IF(D25=0,'App.2-CP_NewCGAAP_DepExp_2013'!K25,+'App.2-CP_NewCGAAP_DepExp_2013'!K25+((C25*0.5)/D25)) -> 0 | H25: 0
A26: 1840 | B26: Underground Conduit | E26: 0 | F26: =IF(D26=0,'App.2-CP_NewCGAAP_DepExp_2013'!K26,+'App.2-CP_NewCGAAP_DepExp_2013'!K26+((C26*0.5)/D26)) -> 0 | H26: 0
A27: 1845 | B27: Underground Conductors & Devices | E27: 0 | F27: =IF(D27=0,'App.2-CP_NewCGAAP_DepExp_2013'!K27,+'App.2-CP_NewCGAAP_DepExp_2013'!K27+((C27*0.5)/D27)) -> 0 | H27: 0
A28: 1850 | B28: Line Transformers | E28: 0 | F28: =IF(D28=0,'App.2-CP_NewCGAAP_DepExp_2013'!K28,+'App.2-CP_NewCGAAP_DepExp_2013'!K28+((C28*0.5)/D28)) -> 0 | H28: 0
A29: 1855 | B29: Services (Overhead & Underground) | E29: 0 | F29: =IF(D29=0,'App.2-CP_NewCGAAP_DepExp_2013'!K29,+'App.2-CP_NewCGAAP_DepExp_2013'!K29+((C29*0.5)/D29)) -> 0 | H29: 0
A30: 1860 | B30: Meters | E30: 0 | F30: =IF(D30=0,'App.2-CP_NewCGAAP_DepExp_2013'!K30,+'App.2-CP_NewCGAAP_DepExp_2013'!K30+((C30*0.5)/D30)) -> 0 | H30: 0
A31: 1860 | B31: Meters (Smart Meters) | E31: 0 | F31: =IF(D31=0,'App.2-CP_NewCGAAP_DepExp_2013'!K31,+'App.2-CP_NewCGAAP_DepExp_2013'!K31+((C31*0.5)/D31)) -> 0 | H31: 0
A32: 1905 | B32: Land | E32: 0 | F32: =IF(D32=0,'App.2-CP_NewCGAAP_DepExp_2013'!K32,+'App.2-CP_NewCGAAP_DepExp_2013'!K32+((C32*0.5)/D32)) -> 0 | H32: 0
A33: 1908 | B33: Buildings & Fixtures | E33: 0 | F33: =IF(D33=0,'App.2-CP_NewCGAAP_DepExp_2013'!K33,+'App.2-CP_NewCGAAP_DepExp_2013'!K33+((C33*0.5)/D33)) -> 0 | H33: 0
A34: 1910 | B34: Leasehold Improvements | E34: 0 | F34: =IF(D34=0,'App.2-CP_NewCGAAP_DepExp_2013'!K34,+'App.2-CP_NewCGAAP_DepExp_2013'!K34+((C34*0.5)/D34)) -> 0 | H34: 0
A35: 1915 | B35: Office Furniture & Equipment (10 years) | E35: 0 | F35: =IF(D35=0,'App.2-CP_NewCGAAP_DepExp_2013'!K35,+'App.2-CP_NewCGAAP_DepExp_2013'!K35+((C35*0.5)/D35)) -> 0 | H35: 0
A36: 1915 | B36: Office Furniture & Equipment (5 years) | E36: 0 | F36: =IF(D36=0,'App.2-CP_NewCGAAP_DepExp_2013'!K36,+'App.2-CP_NewCGAAP_DepExp_2013'!K36+((C36*0.5)/D36)) -> 0 | H36: 0
A37: 1920 | B37: Computer Equipment - Hardware | E37: 0 | F37: =IF(D37=0,'App.2-CP_NewCGAAP_DepExp_2013'!K37,+'App.2-CP_NewCGAAP_DepExp_2013'!K37+((C37*0.5)/D37)) -> 0 | H37: 0
A38: 1920 | B38: Computer Equip.-Hardware(Post Mar. 22/04) | E38: 0 | F38: =IF(D38=0,'App.2-CP_NewCGAAP_DepExp_2013'!K38,+'App.2-CP_NewCGAAP_DepExp_2013'!K38+((C38*0.5)/D38)) -> 0 | H38: 0
A39: 1920 | B39: Computer Equip.-Hardware(Post Mar. 19/07) | E39: 0 | F39: =IF(D39=0,'App.2-CP_NewCGAAP_DepExp_2013'!K39,+'App.2-CP_NewCGAAP_DepExp_2013'!K39+((C39*0.5)/D39)) -> 0 | H39: 0
A40: 1930 | B40: Transportation Equipment | E40: 0 | F40: =IF(D40=0,'App.2-CP_NewCGAAP_DepExp_2013'!K40,+'App.2-CP_NewCGAAP_DepExp_2013'!K40+((C40*0.5)/D40)) -> 0 | H40: 0
A41: 1935 | B41: Stores Equipment | E41: 0 | F41: =IF(D41=0,'App.2-CP_NewCGAAP_DepExp_2013'!K41,+'App.2-CP_NewCGAAP_DepExp_2013'!K41+((C41*0.5)/D41)) -> 0 | H41: 0
A42: 1940 | B42: Tools, Shop & Garage Equipment | E42: 0 | F42: =IF(D42=0,'App.2-CP_NewCGAAP_DepExp_2013'!K42,+'App.2-CP_NewCGAAP_DepExp_2013'!K42+((C42*0.5)/D42)) -> 0 | H42: 0
A43: 1945 | B43: Measurement & Testing Equipment | E43: 0 | F43: =IF(D43=0,'App.2-CP_NewCGAAP_DepExp_2013'!K43,+'App.2-CP_NewCGAAP_DepExp_2013'!K43+((C43*0.5)/D43)) -> 0 | H43: 0
A44: 1950 | B44: Power Operated Equipment | E44: 0 | F44: =IF(D44=0,'App.2-CP_NewCGAAP_DepExp_2013'!K44,+'App.2-CP_NewCGAAP_DepExp_2013'!K44+((C44*0.5)/D44)) -> 0 | H44: 0
A45: 1955 | B45: Communications Equipment | E45: 0 | F45: =IF(D45=0,'App.2-CP_NewCGAAP_DepExp_2013'!K45,+'App.2-CP_NewCGAAP_DepExp_2013'!K45+((C45*0.5)/D45)) -> 0 | H45: 0
A46: 1955 | B46: Communication Equipment (Smart Meters) | E46: 0 | F46: =IF(D46=0,'App.2-CP_NewCGAAP_DepExp_2013'!K46,+'App.2-CP_NewCGAAP_DepExp_2013'!K46+((C46*0.5)/D46)) -> 0 | H46: 0
A47: 1960 | B47: Miscellaneous Equipment | E47: 0 | F47: =IF(D47=0,'App.2-CP_NewCGAAP_DepExp_2013'!K47,+'App.2-CP_NewCGAAP_DepExp_2013'!K47+((C47*0.5)/D47)) -> 0 | H47: 0
A48: 1970 | B48: Load Management Controls - Customer Premises | E48: 0 | F48: =IF(D48=0,'App.2-CP_NewCGAAP_DepExp_2013'!K48,+'App.2-CP_NewCGAAP_DepExp_2013'!K48+((C48*0.5)/D48)) -> 0 | H48: 0
A49: 1975 | B49: Load Management Controls Utility Premises | E49: 0 | F49: =IF(D49=0,'App.2-CP_NewCGAAP_DepExp_2013'!K49,+'App.2-CP_NewCGAAP_DepExp_2013'!K49+((C49*0.5)/D49)) -> 0 | H49: 0
A50: 1980 | B50: System Supervisor Equipment | E50: 0 | F50: =IF(D50=0,'App.2-CP_NewCGAAP_DepExp_2013'!K50,+'App.2-CP_NewCGAAP_DepExp_2013'!K50+((C50*0.5)/D50)) -> 0 | H50: 0
A51: 1985 | B51: Miscellaneous Fixed Assets | E51: 0 | F51: =IF(D51=0,'App.2-CP_NewCGAAP_DepExp_2013'!K51,+'App.2-CP_NewCGAAP_DepExp_2013'!K51+((C51*0.5)/D51)) -> 0 | H51: 0
A52: 1990 | B52: Other Tangible Property | E52: 0 | F52: =IF(D52=0,'App.2-CP_NewCGAAP_DepExp_2013'!K52,+'App.2-CP_NewCGAAP_DepExp_2013'!K52+((C52*0.5)/D52)) -> 0 | H52: 0
A53: 1995 | B53: Contributions & Grants | E53: 0 | F53: =IF(D53=0,'App.2-CP_NewCGAAP_DepExp_2013'!K53,+'App.2-CP_NewCGAAP_DepExp_2013'!K53+((C53*0.5)/D53)) -> 0 | H53: 0
A54: etc. | E54: 0 | F54: =IF(D54=0,'App.2-CP_NewCGAAP_DepExp_2013'!K54,+'App.2-CP_NewCGAAP_DepExp_2013'!K54+((C54*0.5)/D54)) -> 0 | H54: 0
E55: 0 | F55: =IF(D55=0,'App.2-CP_NewCGAAP_DepExp_2013'!K55,+'App.2-CP_NewCGAAP_DepExp_2013'!K55+((C55*0.5)/D55)) -> 0 | H55: 0
B56: Total | C56: =SUM(C16:C55) -> 0 | F56: =SUM(F16:F55) -> 0 | G56: =SUM(G16:G55) -> 0 | H56: =SUM(H16:H55) -> 0
B57: Total Depreciation expense to be included in the test year revenue requirement | F57: =+F56 -> 0
A58: Notes:
A59: 1 | B59: Board policy of the "half-year" rule - the applicant must ensure that additions in the year attract a half-year depreciation expense in the first year. Deviations from this standard practice must be supported in the application.
A60: 2 | B60: The applicant must provide an explanation of material variances in evidence.
A62: General: | B62: Applicants must provide a breakdown of depreciation and amortization expense in the above format for all relevant accounts. Asset Retirement Obligations (AROs), depreciation and accretion expense should be disclosed separately consistent with the Notes of historical Audited Financial Statements.

Sheet App.2-CR_OldCGAAP_DepExp_2012
K1: File Number: | L1: =EBNUMBER -> EB-2013-0155
K2: Exhibit: | L2: 4
K3: Tab: | L3: 3
K4: Schedule: | L4: 1
K5: Page: | L5: 6
K7: Date: | L7: ='App.2-AA_Capital Projects'!$H$7 -> 2014-04-08
A9: Appendix 2-CR
A10: Depreciation and Amortization Expense
A11: Assumes the applicant made capitalization and depreciation expense accounting policy changes under CGAAP effective January 1, 2013
C12: Year | D12: 2012 | E12: Former CGAAP - CGAAP without the changes to the policies
A14: Account | B14: Description | C14: Opening Regulatory Gross PP&E as at Jan 1, 2012 | D14: Less Fully Depreciated | E14: Net for Depreciation | F14: Additions | G14: Total for Depreciation | H14: Years | I14: Depreciation Rate | J14: 2012 Depreciation Expense | K14: 2012 Depreciation Expense per Appendix 2-B Fixed Assets, Column K (l) | L14: Variance 2
C15: (a) | D15: (b) | E15: (c) | F15: (d) | G15: (e) = (c) + ½ x (d) 1 | H15: (f) | I15: (g) = 1 / (f) | J15: (h) = (e) / (f) | L15: (m) = (h) - (l)
A16: 1611 | B16: Computer Software (Formally known as Account 1925) | C16: ='App.2-BA1_Fix Asset Cont.CGAAP'!D228 -> 0 | E16: =C16-D16 -> 0 | F16: ='App.2-BA1_Fix Asset Cont.CGAAP'!E228+'App.2-BA1_Fix Asset Cont.CGAAP'!F228 -> 0 | G16: =E16+0.5*F16 -> 0 | I16: =IF(H16=0,"",1/H16) ->  | J16: =IF(H16=0,0,G16/H16) -> 0 | K16: =-'App.2-BA1_Fix Asset Cont.CGAAP'!J228 -> 0 | L16: =IF(ISERROR(+J16-K16), "", +J16-K16) -> 0
A17: 1612 | B17: Land Rights (Formally known as Account 1906) | C17: ='App.2-BA1_Fix Asset Cont.CGAAP'!D229 -> 0 | E17: =C17-D17 -> 0 | F17: ='App.2-BA1_Fix Asset Cont.CGAAP'!E229+'App.2-BA1_Fix Asset Cont.CGAAP'!F229 -> 0 | G17: =E17+0.5*F17 -> 0 | J17: 0 | K17: =-'App.2-BA1_Fix Asset Cont.CGAAP'!J229 -> 0 | L17: =IF(ISERROR(+J17-K17), "", +J17-K17) -> 0
A18: 1805 | B18: Land | C18: ='App.2-BA1_Fix Asset Cont.CGAAP'!D230 -> 258134.21 | E18: 258134.21 | F18: ='App.2-BA1_Fix Asset Cont.CGAAP'!E230+'App.2-BA1_Fix Asset Cont.CGAAP'!F230 -> 0 | G18: 258134.21 | J18: 0 | K18: =-'App.2-BA1_Fix Asset Cont.CGAAP'!J230 -> 0 | L18: 0
A19: 1808 | B19: Buildings | C19: ='App.2-BA1_Fix Asset Cont.CGAAP'!D231 -> 0 | E19: 0 | F19: ='App.2-BA1_Fix Asset Cont.CGAAP'!E231+'App.2-BA1_Fix Asset Cont.CGAAP'!F231 -> 0 | G19: 0 | J19: 0 | K19: =-'App.2-BA1_Fix Asset Cont.CGAAP'!J231 -> 0 | L19: 0
A20: 1810 | B20: Leasehold Improvements | C20: ='App.2-BA1_Fix Asset Cont.CGAAP'!D232 -> 0 | E20: 0 | F20: ='App.2-BA1_Fix Asset Cont.CGAAP'!E232+'App.2-BA1_Fix Asset Cont.CGAAP'!F232 -> 0 | G20: 0 | J20: 0 | K20: =-'App.2-BA1_Fix Asset Cont.CGAAP'!J232 -> 0 | L20: 0
A21: 1815 | B21: Transformer Station Equipment >50 kV | C21: ='App.2-BA1_Fix Asset Cont.CGAAP'!D233 -> 5411028.04 | D21: 0 | E21: 5411028.04 | F21: ='App.2-BA1_Fix Asset Cont.CGAAP'!E233+'App.2-BA1_Fix Asset Cont.CGAAP'!F233 -> 11980 | G21: 5417018.04 | H21: =-('[18]Asset Continuity'!$C$20+'[18]Asset Continuity'!$D$20/2)/'[18]Asset Continuity'!$K$20 -> 39.91396561 | I21: 0.0250538874 | J21: 135717.36 | K21: =-'App.2-BA1_Fix Asset Cont.CGAAP'!J233 -> 135717.36 | L21: -2.910383046e-11
A22: 1820 | B22: Distribution Station Equipment <50 kV | C22: ='App.2-BA1_Fix Asset Cont.CGAAP'!D234 -> 160630.29 | D22: =ROUND(MAX(0,(C22-H22*K22+F22/2)),0) -> 68437 | E22: 92193.29 | F22: ='App.2-BA1_Fix Asset Cont.CGAAP'!E234+'App.2-BA1_Fix Asset Cont.CGAAP'!F234 -> 0 | G22: 92193.29 | H22: 30 | I22: 0.03333333333 | J22: 3073.109667 | K22: =-'App.2-BA1_Fix Asset Cont.CGAAP'!J234 -> 3073.1 | L22: 0.009666666667 | O22: f | P22: c | Q22: b | R22: e | S22: d | T22: y
A23: 1825 | B23: Storage Battery Equipment | C23: ='App.2-BA1_Fix Asset Cont.CGAAP'!D235 -> 0 | E23: 0 | F23: ='App.2-BA1_Fix Asset Cont.CGAAP'!E235+'App.2-BA1_Fix Asset Cont.CGAAP'!F235 -> 0 | G23: 0 | J23: 0 | K23: =-'App.2-BA1_Fix Asset Cont.CGAAP'!J235 -> 0 | L23: 0
A24: 1830 | B24: Poles, Towers & Fixtures | C24: ='App.2-BA1_Fix Asset Cont.CGAAP'!D236 -> 4919118.76 | D24: =MAX(0,(C24-H24*K24+F24/2)) -> 1155251.46 | E24: 3763867.3 | F24: ='App.2-BA1_Fix Asset Cont.CGAAP'!E236+'App.2-BA1_Fix Asset Cont.CGAAP'!F236 -> 175460.4 | G24: 3851597.5 | H24: 25 | I24: 0.04 | J24: 154063.9 | K24: =-'App.2-BA1_Fix Asset Cont.CGAAP'!J236 -> 154063.9 | L24: 0 | O24: ='App.2-CS_OldCGAAP_DepExp_2013'!K24 -> 164744.1456 | P24: =K24 -> 154063.9 | Q24: =F24 -> 175460.4 | R24: ='App.2-CS_OldCGAAP_DepExp_2013'!F24 -> 218230.4 | S24: 0 | T24: =((Q24+R24)/2-S24)/(O24-P24) -> 18.43079339
A25: 1835 | B25: Overhead Conductors & Devices | C25: ='App.2-BA1_Fix Asset Cont.CGAAP'!D237 -> 6451057.34 | D25: 1444832.875 | E25: 5006224.465 | F25: ='App.2-BA1_Fix Asset Cont.CGAAP'!E237+'App.2-BA1_Fix Asset Cont.CGAAP'!F237 -> 201549.07 | G25: 5106999 | H25: 25 | I25: 0.04 | J25: 204279.96 | K25: =-'App.2-BA1_Fix Asset Cont.CGAAP'!J237 -> 204279.96 | L25: 0
A26: 1840 | B26: Underground Conduit | C26: ='App.2-BA1_Fix Asset Cont.CGAAP'!D238 -> 4600346.48 | D26: 220948.765 | E26: 4379397.715 | F26: ='App.2-BA1_Fix Asset Cont.CGAAP'!E238+'App.2-BA1_Fix Asset Cont.CGAAP'!F238 -> 387761.07 | G26: 4573278.25 | H26: 25 | I26: 0.04 | J26: 182931.13 | K26: =-'App.2-BA1_Fix Asset Cont.CGAAP'!J238 -> 182931.13 | L26: 0
A27: 1845 | B27: Underground Conductors & Devices | C27: ='App.2-BA1_Fix Asset Cont.CGAAP'!D239 -> 8495334.05 | D27: 483447.845 | E27: 8011886.205 | F27: ='App.2-BA1_Fix Asset Cont.CGAAP'!E239+'App.2-BA1_Fix Asset Cont.CGAAP'!F239 -> 315423.09 | G27: 8169597.75 | H27: 25 | I27: 0.04 | J27: 326783.91 | K27: =-'App.2-BA1_Fix Asset Cont.CGAAP'!J239 -> 326783.91 | L27: 0
A28: 1850 | B28: Line Transformers | C28: ='App.2-BA1_Fix Asset Cont.CGAAP'!D240 -> 7613810.02 | D28: 716935.48 | E28: 6896874.54 | F28: ='App.2-BA1_Fix Asset Cont.CGAAP'!E240+'App.2-BA1_Fix Asset Cont.CGAAP'!F240 -> 246479.92 | G28: 7020114.5 | H28: 25 | I28: 0.04 | J28: 280804.58 | K28: =-'App.2-BA1_Fix Asset Cont.CGAAP'!J240 -> 280804.58 | L28: 0
A29: 1855 | B29: Services (Overhead & Underground) | C29: ='App.2-BA1_Fix Asset Cont.CGAAP'!D241 -> 2522344.55 | D29: 5.820766091e-11 | E29: 2522344.55 | F29: ='App.2-BA1_Fix Asset Cont.CGAAP'!E241+'App.2-BA1_Fix Asset Cont.CGAAP'!F241 -> 361866.38 | G29: 2703277.74 | H29: =-('[18]Asset Continuity'!$C$33+'[18]Asset Continuity'!$C$39+'[18]Asset Continuity'!$D$33/2+'[18]Asset Continuity'!$D$39/2)/('[18]Asset Continuity'!$K$33+'[18]Asset Continuity'!$K$39) -> 24.95745288 | I29: 0.04006819144 | J29: 108315.45 | K29: =-'App.2-BA1_Fix Asset Cont.CGAAP'!J241 -> 108315.45 | L29: 0
A30: 1860 | B30: Meters | C30: ='App.2-BA1_Fix Asset Cont.CGAAP'!D242-C31 -> 729779.66 | D30: 214186.04 | E30: 515593.62 | F30: ='App.2-BA1_Fix Asset Cont.CGAAP'!E242+'App.2-BA1_Fix Asset Cont.CGAAP'!F242 -> 2179.76 | G30: 516683.5 | H30: 25 | I30: 0.04 | J30: 20667.34 | K30: =-'App.2-BA1_Fix Asset Cont.CGAAP'!J242-K31 -> 20667.34 | L30: 0
A31: 1860 | B31: Meters - Stranded | C31: ='[11]Asset Continuity'!$C$52 -> 349266.36 | D31: =SUM('[18]Stranded Meters'!$B$3:$D$3) -> 110064.423 | E31: 239201.937 | F31: 0 | G31: 239201.937 | H31: 25 | I31: 0.04 | J31: 9568.07748 | K31: =-'[11]Asset Continuity'!$K$52 -> 30918.66 | L31: -21350.58252 | M31: Column K includes recording of depreciation expenses for 2010 and 2011 which had been omitted in those years.
A32: 1860 | B32: Meters (Smart Meters) | C32: ='App.2-BA1_Fix Asset Cont.CGAAP'!D243 -> 0 | D32: 0 | E32: 0 | F32: ='App.2-BA1_Fix Asset Cont.CGAAP'!E243+'App.2-BA1_Fix Asset Cont.CGAAP'!F243 -> 1699031.54 | G32: 849515.77 | H32: 15 | I32: 0.06666666667 | J32: 56634.38467 | K32: =-'App.2-BA1_Fix Asset Cont.CGAAP'!J243 -> 281583.78 | L32: -224949.3953 | M32: Column K includes disposition of depreciation that occurred while capital asset was in account 1555
A33: 1905 | B33: Land | C33: ='App.2-BA1_Fix Asset Cont.CGAAP'!D244 -> 49000 | E33: 49000 | F33: ='App.2-BA1_Fix Asset Cont.CGAAP'!E244+'App.2-BA1_Fix Asset Cont.CGAAP'!F244 -> 0 | G33: 49000 | J33: 0 | K33: =-'App.2-BA1_Fix Asset Cont.CGAAP'!J244 -> 0 | L33: 0
A34: 1908 | B34: Buildings & Fixtures | C34: ='App.2-BA1_Fix Asset Cont.CGAAP'!D245 -> 1026925.2 | D34: =ROUND(MAX(0,(C34-H34*K34+F34/2)),0) -> 132434 | E34: 894491.2 | F34: ='App.2-BA1_Fix Asset Cont.CGAAP'!E245+'App.2-BA1_Fix Asset Cont.CGAAP'!F245 -> 26722.84 | G34: 907852.62 | H34: =50*('[18]Asset Continuity'!$C$60+'[18]Asset Continuity'!$D$60/2)/SUM('[18]Asset Continuity'!$C$60:$D$61)+25*'[18]Asset Continuity'!$C$61/(SUM('[18]Asset Continuity'!$C$60:$D$61)) -> 49.15974669 | I34: 0.02034184607 | J34: 18467.39825 | K34: =-'App.2-BA1_Fix Asset Cont.CGAAP'!J245 -> 18467.39 | L34: 0.008248999718
A35: 1910 | B35: Leasehold Improvements | C35: ='App.2-BA1_Fix Asset Cont.CGAAP'!D246 -> 0 | E35: 0 | F35: ='App.2-BA1_Fix Asset Cont.CGAAP'!E246+'App.2-BA1_Fix Asset Cont.CGAAP'!F246 -> 0 | G35: 0 | J35: 0 | K35: =-'App.2-BA1_Fix Asset Cont.CGAAP'!J246 -> 0 | L35: 0
A36: 1915 | B36: Office Furniture & Equipment (10 years) | C36: ='App.2-BA1_Fix Asset Cont.CGAAP'!D247 -> 214124.57 | D36: =ROUND(MAX(0,(C36-H36*K36+F36/2)),0) -> 125142 | E36: 88982.57 | F36: ='App.2-BA1_Fix Asset Cont.CGAAP'!E247+'App.2-BA1_Fix Asset Cont.CGAAP'!F247 -> 0 | G36: 88982.57 | H36: 10 | I36: 0.1 | J36: 8898.257 | K36: =-'App.2-BA1_Fix Asset Cont.CGAAP'!J247 -> 8898.29 | L36: -0.033
A37: 1915 | B37: Office Furniture & Equipment (5 years) | C37: ='App.2-BA1_Fix Asset Cont.CGAAP'!D248 -> 0 | E37: 0 | F37: ='App.2-BA1_Fix Asset Cont.CGAAP'!E248+'App.2-BA1_Fix Asset Cont.CGAAP'!F248 -> 0 | G37: 0 | J37: 0 | K37: =-'App.2-BA1_Fix Asset Cont.CGAAP'!J248 -> 0 | L37: 0
A38: 1920 | B38: Computer Equipment - Hardware | C38: ='App.2-BA1_Fix Asset Cont.CGAAP'!D249 -> 360387.24 | D38: =ROUND(MAX(0,(C38-H38*K38+F38/2)),0) -> 282471 | E38: 77916.24 | F38: ='App.2-BA1_Fix Asset Cont.CGAAP'!E249+'App.2-BA1_Fix Asset Cont.CGAAP'!F249 -> 15753.01 | G38: 85792.745 | H38: 5 | I38: 0.2 | J38: 17158.549 | K38: =-'App.2-BA1_Fix Asset Cont.CGAAP'!J249 -> 17158.54 | L38: 0.008999999998
A39: 1920 | B39: Computer Equip.-Hardware(Post Mar. 22/04) | C39: ='App.2-BA1_Fix Asset Cont.CGAAP'!D250 -> 0 | E39: 0 | F39: ='App.2-BA1_Fix Asset Cont.CGAAP'!E250+'App.2-BA1_Fix Asset Cont.CGAAP'!F250 -> 0 | G39: 0 | J39: 0 | K39: =-'App.2-BA1_Fix Asset Cont.CGAAP'!J250 -> 0 | L39: 0
A40: 1920 | B40: Computer Equip.-Hardware(Post Mar. 19/07) | C40: ='App.2-BA1_Fix Asset Cont.CGAAP'!D251 -> 0 | E40: 0 | F40: ='App.2-BA1_Fix Asset Cont.CGAAP'!E251+'App.2-BA1_Fix Asset Cont.CGAAP'!F251 -> 0 | G40: 0 | J40: 0 | K40: =-'App.2-BA1_Fix Asset Cont.CGAAP'!J251 -> 0 | L40: 0
A41: 1925 | B41: Computer Software | C41: ='App.2-BA1_Fix Asset Cont.CGAAP'!D252 -> 1596078.94 | D41: =ROUND(MAX(0,(C41-H41*K41+F41/2)),0) -> 1122727 | E41: 473351.94 | F41: ='App.2-BA1_Fix Asset Cont.CGAAP'!E252+'App.2-BA1_Fix Asset Cont.CGAAP'!F252 -> 115338.03 | G41: 531020.955 | H41: 3 | I41: 0.3333333333 | J41: 177006.985 | K41: =-'App.2-BA1_Fix Asset Cont.CGAAP'!J252 -> 177007.1 | L41: -0.115
A42: 1925 | B42: Computer Software (CIS TOU upgrade) | C42: 0 | D42: 0 | E42: 0 | F42: ='[11]Asset Continuity'!$D$68 -> 170000 | G42: 85000 | H42: 5 | I42: =IF(H42=0,"",1/H42) -> 0.2 | J42: =IF(H42=0,0,G42/H42) -> 17000 | K42: =-'App.2-BA1_Fix Asset Cont.CGAAP'!J253 -> 51000 | L42: -34000 | M42: Column K includes disposition of depreciation that occurred while capital asset was in account 1555
A43: 1930 | B43: Transportation Equipment<3 tons | C43: ='App.2-BA1_Fix Asset Cont.CGAAP'!D254 -> 141064.76 | D43: =ROUND(MAX(0,(C43-H43*K43+F43/2)),0) -> 79922 | E43: 61142.76 | F43: ='App.2-BA1_Fix Asset Cont.CGAAP'!E254+'App.2-BA1_Fix Asset Cont.CGAAP'!F254 -> 0 | G43: 61142.76 | H43: 5 | I43: 0.2 | J43: 12228.552 | K43: =-'App.2-BA1_Fix Asset Cont.CGAAP'!J254-N43 -> 12228.63 | L43: -0.07799999998 | N43: 68473.48
A44: 1930 | B44: Transportation Equipment>3 tons | C44: ='App.2-BA1_Fix Asset Cont.CGAAP'!D255 -> 960314.61 | D44: =ROUND(MAX(0,(C44-H44*K44+F44/2)),0) -> 172902 | E44: 787412.61 | F44: ='App.2-BA1_Fix Asset Cont.CGAAP'!E255+'App.2-BA1_Fix Asset Cont.CGAAP'!F255 -> -19733.54 | G44: 777545.84 | H44: 8 | I44: 0.125 | J44: 97193.23 | K44: =-'App.2-BA1_Fix Asset Cont.CGAAP'!J255-N44 -> 97193.19 | L44: 0.04000000007 | N44: 396681.74
A45: 1930 | B45: Transportation Equipment-trailer | C45: ='App.2-BA1_Fix Asset Cont.CGAAP'!D256 -> 38458.05 | D45: =C45 -> 38458.05 | E45: 0 | F45: ='App.2-BA1_Fix Asset Cont.CGAAP'!E256+'App.2-BA1_Fix Asset Cont.CGAAP'!F256 -> 0 | G45: 0 | H45: 5 | I45: 0.2 | J45: 0 | K45: =-'App.2-BA1_Fix Asset Cont.CGAAP'!J256-N45 -> 0 | L45: 0 | N45: 29904.82
A46: 1930 | B46: Transportation Equipment-old account | C46: ='App.2-BA1_Fix Asset Cont.CGAAP'!D257 -> 0 | D46: 0 | E46: 0 | F46: ='App.2-BA1_Fix Asset Cont.CGAAP'!E257+'App.2-BA1_Fix Asset Cont.CGAAP'!F257 -> 0 | G46: 0 | J46: 0 | K46: =-'App.2-BA1_Fix Asset Cont.CGAAP'!J257+N46 -> 0.06 | L46: -0.06 | N46: =SUM(N43:N45) -> 495060.04
A47: 1935 | B47: Stores Equipment | C47: ='App.2-BA1_Fix Asset Cont.CGAAP'!D258 -> 24638.14 | D47: =MAX(0,(C47-H47*K47+F47/2)) -> 14211.475 | E47: 10426.665 | F47: ='App.2-BA1_Fix Asset Cont.CGAAP'!E258+'App.2-BA1_Fix Asset Cont.CGAAP'!F258 -> 45.47 | G47: 10449.4 | H47: 10 | I47: 0.1 | J47: 1044.94 | K47: =-'App.2-BA1_Fix Asset Cont.CGAAP'!J258 -> 1044.94 | L47: 0
A48: 1940 | B48: Tools, Shop & Garage Equipment | C48: ='App.2-BA1_Fix Asset Cont.CGAAP'!D259 -> 460047.11 | D48: 300527.36 | E48: 159519.75 | F48: ='App.2-BA1_Fix Asset Cont.CGAAP'!E259+'App.2-BA1_Fix Asset Cont.CGAAP'!F259 -> 3265.7 | G48: 161152.6 | H48: 10 | I48: 0.1 | J48: 16115.26 | K48: =-'App.2-BA1_Fix Asset Cont.CGAAP'!J259 -> 16115.26 | L48: 0
A49: 1945 | B49: Measurement & Testing Equipment | C49: ='App.2-BA1_Fix Asset Cont.CGAAP'!D260 -> 0 | E49: 0 | F49: ='App.2-BA1_Fix Asset Cont.CGAAP'!E260+'App.2-BA1_Fix Asset Cont.CGAAP'!F260 -> 0 | G49: 0 | J49: 0 | K49: =-'App.2-BA1_Fix Asset Cont.CGAAP'!J260 -> 0 | L49: 0
A50: 1950 | B50: Power Operated Equipment | C50: ='App.2-BA1_Fix Asset Cont.CGAAP'!D261 -> 0 | E50: 0 | F50: ='App.2-BA1_Fix Asset Cont.CGAAP'!E261+'App.2-BA1_Fix Asset Cont.CGAAP'!F261 -> 0 | G50: 0 | J50: 0 | K50: =-'App.2-BA1_Fix Asset Cont.CGAAP'!J261 -> 0 | L50: 0
A51: 1955 | B51: Communications Equipment | C51: ='App.2-BA1_Fix Asset Cont.CGAAP'!D262 -> 54383.11 | D51: =MAX(0,(C51-H51*K51+F51/2)) -> 14315.41 | E51: 40067.7 | F51: ='App.2-BA1_Fix Asset Cont.CGAAP'!E262+'App.2-BA1_Fix Asset Cont.CGAAP'!F262 -> 0 | G51: 40067.7 | H51: 10 | I51: 0.1 | J51: 4006.77 | K51: =-'App.2-BA1_Fix Asset Cont.CGAAP'!J262 -> 4006.77 | L51: -4.547473509e-13
A52: 1955 | B52: Communication Equipment (Smart Meters) | C52: ='App.2-BA1_Fix Asset Cont.CGAAP'!D263 -> 0 | E52: 0 | F52: ='App.2-BA1_Fix Asset Cont.CGAAP'!E263+'App.2-BA1_Fix Asset Cont.CGAAP'!F263 -> 0 | G52: 0 | J52: 0 | K52: =-'App.2-BA1_Fix Asset Cont.CGAAP'!J263 -> 0 | L52: 0
A53: 1960 | B53: Miscellaneous Equipment | C53: ='App.2-BA1_Fix Asset Cont.CGAAP'!D264 -> 0 | E53: 0 | F53: ='App.2-BA1_Fix Asset Cont.CGAAP'!E264+'App.2-BA1_Fix Asset Cont.CGAAP'!F264 -> 0 | G53: 0 | J53: 0 | K53: =-'App.2-BA1_Fix Asset Cont.CGAAP'!J264 -> 0 | L53: 0
A54: 1970 | B54: Load Management Controls - Customer Premises | C54: ='App.2-BA1_Fix Asset Cont.CGAAP'!D265 -> 0 | E54: 0 | F54: ='App.2-BA1_Fix Asset Cont.CGAAP'!E265+'App.2-BA1_Fix Asset Cont.CGAAP'!F265 -> 0 | G54: 0 | J54: 0 | K54: =-'App.2-BA1_Fix Asset Cont.CGAAP'!J265 -> 0 | L54: 0
A55: 1975 | B55: Load Management Controls Utility Premises | C55: ='App.2-BA1_Fix Asset Cont.CGAAP'!D266 -> 0 | E55: 0 | F55: ='App.2-BA1_Fix Asset Cont.CGAAP'!E266+'App.2-BA1_Fix Asset Cont.CGAAP'!F266 -> 0 | G55: 0 | J55: 0 | K55: =-'App.2-BA1_Fix Asset Cont.CGAAP'!J266 -> 0 | L55: 0
A56: 1980 | B56: System Supervisor Equipment | C56: ='App.2-BA1_Fix Asset Cont.CGAAP'!D267 -> 325967.71 | D56: =MAX(0,(C56-H56*K56+F56/2)) -> 83067.01 | E56: 242900.7 | F56: ='App.2-BA1_Fix Asset Cont.CGAAP'!E267+'App.2-BA1_Fix Asset Cont.CGAAP'!F267 -> 0 | G56: 242900.7 | H56: 15 | I56: 0.06666666667 | J56: 16193.38 | K56: =-'App.2-BA1_Fix Asset Cont.CGAAP'!J267 -> 16193.38 | L56: 0
A57: 1985 | B57: Miscellaneous Fixed Assets | C57: ='App.2-BA1_Fix Asset Cont.CGAAP'!D268 -> 0 | E57: 0 | F57: ='App.2-BA1_Fix Asset Cont.CGAAP'!E268+'App.2-BA1_Fix Asset Cont.CGAAP'!F268 -> 0 | G57: 0 | J57: 0 | K57: =-'App.2-BA1_Fix Asset Cont.CGAAP'!J268 -> 0 | L57: 0
A58: 1990 | B58: Other Tangible Property | C58: ='App.2-BA1_Fix Asset Cont.CGAAP'!D269 -> 0 | E58: 0 | F58: ='App.2-BA1_Fix Asset Cont.CGAAP'!E269+'App.2-BA1_Fix Asset Cont.CGAAP'!F269 -> 0 | G58: 0 | J58: 0 | K58: =-'App.2-BA1_Fix Asset Cont.CGAAP'!J269 -> 0 | L58: 0
A59: 1995 | B59: Contributions & Grants | C59: ='App.2-BA1_Fix Asset Cont.CGAAP'!D270 -> -6253643.7 | D59: =(C59-H59*K59+F59/2) -> -3625.141469 | E59: -6250018.559 | F59: ='App.2-BA1_Fix Asset Cont.CGAAP'!E270+'App.2-BA1_Fix Asset Cont.CGAAP'!F270 -> -382455.78 | G59: -6441246.449 | H59: =25*6622/6635+50*13/6635 -> 25.04898267 | I59: 0.03992178099 | J59: -257146.03 | K59: =-'App.2-BA1_Fix Asset Cont.CGAAP'!J270 -> -257146.03 | L59: 0
A60: etc. | E60: 0 | G60: 0 | J60: 0 | L60: 0
E61: 0 | G61: 0 | J61: 0 | L61: 0
B62: Total | C62: =SUM(C16:C61) -> 40508595.5 | D62: =SUM(D16:D61) -> 6776656.052 | E62: =SUM(E16:E61) -> 33731939.45 | F62: =SUM(F16:F61) -> 3330666.96 | G62: =SUM(G16:G61) -> 35397272.93 | J62: =SUM(J16:J61) -> 1611006.493 | K62: =SUM(K16:K61) -> 1891306.69 | L62: =SUM(L16:L61) -> -280300.1969
A64: Notes:
A65: 1 | B65: Board policy of the "half-year" rule - the applicant must ensure that additions in the year attract a half-year depreciation expense in the first year. Deviations from this standard practice must be supported in the application.
A66: 2 | B66: The applicant must provide an explanation of material variances in evidence. | E66: SEE CELLS M31, M32 and M42
A68: General: | B68: Applicants must provide a breakdown of depreciation and amortization expense in the above format for all relevant accounts. Asset Retirement Obligations (AROs), depreciation and accretion expense should be disclosed separately consistent with the Notes of historical Audited Financial Statements.

Sheet App.2-CS_OldCGAAP_DepExp_2013
K1: File Number: | L1: =EBNUMBER -> EB-2013-0155
K2: Exhibit: | L2: 4
K3: Tab: | L3: 3
K4: Schedule: | L4: 1
K5: Page: | L5: 8
K7: Date: | L7: ='App.2-AA_Capital Projects'!$H$7 -> 2014-04-08
A9: Appendix 2-CS
A10: Depreciation and Amortization Expense
A11: Assumes the applicant made capitalization and depreciation expense accounting policy changes under CGAAP effective January 1, 2013
C12: Year | D12: 2013 | E12: Former CGAAP - CGAAP without the changes to the policies
A14: Account | B14: Description | C14: Opening Regulatory Gross PP&E as at Jan 1, 2013 | D14: Less Fully Depreciated | E14: Net for Depreciation | F14: Additions | G14: Total for Depreciation | H14: Years | I14: Depreciation Rate | J14: 2013 Depreciation Expense | K14: 2013 Depreciation Expense per Appendix 2-B Fixed Assets, Column K (l) | L14: Variance 2
C15: (a) | D15: (b) | E15: (c) | F15: (d) | G15: (e) = (c) + ½ x (d) 1 | H15: (f) | I15: (g) = 1 / (f) | J15: (h) = (e) / (f) | L15: (m) = (h) - (l)
A16: 1611 | B16: Computer Software (Formally known as Account 1925) | E16: =C16-D16 -> 0 | G16: =E16+0.5*F16 -> 0 | I16: =IF(H16=0,0,1/H16) -> 0 | J16: =IF(H16=0,0,G16/H16) -> 0 | L16: =IF(ISERROR(+J16-K16), 0, +J16-K16) -> 0
A17: 1612 | B17: Land Rights (Formally known as Account 1906) | C17: ='App.2-BA1_Fix Asset Cont.CGAAP'!D467 -> 0 | E17: =C17-D17 -> 0 | G17: =E17+0.5*F17 -> 0 | I17: 0 | J17: 0 | K17: =-'App.2-BA1_Fix Asset Cont.CGAAP'!J467 -> 0 | L17: 0
A18: 1805 | B18: Land | C18: ='App.2-BA1_Fix Asset Cont.CGAAP'!D468 -> 258134.21 | E18: 258134.21 | F18: ='App.2-BA1_Fix Asset Cont.CGAAP'!E468+'App.2-BA1_Fix Asset Cont.CGAAP'!F468 -> 0 | G18: 258134.21 | I18: 0 | J18: 0 | L18: 0
A19: 1808 | B19: Buildings | E19: 0 | F19: ='App.2-BA1_Fix Asset Cont.CGAAP'!E469+'App.2-BA1_Fix Asset Cont.CGAAP'!F469 -> 0 | G19: 0 | I19: 0 | J19: 0 | L19: 0
A20: 1810 | B20: Leasehold Improvements | E20: 0 | F20: ='App.2-BA1_Fix Asset Cont.CGAAP'!E470+'App.2-BA1_Fix Asset Cont.CGAAP'!F470 -> 0 | G20: 0 | I20: 0 | J20: 0 | L20: 0
A21: 1815 | B21: Transformer Station Equipment >50 kV | C21: ='App.2-BA1_Fix Asset Cont.CGAAP'!D471 -> 5423008.04 | D21: ='App.2-CR_OldCGAAP_DepExp_2012'!D21 -> 0 | E21: 5423008.04 | F21: ='App.2-BA1_Fix Asset Cont.CGAAP'!E471+'App.2-BA1_Fix Asset Cont.CGAAP'!F471 -> 0 | G21: 5423008.04 | H21: 40 | I21: 0.025 | J21: 135575.201 | K21: =-'App.2-BA1_Fix Asset Cont.CGAAP'!J471 -> 135575.201 | L21: 0
A22: 1820 | B22: Distribution Station Equipment <50 kV | C22: ='App.2-BA1_Fix Asset Cont.CGAAP'!D472 -> 160630.29 | D22: =C22-K22 -> 112703.3793 | E22: 47926.91067 | F22: ='App.2-BA1_Fix Asset Cont.CGAAP'!E472+'App.2-BA1_Fix Asset Cont.CGAAP'!F472 -> 0 | G22: 47926.91067 | H22: 1 | I22: 1 | J22: 47926.91067 | K22: =-'App.2-BA1_Fix Asset Cont.CGAAP'!J472 -> 47926.91067 | L22: -7.275957614e-12
A23: 1825 | B23: Storage Battery Equipment | C23: ='App.2-BA1_Fix Asset Cont.CGAAP'!D473 -> 0 | E23: 0 | F23: ='App.2-BA1_Fix Asset Cont.CGAAP'!E473+'App.2-BA1_Fix Asset Cont.CGAAP'!F473 -> 0 | G23: 0 | I23: 0 | J23: 0 | L23: 0
A24: 1830 | B24: Poles, Towers & Fixtures | C24: ='App.2-BA1_Fix Asset Cont.CGAAP'!D474 -> 5094579.16 | D24: ='App.2-CR_OldCGAAP_DepExp_2012'!D24 -> 1155251.46 | E24: 3939327.7 | F24: ='App.2-BA1_Fix Asset Cont.CGAAP'!E474+'App.2-BA1_Fix Asset Cont.CGAAP'!F474 -> 218230.4 | G24: 4048442.9 | H24: 25 | I24: 0.04 | J24: 161937.716 | K24: =-'App.2-BA1_Fix Asset Cont.CGAAP'!J474 -> 164744.1456 | L24: -2806.4296
A25: 1835 | B25: Overhead Conductors & Devices | C25: ='App.2-BA1_Fix Asset Cont.CGAAP'!D475 -> 6652606.41 | D25: ='App.2-CR_OldCGAAP_DepExp_2012'!D25 -> 1444832.875 | E25: 5207773.535 | F25: ='App.2-BA1_Fix Asset Cont.CGAAP'!E475+'App.2-BA1_Fix Asset Cont.CGAAP'!F475 -> 104313.86 | G25: 5259930.465 | H25: ='App.2-CR_OldCGAAP_DepExp_2012'!H25 -> 25 | I25: 0.04 | J25: 210397.2186 | K25: =-'App.2-BA1_Fix Asset Cont.CGAAP'!J475 -> 213194.0761 | L25: -2796.8575
A26: 1840 | B26: Underground Conduit | C26: ='App.2-BA1_Fix Asset Cont.CGAAP'!D476 -> 4988107.55 | D26: ='App.2-CR_OldCGAAP_DepExp_2012'!D26 -> 220948.765 | E26: 4767158.785 | F26: ='App.2-BA1_Fix Asset Cont.CGAAP'!E476+'App.2-BA1_Fix Asset Cont.CGAAP'!F476 -> 261598.54 | G26: 4897958.055 | H26: ='App.2-CR_OldCGAAP_DepExp_2012'!H26 -> 25 | I26: 0.04 | J26: 195918.3222 | K26: =-'App.2-BA1_Fix Asset Cont.CGAAP'!J476 -> 195509.334 | L26: 408.9882
A27: 1845 | B27: Underground Conductors & Devices | C27: ='App.2-BA1_Fix Asset Cont.CGAAP'!D477 -> 8810757.14 | D27: ='App.2-CR_OldCGAAP_DepExp_2012'!D27 -> 483447.845 | E27: 8327309.295 | F27: ='App.2-BA1_Fix Asset Cont.CGAAP'!E477+'App.2-BA1_Fix Asset Cont.CGAAP'!F477 -> 507775.47 | G27: 8581197.03 | H27: ='App.2-CR_OldCGAAP_DepExp_2012'!H27 -> 25 | I27: 0.04 | J27: 343247.8812 | K27: =-'App.2-BA1_Fix Asset Cont.CGAAP'!J477 -> 342468.0022 | L27: 779.879
A28: 1850 | B28: Line Transformers | C28: ='App.2-BA1_Fix Asset Cont.CGAAP'!D478 -> 7860289.94 | D28: ='App.2-CR_OldCGAAP_DepExp_2012'!D28 -> 716935.48 | E28: 7143354.46 | F28: ='App.2-BA1_Fix Asset Cont.CGAAP'!E478+'App.2-BA1_Fix Asset Cont.CGAAP'!F478 -> 215198.73 | G28: 7250953.825 | H28: ='App.2-CR_OldCGAAP_DepExp_2012'!H28 -> 25 | I28: 0.04 | J28: 290038.153 | K28: =-'App.2-BA1_Fix Asset Cont.CGAAP'!J478 -> 290016.7742 | L28: 21.3788
A29: 1855 | B29: Services (Overhead & Underground) | C29: ='App.2-BA1_Fix Asset Cont.CGAAP'!D479 -> 2884210.93 | D29: ='App.2-CR_OldCGAAP_DepExp_2012'!D29 -> 5.820766091e-11 | E29: 2884210.93 | F29: ='App.2-BA1_Fix Asset Cont.CGAAP'!E479+'App.2-BA1_Fix Asset Cont.CGAAP'!F479 -> 255796.8 | G29: 3012109.33 | H29: ='App.2-CR_OldCGAAP_DepExp_2012'!H29 -> 24.95745288 | I29: 0.04006819144 | J29: 120689.7733 | K29: =-'App.2-BA1_Fix Asset Cont.CGAAP'!J479 -> 120484.3748 | L29: 205.3984706
A30: 1860 | B30: Meters | C30: ='App.2-BA1_Fix Asset Cont.CGAAP'!D480 -> 731959.42 | D30: ='App.2-CR_OldCGAAP_DepExp_2012'!D30+'[18]Dist Meters'!$B$50 -> 240171.54 | E30: 491787.88 | F30: ='App.2-BA1_Fix Asset Cont.CGAAP'!E480+'App.2-BA1_Fix Asset Cont.CGAAP'!F480 -> 27480.57 | G30: 505528.165 | H30: ='App.2-CR_OldCGAAP_DepExp_2012'!H30 -> 25 | I30: 0.04 | J30: 20221.1266 | K30: =-'App.2-BA1_Fix Asset Cont.CGAAP'!J480 -> 19855.38857 | L30: 365.7380308
A31: 1860 | B31: Meters - Stranded | C31: ='App.2-BA1_Fix Asset Cont.CGAAP'!D481 -> 349266.36 | D31: ='App.2-CR_OldCGAAP_DepExp_2012'!D31+'[18]Stranded Meters'!$E$3 -> 119408.723 | E31: =C31-D31 -> 229857.637 | F31: 0 | G31: =E31+0.5*F31 -> 229857.637 | H31: ='App.2-CR_OldCGAAP_DepExp_2012'!H31 -> 25 | I31: =IF(H31=0,0,1/H31) -> 0.04 | J31: =IF(H31=0,0,G31/H31) -> 9194.30548 | K31: =-'App.2-BA1_Fix Asset Cont.CGAAP'!J481 -> 9461.8028 | L31: =IF(ISERROR(+J31-K31), 0, +J31-K31) -> -267.49732 | M31: Note treatment of stranded meters
A32: 1860 | B32: Meters (Smart Meters) | C32: ='App.2-BA1_Fix Asset Cont.CGAAP'!D482 -> 1699031.54 | D32: ='App.2-CR_OldCGAAP_DepExp_2012'!D32 -> 0 | E32: 1699031.54 | F32: ='App.2-BA1_Fix Asset Cont.CGAAP'!E482+'App.2-BA1_Fix Asset Cont.CGAAP'!F482 -> 19477.78 | G32: 1708770.43 | H32: ='App.2-CR_OldCGAAP_DepExp_2012'!H32 -> 15 | I32: 0.06666666667 | J32: 113918.0287 | K32: =-'App.2-BA1_Fix Asset Cont.CGAAP'!J482 -> 113918.0287 | L32: 1.455191523e-11
A33: 1905 | B33: Land | C33: ='App.2-BA1_Fix Asset Cont.CGAAP'!D483 -> 49000 | E33: 49000 | F33: ='App.2-BA1_Fix Asset Cont.CGAAP'!E483+'App.2-BA1_Fix Asset Cont.CGAAP'!F483 -> 0 | G33: 49000 | I33: 0 | J33: 0 | L33: 0
A34: 1908 | B34: Buildings & Fixtures | C34: ='App.2-BA1_Fix Asset Cont.CGAAP'!D484 -> 1053648.04 | D34: ='App.2-CR_OldCGAAP_DepExp_2012'!D34 -> 132434 | E34: 921214.04 | F34: ='App.2-BA1_Fix Asset Cont.CGAAP'!E484+'App.2-BA1_Fix Asset Cont.CGAAP'!F484 -> 1060 | G34: 921744.04 | H34: ='App.2-CR_OldCGAAP_DepExp_2012'!H34 -> 49.15974669 | I34: 0.02034184607 | J34: 18749.97538 | K34: =-'App.2-BA1_Fix Asset Cont.CGAAP'!J484 -> 18705.7642 | L34: 44.21117631
A35: 1910 | B35: Leasehold Improvements | C35: ='App.2-BA1_Fix Asset Cont.CGAAP'!D485 -> 0 | E35: 0 | F35: ='App.2-BA1_Fix Asset Cont.CGAAP'!E485+'App.2-BA1_Fix Asset Cont.CGAAP'!F485 -> 0 | G35: 0 | I35: 0 | J35: 0 | L35: 0
A36: 1915 | B36: Office Furniture & Equipment (10 years) | C36: ='App.2-BA1_Fix Asset Cont.CGAAP'!D486 -> 214124.57 | D36: ='App.2-CR_OldCGAAP_DepExp_2012'!D36+'[18]Office Equip'!$K$3/2 -> 127681.19 | E36: 86443.38 | F36: ='App.2-BA1_Fix Asset Cont.CGAAP'!E486+'App.2-BA1_Fix Asset Cont.CGAAP'!F486 -> 2508.75 | G36: 87697.755 | H36: ='App.2-CR_OldCGAAP_DepExp_2012'!H36 -> 10 | I36: 0.1 | J36: 8769.7755 | K36: =-'App.2-BA1_Fix Asset Cont.CGAAP'!J486 -> 8744.6665 | L36: 25.109
A37: 1915 | B37: Office Furniture & Equipment (5 years) | C37: ='App.2-BA1_Fix Asset Cont.CGAAP'!D487 -> 0 | E37: 0 | F37: ='App.2-BA1_Fix Asset Cont.CGAAP'!E487+'App.2-BA1_Fix Asset Cont.CGAAP'!F487 -> 0 | G37: 0 | I37: 0 | J37: 0 | L37: 0
A38: 1920 | B38: Computer Equipment - Hardware | C38: ='App.2-BA1_Fix Asset Cont.CGAAP'!D488 -> 376140.25 | D38: ='App.2-CR_OldCGAAP_DepExp_2012'!D38+'[18]Computer Equip'!$R$3 -> 303746.43 | E38: 72393.82 | F38: ='App.2-BA1_Fix Asset Cont.CGAAP'!E488+'App.2-BA1_Fix Asset Cont.CGAAP'!F488 -> 38761.72 | G38: 91774.68 | H38: ='App.2-CR_OldCGAAP_DepExp_2012'!H38 -> 5 | I38: 0.2 | J38: 18354.936 | K38: =-'App.2-BA1_Fix Asset Cont.CGAAP'!J488 -> 18359.454 | L38: -4.518
A39: 1920 | B39: Computer Equip.-Hardware(Post Mar. 22/04) | C39: ='App.2-BA1_Fix Asset Cont.CGAAP'!D489 -> 0 | E39: 0 | F39: ='App.2-BA1_Fix Asset Cont.CGAAP'!E489+'App.2-BA1_Fix Asset Cont.CGAAP'!F489 -> 0 | G39: 0 | I39: 0 | J39: 0 | L39: 0
A40: 1920 | B40: Computer Equip.-Hardware(Post Mar. 19/07) | C40: ='App.2-BA1_Fix Asset Cont.CGAAP'!D490 -> 0 | E40: 0 | F40: ='App.2-BA1_Fix Asset Cont.CGAAP'!E490+'App.2-BA1_Fix Asset Cont.CGAAP'!F490 -> 0 | G40: 0 | I40: 0 | J40: 0 | L40: 0
A41: 1925 | B41: Computer Software | C41: ='App.2-BA1_Fix Asset Cont.CGAAP'!D491 -> 1711416.97 | D41: ='App.2-CR_OldCGAAP_DepExp_2012'!D41+'[18]Computer Software'!$T$3 -> 1388201.55 | E41: =C41-D41 -> 323215.42 | F41: ='App.2-BA1_Fix Asset Cont.CGAAP'!E491+'App.2-BA1_Fix Asset Cont.CGAAP'!F491 -> 104895.44 | G41: =E41+0.5*F41 -> 375663.14 | H41: ='App.2-CR_OldCGAAP_DepExp_2012'!H41 -> 3 | I41: =IF(H41=0,0,1/H41) -> 0.3333333333 | J41: =IF(H41=0,0,G41/H41) -> 125221.0467 | K41: =-'App.2-BA1_Fix Asset Cont.CGAAP'!J491 -> 119168.4467 | L41: =IF(ISERROR(+J41-K41), 0, +J41-K41) -> 6052.6
A42: 1925 | B42: Computer Software (CIS TOU upgrade) | C42: ='App.2-BA1_Fix Asset Cont.CGAAP'!D492 -> 170000 | D42: 0 | E42: 170000 | F42: ='App.2-BA1_Fix Asset Cont.CGAAP'!E492+'App.2-BA1_Fix Asset Cont.CGAAP'!F492 -> 0 | G42: 170000 | H42: 5 | I42: =IF(H42=0,"",1/H42) -> 0.2 | J42: 34000 | K42: =-'App.2-BA1_Fix Asset Cont.CGAAP'!J492 -> 34000 | L42: =IF(ISERROR(+J42-K42), "", +J42-K42) -> 0
A43: 1930 | B43: Transportation Equipment<3 tons | C43: ='App.2-BA1_Fix Asset Cont.CGAAP'!D493 -> 141064.76 | D43: ='App.2-CR_OldCGAAP_DepExp_2012'!D43+'[18]Trucks under 3 ton'!$S$3/2 -> 97221.4 | E43: 43843.36 | F43: ='App.2-BA1_Fix Asset Cont.CGAAP'!E493+'App.2-BA1_Fix Asset Cont.CGAAP'!F493 -> 18340.19 | G43: 53013.455 | H43: 5 | I43: 0.2 | J43: 10602.691 | K43: =-'App.2-BA1_Fix Asset Cont.CGAAP'!J493 -> 14098.161 | L43: -3495.47
A44: 1930 | B44: Transportation Equipment>3 tons | C44: ='App.2-BA1_Fix Asset Cont.CGAAP'!D494 -> 940581.07 | D44: ='App.2-CR_OldCGAAP_DepExp_2012'!D44 -> 172902 | E44: 767679.07 | F44: ='App.2-BA1_Fix Asset Cont.CGAAP'!E494+'App.2-BA1_Fix Asset Cont.CGAAP'!F494 -> 0 | G44: 767679.07 | H44: 8 | I44: 0.125 | J44: 95959.88375 | K44: =-'App.2-BA1_Fix Asset Cont.CGAAP'!J494 -> 112472.1137 | L44: -16512.23
A45: 1930 | B45: Transportation Equipment-trailer | C45: ='App.2-BA1_Fix Asset Cont.CGAAP'!D495 -> 38458.05 | D45: ='App.2-CR_OldCGAAP_DepExp_2012'!D45 -> 38458.05 | E45: 0 | F45: ='App.2-BA1_Fix Asset Cont.CGAAP'!E495+'App.2-BA1_Fix Asset Cont.CGAAP'!F495 -> 0 | G45: 0 | H45: 5 | I45: 0.2 | J45: 0 | K45: =-'App.2-BA1_Fix Asset Cont.CGAAP'!J495 -> 0 | L45: 0
A46: 1935 | B46: Stores Equipment | C46: ='App.2-BA1_Fix Asset Cont.CGAAP'!D497 -> 24683.61 | D46: ='App.2-CR_OldCGAAP_DepExp_2012'!D47 -> 14211.475 | E46: 10472.135 | F46: ='App.2-BA1_Fix Asset Cont.CGAAP'!E497+'App.2-BA1_Fix Asset Cont.CGAAP'!F497 -> 0 | G46: 10472.135 | H46: ='App.2-CR_OldCGAAP_DepExp_2012'!H47 -> 10 | I46: 0.1 | J46: 1047.2135 | K46: =-'App.2-BA1_Fix Asset Cont.CGAAP'!J497 -> 1042.941 | L46: 4.2725
A47: 1940 | B47: Tools, Shop & Garage Equipment | C47: ='App.2-BA1_Fix Asset Cont.CGAAP'!D498 -> 463312.81 | D47: ='App.2-CR_OldCGAAP_DepExp_2012'!D48+'[18]Tools Shop Garage Equip'!$K$3/2 -> 315457.33 | E47: 147855.48 | F47: ='App.2-BA1_Fix Asset Cont.CGAAP'!E498+'App.2-BA1_Fix Asset Cont.CGAAP'!F498 -> 3242 | G47: 149476.48 | H47: ='App.2-CR_OldCGAAP_DepExp_2012'!H48 -> 10 | I47: 0.1 | J47: 14947.648 | K47: =-'App.2-BA1_Fix Asset Cont.CGAAP'!J498 -> 14905.228 | L47: 42.42
A48: 1945 | B48: Measurement & Testing Equipment | C48: ='App.2-BA1_Fix Asset Cont.CGAAP'!D499 -> 0 | E48: 0 | F48: ='App.2-BA1_Fix Asset Cont.CGAAP'!E499+'App.2-BA1_Fix Asset Cont.CGAAP'!F499 -> 0 | G48: 0 | H48: ='App.2-CR_OldCGAAP_DepExp_2012'!H49 -> 0 | I48: 0 | J48: 0 | L48: 0
A49: 1950 | B49: Power Operated Equipment | C49: ='App.2-BA1_Fix Asset Cont.CGAAP'!D500 -> 0 | E49: 0 | F49: ='App.2-BA1_Fix Asset Cont.CGAAP'!E500+'App.2-BA1_Fix Asset Cont.CGAAP'!F500 -> 0 | G49: 0 | H49: ='App.2-CR_OldCGAAP_DepExp_2012'!H50 -> 0 | I49: 0 | J49: 0 | L49: 0
A50: 1955 | B50: Communications Equipment | C50: ='App.2-BA1_Fix Asset Cont.CGAAP'!D501 -> 54383.11 | D50: ='App.2-CR_OldCGAAP_DepExp_2012'!D51 -> 14315.41 | E50: 40067.7 | F50: ='App.2-BA1_Fix Asset Cont.CGAAP'!E501+'App.2-BA1_Fix Asset Cont.CGAAP'!F501 -> 0 | G50: 40067.7 | H50: ='App.2-CR_OldCGAAP_DepExp_2012'!H51 -> 10 | I50: 0.1 | J50: 4006.77 | K50: =-'App.2-BA1_Fix Asset Cont.CGAAP'!J501 -> 3995.48 | L50: 11.29
A51: 1955 | B51: Communication Equipment (Smart Meters) | C51: ='App.2-BA1_Fix Asset Cont.CGAAP'!D502 -> 0 | E51: 0 | F51: ='App.2-BA1_Fix Asset Cont.CGAAP'!E502+'App.2-BA1_Fix Asset Cont.CGAAP'!F502 -> 0 | G51: 0 | H51: ='App.2-CR_OldCGAAP_DepExp_2012'!H52 -> 0 | I51: 0 | J51: 0 | L51: 0
A52: 1960 | B52: Miscellaneous Equipment | C52: ='App.2-BA1_Fix Asset Cont.CGAAP'!D503 -> 0 | E52: 0 | F52: ='App.2-BA1_Fix Asset Cont.CGAAP'!E503+'App.2-BA1_Fix Asset Cont.CGAAP'!F503 -> 0 | G52: 0 | H52: ='App.2-CR_OldCGAAP_DepExp_2012'!H53 -> 0 | I52: 0 | J52: 0 | L52: 0
A53: 1970 | B53: Load Management Controls - Customer Premises | C53: ='App.2-BA1_Fix Asset Cont.CGAAP'!D504 -> 0 | E53: 0 | F53: ='App.2-BA1_Fix Asset Cont.CGAAP'!E504+'App.2-BA1_Fix Asset Cont.CGAAP'!F504 -> 0 | G53: 0 | H53: ='App.2-CR_OldCGAAP_DepExp_2012'!H54 -> 0 | I53: 0 | J53: 0 | L53: 0
A54: 1975 | B54: Load Management Controls Utility Premises | C54: ='App.2-BA1_Fix Asset Cont.CGAAP'!D505 -> 0 | E54: 0 | F54: ='App.2-BA1_Fix Asset Cont.CGAAP'!E505+'App.2-BA1_Fix Asset Cont.CGAAP'!F505 -> 0 | G54: 0 | H54: ='App.2-CR_OldCGAAP_DepExp_2012'!H55 -> 0 | I54: 0 | J54: 0 | L54: 0
A55: 1980 | B55: System Supervisor Equipment | C55: ='App.2-BA1_Fix Asset Cont.CGAAP'!D506 -> 325967.71 | D55: ='App.2-CR_OldCGAAP_DepExp_2012'!D56 -> 83067.01 | E55: 242900.7 | F55: ='App.2-BA1_Fix Asset Cont.CGAAP'!E506+'App.2-BA1_Fix Asset Cont.CGAAP'!F506 -> 237952.164 | G55: 361876.782 | H55: ='App.2-CR_OldCGAAP_DepExp_2012'!H56 -> 15 | I55: 0.06666666667 | J55: 24125.1188 | K55: =-'App.2-BA1_Fix Asset Cont.CGAAP'!J506 -> 34376.996 | L55: -10251.8772 | M55: Note treatment of smart grid added NBV
A56: 1985 | B56: Miscellaneous Fixed Assets | C56: ='App.2-BA1_Fix Asset Cont.CGAAP'!D507 -> 0 | E56: 0 | F56: ='App.2-BA1_Fix Asset Cont.CGAAP'!E507+'App.2-BA1_Fix Asset Cont.CGAAP'!F507 -> 0 | G56: 0 | H56: ='App.2-CR_OldCGAAP_DepExp_2012'!H57 -> 0 | I56: 0 | J56: 0 | L56: 0
A57: 1990 | B57: Other Tangible Property | C57: ='App.2-BA1_Fix Asset Cont.CGAAP'!D508 -> 0 | E57: 0 | F57: ='App.2-BA1_Fix Asset Cont.CGAAP'!E508+'App.2-BA1_Fix Asset Cont.CGAAP'!F508 -> 0 | G57: 0 | H57: ='App.2-CR_OldCGAAP_DepExp_2012'!H58 -> 0 | I57: 0 | J57: 0 | L57: 0
A58: 1995 | B58: Contributions & Grants | C58: ='App.2-BA1_Fix Asset Cont.CGAAP'!D509 -> -6636099.48 | D58: ='App.2-CR_OldCGAAP_DepExp_2012'!D59 -> -3625.141469 | E58: -6632474.339 | F58: ='App.2-BA1_Fix Asset Cont.CGAAP'!E509+'App.2-BA1_Fix Asset Cont.CGAAP'!F509 -> -572509.02 | G58: -6918728.849 | H58: ='App.2-CR_OldCGAAP_DepExp_2012'!H59 -> 25.04898267 | I58: 0.03992178099 | J58: -276207.9778 | K58: =-'App.2-BA1_Fix Asset Cont.CGAAP'!J509 -> -276245.2824 | L58: 37.30460217
A59: etc. | E59: 0 | G59: 0 | I59: 0 | J59: 0 | L59: 0
E60: 0 | G60: 0 | I60: 0 | J60: 0 | L60: 0
B61: Total | C61: =SUM(C16:C60) -> 43839262.46 | D61: =SUM(D16:D60) -> 7177770.771 | E61: =SUM(E16:E60) -> 36661491.69 | F61: =SUM(F16:F60) -> 1444123.394 | G61: =SUM(G16:G60) -> 37383553.39 | J61: =SUM(J16:J60) -> 1728641.717 | K61: =SUM(K16:K60) -> 1756778.007 | L61: =SUM(L16:L60) -> -28136.28984
E62: Remove stranded meters | F62: ='App.2-BA1_Fix Asset Cont.CGAAP'!F481 -> -349266.36
E63: Total | F63: =SUM(F61:F62) -> 1094857.034
E64: Checksum net additions 2-BA1 | F64: =F63-'App.2-BA1_Fix Asset Cont.CGAAP'!E515-'App.2-BA1_Fix Asset Cont.CGAAP'!F515 -> 0
A65: Notes:
A66: 1 | B66: Board policy of the "half-year" rule - the applicant must ensure that additions in the year attract a half-year depreciation expense in the first year. Deviations from this standard practice must be supported in the application.
A67: 2 | B67: The applicant must provide an explanation of material variances in evidence.
A69: General: | B69: Applicants must provide a breakdown of depreciation and amortization expense in the above format for all relevant accounts. Asset Retirement Obligations (AROs), depreciation and accretion expense should be disclosed separately consistent with the Notes of historical Audited Financial Statements.

Sheet App.2-CT_NewCGAAP_DepExp_2013
N1: File Number: | O1: =EBNUMBER -> EB-2013-0155
N2: Exhibit: | O2: 4
N3: Tab: | O3: 3
N4: Schedule: | O4: 1
N5: Page: | O5: 10
N7: Date: | O7: ='App.2-AA_Capital Projects'!$H$7 -> 2014-04-08
A9: Appendix 2-CT
A10: Depreciation and Amortization Expense
A11: Assumes the applicant made capitalization and depreciation expense accounting policy changes under CGAAP effective January 1, 2013
C12: Year | D12: 2013 | E12: Revised CGAAP or ASPE - CGAAP or ASPE with the changes to the policies
A14: Account | B14: Description | C14: Opening NBV as at Jan 1, 2013 5 | D14: Additions | E14: Average Remaining Life of Opening NBV 4 | F14: Years (new additions only) 3 | G14: Depreciation Rate on New Additions | H14: Depreciation Expense on Opening NBV | I14: Depreciation Expense on Additions 1 | J14: 2013 Depreciation Expense | K14: 2013 Depreciation Expense per Appendix 2-B Fixed Assets, Column K (l) | L14: Variance 2 | M14: Depreciation Expense on 2013 Full Year Additions | N14: Less Depreciation Expense on Assets Fully Depreciated during the year (o) | O14: 2013 Full Year Depreciation 6
C15: (a) | D15: (d) | E15: (i) | F15: (f) | G15: (g) = 1 / (f) | H15: (j) = (a) / (i) | I15: (h)=((d)*0.5)/(f) | J15: (k) = (j) + (h) | L15: (m) = (k) - (l) | M15: (n)=((d))/(f) | O15: (p) = (j) + (n) - (o)
A16: 1611 | B16: Computer Software (Formally known as Account 1925) | G16: =IF(F16=0,0,1/F16) -> 0 | H16: =IF(E16=0,0,+C16/E16) -> 0 | I16: =IF(F16=0,0,+(D16*0.5)/F16) -> 0 | J16: =IF(ISERROR(+H16+I16), 0, +H16+I16) -> 0 | K16: =-'App.2-BA1_Fix Asset Cont.CGAAP'!J298 -> 0 | L16: =IF(ISERROR(+J16-K16), 0, +J16-K16) -> 0 | M16: =IF(F16=0,0,+(D16)/F16) -> 0 | O16: =IF(ISERROR(+M16+H16-N16), 0, +M16+H16-N16) -> 0
A17: 1612 | B17: Land Rights (Formally known as Account 1906) | G17: =IF(F17=0,0,1/F17) -> 0 | H17: =IF(E17=0,0,+C17/E17) -> 0 | I17: =IF(F17=0,0,+(D17*0.5)/F17) -> 0 | J17: =IF(ISERROR(+H17+I17), 0, +H17+I17) -> 0 | K17: =-'App.2-BA1_Fix Asset Cont.CGAAP'!J299 -> 0 | L17: =IF(ISERROR(+J17-K17), 0, +J17-K17) -> 0 | M17: =IF(F17=0,0,+(D17)/F17) -> 0 | O17: =IF(ISERROR(+M17+H17-N17), 0, +M17+H17-N17) -> 0
A18: 1805 | B18: Land | C18: ='App.2-BA1_Fix Asset Cont.CGAAP'!D300+'App.2-BA1_Fix Asset Cont.CGAAP'!I300 -> 258134.21 | D18: ='App.2-BA1_Fix Asset Cont.CGAAP'!E300+'App.2-BA1_Fix Asset Cont.CGAAP'!F300 -> 0 | G18: 0 | H18: 0 | I18: 0 | J18: 0 | K18: =-'App.2-BA1_Fix Asset Cont.CGAAP'!J300 -> 0 | L18: 0 | M18: 0 | O18: =IF(ISERROR(+M18+H18-N18), 0, +M18+H18-N18) -> 0
A19: 1808 | B19: Buildings | G19: 0 | H19: 0 | I19: 0 | J19: 0 | K19: =-'App.2-BA1_Fix Asset Cont.CGAAP'!J301 -> 0 | L19: 0 | M19: 0 | O19: 0
A20: 1810 | B20: Leasehold Improvements | G20: 0 | H20: 0 | I20: 0 | J20: 0 | K20: =-'App.2-BA1_Fix Asset Cont.CGAAP'!J302 -> 0 | L20: 0 | M20: 0 | O20: 0
A21: 1815 | B21: Trans Stn Equip >50 Kv-Other-York | C21: ='App.2-BA1_Fix Asset Cont.CGAAP'!D303+'App.2-BA1_Fix Asset Cont.CGAAP'!I303 -> 1466074.92 | D21: ='App.2-BA1_Fix Asset Cont.CGAAP'!E303+'App.2-BA1_Fix Asset Cont.CGAAP'!F303 -> 0 | E21: ='[12]Trans Station - York (Other)'!$AN$62/('[12]Trans Station - York (Other)'!$AL$31-'[12]Trans Station - York (Other)'!$AK$31) -> 45.63106904 | F21: ='App.2-CU_NewCGAAP_DepExp_2014'!D21 -> 55 | G21: 0.01818181818 | H21: 32128.87515 | I21: 0 | J21: 32128.87515 | K21: =-'App.2-BA1_Fix Asset Cont.CGAAP'!J303 -> 32128.87488 | L21: 0.0002629787086 | M21: 0 | N21: 0 | O21: 32128.87515 | P21: ='[12]Trans Station - York (Other)'!$AL$32 -> 32128.87488 | Q21: =P21-O21 -> -0.0002629787159
A22: 1815 | B22: Trans Stn Equip >50 Kv-Tx - York | C22: ='App.2-BA1_Fix Asset Cont.CGAAP'!D304+'App.2-BA1_Fix Asset Cont.CGAAP'!I304 -> 630587.5 | D22: ='App.2-BA1_Fix Asset Cont.CGAAP'!E304+'App.2-BA1_Fix Asset Cont.CGAAP'!F304 -> 0 | E22: ='[12]Trans Station - York (Tx)'!$AN$62/('[12]Trans Station - York (Tx)'!$AL$31-'[12]Trans Station - York (Tx)'!$AK$31) -> 35.5 | F22: ='App.2-CU_NewCGAAP_DepExp_2014'!D22 -> 45 | G22: =IF(F22=0,0,1/F22) -> 0.02222222222 | H22: =IF(E22=0,0,+C22/E22) -> 17763.02817 | I22: 0 | J22: 17763.02817 | K22: =-'App.2-BA1_Fix Asset Cont.CGAAP'!J304 -> 17763.02817 | L22: =IF(ISERROR(+J22-K22), 0, +J22-K22) -> 7.275957614e-12 | M22: =IF(F22=0,0,+(D22)/F22) -> 0 | N22: 0 | O22: =IF(ISERROR(+M22+H22-N22), 0, +M22+H22-N22) -> 17763.02817 | P22: ='[12]Trans Station - York (Tx)'!$AL$32 -> 17763.02817 | Q22: =P22-O22 -> 0
A23: 1815 | B23: Trans Stn Equip >50 Kv-Other-Conc 5 | C23: ='App.2-BA1_Fix Asset Cont.CGAAP'!D305+'App.2-BA1_Fix Asset Cont.CGAAP'!I305 -> 1664605.576 | D23: ='App.2-BA1_Fix Asset Cont.CGAAP'!E305+'App.2-BA1_Fix Asset Cont.CGAAP'!F305 -> 0 | E23: ='[12]Trans Station - Conc 5 (Other)'!$AN$62/('[12]Trans Station - Conc 5 (Other)'!$AL$31-'[12]Trans Station - Conc 5 (Other)'!$AK$31) -> 48.12789457 | F23: ='App.2-CU_NewCGAAP_DepExp_2014'!D23 -> 55 | G23: =IF(F23=0,0,1/F23) -> 0.01818181818 | H23: =IF(E23=0,0,+C23/E23) -> 34587.12646 | I23: 0 | J23: 34587.12646 | K23: =-'App.2-BA1_Fix Asset Cont.CGAAP'!J305 -> 34587.12688 | L23: -0.0004207539023 | M23: 0 | N23: 0 | O23: 34587.12646 | P23: ='[12]Trans Station - Conc 5 (Other)'!$AL$32 -> 34587.12688 | Q23: =P23-O23 -> 0.0004207539023
A24: 1815 | B24: Trans Stn Equip >50 Kv-Tx -Conc 5 | C24: ='App.2-BA1_Fix Asset Cont.CGAAP'!D306+'App.2-BA1_Fix Asset Cont.CGAAP'!I306 -> 544453.1544 | D24: ='App.2-BA1_Fix Asset Cont.CGAAP'!E306+'App.2-BA1_Fix Asset Cont.CGAAP'!F306 -> 0 | E24: ='[12]Trans Station - Conc 5 (Tx)'!$AN$62/('[12]Trans Station - Conc 5 (Tx)'!$AL$31-'[12]Trans Station - Conc 5 (Tx)'!$AK$31) -> 37.5 | F24: ='App.2-CU_NewCGAAP_DepExp_2014'!D24 -> 45 | G24: 0.02222222222 | H24: 14518.75078 | I24: 0 | J24: 14518.75078 | K24: =-'App.2-BA1_Fix Asset Cont.CGAAP'!J306 -> 14518.75078 | L24: 5.456968211e-12 | M24: 0 | N24: 0 | O24: 14518.75078 | P24: ='[12]Trans Station - Conc 5 (Tx)'!$AL$32 -> 14518.75078 | Q24: =P24-O24 -> 0
A25: 1820 | B25: Distribution Station Equipment <50 kV | C25: ='App.2-BA1_Fix Asset Cont.CGAAP'!D307+'App.2-BA1_Fix Asset Cont.CGAAP'!I307 -> 47926.91 | D25: ='App.2-BA1_Fix Asset Cont.CGAAP'!E307+'App.2-BA1_Fix Asset Cont.CGAAP'!F307 -> 0 | E25: ='[12]DS - King St.'!$AN$62/('[12]DS - King St.'!$AL$31-'[12]DS - King St.'!$AK$31) -> 1 | F25: ='App.2-CU_NewCGAAP_DepExp_2014'!D25 -> 0 | G25: 0 | H25: 47926.91 | I25: 0 | J25: 47926.91 | K25: =-'App.2-BA1_Fix Asset Cont.CGAAP'!J307 -> 47926.91067 | L25: -0.0006666666523 | M25: 0 | N25: ='[12]DS - King St.'!$AL$31 -> 47926.91067 | O25: -0.0006666666523 | P25: ='[12]DS - King St.'!$AL$32 -> 0 | Q25: =P25-O25 -> 0.0006666666523
A26: 1825 | B26: Storage Battery Equipment | C26: ='App.2-BA1_Fix Asset Cont.CGAAP'!D308+'App.2-BA1_Fix Asset Cont.CGAAP'!I308 -> 0 | D26: ='App.2-BA1_Fix Asset Cont.CGAAP'!E308+'App.2-BA1_Fix Asset Cont.CGAAP'!F308 -> 0 | F26: ='App.2-CU_NewCGAAP_DepExp_2014'!D26 -> 0 | G26: 0 | H26: 0 | I26: 0 | J26: 0 | K26: =-'App.2-BA1_Fix Asset Cont.CGAAP'!J308 -> 0 | L26: 0 | M26: 0 | O26: 0
A27: 1830 | B27: Poles, Towers & Fixtures | C27: ='App.2-BA1_Fix Asset Cont.CGAAP'!D309+'App.2-BA1_Fix Asset Cont.CGAAP'!I309 -> 2130517.25 | D27: ='[12]Asset Continuity'!$E$33 -> 252116.4 | E27: =[12]Poles!$Q$51 -> 0 | F27: ='App.2-CU_NewCGAAP_DepExp_2014'!D27 -> 45 | G27: 0.02222222222 | H27: 0 | I27: 2801.293333 | J27: 2801.293333 | K27: =-'App.2-BA1_Fix Asset Cont.CGAAP'!J309 -> 77878.89044 | L27: -75077.59711 | M27: 5602.586667 | N27: 0 | O27: 5602.586667 | P27: =[12]Poles!$M$6 -> 0 | Q27: =P27-O27 -> -5602.586667
A28: 1835 | B28: Overhead Conductors & Devices | C28: ='App.2-BA1_Fix Asset Cont.CGAAP'!D310+'App.2-BA1_Fix Asset Cont.CGAAP'!I310 -> 2838660.95 | D28: ='[12]Asset Continuity'!$E$34 -> 132180.66 | E28: ='[12]OH Conductor'!$Q$67 -> 0 | F28: ='App.2-CU_NewCGAAP_DepExp_2014'!D28 -> 60 | G28: 0.01666666667 | H28: 0 | I28: 1101.5055 | J28: 1101.5055 | K28: =-'App.2-BA1_Fix Asset Cont.CGAAP'!J310 -> 69232.91857 | L28: -68131.41307 | M28: 2203.011 | N28: 0 | O28: 2203.011 | P28: ='[12]OH Conductor'!$L$6 -> 0 | Q28: -2203.011
A29: 1840 | B29: Underground Conduit | C29: ='App.2-BA1_Fix Asset Cont.CGAAP'!D311+'App.2-BA1_Fix Asset Cont.CGAAP'!I311 -> 2705309.66 | D29: ='App.2-BA1_Fix Asset Cont.CGAAP'!E311 -> 261598.54 | E29: ='[12]UG Conduit'!$N$72 -> 53.22273877 | F29: ='App.2-CU_NewCGAAP_DepExp_2014'!D29 -> 65 | G29: 0.01538461538 | H29: 50829.95957 | I29: 2012.296462 | J29: 52842.25604 | K29: =-'App.2-BA1_Fix Asset Cont.CGAAP'!J311 -> 52842.09164 | L29: 0.1643978661 | M29: 4024.592923 | N29: 0 | O29: 54854.5525 | P29: ='[12]UG Conduit'!$J$6 -> 54854.3881 | Q29: -0.1643978661
A30: 1845 | B30: Underground Conductors & Devices | C30: ='App.2-BA1_Fix Asset Cont.CGAAP'!D312+'App.2-BA1_Fix Asset Cont.CGAAP'!I312 -> 4168056.67 | D30: ='[12]Asset Continuity'!$E$42 -> 507775.47 | E30: ='[12]UG Conductor'!$N$53 -> 29.8596606 | F30: ='App.2-CU_NewCGAAP_DepExp_2014'!D30 -> 45 | G30: 0.02222222222 | H30: 139588.2132 | I30: 5641.949667 | J30: 145230.1629 | K30: =-'App.2-BA1_Fix Asset Cont.CGAAP'!J312 -> 145230.1246 | L30: 0.038273443 | M30: 11283.89933 | N30: 0 | O30: 150872.1125 | P30: ='[12]UG Conductor'!$J$6 -> 150872.0742 | Q30: -0.038273443
A31: 1850 | B31: Line Transformers | C31: ='App.2-BA1_Fix Asset Cont.CGAAP'!D313+'App.2-BA1_Fix Asset Cont.CGAAP'!I313 -> 3944982.55 | D31: ='[12]Asset Continuity'!$E$49+'[12]Asset Continuity'!$G$49+'[12]Asset Continuity'!$N$49 -> 178039.48 | E31: ='[12]Line Transformers'!$P$59+0.0005 -> 294.6334523 | F31: ='App.2-CU_NewCGAAP_DepExp_2014'!D31 -> 45 | G31: 0.02222222222 | H31: 13389.45907 | I31: 1978.216444 | J31: 15367.67552 | K31: =-'App.2-BA1_Fix Asset Cont.CGAAP'!J313 -> 122410.7572 | L31: -107043.0817 | M31: 3956.432889 | N31: 0 | O31: 17345.89196 | P31: ='[12]Line Transformers'!$L$6+'[12]Line Trans Inv'!$AL$32+'[12]Trans Damage Return'!$AL$32+'[12]Trans Spare'!$AL$32 -> 6014.81977 | Q31: -11331.07219 | S31: =I31 -> 1978.216444 | T31: ='[12]Line Transformers'!$K$5 -> 182458.62 | U31: =T31-S31 -> 180480.4036
A32: 1855 | B32: Services - Overhead | C32: ='App.2-BA1_Fix Asset Cont.CGAAP'!D314+'App.2-BA1_Fix Asset Cont.CGAAP'!I314 -> 443106.85 | D32: ='App.2-BA1_Fix Asset Cont.CGAAP'!E314+'App.2-BA1_Fix Asset Cont.CGAAP'!F314 -> 30148.32 | E32: ='[12]Services OH'!$AN$52/('[12]Services OH'!$AL$21-'[12]Services OH'!$AK$21) -> 55.03832311 | F32: ='App.2-CU_NewCGAAP_DepExp_2014'!D32 -> 60 | G32: 0.01666666667 | H32: 8050.878459 | I32: 251.236 | J32: 8302.114459 | K32: =-'App.2-BA1_Fix Asset Cont.CGAAP'!J314 -> 8302.113356 | L32: 0.001103473574 | M32: 502.472 | N32: 0 | O32: 8553.350459 | P32: ='[12]Services OH'!$AL$22 -> 8553.349356 | Q32: -0.001103473573
A33: 1855 | B33: Services - Underground | C33: ='App.2-BA1_Fix Asset Cont.CGAAP'!D315+'App.2-BA1_Fix Asset Cont.CGAAP'!I315 -> 1679060.21 | D33: ='App.2-BA1_Fix Asset Cont.CGAAP'!E315+'App.2-BA1_Fix Asset Cont.CGAAP'!F315 -> 225648.48 | E33: ='[12]Services UG'!$AN$52/('[12]Services UG'!$AL$21-'[12]Services UG'!$AK$21) -> 38.58912326 | F33: ='App.2-CU_NewCGAAP_DepExp_2014'!D33 -> 45 | G33: 0.02222222222 | H33: 43511.2298 | I33: 2507.205333 | J33: 46018.43513 | K33: =-'App.2-BA1_Fix Asset Cont.CGAAP'!J315 -> 46018.43517 | L33: -3.973485582e-05 | M33: 5014.410667 | N33: 0 | O33: 48525.64047 | P33: ='[12]Services UG'!$AL$22 -> 48525.64051 | Q33: 3.973486309e-05
A34: 1860 | B34: Meters - CT/PTs component | C34: ='App.2-BA1_Fix Asset Cont.CGAAP'!D316+'App.2-BA1_Fix Asset Cont.CGAAP'!I316 -> 130988.805 | D34: ='App.2-BA1_Fix Asset Cont.CGAAP'!E316 -> 0 | E34: =[12]CTPT!$AN$62/([12]CTPT!$AL$31-[12]CTPT!$AK$31) -> 29.21674223 | F34: ='App.2-CU_NewCGAAP_DepExp_2014'!D34 -> 40 | G34: 0.025 | H34: 4483.34739 | I34: 0 | J34: 4483.34739 | K34: =-'App.2-BA1_Fix Asset Cont.CGAAP'!J316 -> 4483.34739 | L34: 2.637534635e-11 | M34: 0 | N34: 0 | O34: 4483.34739 | P34: =[12]CTPT!$AL$32 -> 4483.34739 | Q34: -2.091837814e-11
A35: 1860 | B35: Meters - Other component | C35: ='App.2-BA1_Fix Asset Cont.CGAAP'!D317+'App.2-BA1_Fix Asset Cont.CGAAP'!I317 -> 105259.435 | D35: ='App.2-BA1_Fix Asset Cont.CGAAP'!E317 -> 27480.57 | E35: =[12]Other!$AO$72 -> 13.5551904 | F35: ='App.2-CU_NewCGAAP_DepExp_2014'!D35 -> 25 | G35: 0.04 | H35: 7765.249466 | I35: 549.6114 | J35: 8314.860866 | K35: =-'App.2-BA1_Fix Asset Cont.CGAAP'!J317 -> 8339.968966 | L35: -25.10810052 | M35: 1099.2228 | N35: =[12]Other!$J$31 -> 308.326495 | O35: 8556.145771 | P35: =[12]Other!$AL$32+'[12]Dist Meters Inv'!$AL$32 -> 8581.253871 | Q35: 25.10810052
A36: 1860 | B36: Meters - Stranded | C36: ='App.2-BA1_Fix Asset Cont.CGAAP'!D318+'App.2-BA1_Fix Asset Cont.CGAAP'!I318 -> 102246.29 | E36: =[12]StrandedMeters!$AJ$64/[12]StrandedMeters!$AH$31 -> 10.80621477 | F36: 25 | G36: 0.04 | H36: 9461.804355 | I36: 0 | J36: 9461.804355 | K36: =-'App.2-BA1_Fix Asset Cont.CGAAP'!J318 -> 9461.8028 | L36: 0.001554660954 | M36: 0 | N36: =K36 -> 9461.8028 | O36: 0.001554660954 | Q36: -0.001554660954
A37: 1860 | B37: Meters (Smart Meters) | C37: ='App.2-BA1_Fix Asset Cont.CGAAP'!D319+'App.2-BA1_Fix Asset Cont.CGAAP'!I319 -> 1417447.76 | D37: ='App.2-BA1_Fix Asset Cont.CGAAP'!E319+'App.2-BA1_Fix Asset Cont.CGAAP'!F319 -> 19477.78 | E37: ='[12]Smart Meters'!$AO$74 -> 12.5140212 | F37: ='App.2-CU_NewCGAAP_DepExp_2014'!D37 -> 15 | G37: 0.06666666667 | H37: 113268.7677 | I37: 649.2593333 | J37: 113918.027 | K37: =-'App.2-BA1_Fix Asset Cont.CGAAP'!J319 -> 113918.0287 | L37: -0.001651480852 | M37: 1298.518667 | N37: 0 | O37: 114567.2863 | P37: ='[12]Smart Meters'!$AL$32+'[12]Smart Meters Inv'!$AL$32 -> 114567.288 | Q37: 0.001651480867
A38: 1905 | B38: Land | C38: ='App.2-BA1_Fix Asset Cont.CGAAP'!D320+'App.2-BA1_Fix Asset Cont.CGAAP'!I320 -> 49000 | D38: ='App.2-BA1_Fix Asset Cont.CGAAP'!E320+'App.2-BA1_Fix Asset Cont.CGAAP'!F320 -> 0 | F38: ='App.2-CU_NewCGAAP_DepExp_2014'!D38 -> 0 | G38: 0 | H38: 0 | I38: 0 | J38: 0 | K38: =-'App.2-BA1_Fix Asset Cont.CGAAP'!J320 -> 0 | L38: 0 | M38: 0 | O38: 0
A39: 1908 | B39: Buildings & Fixtures - HQ | C39: ='App.2-BA1_Fix Asset Cont.CGAAP'!D321+'App.2-BA1_Fix Asset Cont.CGAAP'!I321 -> 678369.83 | D39: ='App.2-BA1_Fix Asset Cont.CGAAP'!E321+'App.2-BA1_Fix Asset Cont.CGAAP'!F321 -> 1060 | E39: ='[12]Buildings & Fixtures - 8 Henega'!$AN$62/('[12]Buildings & Fixtures - 8 Henega'!$AL$31-'[12]Buildings & Fixtures - 8 Henega'!$AK$31) -> 39.30426873 | F39: ='App.2-CU_NewCGAAP_DepExp_2014'!D39 -> 60 | G39: 0.01666666667 | H39: 17259.44413 | I39: 8.833333333 | J39: 17268.27746 | K39: =-'App.2-BA1_Fix Asset Cont.CGAAP'!J321 -> 17268.27433 | L39: 0.003131975387 | M39: 17.66666667 | N39: 0 | O39: 17277.11079 | P39: ='[12]Buildings & Fixtures - 8 Henega'!$AL$32 -> 17277.10766 | Q39: =P39-O39 -> -0.003131975387
A40: 1908 | B40: Buildings & Fixtures - PCB Shed | C40: ='App.2-BA1_Fix Asset Cont.CGAAP'!D322+'App.2-BA1_Fix Asset Cont.CGAAP'!I322 -> 1605.5 | D40: ='App.2-BA1_Fix Asset Cont.CGAAP'!E322+'App.2-BA1_Fix Asset Cont.CGAAP'!F322 -> 0 | E40: ='[12]Buildings & Fixtures - PCB'!$AN$62/('[12]Buildings & Fixtures - PCB'!$AL$31-'[12]Buildings & Fixtures - PCB'!$AK$31) -> 4.5 | F40: ='App.2-CU_NewCGAAP_DepExp_2014'!D40 -> 30 | G40: 0.03333333333 | H40: 356.7777778 | I40: 0 | J40: 356.7777778 | K40: =-'App.2-BA1_Fix Asset Cont.CGAAP'!J322 -> 356.7777778 | L40: 0 | M40: 0 | N40: 0 | O40: 356.7777778 | P40: ='[12]Buildings & Fixtures - PCB'!$AL$32 -> 356.7777778 | Q40: =P40-O40 -> 0
A41: 1910 | B41: Leasehold Improvements | C41: ='App.2-BA1_Fix Asset Cont.CGAAP'!D323+'App.2-BA1_Fix Asset Cont.CGAAP'!I323 -> 0 | D41: ='App.2-BA1_Fix Asset Cont.CGAAP'!E323+'App.2-BA1_Fix Asset Cont.CGAAP'!F323 -> 0 | F41: ='App.2-CU_NewCGAAP_DepExp_2014'!D41 -> 0 | G41: 0 | H41: 0 | I41: 0 | J41: 0 | K41: =-'App.2-BA1_Fix Asset Cont.CGAAP'!J323 -> 0 | L41: 0 | M41: 0 | O41: 0
